{"text_format":"1","workbook":"xlsx","n_sheets":15,"sheets":["1. Info","2021 List","Sheet1","2. Table of Contents","3. RRR Data","4. UTRs and Sub-Transmission","5. Historical Wholesale","6. Current Wholesale","7. Forecast Wholesale","8. RTSR Rates to Forecast","9. LV Rates","RateClasses","DELETE 3. Rate Classes","2 1 5 TotalConsumptionData_Dist","hidden1"],"not_rendered":{"charts":0,"images":2,"macros":1,"external_links":9,"defined_names":143,"comments":0,"pivot_tables":0},"unopened":[],"bounds":{"document_bytes":16777216,"sheet_cells":100000,"rows_first":2000,"rows_last":500,"rows_between":2000,"halvings":0,"cell_chars":16384,"cell_head_chars":4096},"cells_cut":0,"cells_raw":0,"read":"whole","date_system":"1900"}

{"sheet":"1. Info","index":0,"n_rows":72,"n_cols":29,"rows_kept":72,"cut":false,"hidden":false,"merged":[[22,3,22,4],[18,3,18,4],[1,2,1,9],[2,2,2,9],[3,2,3,9],[4,2,4,9],[14,3,14,4]]}
[null,null,null,null,null,null,null,null,null,null,null,null,null,null,null,null,null,null,null,null,null,null,null,null,null,null,null,"Alectra Utilities Corporation-Brampton Rate Zone","2025 RTSR Workform \nfor Electricity Distributors\n"]
[null,null,null,null,null,null,null,null,null,null,null,null,null,null,null,null,null,null,null,null,null,null,null,null,null,null,null,"Alectra Utilities Corporation-Enersource Rate Zone","v 1.0\n"]
[null,null,null,null,null,null,null,null,null,null,null,null,null,null,null,null,null,null,null,null,null,null,null,null,null,null,null,"Alectra Utilities Corporation-Horizon Utilities Rate Zone"]
[null,null,null,null,null,null,null,null,null,null,null,null,null,null,null,null,null,null,null,null,null,null,null,null,null,null,null,"Alectra Utilities Corporation-PowerStream Rate Zone"]
[null,null,null,null,null,null,null,null,null,null,null,null,null,null,null,null,null,null,null,null,null,null,null,null,null,null,null,"Alectra Utilities Corporation-Guelph Rate Zone"]
[null,null,null,null,null,null,null,null,null,null,null,null,null,null,null,null,null,null,null,null,null,null,null,null,null,null,null,"Algoma Power Inc."]
[null,null,null,null,null,null,null,null,null,null,null,null,null,null,null,null,null,null,null,null,null,null,null,null,null,null,null,"Atikokan Hydro Inc."]
[null,null,null,null,null,null,null,null,null,null,null,null,null,null,null,null,null,null,null,null,null,null,null,null,null,null,null,"Bluewater Power Distribution Corporation"]
[null,null,null,null,null,null,null,null,null,null,null,null,null,null,null,null,null,null,null,null,null,null,null,null,null,null,null,"Burlington Hydro Inc."]
[null,null,null,null,null,null,null,null,null,null,null,null,null,null,null,null,null,null,null,null,null,null,null,null,null,null,null,"Canadian Niagara Power Inc."]
[null,null,null,null,null,null,null,null,null,null,null,null,null,null,null,null,null,null,null,null,null,null,null,null,null,null,null,"Centre Wellington Hydro Ltd."]
[null,null,null,null,null,null,null,null,null,null,null,null,null,null,null,null,null,null,null,null,null,null,null,null,null,null,null,"Chapleau Public Utilities Corporation"]
["Drop-down lists are shaded blue; Input cells are shaded green.",null,null,null,null,null,null,null,null,null,null,null,null,null,null,null,null,null,null,null,null,null,null,null,null,null,null,"Cooperative Hydro Embrun Inc."]
[null,null,null,null,null,null,null,null,null,null,null,null,null,null,null,null,null,null,null,null,null,null,null,null,null,null,null,"E.L.K. Energy Inc."]
[null,null,"Utility Name   ","Essex Powerlines Corporation",null,null,null,null,null,null,null,null,null,null,null,null,null,null,null,null,null,null,null,null,null,null,null,"Elexicon Energy Inc.-Whitby Rate Zone"]
[null,null,null,null,null,null,null,null,null,null,null,null,null,null,null,null,null,null,null,null,null,null,null,null,null,null,null,"Elexicon Energy Inc.-Veridian Rate Zone"]
[null,null,"Assigned EB Number","EB-2024-0020",null,null,null,null,null,null,null,null,null,null,null,null,null,null,null,null,null,null,null,null,null,null,null,"Enova Power Corp.-Kitchener-Wilmot Hydro Rate Zone"]
[null,null,null,null,null,null,null,null,null,null,null,null,null,null,null,null,null,null,null,null,null,null,null,null,null,null,null,"Enova Power Corp.-Waterloo North Rate Zone"]
[null,null,"Name and Title of Contact","Grace Flood, Director Finance & Regulatory Affairs",null,null,null,null,null,null,null,null,null,null,null,null,null,null,null,null,null,null,null,null,null,null,null,"Entegrus Powerlines Inc.-For Entegrus-Main Rate Zone"]
[null,null,null,null,null,null,null,null,null,null,null,null,null,null,null,null,null,null,null,null,null,null,null,null,null,null,null,"Entegrus Powerlines Inc.-For Former St. Thomas Energy Rate Zone"]
[null,null,"Phone Number","519-737-9811 X 163",null,null,null,null,null,null,null,null,null,null,null,null,null,null,null,null,null,null,null,null,null,null,null,"ENWIN Utilities Ltd."]
[null,null,null,null,null,null,null,null,null,null,null,null,null,null,null,null,null,null,null,null,null,null,null,null,null,null,null,"EPCOR Electricity Distribution Ontario Inc."]
[null,null,"Email Address","gflood@essexpowerlines.ca",null,null,null,null,null,null,null,null,null,null,null,null,null,null,null,null,null,null,null,null,null,null,null,"ERTH Power Corporation - ERTH Power Main Rate Zone"]
[null,null,null,null,null,null,null,null,null,null,null,null,null,null,null,null,null,null,null,null,null,null,null,null,null,null,null,"ERTH POWER CORPORATION – GODERICH RATE ZONE"]
[null,null,"Last COS Re-based Year",2018,null,null,null,null,null,null,null,null,null,null,null,null,null,null,null,null,null,null,null,null,null,null,null,"Espanola Regional Hydro Distribution Corporation"]
[null,null,null,null,null,null,null,null,null,null,null,null,null,null,null,null,null,null,null,null,null,null,null,null,null,null,null,"Essex Powerlines Corporation"]
[null,null,null,null,null,null,null,null,null,null,null,null,null,null,null,null,null,null,null,null,null,null,null,null,null,null,null,"Festival Hydro Inc."]
[null,null,null,null,null,null,null,null,null,null,null,null,null,null,null,null,null,null,null,null,null,null,null,null,null,null,null,"Fort Frances Power Corporation"]
[null,null,null,null,null,null,null,null,null,null,null,null,null,null,null,null,null,null,null,null,null,null,null,null,null,null,null,"GrandBridge Energy Inc.-Brantford Power Rate Zone "]
[null,null,null,null,null,null,null,null,null,null,null,null,null,null,null,null,null,null,null,null,null,null,null,null,null,null,null,"GrandBridge Energy Inc.-Energy+ Rate Zone "]
[null,null,null,null,null,null,null,null,null,null,null,null,null,null,null,null,null,null,null,null,null,null,null,null,null,null,null,"Greater Sudbury Hydro Inc."]
[null,null,null,null,null,null,null,null,null,null,null,null,null,null,null,null,null,null,null,null,null,null,null,null,null,null,null,"Grimsby Power Incorporated"]
[null,null,null,null,null,null,null,null,null,null,null,null,null,null,null,null,null,null,null,null,null,null,null,null,null,null,null,"Halton Hills Hydro Inc."]
[null,null,null,null,null,null,null,null,null,null,null,null,null,null,null,null,null,null,null,null,null,null,null,null,null,null,null,"Hearst Power Distribution Co. Ltd."]
[null,null,null,null,null,null,null,null,null,null,null,null,null,null,null,null,null,null,null,null,null,null,null,null,null,null,null,"Hydro 2000 Inc."]
[null,null,null,null,null,null,null,null,null,null,null,null,null,null,null,null,null,null,null,null,null,null,null,null,null,null,null,"Hydro Hawkesbury Inc."]
[null,null,null,null,null,null,null,null,null,null,null,null,null,null,null,null,null,null,null,null,null,null,null,null,null,null,null,"Hydro One Networks Inc."]
[null,null,null,null,null,null,null,null,null,null,null,null,null,null,null,null,null,null,null,null,null,null,null,null,null,null,null,"Hydro One Networks Inc.-Former Orillia Power Distribution Corporation Service Area"]
[null,null,null,null,null,null,null,null,null,null,null,null,null,null,null,null,null,null,null,null,null,null,null,null,null,null,null,"Hydro One Networks Inc.-Former Peterborough Distribution Inc. Service Area"]
[null,null,null,null,null,null,null,null,null,null,null,null,null,null,null,null,null,null,null,null,null,null,null,null,null,null,null,"Hydro One Networks Inc.-Former Haldimand County Hydro Inc. Service Area"]
[null,null,null,null,null,null,null,null,null,null,null,null,null,null,null,null,null,null,null,null,null,null,null,null,null,null,null,"Hydro One Networks Inc.-Former Norfolk Power Distribution Inc. Service Area"]
[null,null,null,null,null,null,null,null,null,null,null,null,null,null,null,null,null,null,null,null,null,null,null,null,null,null,null,"Hydro One Networks Inc.-Former Woodstock Hydro Services Inc. Service Area"]
[null,null,null,null,null,null,null,null,null,null,null,null,null,null,null,null,null,null,null,null,null,null,null,null,null,null,null,"Hydro One Remote Communites Inc."]
[null,null,null,null,null,null,null,null,null,null,null,null,null,null,null,null,null,null,null,null,null,null,null,null,null,null,null,"Hydro Ottawa Limited"]
[null,null,null,null,null,null,null,null,null,null,null,null,null,null,null,null,null,null,null,null,null,null,null,null,null,null,null,"InnPower Corporation"]
[null,null,null,null,null,null,null,null,null,null,null,null,null,null,null,null,null,null,null,null,null,null,null,null,null,null,null,"Kingston Hydro Corporation"]
[null,null,null,null,null,null,null,null,null,null,null,null,null,null,null,null,null,null,null,null,null,null,null,null,null,null,null,"Lakefront Utilities Inc."]
[null,null,null,null,null,null,null,null,null,null,null,null,null,null,null,null,null,null,null,null,null,null,null,null,null,null,null,"Lakeland Power Distribution Ltd."]
[null,null,null,null,null,null,null,null,null,null,null,null,null,null,null,null,null,null,null,null,null,null,null,null,null,null,null,"London Hydro Inc."]
[null,null,null,null,null,null,null,null,null,null,null,null,null,null,null,null,null,null,null,null,null,null,null,null,null,null,null,"Milton Hydro Distribution Inc."]
[null,null,null,null,null,null,null,null,null,null,null,null,null,null,null,null,null,null,null,null,null,null,null,null,null,null,null,"Newmarket-Tay Power Distribution Ltd.-For Former Midland Power Utility Rate Zone"]
[null,null,null,null,null,null,null,null,null,null,null,null,null,null,null,null,null,null,null,null,null,null,null,null,null,null,null,"Newmarket-Tay Power Distribution Ltd.-For Newmarket-Tay Power Main Rate Zone"]
[null,null,null,null,null,null,null,null,null,null,null,null,null,null,null,null,null,null,null,null,null,null,null,null,null,null,null,"Niagara Peninsula Energy Inc."]
[null,null,null,null,null,null,null,null,null,null,null,null,null,null,null,null,null,null,null,null,null,null,null,null,null,null,null,"Niagara-on-the-Lake Hydro Inc."]
[null,null,null,null,null,null,null,null,null,null,null,null,null,null,null,null,null,null,null,null,null,null,null,null,null,null,null,"North Bay Hydro Distribution Limited"]
[null,null,null,null,null,null,null,null,null,null,null,null,null,null,null,null,null,null,null,null,null,null,null,null,null,null,null,"Northern Ontario Wires Inc."]
[null,null,null,null,null,null,null,null,null,null,null,null,null,null,null,null,null,null,null,null,null,null,null,null,null,null,null,"Oakville Hydro Electricity Distribution Inc."]
[null,null,null,null,null,null,null,null,null,null,null,null,null,null,null,null,null,null,null,null,null,null,null,null,null,null,null,"Orangeville Hydro Limited"]
[null,null,null,null,null,null,null,null,null,null,null,null,null,null,null,null,null,null,null,null,null,null,null,null,null,null,null,"Oshawa PUC Networks Inc."]
[null,null,null,null,null,null,null,null,null,null,null,null,null,null,null,null,null,null,null,null,null,null,null,null,null,null,null,"Ottawa River Power Corporation"]
[null,null,null,null,null,null,null,null,null,null,null,null,null,null,null,null,null,null,null,null,null,null,null,null,null,null,null,"PUC Distribution Inc."]
[null,null,null,null,null,null,null,null,null,null,null,null,null,null,null,null,null,null,null,null,null,null,null,null,null,null,null,"Renfrew Hydro Inc."]
[null,null,null,null,null,null,null,null,null,null,null,null,null,null,null,null,null,null,null,null,null,null,null,null,null,null,null,"Rideau St. Lawrence Distribution Inc."]
[null,null,null,null,null,null,null,null,null,null,null,null,null,null,null,null,null,null,null,null,null,null,null,null,null,null,null,"Sioux Lookout Hydro Inc."]
[null,null,null,null,null,null,null,null,null,null,null,null,null,null,null,null,null,null,null,null,null,null,null,null,null,null,null,"Synergy North Corporation-Kenora Rate Zone"]
[null,null,null,null,null,null,null,null,null,null,null,null,null,null,null,null,null,null,null,null,null,null,null,null,null,null,null,"Synergy North Corporation-Thunder Bay Rate Zone "]
[null,null,null,null,null,null,null,null,null,null,null,null,null,null,null,null,null,null,null,null,null,null,null,null,null,null,null,"Tillsonburg Hydro Inc."]
[null,null,null,null,null,null,null,null,null,null,null,null,null,null,null,null,null,null,null,null,null,null,null,null,null,null,null,"Toronto Hydro-Electric System Limited"]
[null,null,null,null,null,null,null,null,null,null,null,null,null,null,null,null,null,null,null,null,null,null,null,null,null,null,null,"Wasaga Distribution Inc."]
[null,null,null,null,null,null,null,null,null,null,null,null,null,null,null,null,null,null,null,null,null,null,null,null,null,null,null,"Welland Hydro-Electric System Corp."]
[null,null,null,null,null,null,null,null,null,null,null,null,null,null,null,null,null,null,null,null,null,null,null,null,null,null,null,"Wellington North Power Inc."]
[null,null,null,null,null,null,null,null,null,null,null,null,null,null,null,null,null,null,null,null,null,null,null,null,null,null,null,"Westario Power Inc."]

{"sheet":"2021 List","index":1,"n_rows":72,"n_cols":2,"rows_kept":72,"cut":false,"hidden":true,"merged":[]}
["Alectra Utilities Corporation-Brampton Rate Zone","HHPNS717"]
["Alectra Utilities Corporation-Enersource Rate Zone","HHPNS717"]
["Alectra Utilities Corporation-Horizon Utilities Rate Zone","HHPNS717"]
["Alectra Utilities Corporation-PowerStream Rate Zone","HHPNS717"]
["Alectra Utilities Corporation-Guelph Rate Zone","HHPNS717"]
["Algoma Power Inc.","WKBSV849"]
["Atikokan Hydro Inc.","NJYBW716"]
["Bluewater Power Distribution Corporation","GQQHM388"]
["Burlington Hydro Inc.","OARZC118"]
["Canadian Niagara Power Inc.","HJHBH994"]
["Centre Wellington Hydro Ltd.","KQEEH473"]
["Chapleau Public Utilities Corporation","CPEFQ593"]
["Cooperative Hydro Embrun Inc.","QXHJU641"]
["E.L.K. Energy Inc.","AVXSO594"]
["Elexicon Energy Inc.-Whitby Rate Zone","JMNNR431"]
["Elexicon Energy Inc.-Veridian Rate Zone","JMNNR431"]
["Enova Power Corp.-Kitchener-Wilmot Hydro Rate Zone","JMNNR432"]
["Enova Power Corp.-Waterloo North Rate Zone","JMNNR432"]
["Entegrus Powerlines Inc.-For Entegrus-Main Rate Zone","YEOQG654"]
["Entegrus Powerlines Inc.-For Former St. Thomas Energy Rate Zone","YEOQG654"]
["ENWIN Utilities Ltd.","PTLUC812"]
["EPCOR Electricity Distribution Ontario Inc.","ADICB565"]
["ERTH Power Corporation - ERTH Power Main Rate Zone","LRECV427"]
["ERTH POWER CORPORATION – GODERICH RATE ZONE","KTCNY552"]
["Espanola Regional Hydro Distribution Corporation","YEPCI143"]
["Essex Powerlines Corporation","GRHTW113"]
["Festival Hydro Inc.","GMGHU415"]
["Fort Frances Power Corporation","YTPWF351"]
["GrandBridge Energy Inc.-Brantford Power Rate Zone ","YTPWF352"]
["GrandBridge Energy Inc.-Energy+ Rate Zone ","YTPWF352"]
["Greater Sudbury Hydro Inc.","YCYKQ642"]
["Grimsby Power Incorporated","ADZFM459"]
["Halton Hills Hydro Inc.","RVWKN794"]
["Hearst Power Distribution Co. Ltd.","KESKM585"]
["Hydro 2000 Inc.","MQFNL784"]
["Hydro Hawkesbury Inc.","FNDHH648"]
["Hydro One Networks Inc.","PTREM828"]
["Hydro One Networks Inc.-Former Orillia Power Distribution Corporation Service Area","PTREM829"]
["Hydro One Networks Inc.-Former Peterborough Distribution Inc. Service Area","PTREM829"]
["Hydro One Networks Inc.-Former Haldimand County Hydro Inc. Service Area","PTREM828"]
["Hydro One Networks Inc.-Former Norfolk Power Distribution Inc. Service Area","PTREM828"]
["Hydro One Networks Inc.-Former Woodstock Hydro Services Inc. Service Area","PTREM828"]
["Hydro One Remote Communites Inc.","UBBYF452"]
["Hydro Ottawa Limited","NSBED625"]
["InnPower Corporation","TXKTT167"]
["Kingston Hydro Corporation","ZHKLA874"]
["Lakefront Utilities Inc.","YLCEC559"]
["Lakeland Power Distribution Ltd.","NHKJF259"]
["London Hydro Inc.","SLRXO177"]
["Milton Hydro Distribution Inc.","UIFEM157"]
["Newmarket-Tay Power Distribution Ltd.-For Former Midland Power Utility Rate Zone","RUZIU984"]
["Newmarket-Tay Power Distribution Ltd.-For Newmarket-Tay Power Main Rate Zone","RUZIU984"]
["Niagara Peninsula Energy Inc.","KSUYD122"]
["Niagara-on-the-Lake Hydro Inc.","QHCKN852"]
["North Bay Hydro Distribution Limited","FUIJX538"]
["Northern Ontario Wires Inc.","PWKJP953"]
["Oakville Hydro Electricity Distribution Inc.","JEGGW178"]
["Orangeville Hydro Limited","TVKSH414"]
["Oshawa PUC Networks Inc.","PQZCY963"]
["Ottawa River Power Corporation","GTLBW445"]
["PUC Distribution Inc.","MLWYG784"]
["Renfrew Hydro Inc.","QDKIF127"]
["Rideau St. Lawrence Distribution Inc.","AMZEN437"]
["Sioux Lookout Hydro Inc.","ACEVX242"]
["Synergy North Corporation-Kenora Rate Zone","DSPWZ318"]
["Synergy North Corporation-Thunder Bay Rate Zone ","DSPWZ318"]
["Tillsonburg Hydro Inc.","OLIUU862"]
["Toronto Hydro-Electric System Limited","NIOJF461"]
["Wasaga Distribution Inc.","ZYZFO848"]
["Welland Hydro-Electric System Corp.","IOKHC383"]
["Wellington North Power Inc.","SKVKJ649"]
["Westario Power Inc.","TPFNQ593"]

{"sheet":"Sheet1","index":2,"n_rows":11,"n_cols":2,"rows_kept":11,"cut":false,"hidden":true,"merged":[]}
[]
[]
[]
[]
["2. Table of Contents","X"]
["3. RRR Data","X"]
["4. UTRs and Sub-Transmission","X"]
["5. Historical Wholesale","X"]
["6. Current Wholesale","X"]
["7. Forecast Wholesale","X"]
["8. RTSR Rates to Forecast","X"]

{"sheet":"2. Table of Contents","index":3,"n_rows":26,"n_cols":9,"rows_kept":26,"cut":false,"hidden":false,"merged":[]}
[]
[]
[]
[]
[]
[]
[]
[]
[]
[]
[]
[]
[]
[]
[]
[]
[]
[]
[]
[null,null,null,"1. Info",null,null,null,null,"5. Historical Wholesale"]
[]
[null,null,null,"2. Table of Contents",null,null,null,null,"6. Current Wholesale"]
[]
[null,null,null,"3. RRR Data",null,null,null,null,"7. Forecast Wholesale"]
[]
[null,null,null,"4. UTRs and Sub-Transmission",null,null,null,null,"8. RTSR Rates to Forecast"]

{"sheet":"3. RRR Data","index":4,"n_rows":30,"n_cols":52,"rows_kept":30,"cut":false,"hidden":false,"merged":[[12,1,12,8]]}
[null,null,null,null,null,null,null,null,null,null,null,null,null,null,null,null,null,null,null,null,null,null,null,null,null,null,null,null,null,null,null,null,null,null,null,null,null,null,null,null,null,null,null,null,null,null,null,null,null,null,null,1]
[]
[]
[]
[]
[]
[]
[]
[]
[]
[]
[]
[]
[]
[null,"Rate Class","Rate Description","Unit","Rate","Non-Loss Adjusted Metered kWh","Non-Loss Adjusted Metered kW","Applicable \nLoss Factor\neg: (1.0325)","Loss Adjusted Billed kWh"]
[]
[null,"RESIDENTIAL SERVICE CLASSIFICATION","Retail Transmission Rate - Network Service Rate","$/kWh",9.2999999999999992E-3,259000634,null,1.0355000000000001,{"$f":"F17*H17","v":268195156.50700003}]
[null,"RESIDENTIAL SERVICE CLASSIFICATION","Retail Transmission Rate - Line and Transformation Connection Service Rate","$/kWh",6.4000000000000003E-3,259000634,null,1.0355000000000001,268195156.50700003]
[null,"GENERAL SERVICE LESS THAN 50 KW SERVICE CLASSIFICATION","Retail Transmission Rate - Network Service Rate","$/kWh",7.9000000000000008E-3,63293408,null,1.0355000000000001,65540323.984000005]
[null,"GENERAL SERVICE LESS THAN 50 KW SERVICE CLASSIFICATION","Retail Transmission Rate - Line and Transformation Connection Service Rate - Interval Metered","$/kWh",6.1000000000000004E-3,63293408,null,1.0355000000000001,65540323.984000005]
[null,"GENERAL SERVICE 50 to 4,999 kW SERVICE CLASSIFICATION","Retail Transmission Rate - Network Service Rate - Interval Metered","$/kW",4.0579000000000001,183420703,566315,1.0355000000000001,189932137.95650002,"For this line item, please ensure that the consumption and demand values have been adjusted to account for non-interval/interval customers."]
[null,"GENERAL SERVICE 50 to 4,999 kW SERVICE CLASSIFICATION","Retail Transmission Rate - Line and Transformation Connection Service Rate","$/kW",2.7418999999999998,183420703,566315,1.0355000000000001,189932137.95650002,"For this line item, please ensure that the consumption and demand values have been adjusted to account for non-interval/interval customers."]
[null,"EMBEDDED DISTRIBUTOR","Retail Transmission Rate - Network Service Rate ","$/kW",null,34281228,90976,1.0355000000000001,35498211.594000004,"For this line item, please ensure that the consumption and demand values have been adjusted to account for non-interval/interval customers."]
[null,"EMBEDDED DISTRIBUTOR","Retail Transmission Rate - Line and Transformation Connection Service Rate ","$/kW",null,34284228,90976,1.0355000000000001,35501318.094000004,"For this line item, please ensure that the consumption and demand values have been adjusted to account for non-interval/interval customers."]
[null,"UNMETERED SCATTERED LOAD SERVICE CLASSIFICATION","Retail Transmission Rate - Network Service Rate","$/kWh",7.9000000000000008E-3,1408699,null,1.0355000000000001,1458707.8145000001]
[null,"UNMETERED SCATTERED LOAD SERVICE CLASSIFICATION","Retail Transmission Rate - Line and Transformation Connection Service Rate","$/kWh",6.1000000000000004E-3,1408699,null,1.0355000000000001,1458707.8145000001]
[null,"SENTINEL LIGHTING SERVICE CLASSIFICATION","Retail Transmission Rate - Network Service Rate","$/kW",2.5362,269986,736,1.0355000000000001,279570.50300000003]
[null,"SENTINEL LIGHTING SERVICE CLASSIFICATION","Retail Transmission Rate - Line and Transformation Connection Service Rate","$/kW",1.8847,269986,736,1.0355000000000001,279570.50300000003]
[null,"STREET LIGHTING SERVICE CLASSIFICATION","Retail Transmission Rate - Network Service Rate","$/kW",2.5005999999999999,2415233,7310,1.0355000000000001,2500973.7715000003]
[null,"STREET LIGHTING SERVICE CLASSIFICATION","Retail Transmission Rate - Line and Transformation Connection Service Rate","$/kW",1.8726,2415233,7310,1.0355000000000001,2500973.7715000003]

{"sheet":"4. UTRs and Sub-Transmission","index":5,"n_rows":74,"n_cols":12,"rows_kept":74,"cut":false,"hidden":false,"merged":[[17,8,17,9],[21,8,21,9],[23,8,23,9],[25,8,25,9],[19,8,19,9],[55,8,55,9],[19,4,19,6],[28,4,28,6],[28,8,28,9],[32,4,32,6],[32,8,32,9],[34,8,34,9],[35,4,35,6],[36,4,36,6],[36,8,36,9],[37,4,37,6],[34,4,34,6],[38,8,38,9],[49,4,49,6],[49,8,49,9],[38,4,38,6],[39,4,39,6],[40,4,40,6],[40,8,40,9],[43,4,43,6],[43,8,43,9],[58,4,58,6],[58,8,58,9],[47,4,47,6],[47,7,47,9],[72,8,72,9],[66,4,66,6],[62,4,62,6],[62,7,62,9],[64,4,64,6],[64,8,64,9],[66,8,66,9],[51,4,51,6],[51,8,51,9],[53,4,53,6],[53,8,53,9],[55,4,55,6],[73,4,73,6],[73,8,73,9],[72,4,72,6],[68,4,68,6],[68,8,68,9],[70,4,70,6],[70,8,70,9]]}
[]
[]
[]
[]
[]
[]
[]
[]
[]
[]
[]
[]
[]
[]
[]
[]
[]
[null,"Uniform Transmission Rates","Unit",null,"2023\nJan to Jun","2023\nJul to Dec","2023\nJul to Dec",null,2024,null,null,2025]
[]
[null,"Rate Description",null,null,"Rate",null,null,null,"Rate",null,null,"Rate"]
[]
[null,"Network Service Rate","kW",null,5.6,null,5.37,null,5.78,null,null,6.37]
[]
[null,"Line Connection Service Rate","kW",null,0.92,null,0.88,null,0.95,null,null,1]
[]
[null,"Transformation Connection Service Rate","kW",null,3.1,null,2.98,null,3.21,null,null,3.39]
[]
[]
[null,"Hydro One Sub-Transmission Rates","Unit",null,2023,null,null,null,2024,null,null,2025]
[]
[]
[]
[null,"Rate Description",null,null,"Rate",null,null,null,"Rate",null,null,"Rate"]
[]
[null,"Network Service Rate","kW",null,4.6544999999999996,null,null,null,4.9103000000000003,null,null,5.3280000000000003]
[]
[null,"Line Connection Service Rate","kW",null,0.60560000000000003,null,null,null,0.65369999999999995,null,null,0.68820000000000003]
[]
[null,"Transformation Connection Service Rate","kW",null,2.8923999999999999,null,null,null,3.3041,null,null,3.4893999999999998]
[]
[null,"Both Line and Transformation Connection Service Rate","kW",null,3.4889999999999999,null,null,null,{"$f":"I39+I37","v":3.9577999999999998},null,null,{"$f":"L37+L39","v":4.1776}]
[]
[]
[null,"If needed, add extra host here. (I)","Unit",null,2023,null,null,null,2024,null,null,2025]
[]
[]
[]
[null,"Rate Description",null,null,"Rate",null,null,"Rate",null,null,null,"Rate"]
[]
[null,"Network Service Rate","kW"]
[]
[null,"Line Connection Service Rate","kW"]
[]
[null,"Transformation Connection Service Rate","kW"]
[]
[null,"Both Line and Transformation Connection Service Rate","kW",null,{"$f":"E54+E52","v":0},null,null,null,{"$f":"J54+J52","v":0},null,null,{"$f":"L54+L52","v":0}]
[]
[]
[null,"If needed, add extra host here. (II)","Unit",null,2023,null,null,null,2024,null,null,2025]
[]
[]
[]
[null,"Rate Description",null,null,"Rate",null,null,"Rate",null,null,null,"Rate"]
[]
[null,"Network Service Rate","kW"]
[]
[null,"Line Connection Service Rate","kW"]
[]
[null,"Transformation Connection Service Rate","kW"]
[]
[null,"Both Line and Transformation Connection Service Rate","kW",null,{"$f":"E69+E67","v":0},null,null,null,{"$f":"J69+J67","v":0},null,null,{"$f":"L69+L67","v":0}]
[]
[null,null,null,null,"Historical 2022",null,null,null,"Current 2023",null,null,"Forecast 2024"]
[null,"Low Voltage Switchgear Credit (if applicable, enter as a negative value)","$"]

{"sheet":"5. Historical Wholesale","index":6,"n_rows":117,"n_cols":16,"rows_kept":117,"cut":false,"hidden":false,"merged":[[96,7,96,9],[96,11,96,13],[20,3,20,5],[20,7,20,9],[20,11,20,13],[96,3,96,5],[38,3,38,5],[38,7,38,9],[38,11,38,13],[95,3,95,5],[57,3,57,5],[57,7,57,9],[57,11,57,13],[76,3,76,5],[76,7,76,9],[76,11,76,13],[95,7,95,9],[95,11,95,13]]}
[]
[]
[]
[]
[]
[]
[]
[]
[]
[]
[]
[]
[]
[]
[]
[]
[]
[]
[]
[]
[null,"IESO",null,"Network",null,null,null,"Line Connection",null,null,null,"Transformation Connection",null,null,null,"Total Connection"]
[null,"Month",null,"Units Billed","Rate","Amount",null,"Units Billed","Rate","Amount",null,"Units Billed","Rate","Amount",null,"Amount"]
[]
[null,"January",null,null,{"$f":"IF(D24<>0,F24/D24,0)","v":0},null,null,null,{"$f":"IF(H24<>0,J24/H24,0)","v":0},null,null,null,{"$f":"IF(L24<>0,N24/L24,0)","v":0},null,null,{"$f":"J24+N24","v":0}]
[null,"February",null,null,0,null,null,null,0,null,null,null,0,null,null,0]
[null,"March",null,null,0,null,null,null,0,null,null,null,0,null,null,0]
[null,"April",null,null,0,null,null,null,0,null,null,null,0,null,null,0]
[null,"May",null,null,0,null,null,null,0,null,null,null,0,null,null,0]
[null,"June",null,null,0,null,null,null,0,null,null,null,0,null,null,0]
[null,"July",null,null,0,null,null,null,0,null,null,null,0,null,null,0]
[null,"August",null,null,0,null,null,null,0,null,null,null,0,null,null,0]
[null,"September",null,null,0,null,null,null,0,null,null,null,0,null,null,0]
[null,"October",null,null,0,null,null,null,0,null,null,null,0,null,null,0]
[null,"November",null,null,0,null,null,null,0,null,null,null,0,null,null,0]
[null,"December",null,null,0,null,null,null,0,null,null,null,0,null,null,0]
[]
[null,"Total",null,{"$f":"SUM(D24:D35)","v":0},{"$f":"IF(D37<>0,F37/D37,0)","v":0},{"$f":"SUM(F24:F35)","v":0},null,{"$f":"SUM(H24:H35)","v":0},{"$f":"IF(H37<>0,J37/H37,0)","v":0},{"$f":"SUM(J24:J35)","v":0},null,{"$f":"SUM(L24:L35)","v":0},{"$f":"IF(L37<>0,N37/L37,0)","v":0},{"$f":"SUM(N24:N35)","v":0},null,{"$f":"SUM(P24:P35)","v":0}]
[]
[null,"Hydro One",null,"Network",null,null,null,"Line Connection",null,null,null,"Transformation Connection",null,null,null,"Total Connection"]
[]
[null,"Month",null,"Units Billed","Rate","Amount",null,"Units Billed","Rate","Amount",null,"Units Billed","Rate","Amount",null,"Amount"]
[]
[null,"January",null,79926,{"$f":"ROUND(IF(D43<>0,F43/D43,0),4)","v":4.6544999999999996},372015.56699999998,null,{"$f":"23975.15+20986.73","v":44961.880000000005},{"$f":"ROUND(IF(H43<>0,J43/H43,0),4)","v":0.60560000000000003},27228.91,null,80053.97,{"$f":"ROUND(IF(L43<>0,N43/L43,0),4)","v":2.8923999999999999},231548.102828,null,{"$f":"J43+N43","v":258777.01282800001}]
[null,"February",null,{"$f":"18639.98+21211.07+25254.74+15465.03","v":80570.820000000007},{"$f":"ROUND(IF(D44<>0,F44/D44,0),4)","v":4.6544999999999996},375016.86,null,{"$f":"19748.82+21211.07","v":40959.89},{"$f":"ROUND(IF(H44<>0,J44/H44,0),4)","v":0.60560000000000003},24804.3,null,{"$f":"19748.82+21211.07+25254.74+15465.03","v":81679.66},{"$f":"ROUND(IF(L44<>0,N44/L44,0),4)","v":2.8923999999999999},236250.22999999998,null,261054.52999999997]
[null,"March",null,74298,4.6544999999999996,345820.04099999997,null,38528.879999999997,0.60560000000000003,23333.089727999999,null,75614.44,2.8923999999999999,218707.206256,null,242040.295984]
[null,"April",null,72045,4.6544999999999996,335333.45249999996,null,36256.75,0.60560000000000003,21957.087800000001,null,73051.149999999994,2.8923999999999999,211293.14625999998,null,233250.23405999999]
[null,"May",null,99758,4.6544999999999996,464323.61099999998,null,{"$f":"23893.92+28567.56","v":52461.479999999996},0.60560000000000003,31770.659999999996,null,{"$f":"22848.03+27526.37+23893.92+28567.56","v":102835.87999999999},2.8923999999999999,297442.49,null,329213.14999999997]
[null,"June",null,{"$f":"26798.72+26435.36+27898.09+31124.007","v":112256.177},4.6544999999999996,522496.63,null,{"$f":"27898.09+31124.07","v":59022.16},0.60560000000000003,35743.820000000007,null,{"$f":"26798.72+28685.88+27898.09+31124.07","v":114506.76000000001},2.8923999999999999,331199.34999999998,null,366943.17]
[null,"July",null,{"$f":"34525.55+31692.09+32321.2+29633.36","v":128172.2},4.6544999999999996,596577.97,null,{"$f":"34525.55+31816.29","v":66341.84},0.60560000000000003,40176.619999999995,null,{"$f":"34525.55+31816.29+32321.2+29633.36","v":128296.4},2.8923999999999999,371084.51,null,411261.13]
[null,"August",null,{"$f":"32050.1+23405.68+28556.24+28957.72","v":112969.74},4.6544999999999996,525817.62000000011,null,{"$f":"32050.1+23405.68","v":55455.78},0.60560000000000003,33584.020000000004,null,{"$f":"32050.1+23405.68+31604.52+28957.72","v":116018.02},2.8923999999999999,{"$f":"83757.3+91412.91+67698.58+92701.72","v":335570.51},null,369154.53]
[null,"September",null,{"$f":"30595.52+31603.1+23931.1+34942.06","v":121071.78},4.6544999999999996,{"$f":"162637.83+111387.29+147096.65+142406.86","v":563528.63},null,{"$f":"23931.1+34942.06","v":58873.159999999996},0.60560000000000003,35653.58,null,{"$f":"30595.52+33324.69+34942.06+23931.1","v":122793.37},2.8923999999999999,{"$f":"69218.31+101066.42+96388.34+88494.49","v":355167.55999999994},null,390821.13999999996]
[null,"October",null,{"$f":"27836.17+16892.34+22475.04+22960.38","v":90163.93},4.6544999999999996,{"$f":"106869.11+104610.1+78625.39+129563.45","v":419668.05000000005},null,{"$f":"27836.17+17026.41","v":44862.58},0.60560000000000003,27168.770000000004,null,{"$f":"27836.17+17026.41+23058.07+22960.38","v":90881.03},2.8923999999999999,{"$f":"66410.61+66693.15+49247.19+80513.33","v":262864.28000000003},null,290033.05000000005]
[null,"November",null,{"$f":"23309.14+20979.74+21004.19+17368.02","v":82661.090000000011},4.6544999999999996,{"$f":"80839.43+97764+97650.2+108492.39","v":384746.02},null,{"$f":"23309.14+20979.74","v":44288.880000000005},0.60560000000000003,{"$f":"14116.02+12705.33","v":26821.35},null,{"$f":"23309.14+20979.74+21004.19+17473.78","v":82766.850000000006},2.8923999999999999,{"$f":"50541.17+60752.52+60681.8+67419.36","v":239394.84999999998},null,266216.19999999995]
[null,"December",null,{"$f":"18411.25+20022.57+20968.63+16872.92","v":76275.37},4.6544999999999996,{"$f":"78534.98+97598.49+93195.06+85695.16","v":355023.69000000006},null,{"$f":"18411.25+20022.57","v":38433.82},0.60560000000000003,{"$f":"11149.85+12125.67","v":23275.52},null,{"$f":"18411.25+20022.57+20968.63+16943.36","v":76345.81},2.8923999999999999,{"$f":"49006.98+60649.67+57913.29+53252.7","v":220822.64},null,244098.16]
[]
[null,"Total",null,{"$f":"SUM(D43:D54)","v":1130168.1069999998},{"$f":"IF(D56<>0,F56/D56,0)","v":4.6545006082887115},{"$f":"SUM(F43:F54)","v":5260368.1415000008},null,{"$f":"SUM(H43:H54)","v":580447.1},{"$f":"IF(H56<>0,J56/H56,0)","v":0.60559821476927012},{"$f":"SUM(J43:J54)","v":351517.72752800002},null,{"$f":"SUM(L43:L54)","v":1144843.3400000001},{"$f":"IF(L56<>0,N56/L56,0)","v":2.8923999988889304},{"$f":"SUM(N43:N54)","v":3311344.8753439998},null,{"$f":"SUM(P43:P54)","v":3662862.602872001}]
[]
[null,"Add Extra Host Here (I)",null,"Network",null,null,null,"Line Connection",null,null,null,"Transformation Connection",null,null,null,"Total Connection"]
[null,"(if needed)"]
[null,"Month",null,"Units Billed","Rate","Amount",null,"Units Billed","Rate","Amount",null,"Units Billed","Rate","Amount",null,"Amount"]
[]
[null,"January",null,null,{"$f":"IF(D62<>0,F62/D62,0)","v":0},null,null,null,{"$f":"IF(H62<>0,J62/H62,0)","v":0},null,null,null,{"$f":"IF(L62<>0,N62/L62,0)","v":0},null,null,{"$f":"J62+N62","v":0}]
[null,"February",null,null,0,null,null,null,0,null,null,null,0,null,null,0]
[null,"March",null,null,0,null,null,null,0,null,null,null,0,null,null,0]
[null,"April",null,null,0,null,null,null,0,null,null,null,0,null,null,0]
[null,"May",null,null,0,null,null,null,0,null,null,null,0,null,null,0]
[null,"June",null,null,0,null,null,null,0,null,null,null,0,null,null,0]
[null,"July",null,null,0,null,null,null,0,null,null,null,0,null,null,0]
[null,"August",null,null,0,null,null,null,0,null,null,null,0,null,null,0]
[null,"September",null,null,0,null,null,null,0,null,null,null,0,null,null,0]
[null,"October",null,null,0,null,null,null,0,null,null,null,0,null,null,0]
[null,"November",null,null,0,null,null,null,0,null,null,null,0,null,null,0]
[null,"December",null,null,0,null,null,null,0,null,null,null,0,null,null,0]
[]
[null,"Total",null,{"$f":"SUM(D62:D73)","v":0},{"$f":"IF(D75<>0,F75/D75,0)","v":0},{"$f":"SUM(F62:F73)","v":0},null,{"$f":"SUM(H62:H73)","v":0},{"$f":"IF(H75<>0,J75/H75,0)","v":0},{"$f":"SUM(J62:J73)","v":0},null,{"$f":"SUM(L62:L73)","v":0},{"$f":"IF(L75<>0,N75/L75,0)","v":0},{"$f":"SUM(N62:N73)","v":0},null,{"$f":"SUM(P62:P73)","v":0}]
[]
[null,"Add Extra Host Here (II)",null,"Network",null,null,null,"Line Connection",null,null,null,"Transformation Connection",null,null,null,"Total Connection"]
[null,"(if needed)"]
[null,"Month",null,"Units Billed","Rate","Amount",null,"Units Billed","Rate","Amount",null,"Units Billed","Rate","Amount",null,"Amount"]
[]
[null,"January",null,null,{"$f":"IF(D81<>0,F81/D81,0)","v":0},null,null,null,{"$f":"IF(H81<>0,J81/H81,0)","v":0},null,null,null,{"$f":"IF(L81<>0,N81/L81,0)","v":0},null,null,{"$f":"J81+N81","v":0}]
[null,"February",null,null,0,null,null,null,0,null,null,null,0,null,null,0]
[null,"March",null,null,0,null,null,null,0,null,null,null,0,null,null,0]
[null,"April",null,null,0,null,null,null,0,null,null,null,0,null,null,0]
[null,"May",null,null,0,null,null,null,0,null,null,null,0,null,null,0]
[null,"June",null,null,0,null,null,null,0,null,null,null,0,null,null,0]
[null,"July",null,null,0,null,null,null,0,null,null,null,0,null,null,0]
[null,"August",null,null,0,null,null,null,0,null,null,null,0,null,null,0]
[null,"September",null,null,0,null,null,null,0,null,null,null,0,null,null,0]
[null,"October",null,null,0,null,null,null,0,null,null,null,0,null,null,0]
[null,"November",null,null,0,null,null,null,0,null,null,null,0,null,null,0]
[null,"December",null,null,0,null,null,null,0,null,null,null,0,null,null,0]
[]
[null,"Total",null,{"$f":"SUM(D81:D92)","v":0},{"$f":"IF(D94<>0,F94/D94,0)","v":0},{"$f":"SUM(F81:F92)","v":0},null,{"$f":"SUM(H81:H92)","v":0},{"$f":"IF(H94<>0,J94/H94,0)","v":0},{"$f":"SUM(J81:J92)","v":0},null,{"$f":"SUM(L81:L92)","v":0},{"$f":"IF(L94<>0,N94/L94,0)","v":0},{"$f":"SUM(N81:N92)","v":0},null,{"$f":"SUM(P81:P92)","v":0}]
[]
[null,"Total",null,"Network",null,null,null,"Line Connection",null,null,null,"Transformation Connection",null,null,null,"Total Connection"]
[]
[null,"Month",null,"Units Billed","Rate","Amount",null,"Units Billed","Rate","Amount",null,"Units Billed","Rate","Amount",null,"Amount"]
[]
[null,"January",null,{"$f":"D24+D43+D62+D81","v":79926},{"$f":"IF(D100<>0,F100/D100,0)","v":4.6544999999999996},{"$f":"F24+F43+F62+F81","v":372015.56699999998},null,{"$f":"H24+H43+H62+H81","v":44961.880000000005},{"$f":"IF(H100<>0,J100/H100,0)","v":0.60559989929246727},{"$f":"J24+J43+J62+J81","v":27228.91},null,{"$f":"L24+L43+L62+L81","v":80053.97},{"$f":"IF(L100<>0,N100/L100,0)","v":2.8923999999999999},{"$f":"N24+N43+N62+N81","v":231548.102828},null,{"$f":"J100+N100","v":258777.01282800001}]
[null,"February",null,{"$f":"D25+D44+D63+D82","v":80570.820000000007},4.6544997307958385,{"$f":"F25+F44+F63+F82","v":375016.86},null,{"$f":"H25+H44+H63+H82","v":40959.89},0.60557535676975693,{"$f":"J25+J44+J63+J82","v":24804.3},null,{"$f":"L25+L44+L63+L82","v":81679.66},2.8923997724770154,{"$f":"N25+N44+N63+N82","v":236250.22999999998},null,261054.52999999997]
[null,"March",null,74298,4.6544999999999996,345820.04099999997,null,38528.879999999997,0.60560000000000003,23333.089727999999,null,75614.44,2.8923999999999999,218707.206256,null,242040.295984]
[null,"April",null,72045,4.6544999999999996,335333.45249999996,null,36256.75,0.60560000000000003,21957.087800000001,null,73051.149999999994,2.8923999999999999,211293.14625999998,null,233250.23405999999]
[null,"May",null,99758,4.6544999999999996,464323.61099999998,null,52461.479999999996,0.60559976577099994,31770.659999999996,null,102835.87999999999,2.8923999094479478,297442.49,null,329213.14999999997]
[null,"June",null,112256.177,4.6545022640491309,522496.63,null,59022.16,0.60559999837349232,35743.820000000007,null,114506.76000000001,2.8923999770843221,331199.34999999998,null,366943.17]
[null,"July",null,128172.2,4.6545036287119981,596577.97,null,66341.84,0.60560002556456072,40176.619999999995,null,128296.4,2.8924000205773508,371084.51,null,411261.13]
[null,"August",null,112969.74,4.6544996916873496,525817.62000000011,null,55455.78,0.60559999336408221,33584.020000000004,null,116018.02,2.8923999047734137,335570.51,null,369154.53]
[null,"September",null,121071.78,4.6545002477042958,563528.63,null,58873.159999999996,0.60559990324963031,35653.58,null,122793.37,2.8924001352841766,355167.55999999994,null,390821.13999999996]
[null,"October",null,90163.93,4.6545004194027486,419668.05000000005,null,44862.58,0.60559981169161481,27168.770000000004,null,90881.03,2.8923998770700554,262864.28000000003,null,290033.05000000005]
[null,"November",null,82661.090000000011,4.6544997168558986,384746.02,null,44288.880000000005,0.60560009645762092,26821.35,null,82766.850000000006,2.8924001577926424,239394.84999999998,null,266216.19999999995]
[null,"December",null,76275.37,4.654499742184143,355023.69000000006,null,38433.82,0.6055999637818984,23275.52,null,76345.81,2.8924002509109541,220822.64,null,244098.16]
[]
[null,"Total",null,{"$f":"SUM(D100:D111)","v":1130168.1069999998},{"$f":"IF(D113<>0,F113/D113,0)","v":4.6545006082887115},{"$f":"SUM(F100:F111)","v":5260368.1415000008},null,{"$f":"SUM(H100:H111)","v":580447.1},{"$f":"IF(H113<>0,J113/H113,0)","v":0.60559821476927012},{"$f":"SUM(J100:J111)","v":351517.72752800002},null,{"$f":"SUM(L100:L111)","v":1144843.3400000001},{"$f":"IF(L113<>0,N113/L113,0)","v":2.8923999988889304},{"$f":"SUM(N100:N111)","v":3311344.8753439998},null,{"$f":"SUM(P100:P111)","v":3662862.602872001}]
[]
[null,null,null,null,null,null,null,null,null,null,null,null,null,"Low Voltage Switchgear Credit (if applicable)",null,{"$f":"'4. UTRs and Sub-Transmission'!E76","v":0}]
[]
[null,null,null,null,null,null,null,null,null,null,null,null,null,"Total including deduction for Low Voltage Switchgear Credit",null,{"$f":"P113+P115","v":3662862.602872001}]

{"sheet":"6. Current Wholesale","index":7,"n_rows":117,"n_cols":16,"rows_kept":117,"cut":false,"hidden":false,"merged":[[96,7,96,9],[96,11,96,13],[20,3,20,5],[20,7,20,9],[20,11,20,13],[96,3,96,5],[95,3,95,5],[95,7,95,9],[95,11,95,13],[57,3,57,5],[57,7,57,9],[57,11,57,13],[76,3,76,5],[76,7,76,9],[76,11,76,13],[12,1,12,11],[19,3,19,5],[19,7,19,9],[19,11,19,13],[38,3,38,5],[38,7,38,9],[38,11,38,13]]}
[]
[]
[]
[]
[]
[]
[]
[]
[]
[]
[]
[]
[null,"The purpose of this sheet is to calculate the expected billing when current 2024 Uniform Transmission Rates and Hydro One Sub-transmission Rates are applied against historical 2023 transmission units."]
[]
[]
[]
[]
[]
[]
[null,"IESO",null,"Network",null,null,null,"Line Connection",null,null,null,"Transformation Connection",null,null,null,"Total Connection"]
[]
[null,"Month",null,"Units Billed","Rate","Amount",null,"Units Billed","Rate","Amount",null,"Units Billed","Rate","Amount",null,"Amount"]
[]
[null,"January",null,{"$f":"'5. Historical Wholesale'!D24","v":0},{"$f":"'4. UTRs and Sub-Transmission'!I22","v":5.78},{"$f":"D24*E24","v":0},null,{"$f":"'5. Historical Wholesale'!H24","v":0},{"$f":"'4. UTRs and Sub-Transmission'!I24","v":0.95},{"$f":"H24*I24","v":0},null,{"$f":"'5. Historical Wholesale'!L24","v":0},{"$f":"'4. UTRs and Sub-Transmission'!I26","v":3.21},{"$f":"L24*M24","v":0},null,{"$f":"J24+N24","v":0}]
[null,"February",null,{"$f":"'5. Historical Wholesale'!D25","v":0},{"$f":"E24","v":5.78},{"$f":"D25*E25","v":0},null,{"$f":"'5. Historical Wholesale'!H25","v":0},{"$f":"I24","v":0.95},{"$f":"H25*I25","v":0},null,{"$f":"'5. Historical Wholesale'!L25","v":0},{"$f":"M24","v":3.21},{"$f":"L25*M25","v":0},null,0]
[null,"March",null,{"$f":"'5. Historical Wholesale'!D26","v":0},{"$f":"E25","v":5.78},0,null,{"$f":"'5. Historical Wholesale'!H26","v":0},{"$f":"I25","v":0.95},0,null,{"$f":"'5. Historical Wholesale'!L26","v":0},{"$f":"M25","v":3.21},0,null,0]
[null,"April",null,{"$f":"'5. Historical Wholesale'!D27","v":0},5.78,0,null,{"$f":"'5. Historical Wholesale'!H27","v":0},0.95,0,null,{"$f":"'5. Historical Wholesale'!L27","v":0},3.21,0,null,0]
[null,"May",null,{"$f":"'5. Historical Wholesale'!D28","v":0},5.78,0,null,{"$f":"'5. Historical Wholesale'!H28","v":0},0.95,0,null,{"$f":"'5. Historical Wholesale'!L28","v":0},3.21,0,null,0]
[null,"June",null,{"$f":"'5. Historical Wholesale'!D29","v":0},5.78,0,null,{"$f":"'5. Historical Wholesale'!H29","v":0},0.95,0,null,{"$f":"'5. Historical Wholesale'!L29","v":0},3.21,0,null,0]
[null,"July",null,{"$f":"'5. Historical Wholesale'!D30","v":0},5.78,0,null,{"$f":"'5. Historical Wholesale'!H30","v":0},0.95,0,null,{"$f":"'5. Historical Wholesale'!L30","v":0},3.21,0,null,0]
[null,"August",null,{"$f":"'5. Historical Wholesale'!D31","v":0},5.78,0,null,{"$f":"'5. Historical Wholesale'!H31","v":0},0.95,0,null,{"$f":"'5. Historical Wholesale'!L31","v":0},3.21,0,null,0]
[null,"September",null,{"$f":"'5. Historical Wholesale'!D32","v":0},5.78,0,null,{"$f":"'5. Historical Wholesale'!H32","v":0},0.95,0,null,{"$f":"'5. Historical Wholesale'!L32","v":0},3.21,0,null,0]
[null,"October",null,{"$f":"'5. Historical Wholesale'!D33","v":0},5.78,0,null,{"$f":"'5. Historical Wholesale'!H33","v":0},0.95,0,null,{"$f":"'5. Historical Wholesale'!L33","v":0},3.21,0,null,0]
[null,"November",null,{"$f":"'5. Historical Wholesale'!D34","v":0},5.78,0,null,{"$f":"'5. Historical Wholesale'!H34","v":0},0.95,0,null,{"$f":"'5. Historical Wholesale'!L34","v":0},3.21,0,null,0]
[null,"December",null,{"$f":"'5. Historical Wholesale'!D35","v":0},5.78,0,null,{"$f":"'5. Historical Wholesale'!H35","v":0},0.95,0,null,{"$f":"'5. Historical Wholesale'!L35","v":0},3.21,0,null,0]
[]
[null,"Total",null,{"$f":"SUM(D24:D35)","v":0},{"$f":"IF(D37<>0,F37/D37,0)","v":0},{"$f":"SUM(F24:F35)","v":0},null,{"$f":"SUM(H24:H35)","v":0},{"$f":"IF(H37<>0,J37/H37,0)","v":0},{"$f":"SUM(J24:J35)","v":0},null,{"$f":"SUM(L24:L35)","v":0},{"$f":"IF(L37<>0,N37/L37,0)","v":0},{"$f":"SUM(N24:N35)","v":0},null,{"$f":"SUM(P24:P35)","v":0}]
[]
[null,"Hydro One",null,"Network",null,null,null,"Line Connection",null,null,null,"Transformation Connection",null,null,null,"Total Connection"]
[]
[null,"Month",null,"Units Billed","Rate","Amount",null,"Units Billed","Rate","Amount",null,"Units Billed","Rate","Amount",null,"Amount"]
[]
[null,"January",null,{"$f":"'5. Historical Wholesale'!D43","v":79926},{"$f":"'4. UTRs and Sub-Transmission'!I35","v":4.9103000000000003},{"$f":"D43*E43","v":392460.63780000003},null,{"$f":"'5. Historical Wholesale'!H43","v":44961.880000000005},{"$f":"'4. UTRs and Sub-Transmission'!I37","v":0.65369999999999995},{"$f":"H43*I43","v":29391.580956000002},null,{"$f":"'5. Historical Wholesale'!L43","v":80053.97},{"$f":"'4. UTRs and Sub-Transmission'!I39","v":3.3041},{"$f":"L43*M43","v":264506.322277},null,{"$f":"J43+N43","v":293897.90323300002}]
[null,"February",null,{"$f":"'5. Historical Wholesale'!D44","v":80570.820000000007},{"$f":"E43","v":4.9103000000000003},{"$f":"D44*E44","v":395626.89744600008},null,{"$f":"'5. Historical Wholesale'!H44","v":40959.89},{"$f":"I43","v":0.65369999999999995},{"$f":"H44*I44","v":26775.480092999998},null,{"$f":"'5. Historical Wholesale'!L44","v":81679.66},{"$f":"M43","v":3.3041},{"$f":"L44*M44","v":269877.76460600004},null,296653.24469900003]
[null,"March",null,{"$f":"'5. Historical Wholesale'!D45","v":74298},4.9103000000000003,364825.4694,null,{"$f":"'5. Historical Wholesale'!H45","v":38528.879999999997},0.65369999999999995,25186.328855999996,null,{"$f":"'5. Historical Wholesale'!L45","v":75614.44},{"$f":"M44","v":3.3041},249837.67120400001,null,275024.00005999999]
[null,"April",null,{"$f":"'5. Historical Wholesale'!D46","v":72045},4.9103000000000003,353762.56350000005,null,{"$f":"'5. Historical Wholesale'!H46","v":36256.75},0.65369999999999995,23701.037474999997,null,{"$f":"'5. Historical Wholesale'!L46","v":73051.149999999994},{"$f":"M45","v":3.3041},241368.30471499998,null,265069.34219]
[null,"May",null,{"$f":"'5. Historical Wholesale'!D47","v":99758},4.9103000000000003,489841.70740000001,null,{"$f":"'5. Historical Wholesale'!H47","v":52461.479999999996},0.65369999999999995,34294.069475999997,null,{"$f":"'5. Historical Wholesale'!L47","v":102835.87999999999},3.3041,339780.03110799997,null,374074.10058399994]
[null,"June",null,{"$f":"'5. Historical Wholesale'!D48","v":112256.177},4.9103000000000003,551211.50592310005,null,{"$f":"'5. Historical Wholesale'!H48","v":59022.16},0.65369999999999995,38582.785991999997,null,{"$f":"'5. Historical Wholesale'!L48","v":114506.76000000001},3.3041,378341.78571600001,null,416924.57170800003]
[null,"July",null,{"$f":"'5. Historical Wholesale'!D49","v":128172.2},4.9103000000000003,629363.95366,null,{"$f":"'5. Historical Wholesale'!H49","v":66341.84},0.65369999999999995,43367.660807999993,null,{"$f":"'5. Historical Wholesale'!L49","v":128296.4},3.3041,423904.13523999997,null,467271.79604799999]
[null,"August",null,{"$f":"'5. Historical Wholesale'!D50","v":112969.74},4.9103000000000003,554715.31432200002,null,{"$f":"'5. Historical Wholesale'!H50","v":55455.78},0.65369999999999995,36251.443385999999,null,{"$f":"'5. Historical Wholesale'!L50","v":116018.02},3.3041,383335.13988200005,null,419586.58326800005]
[null,"September",null,{"$f":"'5. Historical Wholesale'!D51","v":121071.78},4.9103000000000003,594498.76133400004,null,{"$f":"'5. Historical Wholesale'!H51","v":58873.159999999996},0.65369999999999995,38485.384691999992,null,{"$f":"'5. Historical Wholesale'!L51","v":122793.37},3.3041,405721.57381699997,null,444206.95850899996]
[null,"October",null,{"$f":"'5. Historical Wholesale'!D52","v":90163.93},4.9103000000000003,442731.94547899999,null,{"$f":"'5. Historical Wholesale'!H52","v":44862.58},0.65369999999999995,29326.668545999997,null,{"$f":"'5. Historical Wholesale'!L52","v":90881.03},3.3041,300280.01122300001,null,329606.67976899998]
[null,"November",null,{"$f":"'5. Historical Wholesale'!D53","v":82661.090000000011},4.9103000000000003,405890.7502270001,null,{"$f":"'5. Historical Wholesale'!H53","v":44288.880000000005},0.65369999999999995,28951.640856000002,null,{"$f":"'5. Historical Wholesale'!L53","v":82766.850000000006},3.3041,273469.94908500003,null,302421.58994100004]
[null,"December",null,{"$f":"'5. Historical Wholesale'!D54","v":76275.37},4.9103000000000003,374534.949311,null,{"$f":"'5. Historical Wholesale'!H54","v":38433.82},0.65369999999999995,25124.188133999996,null,{"$f":"'5. Historical Wholesale'!L54","v":76345.81},3.3041,252254.190821,null,277378.37895499996]
[]
[null,"Total",null,{"$f":"SUM(D43:D54)","v":1130168.1069999998},{"$f":"IF(D56<>0,F56/D56,0)","v":4.9103000000000012},{"$f":"SUM(F43:F54)","v":5549464.4558021007},null,{"$f":"SUM(H43:H54)","v":580447.1},{"$f":"IF(H56<>0,J56/H56,0)","v":0.65369999999999995},{"$f":"SUM(J43:J54)","v":379438.26926999993},null,{"$f":"SUM(L43:L54)","v":1144843.3400000001},{"$f":"IF(L56<>0,N56/L56,0)","v":3.3040999999999996},{"$f":"SUM(N43:N54)","v":3782676.8796939999},null,{"$f":"SUM(P43:P54)","v":4162115.1489640004}]
[]
[null,{"$f":"'5. Historical Wholesale'!B58","v":"Add Extra Host Here (I)"},null,"Network",null,null,null,"Line Connection",null,null,null,"Transformation Connection",null,null,null,"Total Connection"]
[]
[null,"Month",null,"Units Billed","Rate","Amount",null,"Units Billed","Rate","Amount",null,"Units Billed","Rate","Amount",null,"Amount"]
[]
[null,"January",null,{"$f":"'5. Historical Wholesale'!D62","v":0},{"$f":"'4. UTRs and Sub-Transmission'!H52","v":0},{"$f":"D62*E62","v":0},null,{"$f":"'5. Historical Wholesale'!H62","v":0},{"$f":"'4. UTRs and Sub-Transmission'!H54","v":0},{"$f":"H62*I62","v":0},null,{"$f":"'5. Historical Wholesale'!L62","v":0},{"$f":"'4. UTRs and Sub-Transmission'!H56","v":0},{"$f":"L62*M62","v":0},null,{"$f":"J62+N62","v":0}]
[null,"February",null,{"$f":"'5. Historical Wholesale'!D63","v":0},{"$f":"E62","v":0},{"$f":"D63*E63","v":0},null,{"$f":"'5. Historical Wholesale'!H63","v":0},{"$f":"I62","v":0},{"$f":"H63*I63","v":0},null,{"$f":"'5. Historical Wholesale'!L63","v":0},{"$f":"M62","v":0},{"$f":"L63*M63","v":0},null,0]
[null,"March",null,{"$f":"'5. Historical Wholesale'!D64","v":0},{"$f":"E63","v":0},0,null,{"$f":"'5. Historical Wholesale'!H64","v":0},{"$f":"I63","v":0},0,null,{"$f":"'5. Historical Wholesale'!L64","v":0},{"$f":"M63","v":0},0,null,0]
[null,"April",null,{"$f":"'5. Historical Wholesale'!D65","v":0},0,0,null,{"$f":"'5. Historical Wholesale'!H65","v":0},0,0,null,{"$f":"'5. Historical Wholesale'!L65","v":0},{"$f":"M64","v":0},0,null,0]
[null,"May",null,{"$f":"'5. Historical Wholesale'!D66","v":0},0,0,null,{"$f":"'5. Historical Wholesale'!H66","v":0},0,0,null,{"$f":"'5. Historical Wholesale'!L66","v":0},0,0,null,0]
[null,"June",null,{"$f":"'5. Historical Wholesale'!D67","v":0},0,0,null,{"$f":"'5. Historical Wholesale'!H67","v":0},0,0,null,{"$f":"'5. Historical Wholesale'!L67","v":0},0,0,null,0]
[null,"July",null,{"$f":"'5. Historical Wholesale'!D68","v":0},0,0,null,{"$f":"'5. Historical Wholesale'!H68","v":0},0,0,null,{"$f":"'5. Historical Wholesale'!L68","v":0},0,0,null,0]
[null,"August",null,{"$f":"'5. Historical Wholesale'!D69","v":0},0,0,null,{"$f":"'5. Historical Wholesale'!H69","v":0},0,0,null,{"$f":"'5. Historical Wholesale'!L69","v":0},0,0,null,0]
[null,"September",null,{"$f":"'5. Historical Wholesale'!D70","v":0},0,0,null,{"$f":"'5. Historical Wholesale'!H70","v":0},0,0,null,{"$f":"'5. Historical Wholesale'!L70","v":0},0,0,null,0]
[null,"October",null,{"$f":"'5. Historical Wholesale'!D71","v":0},0,0,null,{"$f":"'5. Historical Wholesale'!H71","v":0},0,0,null,{"$f":"'5. Historical Wholesale'!L71","v":0},0,0,null,0]
[null,"November",null,{"$f":"'5. Historical Wholesale'!D72","v":0},0,0,null,{"$f":"'5. Historical Wholesale'!H72","v":0},0,0,null,{"$f":"'5. Historical Wholesale'!L72","v":0},0,0,null,0]
[null,"December",null,{"$f":"'5. Historical Wholesale'!D73","v":0},0,0,null,{"$f":"'5. Historical Wholesale'!H73","v":0},0,0,null,{"$f":"'5. Historical Wholesale'!L73","v":0},0,0,null,0]
[]
[null,"Total",null,{"$f":"SUM(D62:D73)","v":0},{"$f":"IF(D75<>0,F75/D75,0)","v":0},{"$f":"SUM(F62:F73)","v":0},null,{"$f":"SUM(H62:H73)","v":0},{"$f":"IF(H75<>0,J75/H75,0)","v":0},{"$f":"SUM(J62:J73)","v":0},null,{"$f":"SUM(L62:L73)","v":0},{"$f":"IF(L75<>0,N75/L75,0)","v":0},{"$f":"SUM(N62:N73)","v":0},null,{"$f":"SUM(P62:P73)","v":0}]
[]
[null,{"$f":"'5. Historical Wholesale'!B77","v":"Add Extra Host Here (II)"},null,"Network",null,null,null,"Line Connection",null,null,null,"Transformation Connection",null,null,null,"Total Connection"]
[]
[null,"Month",null,"Units Billed","Rate","Amount",null,"Units Billed","Rate","Amount",null,"Units Billed","Rate","Amount",null,"Amount"]
[]
[null,"January",null,{"$f":"'5. Historical Wholesale'!D81","v":0},{"$f":"'4. UTRs and Sub-Transmission'!H67","v":0},{"$f":"D81*E81","v":0},null,{"$f":"'5. Historical Wholesale'!H81","v":0},{"$f":"'4. UTRs and Sub-Transmission'!H69","v":0},{"$f":"H81*I81","v":0},null,{"$f":"'5. Historical Wholesale'!L81","v":0},{"$f":"'4. UTRs and Sub-Transmission'!H71","v":0},{"$f":"L81*M81","v":0},null,{"$f":"J81+N81","v":0}]
[null,"February",null,{"$f":"'5. Historical Wholesale'!D82","v":0},{"$f":"E81","v":0},{"$f":"D82*E82","v":0},null,{"$f":"'5. Historical Wholesale'!H82","v":0},{"$f":"I81","v":0},{"$f":"H82*I82","v":0},null,{"$f":"'5. Historical Wholesale'!L82","v":0},{"$f":"M81","v":0},{"$f":"L82*M82","v":0},null,0]
[null,"March",null,{"$f":"'5. Historical Wholesale'!D83","v":0},{"$f":"E82","v":0},0,null,{"$f":"'5. Historical Wholesale'!H83","v":0},{"$f":"I82","v":0},0,null,{"$f":"'5. Historical Wholesale'!L83","v":0},{"$f":"M82","v":0},0,null,0]
[null,"April",null,{"$f":"'5. Historical Wholesale'!D84","v":0},0,0,null,{"$f":"'5. Historical Wholesale'!H84","v":0},0,0,null,{"$f":"'5. Historical Wholesale'!L84","v":0},{"$f":"M83","v":0},0,null,0]
[null,"May",null,{"$f":"'5. Historical Wholesale'!D85","v":0},0,0,null,{"$f":"'5. Historical Wholesale'!H85","v":0},0,0,null,{"$f":"'5. Historical Wholesale'!L85","v":0},0,0,null,0]
[null,"June",null,{"$f":"'5. Historical Wholesale'!D86","v":0},0,0,null,{"$f":"'5. Historical Wholesale'!H86","v":0},0,0,null,{"$f":"'5. Historical Wholesale'!L86","v":0},0,0,null,0]
[null,"July",null,{"$f":"'5. Historical Wholesale'!D87","v":0},0,0,null,{"$f":"'5. Historical Wholesale'!H87","v":0},0,0,null,{"$f":"'5. Historical Wholesale'!L87","v":0},0,0,null,0]
[null,"August",null,{"$f":"'5. Historical Wholesale'!D88","v":0},0,0,null,{"$f":"'5. Historical Wholesale'!H88","v":0},0,0,null,{"$f":"'5. Historical Wholesale'!L88","v":0},0,0,null,0]
[null,"September",null,{"$f":"'5. Historical Wholesale'!D89","v":0},0,0,null,{"$f":"'5. Historical Wholesale'!H89","v":0},0,0,null,{"$f":"'5. Historical Wholesale'!L89","v":0},0,0,null,0]
[null,"October",null,{"$f":"'5. Historical Wholesale'!D90","v":0},0,0,null,{"$f":"'5. Historical Wholesale'!H90","v":0},0,0,null,{"$f":"'5. Historical Wholesale'!L90","v":0},0,0,null,0]
[null,"November",null,{"$f":"'5. Historical Wholesale'!D91","v":0},0,0,null,{"$f":"'5. Historical Wholesale'!H91","v":0},0,0,null,{"$f":"'5. Historical Wholesale'!L91","v":0},0,0,null,0]
[null,"December",null,{"$f":"'5. Historical Wholesale'!D92","v":0},0,0,null,{"$f":"'5. Historical Wholesale'!H92","v":0},0,0,null,{"$f":"'5. Historical Wholesale'!L92","v":0},0,0,null,0]
[]
[null,"Total",null,{"$f":"SUM(D81:D92)","v":0},{"$f":"IF(D94<>0,F94/D94,0)","v":0},{"$f":"SUM(F81:F92)","v":0},null,{"$f":"SUM(H81:H92)","v":0},{"$f":"IF(H94<>0,J94/H94,0)","v":0},{"$f":"SUM(J81:J92)","v":0},null,{"$f":"SUM(L81:L92)","v":0},{"$f":"IF(L94<>0,N94/L94,0)","v":0},{"$f":"SUM(N81:N92)","v":0},null,{"$f":"SUM(P81:P92)","v":0}]
[]
[null,"Total",null,"Network",null,null,null,"Line Connection",null,null,null,"Transformation Connection",null,null,null,"Total Connection"]
[]
[null,"Month",null,"Units Billed","Rate","Amount",null,"Units Billed","Rate","Amount",null,"Units Billed","Rate","Amount",null,"Amount"]
[]
[null,"January",null,{"$f":"D24+D43+D62+D81","v":79926},{"$f":"IF(D100<>0,F100/D100,0)","v":4.9103000000000003},{"$f":"F24+F43+F62+F81","v":392460.63780000003},null,{"$f":"H24+H43+H62+H81","v":44961.880000000005},{"$f":"IF(H100<>0,J100/H100,0)","v":0.65369999999999995},{"$f":"J24+J43+J62+J81","v":29391.580956000002},null,{"$f":"L24+L43+L62+L81","v":80053.97},{"$f":"IF(L100<>0,N100/L100,0)","v":3.3041},{"$f":"N24+N43+N62+N81","v":264506.322277},null,{"$f":"J100+N100","v":293897.90323300002}]
[null,"February",null,{"$f":"D25+D44+D63+D82","v":80570.820000000007},4.9103000000000003,{"$f":"F25+F44+F63+F82","v":395626.89744600008},null,{"$f":"H25+H44+H63+H82","v":40959.89},0.65369999999999995,{"$f":"J25+J44+J63+J82","v":26775.480092999998},null,{"$f":"L25+L44+L63+L82","v":81679.66},3.3041000000000005,{"$f":"N25+N44+N63+N82","v":269877.76460600004},null,296653.24469900003]
[null,"March",null,74298,4.9103000000000003,364825.4694,null,38528.879999999997,0.65369999999999995,25186.328855999996,null,75614.44,3.3041,249837.67120400001,null,275024.00005999999]
[null,"April",null,72045,4.9103000000000003,353762.56350000005,null,36256.75,0.65369999999999995,23701.037474999997,null,73051.149999999994,3.3041,241368.30471499998,null,265069.34219]
[null,"May",null,99758,4.9103000000000003,489841.70740000001,null,52461.479999999996,0.65369999999999995,34294.069475999997,null,102835.87999999999,3.3041,339780.03110799997,null,374074.10058399994]
[null,"June",null,112256.177,4.9103000000000003,551211.50592310005,null,59022.16,0.65369999999999995,38582.785991999997,null,114506.76000000001,3.3041,378341.78571600001,null,416924.57170800003]
[null,"July",null,128172.2,4.9103000000000003,629363.95366,null,66341.84,0.65369999999999995,43367.660807999993,null,128296.4,3.3041,423904.13523999997,null,467271.79604799999]
[null,"August",null,112969.74,4.9103000000000003,554715.31432200002,null,55455.78,0.65369999999999995,36251.443385999999,null,116018.02,3.3041000000000005,383335.13988200005,null,419586.58326800005]
[null,"September",null,121071.78,4.9103000000000003,594498.76133400004,null,58873.159999999996,0.65369999999999995,38485.384691999992,null,122793.37,3.3041,405721.57381699997,null,444206.95850899996]
[null,"October",null,90163.93,4.9103000000000003,442731.94547899999,null,44862.58,0.65369999999999995,29326.668545999997,null,90881.03,3.3041,300280.01122300001,null,329606.67976899998]
[null,"November",null,82661.090000000011,4.9103000000000003,405890.7502270001,null,44288.880000000005,0.65369999999999995,28951.640856000002,null,82766.850000000006,3.3041,273469.94908500003,null,302421.58994100004]
[null,"December",null,76275.37,4.9103000000000003,374534.949311,null,38433.82,0.65369999999999995,25124.188133999996,null,76345.81,3.3041,252254.190821,null,277378.37895499996]
[]
[null,"Total",null,{"$f":"SUM(D100:D111)","v":1130168.1069999998},{"$f":"IF(D113<>0,F113/D113,0)","v":4.9103000000000012},{"$f":"SUM(F100:F111)","v":5549464.4558021007},null,{"$f":"SUM(H100:H111)","v":580447.1},{"$f":"IF(H113<>0,J113/H113,0)","v":0.65369999999999995},{"$f":"SUM(J100:J111)","v":379438.26926999993},null,{"$f":"SUM(L100:L111)","v":1144843.3400000001},{"$f":"IF(L113<>0,N113/L113,0)","v":3.3040999999999996},{"$f":"SUM(N100:N111)","v":3782676.8796939999},null,{"$f":"SUM(P100:P111)","v":4162115.1489640004}]
[]
[null,null,null,null,null,null,null,null,null,null,null,null,null,"Low Voltage Switchgear Credit (if applicable)",null,{"$f":"'4. UTRs and Sub-Transmission'!J76","v":0}]
[]
[null,null,null,null,null,null,null,null,null,null,null,null,null,"Total including deduction for Low Voltage Switchgear Credit",null,{"$f":"P113+P115","v":4162115.1489640004}]

{"sheet":"7. Forecast Wholesale","index":8,"n_rows":117,"n_cols":16,"rows_kept":117,"cut":false,"hidden":false,"merged":[[96,7,96,9],[96,11,96,13],[20,3,20,5],[20,7,20,9],[20,11,20,13],[96,3,96,5],[95,3,95,5],[95,7,95,9],[95,11,95,13],[57,3,57,5],[57,7,57,9],[57,11,57,13],[76,3,76,5],[76,7,76,9],[76,11,76,13],[12,1,12,12],[19,3,19,5],[19,7,19,9],[19,11,19,13],[38,3,38,5],[38,7,38,9],[38,11,38,13]]}
[]
[]
[]
[]
[]
[]
[]
[]
[]
[]
[]
[]
[null,"The purpose of this sheet is to calculate the expected billing when forecasted 2025 Uniform Transmission Rates and Hydro One Sub-transmission Rates are applied against historical 2023 transmission units."]
[]
[]
[]
[]
[]
[]
[null,"IESO",null,"Network",null,null,null,"Line Connection",null,null,null,"Transformation Connection",null,null,null,"Total Connection"]
[]
[null,"Month",null,"Units Billed","Rate","Amount",null,"Units Billed","Rate","Amount",null,"Units Billed","Rate","Amount",null,"Amount"]
[]
[null,"January",null,{"$f":"'5. Historical Wholesale'!D24","v":0},{"$f":"'4. UTRs and Sub-Transmission'!L22","v":6.37},{"$f":"D24*E24","v":0},null,{"$f":"'5. Historical Wholesale'!H24","v":0},{"$f":"'4. UTRs and Sub-Transmission'!L24","v":1},{"$f":"H24*I24","v":0},null,{"$f":"'5. Historical Wholesale'!L24","v":0},{"$f":"'4. UTRs and Sub-Transmission'!L26","v":3.39},{"$f":"L24*M24","v":0},null,{"$f":"J24+N24","v":0}]
[null,"February",null,{"$f":"'5. Historical Wholesale'!D25","v":0},{"$f":"E24","v":6.37},0,null,{"$f":"'5. Historical Wholesale'!H25","v":0},{"$f":"I24","v":1},0,null,{"$f":"'5. Historical Wholesale'!L25","v":0},{"$f":"M24","v":3.39},0,null,0]
[null,"March",null,{"$f":"'5. Historical Wholesale'!D26","v":0},6.37,0,null,{"$f":"'5. Historical Wholesale'!H26","v":0},1,0,null,{"$f":"'5. Historical Wholesale'!L26","v":0},3.39,0,null,0]
[null,"April",null,{"$f":"'5. Historical Wholesale'!D27","v":0},6.37,0,null,{"$f":"'5. Historical Wholesale'!H27","v":0},1,0,null,{"$f":"'5. Historical Wholesale'!L27","v":0},3.39,0,null,0]
[null,"May",null,{"$f":"'5. Historical Wholesale'!D28","v":0},6.37,0,null,{"$f":"'5. Historical Wholesale'!H28","v":0},1,0,null,{"$f":"'5. Historical Wholesale'!L28","v":0},3.39,0,null,0]
[null,"June",null,{"$f":"'5. Historical Wholesale'!D29","v":0},6.37,0,null,{"$f":"'5. Historical Wholesale'!H29","v":0},1,0,null,{"$f":"'5. Historical Wholesale'!L29","v":0},3.39,0,null,0]
[null,"July",null,{"$f":"'5. Historical Wholesale'!D30","v":0},6.37,0,null,{"$f":"'5. Historical Wholesale'!H30","v":0},1,0,null,{"$f":"'5. Historical Wholesale'!L30","v":0},3.39,0,null,0]
[null,"August",null,{"$f":"'5. Historical Wholesale'!D31","v":0},6.37,0,null,{"$f":"'5. Historical Wholesale'!H31","v":0},1,0,null,{"$f":"'5. Historical Wholesale'!L31","v":0},3.39,0,null,0]
[null,"September",null,{"$f":"'5. Historical Wholesale'!D32","v":0},6.37,0,null,{"$f":"'5. Historical Wholesale'!H32","v":0},1,0,null,{"$f":"'5. Historical Wholesale'!L32","v":0},3.39,0,null,0]
[null,"October",null,{"$f":"'5. Historical Wholesale'!D33","v":0},6.37,0,null,{"$f":"'5. Historical Wholesale'!H33","v":0},1,0,null,{"$f":"'5. Historical Wholesale'!L33","v":0},3.39,0,null,0]
[null,"November",null,{"$f":"'5. Historical Wholesale'!D34","v":0},6.37,0,null,{"$f":"'5. Historical Wholesale'!H34","v":0},1,0,null,{"$f":"'5. Historical Wholesale'!L34","v":0},3.39,0,null,0]
[null,"December",null,{"$f":"'5. Historical Wholesale'!D35","v":0},6.37,0,null,{"$f":"'5. Historical Wholesale'!H35","v":0},1,0,null,{"$f":"'5. Historical Wholesale'!L35","v":0},3.39,0,null,0]
[]
[null,"Total",null,{"$f":"SUM(D24:D35)","v":0},{"$f":"IF(D37<>0,F37/D37,0)","v":0},{"$f":"SUM(F24:F35)","v":0},null,{"$f":"SUM(H24:H35)","v":0},{"$f":"IF(H37<>0,J37/H37,0)","v":0},{"$f":"SUM(J24:J35)","v":0},null,{"$f":"SUM(L24:L35)","v":0},{"$f":"IF(L37<>0,N37/L37,0)","v":0},{"$f":"SUM(N24:N35)","v":0},null,{"$f":"SUM(P24:P35)","v":0}]
[]
[null,"Hydro One",null,"Network",null,null,null,"Line Connection",null,null,null,"Transformation Connection",null,null,null,"Total Connection"]
[]
[null,"Month",null,"Units Billed","Rate","Amount",null,"Units Billed","Rate","Amount",null,"Units Billed","Rate","Amount",null,"Amount"]
[]
[null,"January",null,{"$f":"'5. Historical Wholesale'!D43","v":79926},{"$f":"'4. UTRs and Sub-Transmission'!L35","v":5.3280000000000003},{"$f":"D43*E43","v":425845.728},null,{"$f":"'5. Historical Wholesale'!H43","v":44961.880000000005},{"$f":"'4. UTRs and Sub-Transmission'!L37","v":0.68820000000000003},{"$f":"H43*I43","v":30942.765816000006},null,{"$f":"'5. Historical Wholesale'!L43","v":80053.97},{"$f":"'4. UTRs and Sub-Transmission'!L39","v":3.4893999999999998},{"$f":"L43*M43","v":279340.32291799999},null,{"$f":"J43+N43","v":310283.08873399999}]
[null,"February",null,{"$f":"'5. Historical Wholesale'!D44","v":80570.820000000007},{"$f":"E43","v":5.3280000000000003},429281.32896000007,null,{"$f":"'5. Historical Wholesale'!H44","v":40959.89},{"$f":"I43","v":0.68820000000000003},28188.596298,null,{"$f":"'5. Historical Wholesale'!L44","v":81679.66},{"$f":"M43","v":3.4893999999999998},285013.00560400001,null,313201.60190200002]
[null,"March",null,{"$f":"'5. Historical Wholesale'!D45","v":74298},5.3280000000000003,395859.74400000001,null,{"$f":"'5. Historical Wholesale'!H45","v":38528.879999999997},0.68820000000000003,26515.575216000001,null,{"$f":"'5. Historical Wholesale'!L45","v":75614.44},3.4893999999999998,263849.02693599998,null,290364.60215200001]
[null,"April",null,{"$f":"'5. Historical Wholesale'!D46","v":72045},5.3280000000000003,383855.76,null,{"$f":"'5. Historical Wholesale'!H46","v":36256.75},0.68820000000000003,24951.895350000003,null,{"$f":"'5. Historical Wholesale'!L46","v":73051.149999999994},3.4893999999999998,254904.68280999997,null,279856.57815999998]
[null,"May",null,{"$f":"'5. Historical Wholesale'!D47","v":99758},5.3280000000000003,531510.62400000007,null,{"$f":"'5. Historical Wholesale'!H47","v":52461.479999999996},0.68820000000000003,36103.990535999998,null,{"$f":"'5. Historical Wholesale'!L47","v":102835.87999999999},3.4893999999999998,358835.51967199997,null,394939.51020799996]
[null,"June",null,{"$f":"'5. Historical Wholesale'!D48","v":112256.177},5.3280000000000003,598100.91105600004,null,{"$f":"'5. Historical Wholesale'!H48","v":59022.16},0.68820000000000003,40619.050512000002,null,{"$f":"'5. Historical Wholesale'!L48","v":114506.76000000001},3.4893999999999998,399559.88834400004,null,440178.93885600002]
[null,"July",null,{"$f":"'5. Historical Wholesale'!D49","v":128172.2},5.3280000000000003,682901.48160000006,null,{"$f":"'5. Historical Wholesale'!H49","v":66341.84},0.68820000000000003,45656.454288000001,null,{"$f":"'5. Historical Wholesale'!L49","v":128296.4},3.4893999999999998,447677.45815999998,null,493333.91244799999]
[null,"August",null,{"$f":"'5. Historical Wholesale'!D50","v":112969.74},5.3280000000000003,601902.7747200001,null,{"$f":"'5. Historical Wholesale'!H50","v":55455.78},0.68820000000000003,38164.667796000002,null,{"$f":"'5. Historical Wholesale'!L50","v":116018.02},3.4893999999999998,404833.27898800001,null,442997.94678400003]
[null,"September",null,{"$f":"'5. Historical Wholesale'!D51","v":121071.78},5.3280000000000003,645070.44384000008,null,{"$f":"'5. Historical Wholesale'!H51","v":58873.159999999996},0.68820000000000003,40516.508712000003,null,{"$f":"'5. Historical Wholesale'!L51","v":122793.37},3.4893999999999998,428475.18527799996,null,468991.69398999994]
[null,"October",null,{"$f":"'5. Historical Wholesale'!D52","v":90163.93},5.3280000000000003,480393.41904000001,null,{"$f":"'5. Historical Wholesale'!H52","v":44862.58},0.68820000000000003,30874.427556000002,null,{"$f":"'5. Historical Wholesale'!L52","v":90881.03},3.4893999999999998,317120.26608199999,null,347994.693638]
[null,"November",null,{"$f":"'5. Historical Wholesale'!D53","v":82661.090000000011},5.3280000000000003,440418.28752000007,null,{"$f":"'5. Historical Wholesale'!H53","v":44288.880000000005},0.68820000000000003,30479.607216000004,null,{"$f":"'5. Historical Wholesale'!L53","v":82766.850000000006},3.4893999999999998,288806.64639000001,null,319286.25360599998]
[null,"December",null,{"$f":"'5. Historical Wholesale'!D54","v":76275.37},5.3280000000000003,406395.17135999998,null,{"$f":"'5. Historical Wholesale'!H54","v":38433.82},0.68820000000000003,26450.154924000002,null,{"$f":"'5. Historical Wholesale'!L54","v":76345.81},3.4893999999999998,266401.06941399997,null,292851.22433799994]
[]
[null,"Total",null,{"$f":"SUM(D43:D54)","v":1130168.1069999998},{"$f":"IF(D56<>0,F56/D56,0)","v":5.3280000000000012},{"$f":"SUM(F43:F54)","v":6021535.6740960004},null,{"$f":"SUM(H43:H54)","v":580447.1},{"$f":"IF(H56<>0,J56/H56,0)","v":0.68820000000000014},{"$f":"SUM(J43:J54)","v":399463.69422000006},null,{"$f":"SUM(L43:L54)","v":1144843.3400000001},{"$f":"IF(L56<>0,N56/L56,0)","v":3.4893999999999994},{"$f":"SUM(N43:N54)","v":3994816.3505959995},null,{"$f":"SUM(P43:P54)","v":4394280.0448160004}]
[]
[null,{"$f":"'5. Historical Wholesale'!B58","v":"Add Extra Host Here (I)"},null,"Network",null,null,null,"Line Connection",null,null,null,"Transformation Connection",null,null,null,"Total Connection"]
[]
[null,"Month",null,"Units Billed","Rate","Amount",null,"Units Billed","Rate","Amount",null,"Units Billed","Rate","Amount",null,"Amount"]
[]
[null,"January",null,{"$f":"'5. Historical Wholesale'!D62","v":0},{"$f":"'4. UTRs and Sub-Transmission'!L52","v":0},{"$f":"D62*E62","v":0},null,{"$f":"'5. Historical Wholesale'!H62","v":0},{"$f":"'4. UTRs and Sub-Transmission'!L54","v":0},{"$f":"H62*I62","v":0},null,{"$f":"'5. Historical Wholesale'!L62","v":0},{"$f":"'4. UTRs and Sub-Transmission'!L56","v":0},{"$f":"L62*M62","v":0},null,{"$f":"J62+N62","v":0}]
[null,"February",null,{"$f":"'5. Historical Wholesale'!D63","v":0},{"$f":"E62","v":0},0,null,{"$f":"'5. Historical Wholesale'!H63","v":0},{"$f":"I62","v":0},0,null,{"$f":"'5. Historical Wholesale'!L63","v":0},{"$f":"M62","v":0},0,null,0]
[null,"March",null,{"$f":"'5. Historical Wholesale'!D64","v":0},0,0,null,{"$f":"'5. Historical Wholesale'!H64","v":0},0,0,null,{"$f":"'5. Historical Wholesale'!L64","v":0},0,0,null,0]
[null,"April",null,{"$f":"'5. Historical Wholesale'!D65","v":0},0,0,null,{"$f":"'5. Historical Wholesale'!H65","v":0},0,0,null,{"$f":"'5. Historical Wholesale'!L65","v":0},0,0,null,0]
[null,"May",null,{"$f":"'5. Historical Wholesale'!D66","v":0},0,0,null,{"$f":"'5. Historical Wholesale'!H66","v":0},0,0,null,{"$f":"'5. Historical Wholesale'!L66","v":0},0,0,null,0]
[null,"June",null,{"$f":"'5. Historical Wholesale'!D67","v":0},0,0,null,{"$f":"'5. Historical Wholesale'!H67","v":0},0,0,null,{"$f":"'5. Historical Wholesale'!L67","v":0},0,0,null,0]
[null,"July",null,{"$f":"'5. Historical Wholesale'!D68","v":0},0,0,null,{"$f":"'5. Historical Wholesale'!H68","v":0},0,0,null,{"$f":"'5. Historical Wholesale'!L68","v":0},0,0,null,0]
[null,"August",null,{"$f":"'5. Historical Wholesale'!D69","v":0},0,0,null,{"$f":"'5. Historical Wholesale'!H69","v":0},0,0,null,{"$f":"'5. Historical Wholesale'!L69","v":0},0,0,null,0]
[null,"September",null,{"$f":"'5. Historical Wholesale'!D70","v":0},0,0,null,{"$f":"'5. Historical Wholesale'!H70","v":0},0,0,null,{"$f":"'5. Historical Wholesale'!L70","v":0},0,0,null,0]
[null,"October",null,{"$f":"'5. Historical Wholesale'!D71","v":0},0,0,null,{"$f":"'5. Historical Wholesale'!H71","v":0},0,0,null,{"$f":"'5. Historical Wholesale'!L71","v":0},0,0,null,0]
[null,"November",null,{"$f":"'5. Historical Wholesale'!D72","v":0},0,0,null,{"$f":"'5. Historical Wholesale'!H72","v":0},0,0,null,{"$f":"'5. Historical Wholesale'!L72","v":0},0,0,null,0]
[null,"December",null,{"$f":"'5. Historical Wholesale'!D73","v":0},0,0,null,{"$f":"'5. Historical Wholesale'!H73","v":0},0,0,null,{"$f":"'5. Historical Wholesale'!L73","v":0},0,0,null,0]
[]
[null,"Total",null,{"$f":"SUM(D62:D73)","v":0},{"$f":"IF(D75<>0,F75/D75,0)","v":0},{"$f":"SUM(F62:F73)","v":0},null,{"$f":"SUM(H62:H73)","v":0},{"$f":"IF(H75<>0,J75/H75,0)","v":0},{"$f":"SUM(J62:J73)","v":0},null,{"$f":"SUM(L62:L73)","v":0},{"$f":"IF(L75<>0,N75/L75,0)","v":0},{"$f":"SUM(N62:N73)","v":0},null,{"$f":"SUM(P62:P73)","v":0}]
[]
[null,{"$f":"'5. Historical Wholesale'!B77","v":"Add Extra Host Here (II)"},null,"Network",null,null,null,"Line Connection",null,null,null,"Transformation Connection",null,null,null,"Total Connection"]
[]
[null,"Month",null,"Units Billed","Rate","Amount",null,"Units Billed","Rate","Amount",null,"Units Billed","Rate","Amount",null,"Amount"]
[]
[null,"January",null,{"$f":"'5. Historical Wholesale'!D81","v":0},{"$f":"'4. UTRs and Sub-Transmission'!L67","v":0},{"$f":"D81*E81","v":0},null,{"$f":"'5. Historical Wholesale'!H81","v":0},{"$f":"'4. UTRs and Sub-Transmission'!L69","v":0},{"$f":"H81*I81","v":0},null,{"$f":"'5. Historical Wholesale'!L81","v":0},{"$f":"'4. UTRs and Sub-Transmission'!L71","v":0},{"$f":"L81*M81","v":0},null,{"$f":"J81+N81","v":0}]
[null,"February",null,{"$f":"'5. Historical Wholesale'!D82","v":0},{"$f":"E81","v":0},0,null,{"$f":"'5. Historical Wholesale'!H82","v":0},{"$f":"I81","v":0},0,null,{"$f":"'5. Historical Wholesale'!L82","v":0},{"$f":"M81","v":0},0,null,0]
[null,"March",null,{"$f":"'5. Historical Wholesale'!D83","v":0},0,0,null,{"$f":"'5. Historical Wholesale'!H83","v":0},0,0,null,{"$f":"'5. Historical Wholesale'!L83","v":0},0,0,null,0]
[null,"April",null,{"$f":"'5. Historical Wholesale'!D84","v":0},0,0,null,{"$f":"'5. Historical Wholesale'!H84","v":0},0,0,null,{"$f":"'5. Historical Wholesale'!L84","v":0},0,0,null,0]
[null,"May",null,{"$f":"'5. Historical Wholesale'!D85","v":0},0,0,null,{"$f":"'5. Historical Wholesale'!H85","v":0},0,0,null,{"$f":"'5. Historical Wholesale'!L85","v":0},0,0,null,0]
[null,"June",null,{"$f":"'5. Historical Wholesale'!D86","v":0},0,0,null,{"$f":"'5. Historical Wholesale'!H86","v":0},0,0,null,{"$f":"'5. Historical Wholesale'!L86","v":0},0,0,null,0]
[null,"July",null,{"$f":"'5. Historical Wholesale'!D87","v":0},0,0,null,{"$f":"'5. Historical Wholesale'!H87","v":0},0,0,null,{"$f":"'5. Historical Wholesale'!L87","v":0},0,0,null,0]
[null,"August",null,{"$f":"'5. Historical Wholesale'!D88","v":0},0,0,null,{"$f":"'5. Historical Wholesale'!H88","v":0},0,0,null,{"$f":"'5. Historical Wholesale'!L88","v":0},0,0,null,0]
[null,"September",null,{"$f":"'5. Historical Wholesale'!D89","v":0},0,0,null,{"$f":"'5. Historical Wholesale'!H89","v":0},0,0,null,{"$f":"'5. Historical Wholesale'!L89","v":0},0,0,null,0]
[null,"October",null,{"$f":"'5. Historical Wholesale'!D90","v":0},0,0,null,{"$f":"'5. Historical Wholesale'!H90","v":0},0,0,null,{"$f":"'5. Historical Wholesale'!L90","v":0},0,0,null,0]
[null,"November",null,{"$f":"'5. Historical Wholesale'!D91","v":0},0,0,null,{"$f":"'5. Historical Wholesale'!H91","v":0},0,0,null,{"$f":"'5. Historical Wholesale'!L91","v":0},0,0,null,0]
[null,"December",null,{"$f":"'5. Historical Wholesale'!D92","v":0},0,0,null,{"$f":"'5. Historical Wholesale'!H92","v":0},0,0,null,{"$f":"'5. Historical Wholesale'!L92","v":0},0,0,null,0]
[]
[null,"Total",null,{"$f":"SUM(D81:D92)","v":0},{"$f":"IF(D94<>0,F94/D94,0)","v":0},{"$f":"SUM(F81:F92)","v":0},null,{"$f":"SUM(H81:H92)","v":0},{"$f":"IF(H94<>0,J94/H94,0)","v":0},{"$f":"SUM(J81:J92)","v":0},null,{"$f":"SUM(L81:L92)","v":0},{"$f":"IF(L94<>0,N94/L94,0)","v":0},{"$f":"SUM(N81:N92)","v":0},null,{"$f":"SUM(P81:P92)","v":0}]
[]
[null,"Total",null,"Network",null,null,null,"Line Connection",null,null,null,"Transformation Connection",null,null,null,"Total Connection"]
[]
[null,"Month",null,"Units Billed","Rate","Amount",null,"Units Billed","Rate","Amount",null,"Units Billed","Rate","Amount",null,"Amount"]
[]
[null,"January",null,{"$f":"D24+D43+D62+D81","v":79926},{"$f":"IF(D100<>0,F100/D100,0)","v":5.3280000000000003},{"$f":"F24+F43+F62+F81","v":425845.728},null,{"$f":"H24+H43+H62+H81","v":44961.880000000005},{"$f":"IF(H100<>0,J100/H100,0)","v":0.68820000000000003},{"$f":"J24+J43+J62+J81","v":30942.765816000006},null,{"$f":"L24+L43+L62+L81","v":80053.97},{"$f":"IF(L100<>0,N100/L100,0)","v":3.4893999999999998},{"$f":"N24+N43+N62+N81","v":279340.32291799999},null,{"$f":"J100+N100","v":310283.08873399999}]
[null,"February",null,{"$f":"D25+D44+D63+D82","v":80570.820000000007},5.3280000000000003,429281.32896000007,null,{"$f":"H25+H44+H63+H82","v":40959.89},0.68820000000000003,{"$f":"J25+J44+J63+J82","v":28188.596298},null,{"$f":"L25+L44+L63+L82","v":81679.66},3.4893999999999998,{"$f":"N25+N44+N63+N82","v":285013.00560400001},null,313201.60190200002]
[null,"March",null,74298,5.3280000000000003,395859.74400000001,null,{"$f":"H26+H45+H64+H83","v":38528.879999999997},0.68820000000000003,{"$f":"J26+J45+J64+J83","v":26515.575216000001},null,{"$f":"L26+L45+L64+L83","v":75614.44},3.4893999999999998,{"$f":"N26+N45+N64+N83","v":263849.02693599998},null,290364.60215200001]
[null,"April",null,72045,5.3280000000000003,383855.76,null,{"$f":"H27+H46+H65+H84","v":36256.75},0.68820000000000003,{"$f":"J27+J46+J65+J84","v":24951.895350000003},null,{"$f":"L27+L46+L65+L84","v":73051.149999999994},3.4893999999999998,{"$f":"N27+N46+N65+N84","v":254904.68280999997},null,279856.57815999998]
[null,"May",null,99758,5.3280000000000003,531510.62400000007,null,{"$f":"H28+H47+H66+H85","v":52461.479999999996},0.68820000000000003,{"$f":"J28+J47+J66+J85","v":36103.990535999998},null,{"$f":"L28+L47+L66+L85","v":102835.87999999999},3.4893999999999998,{"$f":"N28+N47+N66+N85","v":358835.51967199997},null,394939.51020799996]
[null,"June",null,112256.177,5.3280000000000003,598100.91105600004,null,{"$f":"H29+H48+H67+H86","v":59022.16},0.68820000000000003,{"$f":"J29+J48+J67+J86","v":40619.050512000002},null,{"$f":"L29+L48+L67+L86","v":114506.76000000001},3.4893999999999998,{"$f":"N29+N48+N67+N86","v":399559.88834400004},null,440178.93885600002]
[null,"July",null,128172.2,5.3280000000000003,682901.48160000006,null,{"$f":"H30+H49+H68+H87","v":66341.84},0.68820000000000003,{"$f":"J30+J49+J68+J87","v":45656.454288000001},null,{"$f":"L30+L49+L68+L87","v":128296.4},3.4893999999999998,{"$f":"N30+N49+N68+N87","v":447677.45815999998},null,493333.91244799999]
[null,"August",null,112969.74,5.3280000000000003,601902.7747200001,null,{"$f":"H31+H50+H69+H88","v":55455.78},0.68820000000000003,{"$f":"J31+J50+J69+J88","v":38164.667796000002},null,{"$f":"L31+L50+L69+L88","v":116018.02},3.4893999999999998,{"$f":"N31+N50+N69+N88","v":404833.27898800001},null,442997.94678400003]
[null,"September",null,121071.78,5.3280000000000003,645070.44384000008,null,{"$f":"H32+H51+H70+H89","v":58873.159999999996},0.68820000000000003,{"$f":"J32+J51+J70+J89","v":40516.508712000003},null,{"$f":"L32+L51+L70+L89","v":122793.37},3.4893999999999998,{"$f":"N32+N51+N70+N89","v":428475.18527799996},null,468991.69398999994]
[null,"October",null,90163.93,5.3280000000000003,480393.41904000001,null,{"$f":"H33+H52+H71+H90","v":44862.58},0.68820000000000003,{"$f":"J33+J52+J71+J90","v":30874.427556000002},null,{"$f":"L33+L52+L71+L90","v":90881.03},3.4893999999999998,{"$f":"N33+N52+N71+N90","v":317120.26608199999},null,347994.693638]
[null,"November",null,82661.090000000011,5.3280000000000003,440418.28752000007,null,{"$f":"H34+H53+H72+H91","v":44288.880000000005},0.68820000000000003,{"$f":"J34+J53+J72+J91","v":30479.607216000004},null,{"$f":"L34+L53+L72+L91","v":82766.850000000006},3.4893999999999998,{"$f":"N34+N53+N72+N91","v":288806.64639000001},null,319286.25360599998]
[null,"December",null,76275.37,5.3280000000000003,406395.17135999998,null,{"$f":"H35+H54+H73+H92","v":38433.82},0.68820000000000003,{"$f":"J35+J54+J73+J92","v":26450.154924000002},null,{"$f":"L35+L54+L73+L92","v":76345.81},3.4893999999999998,{"$f":"N35+N54+N73+N92","v":266401.06941399997},null,292851.22433799994]
[]
[null,"Total",null,{"$f":"SUM(D100:D111)","v":1130168.1069999998},{"$f":"IF(D113<>0,F113/D113,0)","v":5.3280000000000012},{"$f":"SUM(F100:F111)","v":6021535.6740960004},null,{"$f":"SUM(H100:H111)","v":580447.1},{"$f":"IF(H113<>0,J113/H113,0)","v":0.68820000000000014},{"$f":"SUM(J100:J111)","v":399463.69422000006},null,{"$f":"SUM(L100:L111)","v":1144843.3400000001},{"$f":"IF(L113<>0,N113/L113,0)","v":3.4893999999999994},{"$f":"SUM(N100:N111)","v":3994816.3505959995},null,{"$f":"SUM(P100:P111)","v":4394280.0448160004}]
[]
[null,null,null,null,null,null,null,null,null,null,null,null,null,"Low Voltage Switchgear Credit (if applicable)",null,{"$f":"'4. UTRs and Sub-Transmission'!L76","v":0}]
[]
[null,null,null,null,null,null,null,null,null,null,null,null,null,"Total including deduction for Low Voltage Switchgear Credit",null,{"$f":"P113+P115","v":4394280.0448160004}]

{"sheet":"8. RTSR Rates to Forecast","index":9,"n_rows":56,"n_cols":11,"rows_kept":56,"cut":false,"hidden":false,"merged":[]}
[]
[]
[]
[]
[]
[]
[]
[]
[]
[]
[]
[]
["The purpose of this sheet is to re-align the current RTS Network Rates to recover current wholesale network costs."]
[]
["Rate Class","Rate Description","Unit","Current RTSR-Network","Loss Adjusted Billed kWh","Billed kW","Billed Amount","Billed Amount %","Current Wholesale Billing","Adjusted RTSR Network"]
[]
["RESIDENTIAL SERVICE CLASSIFICATION","Retail Transmission Rate - Network Service Rate","$/kWh",9.2999999999999992E-3,268195156.50700003,null,{"$f":"ROUND(D17*E17, 2)","v":2494214.96},{"$f":"G17/5341702.98","v":0.4669325436735533},{"$f":"H17*total_current_wholesale_network","v":2591225.5543736462},{"$f":"IF(ISERROR(I17/E17), 0, I17/E17)","v":9.66171644604631E-3}]
["GENERAL SERVICE LESS THAN 50 KW SERVICE CLASSIFICATION","Retail Transmission Rate - Network Service Rate","$/kWh",7.9000000000000008E-3,65540323.984000005,null,{"$f":"ROUND(D18*E18, 2)","v":517768.56},{"$f":"G18/5341702.98","v":9.6929492698974426E-2},{"$f":"H18*total_current_wholesale_network","v":537906.77445188782},{"$f":"IF(ISERROR(I18/E18), 0, I18/E18)","v":8.2072645015182407E-3}]
["GENERAL SERVICE 50 to 4,999 kW SERVICE CLASSIFICATION","Retail Transmission Rate - Network Service Rate - Interval Metered","$/kW",4.0579000000000001,189932137.95650002,566315,{"$f":"ROUND(D19*F19, 2)","v":2298049.64},{"$f":"G19/5341702.98","v":0.43020917647502743},{"$f":"H19*total_current_wholesale_network","v":2387430.5334080579},{"$f":"IF(ISERROR(I19/F19), 0, I19/F19)","v":4.2157289377962055}]
["EMBEDDED DISTRIBUTOR","Retail Transmission Rate - Network Service Rate ","$/kW",null,35498211.594000004,90976,{"$f":"ROUND(D20*F20, 2)","v":0},{"$f":"G20/5341702.98","v":0},{"$f":"H20*total_current_wholesale_network","v":0},{"$f":"IF(ISERROR(I20/F20), 0, I20/F20)","v":0}]
["UNMETERED SCATTERED LOAD SERVICE CLASSIFICATION","Retail Transmission Rate - Network Service Rate","$/kWh",7.9000000000000008E-3,1458707.8145000001,null,{"$f":"ROUND(D21*E21, 2)","v":11523.79},{"$f":"G21/5341702.98","v":2.1573251158191501E-3},{"$f":"H21*total_current_wholesale_network","v":11971.999049847524},{"$f":"IF(ISERROR(I21/E21), 0, I21/E21)","v":8.2072632578246343E-3}]
["SENTINEL LIGHTING SERVICE CLASSIFICATION","Retail Transmission Rate - Network Service Rate","$/kW",2.5362,279570.50300000003,736,{"$f":"ROUND(D22*F22, 2)","v":1866.64},{"$f":"G22/5341702.98","v":3.4944661037667802E-4},{"$f":"H22*total_current_wholesale_network","v":1939.2415434859001},{"$f":"IF(ISERROR(I22/F22), 0, I22/F22)","v":2.6348390536493209}]
["STREET LIGHTING SERVICE CLASSIFICATION","Retail Transmission Rate - Network Service Rate","$/kW",2.5005999999999999,2500973.7715000003,7310,{"$f":"ROUND(D23*F23, 2)","v":18279.39},{"$f":"G23/5341702.98","v":3.422015426248952E-3},{"$f":"H23*total_current_wholesale_network","v":18990.352975175036},{"$f":"IF(ISERROR(I23/F23), 0, I23/F23)","v":2.597859504127912}]
[]
["The purpose of this table is to re-align the current RTS Connection Rates to recover current wholesale connection costs."]
["Rate Class","Rate Description","Unit","Current RTSR-Connection","Loss Adjusted Billed kWh","Billed kW","Billed Amount","Billed Amount %","Current Wholesale Billing","Adjusted RTSR-Connection"]
[]
["RESIDENTIAL SERVICE CLASSIFICATION","Retail Transmission Rate - Line and Transformation Connection Service Rate","$/kWh",6.4000000000000003E-3,268195156.50700003,null,{"$f":"ROUND(D28*E28, 2)","v":1716449},{"$f":"G28/3692998.05","v":0.46478470249936904},{"$f":"H28*Total_Current_Wholesale_Lineplus","v":1934487.4512793501},{"$f":"IF(ISERROR(I28/E28), 0, I28/E28)","v":7.2129842927601828E-3}]
["GENERAL SERVICE LESS THAN 50 KW SERVICE CLASSIFICATION","Retail Transmission Rate - Line and Transformation Connection Service Rate - Interval Metered","$/kWh",6.1000000000000004E-3,65540323.984000005,null,{"$f":"ROUND(D29*E29, 2)","v":399795.98},{"$f":"G29/3692998.05","v":0.10825783674594683},{"$f":"H29*Total_Current_Wholesale_Lineplus","v":450581.58231437689},{"$f":"IF(ISERROR(I29/E29), 0, I29/E29)","v":6.8748757242087311E-3}]
["GENERAL SERVICE 50 to 4,999 kW SERVICE CLASSIFICATION","Retail Transmission Rate - Line and Transformation Connection Service Rate","$/kW",2.7418999999999998,189932137.95650002,566315,{"$f":"ROUND(D30*F30, 2)","v":1552779.1},{"$f":"G30/3692998.05","v":0.42046572431848434},{"$f":"H30*Total_Current_Wholesale_Lineplus","v":1750026.7608060848},{"$f":"IF(ISERROR(I30/F30), 0, I30/F30)","v":3.0902002609962387}]
["EMBEDDED DISTRIBUTOR","Retail Transmission Rate - Line and Transformation Connection Service Rate ","$/kW",null,35501318.094000004,90976,{"$f":"ROUND(D31*F31, 2)","v":0},{"$f":"G31/3692998.05","v":0},{"$f":"H31*Total_Current_Wholesale_Lineplus","v":0},{"$f":"IF(ISERROR(I31/F31), 0, I31/F31)","v":0}]
["UNMETERED SCATTERED LOAD SERVICE CLASSIFICATION","Retail Transmission Rate - Line and Transformation Connection Service Rate","$/kWh",6.1000000000000004E-3,1458707.8145000001,null,{"$f":"ROUND(D32*E32, 2)","v":8898.1200000000008},{"$f":"G32/3692998.05","v":2.4094569993071079E-3},{"$f":"H32*Total_Current_Wholesale_Lineplus","v":10028.437477593458},{"$f":"IF(ISERROR(I32/E32), 0, I32/E32)","v":6.8748774620302532E-3}]
["SENTINEL LIGHTING SERVICE CLASSIFICATION","Retail Transmission Rate - Line and Transformation Connection Service Rate","$/kW",1.8847,279570.50300000003,736,{"$f":"ROUND(D33*F33, 2)","v":1387.14},{"$f":"G33/3692998.05","v":3.7561352083573404E-4},{"$f":"H33*Total_Current_Wholesale_Lineplus","v":1563.3467252261139},{"$f":"IF(ISERROR(I33/F33), 0, I33/F33)","v":2.1241123984050461}]
["STREET LIGHTING SERVICE CLASSIFICATION","Retail Transmission Rate - Line and Transformation Connection Service Rate","$/kW",1.8726,2500973.7715000003,7310,{"$f":"ROUND(D34*F34, 2)","v":13688.71},{"$f":"G34/3692998.05","v":3.7066659160570094E-3},{"$f":"H34*Total_Current_Wholesale_Lineplus","v":15427.570361369402},{"$f":"IF(ISERROR(I34/F34), 0, I34/F34)","v":2.1104747416374012}]
[]
["The purpose of this table is to update the re-aligned RTS Network Rates to recover future wholesale network costs."]
["Rate Class","Rate Description","Unit","Adjusted RTSR-Network","Loss Adjusted Billed kWh","Billed kW","Billed Amount","Billed Amount %","Forecast Wholesale Billing","Proposed RTSR-Network"]
[]
["RESIDENTIAL SERVICE CLASSIFICATION","Retail Transmission Rate - Network Service Rate","$/kWh",9.66171644604631E-3,268195156.50700003,null,{"$f":"IF(ISERROR(D39*E39), 0, ROUND(D39*E39, 2))","v":2591225.5499999998},{"$f":"G39/5549464.44","v":0.46693254421502334},{"$f":"H39*forecast_wholesale_network","v":2811650.9723871709},{"$f":"IF(ISERROR(I39/E39), 0, I39/E39)","v":1.048360085620631E-2}]
["GENERAL SERVICE LESS THAN 50 KW SERVICE CLASSIFICATION","Retail Transmission Rate - Network Service Rate","$/kWh",8.2072645015182407E-3,65540323.984000005,null,{"$f":"IF(ISERROR(D40*E40), 0, ROUND(D40*E40, 2))","v":537906.77},{"$f":"G40/5549464.44","v":9.6929492172761811E-2},{"$f":"H40*forecast_wholesale_network","v":583664.39499029424},{"$f":"IF(ISERROR(I40/E40), 0, I40/E40)","v":8.9054243175969196E-3}]
["GENERAL SERVICE 50 to 4,999 kW SERVICE CLASSIFICATION","Retail Transmission Rate - Network Service Rate - Interval Metered","$/kW",4.2157289377962055,189932137.95650002,566315,{"$f":"ROUND(D41*F41, 2)","v":2387430.5299999998},{"$f":"G41/5549464.44","v":0.43020917708592427},{"$f":"H41*forecast_wholesale_network","v":2590519.9071463766},{"$f":"IF(ISERROR(I41/F41), 0, I41/F41)","v":4.574344502876273}]
["EMBEDDED DISTRIBUTOR","Retail Transmission Rate - Network Service Rate ","$/kW",0,35498211.594000004,90976,{"$f":"ROUND(D42*F42, 2)","v":0},{"$f":"G42/5549464.44","v":0},{"$f":"H42*forecast_wholesale_network","v":0},{"$f":"IF(ISERROR(I42/F42), 0, I42/F42)","v":0}]
["UNMETERED SCATTERED LOAD SERVICE CLASSIFICATION","Retail Transmission Rate - Network Service Rate","$/kWh",8.2072632578246343E-3,1458707.8145000001,null,{"$f":"IF(ISERROR(D43*E43), 0, ROUND(D43*E43, 2))","v":11972},{"$f":"G43/5549464.44","v":2.1573252931772996E-3},{"$f":"H43*forecast_wholesale_network","v":12990.411213496722},{"$f":"IF(ISERROR(I43/E43), 0, I43/E43)","v":8.9054237485863014E-3}]
["SENTINEL LIGHTING SERVICE CLASSIFICATION","Retail Transmission Rate - Network Service Rate","$/kW",2.6348390536493209,279570.50300000003,736,{"$f":"ROUND(D44*F44, 2)","v":1939.24},{"$f":"G44/5549464.44","v":3.4944633323932063E-4},{"$f":"H44*forecast_wholesale_network","v":2104.2035617826082},{"$f":"IF(ISERROR(I44/F44), 0, I44/F44)","v":2.8589722306828915}]
["STREET LIGHTING SERVICE CLASSIFICATION","Retail Transmission Rate - Network Service Rate","$/kW",2.597859504127912,2500973.7715000003,7310,{"$f":"ROUND(D45*F45, 2)","v":18990.349999999999},{"$f":"G45/5549464.44","v":3.4220148998738331E-3},{"$f":"H45*forecast_wholesale_network","v":20605.784796878339},{"$f":"IF(ISERROR(I45/F45), 0, I45/F45)","v":2.8188488094224815}]
[]
["The purpose of this table is to update the re-aligned RTS Connection Rates to recover future wholesale connection costs."]
["Rate Class","Rate Description","Unit","Adjusted RTSR-Connection","Loss Adjusted Billed kWh","Billed kW","Billed Amount","Billed Amount %","Forecast Wholesale Billing","Proposed RTSR-Connection"]
[]
["RESIDENTIAL SERVICE CLASSIFICATION","Retail Transmission Rate - Line and Transformation Connection Service Rate","$/kWh",7.2129842927601828E-3,268195156.50700003,null,{"$f":"ROUND(D50*E50, 2)","v":1934487.45},{"$f":"G50/4162115.15","v":0.46478470207629885},{"$f":"H50*forecast_wholesale_lineplus","v":2042394.1414696299},{"$f":"IF(ISERROR(I50/E50), 0, I50/E50)","v":7.6153282112547118E-3}]
["GENERAL SERVICE LESS THAN 50 KW SERVICE CLASSIFICATION","Retail Transmission Rate - Line and Transformation Connection Service Rate - Interval Metered","$/kWh",6.8748757242087311E-3,65540323.984000005,null,{"$f":"ROUND(D51*E51, 2)","v":450581.58},{"$f":"G51/4162115.15","v":0.10825783616294231},{"$f":"H51*forecast_wholesale_lineplus","v":475715.24914577737},{"$f":"IF(ISERROR(I51/E51), 0, I51/E51)","v":7.258359742956277E-3}]
["GENERAL SERVICE 50 to 4,999 kW SERVICE CLASSIFICATION","Retail Transmission Rate - Line and Transformation Connection Service Rate","$/kW",3.0902002609962387,189932137.95650002,566315,{"$f":"ROUND(D52*F52, 2)","v":1750026.76},{"$f":"G52/4162115.15","v":0.42046572402015359},{"$f":"H52*forecast_wholesale_lineplus","v":1847644.1405908726},{"$f":"IF(ISERROR(I52/F52), 0, I52/F52)","v":3.2625731979390844}]
["EMBEDDED DISTRIBUTOR","Retail Transmission Rate - Line and Transformation Connection Service Rate ","$/kW",0,35501318.094000004,90976,{"$f":"ROUND(D53*F53, 2)","v":0},{"$f":"G53/4162115.15","v":0},{"$f":"H53*forecast_wholesale_lineplus","v":0},{"$f":"IF(ISERROR(I53/F53), 0, I53/F53)","v":0},"Confirm that the correct value is shown in the highlighted cell"]
["UNMETERED SCATTERED LOAD SERVICE CLASSIFICATION","Retail Transmission Rate - Line and Transformation Connection Service Rate","$/kWh",6.8748774620302532E-3,1458707.8145000001,null,{"$f":"ROUND(D54*E54, 2)","v":10028.44},{"$f":"G54/4162115.15","v":2.409457604746952E-3},{"$f":"H54*forecast_wholesale_lineplus","v":10587.831471369689},{"$f":"IF(ISERROR(I54/E54), 0, I54/E54)","v":7.2583634406585187E-3}]
["SENTINEL LIGHTING SERVICE CLASSIFICATION","Retail Transmission Rate - Line and Transformation Connection Service Rate","$/kW",2.1241123984050461,279570.50300000003,736,{"$f":"ROUND(D55*F55, 2)","v":1563.35},{"$f":"G55/4162115.15","v":3.7561430754744977E-4},{"$f":"H55*forecast_wholesale_lineplus","v":1650.5544562031384},{"$f":"IF(ISERROR(I55/F55), 0, I55/F55)","v":2.2426011633194816}]
["STREET LIGHTING SERVICE CLASSIFICATION","Retail Transmission Rate - Line and Transformation Connection Service Rate","$/kW",2.1104747416374012,2500973.7715000003,7310,{"$f":"ROUND(D56*F56, 2)","v":15427.57},{"$f":"G56/4162115.15","v":3.706665828310877E-3},{"$f":"H56*forecast_wholesale_lineplus","v":16288.127682147857},{"$f":"IF(ISERROR(I56/F56), 0, I56/F56)","v":2.2281980413334961}]

{"sheet":"9. LV Rates","index":10,"n_rows":47,"n_cols":11,"rows_kept":47,"cut":false,"hidden":false,"merged":[[26,1,26,10],[27,1,27,10],[33,1,33,8],[34,1,34,8],[12,0,12,10]]}
[]
[]
[]
[]
[]
[]
[]
[]
[]
[]
[]
[]
["The purpose of this sheet is to calculate Low Voltage service rates based on a forecasted host distribution expense."]
[]
[null,"Low Voltage Charges"]
[]
[null,"Host I: HONI"]
[null,null,null,2020,{"$f":"D18+1","v":2021},2022,2023,{"$f":"G18+1&\" Forecast\"","v":"2024 Forecast"},{"$f":"G18+2&\" Forecast\"","v":"2025 Forecast"},"      Forecast Methodology"]
[null,"Host Volume",null,77725.98,1111832.07,1134333.3500000001,1115847.17,{"$f":"+G19","v":1115847.17},{"$f":"+G19","v":1115847.17},"2023 volumes at 2024 rates"]
[null,"Host Charges",null,185192.88,2640369.12,2036862.05,1699062.16,1778731.86,1778731.86]
[]
[null,"Host II:"]
[null,null,null,{"$f":"D18","v":2020},2021,2022,2023,"2024 Forecast","2025 Forecast","      Forecast Methodology"]
[null,"Host Volume"]
[null,"Host Charges"]
[]
[null,"Instructions: The methodology of the test year forecast for host charges is at the distributor's discretion. Please provide a brief descriptor of the methodology used here, and a complete description with rationale in the filed evidence."]
[null,"                  Regardless of the methodology chosen, please ensure that the Host Charges for the test year is completed for each host distributor."]
[]
[null,"Low Voltage Rates"]
[]
[null,"Proposed Loss Factor",1.0425]
[]
[null,"Instructions: Please enter the rate class volumes consistent with the proposed load forecast, and proposed loss factor."]
[null,"                  If Low Voltage charges are applied based on volumes uplifted for losses, please select Loss Adjusted Volume in cell J37"]
[]
[null,"Rate Class","Unit",{"$f":"D18+6&\" Forecasted Volume\"","v":"2026 Forecasted Volume"},"RTSR Connection Rate","Loss Adjusted Volume","RTSR Connection Revenue","Allocation","Allocated Low Voltage Charges","Delivered Volume","Low Voltage Rates"]
[]
[null,"RESIDENTIAL SERVICE CLASSIFICATION","$/kWh",280949153,7.212984286194565E-3,{"$f":"IF(C39=\"$/kWh\",D39*C$32,D39)","v":292889492.0025},{"$f":"F39*E39","v":2112607.303405541},{"$f":"G39/$G47","v":0.4376745385633613},{"$f":"H39*(I20+I25)","v":778505.64605344937},{"$f":"IF(J$37=\"Loss Adjusted Volume\",F39,D39)","v":280949153},{"$f":"IFERROR(I39/J39,0)","v":2.7709841362413695E-3}]
[null,"GENERAL SERVICE LESS THAN 50 KW SERVICE CLASSIFICATION","$/kWh",70095830,6.8748756871852348E-3,73074902.775000006,502380.87243127241,{"$f":"G40/$G47","v":0.10407959688957276},{"$f":"H40*(I20+I25)","v":185129.69496343998},70095830,2.6410942699935215E-3]
[null,"GENERAL SERVICE 50 to 4,999 kW SERVICE CLASSIFICATION","$/kW",707026,3.0902002588036654,707026,2184851.9281809204,{"$f":"G41/$G47","v":0.45264165183674449},{"$f":"H41*(I20+I25)","v":805128.12728504499},707026,1.1387532103275479]
[null,"EMBEDDED DISTRIBUTOR","$/kW",94898,0,94898,0,{"$f":"G42/$G47","v":0},{"$f":"H42*(I20+I25)","v":0},94898,0]
[null,"UNMETERED SCATTERED LOAD SERVICE CLASSIFICATION","$/kWh",1394244,6.8748791895251772E-3,1453499.3699999999,9992.6325708009554,{"$f":"G43/$G47","v":2.0702005727275341E-3},{"$f":"H43*(I20+I25)","v":3682.3317153007124},1394244,2.6410956154738429E-3]
[null,"SENTINEL LIGHTING SERVICE CLASSIFICATION","$/kW",724,2.124116847297369,724,1537.8605974432951,{"$f":"G44/$G47","v":3.1860271725642274E-4},{"$f":"H44*(I20+I25)","v":566.70880386657097},724,0.78274696666653454]
[null,"STREET LIGHTING SERVICE CLASSIFICATION","$/kW",7354,2.1104746916771404,7354,15520.430882593691,{"$f":"G45/$G47","v":3.2154094203373849E-3},{"$f":"H45*(I20+I25)","v":5719.3511788982387},7354,0.77771976868347004]
[null,null,null,null,null,null,null,{"$f":"G46/$G47","v":0}]
[null,"TOTAL",null,null,null,null,{"$f":"SUM(G39:G45)","v":4826891.0280685723},{"$f":"SUM(H39:H45)","v":0.99999999999999989},{"$f":"I20+I25","v":1778731.86}]

{"sheet":"RateClasses","index":11,"n_rows":75,"n_cols":28,"rows_kept":75,"cut":false,"hidden":true,"merged":[]}
[]
["Alectra Utilities Corporation-Brampton Rate Zone","RESIDENTIAL SERVICE CLASSIFICATION~Retail Transmission Rate - Network Service Rate","RESIDENTIAL SERVICE CLASSIFICATION~Retail Transmission Rate - Line and Transformation Connection Service Rate","GENERAL SERVICE LESS THAN 50 KW SERVICE CLASSIFICATION~Retail Transmission Rate - Network Service Rate","GENERAL SERVICE LESS THAN 50 KW SERVICE CLASSIFICATION~Retail Transmission Rate - Line and Transformation Connection Service Rate","GENERAL SERVICE 50 TO 699 KW SERVICE CLASSIFICATION~Retail Transmission Rate - Network Service Rate","GENERAL SERVICE 50 TO 699 KW SERVICE CLASSIFICATION~Retail Transmission Rate - Line and Transformation Connection Service Rate","GENERAL SERVICE 700 TO 4,999 KW SERVICE CLASSIFICATION~Retail Transmission Rate - Network Service Rate","GENERAL SERVICE 700 TO 4,999 KW SERVICE CLASSIFICATION~Retail Transmission Rate - Line and Transformation Connection Service Rate","LARGE USE SERVICE CLASSIFICATION~Retail Transmission Rate - Network Service Rate","LARGE USE SERVICE CLASSIFICATION~Retail Transmission Rate - Line and Transformation Connection Service Rate","UNMETERED SCATTERED LOAD SERVICE CLASSIFICATION~Retail Transmission Rate - Network Service Rate","UNMETERED SCATTERED LOAD SERVICE CLASSIFICATION~Retail Transmission Rate - Line and Transformation Connection Service Rate","STREET LIGHTING SERVICE CLASSIFICATION~Retail Transmission Rate - Network Service Rate","STREET LIGHTING SERVICE CLASSIFICATION~Retail Transmission Rate - Line and Transformation Connection Service Rate","EMBEDDED DISTRIBUTOR SERVICE CLASSIFICATION~Retail Transmission Rate - Network Service Rate","EMBEDDED DISTRIBUTOR SERVICE CLASSIFICATION~Retail Transmission Rate - Line and Transformation Connection Service Rate","DISTRIBUTED GENERATION [DGEN] SERVICE CLASSIFICATION~Retail Transmission Rate - Network Service Rate","DISTRIBUTED GENERATION [DGEN] SERVICE CLASSIFICATION~Retail Transmission Rate - Line and Transformation Connection Service Rate"]
["Alectra Utilities Corporation-Enersource Rate Zone","RESIDENTIAL SERVICE CLASSIFICATION~Retail Transmission Rate - Network Service Rate","RESIDENTIAL SERVICE CLASSIFICATION~Retail Transmission Rate - Line and Transformation Connection Service Rate","GENERAL SERVICE LESS THAN 50 KW SERVICE CLASSIFICATION~Retail Transmission Rate - Network Service Rate","GENERAL SERVICE LESS THAN 50 KW SERVICE CLASSIFICATION~Retail Transmission Rate - Line and Transformation Connection Service Rate","GENERAL SERVICE 50 TO 499 KW SERVICE CLASSIFICATION~Retail Transmission Rate - Network Service Rate","GENERAL SERVICE 50 TO 499 KW SERVICE CLASSIFICATION~Retail Transmission Rate - Line and Transformation Connection Service Rate","GENERAL SERVICE 500 TO 4,999 KW SERVICE CLASSIFICATION~Retail Transmission Rate - Network Service Rate ","GENERAL SERVICE 500 TO 4,999 KW SERVICE CLASSIFICATION~Retail Transmission Rate - Line and Transformation Connection Service Rate ","LARGE USE SERVICE CLASSIFICATION~Retail Transmission Rate - Network Service Rate – Interval Metered","LARGE USE SERVICE CLASSIFICATION~Retail Transmission Rate - Line and Transformation Connection Service Rate – Interval Metered ","UNMETERED SCATTERED LOAD SERVICE CLASSIFICATION~Retail Transmission Rate - Network Service Rate","UNMETERED SCATTERED LOAD SERVICE CLASSIFICATION~Retail Transmission Rate - Line and Transformation Connection Service Rate","STREET LIGHTING SERVICE CLASSIFICATION~Retail Transmission Rate - Network Service Rate","STREET LIGHTING SERVICE CLASSIFICATION~Retail Transmission Rate - Line and Transformation Connection Service Rate"]
["Alectra Utilities Corporation-Horizon Utilities Rate Zone","RESIDENTIAL SERVICE CLASSIFICATION~Retail Transmission Rate - Network Service Rate","RESIDENTIAL SERVICE CLASSIFICATION~Retail Transmission Rate - Line and Transformation Connection Service Rate","GENERAL SERVICE LESS THAN 50 KW SERVICE CLASSIFICATION~Retail Transmission Rate - Network Service Rate","GENERAL SERVICE LESS THAN 50 KW SERVICE CLASSIFICATION~Retail Transmission Rate - Line and Transformation Connection Service Rate","GENERAL SERVICE 50 to 4,999 kW SERVICE CLASSIFICATION~Retail Transmission Rate - Network Service Rate","GENERAL SERVICE 50 to 4,999 kW SERVICE CLASSIFICATION~Retail Transmission Rate - Line and Transformation Connection Service Rate","LARGE USE SERVICE CLASSIFICATION~Retail Transmission Rate - Network Service Rate","LARGE USE SERVICE CLASSIFICATION~Retail Transmission Rate - Line and Transformation Connection Service Rate","LARGE USE WITH DEDICATED ASSETS SERVICE CLASSIFICATION~Retail Transmission Rate - Network Service Rate","LARGE USE WITH DEDICATED ASSETS SERVICE CLASSIFICATION~Retail Transmission Rate - Line and Transformation Connection Service Rate","UNMETERED SCATTERED LOAD SERVICE CLASSIFICATION~Retail Transmission Rate - Network Service Rate","UNMETERED SCATTERED LOAD SERVICE CLASSIFICATION~Retail Transmission Rate - Line and Transformation Connection Service Rate","SENTINEL LIGHTING SERVICE CLASSIFICATION~Retail Transmission Rate - Network Service Rate","SENTINEL LIGHTING SERVICE CLASSIFICATION~Retail Transmission Rate - Line and Transformation Connection Service Rate","STREET LIGHTING SERVICE CLASSIFICATION~Retail Transmission Rate - Network Service Rate","STREET LIGHTING SERVICE CLASSIFICATION~Retail Transmission Rate - Line and Transformation Connection Service Rate"]
["Alectra Utilities Corporation-PowerStream Rate Zone","RESIDENTIAL SERVICE CLASSIFICATION~Retail Transmission Rate - Network Service Rate","RESIDENTIAL SERVICE CLASSIFICATION~Retail Transmission Rate - Line and Transformation Connection Service Rate","GENERAL SERVICE LESS THAN 50 KW SERVICE CLASSIFICATION~Retail Transmission Rate - Network Service Rate","GENERAL SERVICE LESS THAN 50 KW SERVICE CLASSIFICATION~Retail Transmission Rate - Line and Transformation Connection Service Rate","GENERAL SERVICE 50 to 4,999 kW SERVICE CLASSIFICATION~Retail Transmission Rate - Network Service Rate","GENERAL SERVICE 50 to 4,999 kW SERVICE CLASSIFICATION~Retail Transmission Rate - Line and Transformation Connection Service Rate","GENERAL SERVICE 50 to 4,999 kW SERVICE CLASSIFICATION~Retail Transmission Rate - Network Service Rate – Interval Metered","GENERAL SERVICE 50 to 4,999 kW SERVICE CLASSIFICATION~Retail Transmission Rate - Line and Transformation Connection Service Rate – Interval Metered","LARGE USE SERVICE CLASSIFICATION~Retail Transmission Rate - Network Service Rate","LARGE USE SERVICE CLASSIFICATION~Retail Transmission Rate - Line and Transformation Connection Service Rate","UNMETERED SCATTERED LOAD SERVICE CLASSIFICATION~Retail Transmission Rate - Network Service Rate","UNMETERED SCATTERED LOAD SERVICE CLASSIFICATION~Retail Transmission Rate - Line and Transformation Connection Service Rate","SENTINEL LIGHTING SERVICE CLASSIFICATION~Retail Transmission Rate - Network Service Rate","SENTINEL LIGHTING SERVICE CLASSIFICATION~Retail Transmission Rate - Line and Transformation Connection Service Rate","STREET LIGHTING SERVICE CLASSIFICATION~Retail Transmission Rate - Network Service Rate","STREET LIGHTING SERVICE CLASSIFICATION~Retail Transmission Rate - Line and Transformation Connection Service Rate"]
["Algoma Power Inc.","RESIDENTIAL R1 SERVICE CLASSIFICATION~Retail Transmission Rate - Network Service Rate","RESIDENTIAL R1 SERVICE CLASSIFICATION~Retail Transmission Rate - Line and Transformation Connection Service Rate","RESIDENTIAL R2 SERVICE CLASSIFICATION~Retail Transmission Rate - Network Service Rate","RESIDENTIAL R2 SERVICE CLASSIFICATION~Retail Transmission Rate - Line and Transformation Connection Service Rate","SEASONAL CUSTOMERS SERVICE CLASSIFICATION~Retail Transmission Rate - Network Service Rate","SEASONAL CUSTOMERS SERVICE CLASSIFICATION~Retail Transmission Rate - Line and Transformation Connection Service Rate","STREET LIGHTING SERVICE CLASSIFICATION~Retail Transmission Rate - Network Service Rate","STREET LIGHTING SERVICE CLASSIFICATION~Retail Transmission Rate - Line and Transformation Connection Service Rate"]
["Centre Wellington Hydro Ltd.","RESIDENTIAL SERVICE CLASSIFICATION~Retail Transmission Rate - Network Service Rate","RESIDENTIAL SERVICE CLASSIFICATION~Retail Transmission Rate - Line and Transformation Connection Service Rate","GENERAL SERVICE LESS THAN 50 KW SERVICE CLASSIFICATION~Retail Transmission Rate - Network Service Rate","GENERAL SERVICE LESS THAN 50 KW SERVICE CLASSIFICATION~Retail Transmission Rate - Line and Transformation Connection Service Rate","GENERAL SERVICE 50 TO 2,999 KW SERVICE CLASSIFICATION~Retail Transmission Rate - Network Service Rate","GENERAL SERVICE 50 TO 2,999 KW SERVICE CLASSIFICATION~Retail Transmission Rate - Line and Transformation Connection Service Rate","GENERAL SERVICE 3,000 TO 4,999 KW SERVICE CLASSIFICATION~Retail Transmission Rate - Network Service Rate","GENERAL SERVICE 3,000 TO 4,999 KW SERVICE CLASSIFICATION~Retail Transmission Rate - Line and Transformation Connection Service Rate","UNMETERED SCATTERED LOAD SERVICE CLASSIFICATION~Retail Transmission Rate - Network Service Rate","UNMETERED SCATTERED LOAD SERVICE CLASSIFICATION~Retail Transmission Rate - Line and Transformation Connection Service Rate","SENTINEL LIGHTING SERVICE CLASSIFICATION~Retail Transmission Rate - Network Service Rate","SENTINEL LIGHTING SERVICE CLASSIFICATION~Retail Transmission Rate - Line and Transformation Connection Service Rate","STREET LIGHTING SERVICE CLASSIFICATION~Retail Transmission Rate - Network Service Rate","STREET LIGHTING SERVICE CLASSIFICATION~Retail Transmission Rate - Line and Transformation Connection Service Rate"]
["Canadian Niagara Power Inc.","RESIDENTIAL SERVICE CLASSIFICATION~Retail Transmission Rate - Network Service Rate","RESIDENTIAL SERVICE CLASSIFICATION~Retail Transmission Rate - Line and Transformation Connection Service Rate","GENERAL SERVICE LESS THAN 50 KW SERVICE CLASSIFICATION~Retail Transmission Rate - Network Service Rate","GENERAL SERVICE LESS THAN 50 KW SERVICE CLASSIFICATION~Retail Transmission Rate - Line and Transformation Connection Service Rate","GENERAL SERVICE 50 to 4,999 kW SERVICE CLASSIFICATION~Retail Transmission Rate - Network Service Rate","GENERAL SERVICE 50 to 4,999 kW SERVICE CLASSIFICATION~Retail Transmission Rate - Line and Transformation Connection Service Rate","EMBEDDED DISTRIBUTOR SERVICE CLASSIFICATION~Retail Transmission Rate - Network Service Rate","EMBEDDED DISTRIBUTOR SERVICE CLASSIFICATION~Retail Transmission Rate - Line and Transformation Connection Service Rate","UNMETERED SCATTERED LOAD SERVICE CLASSIFICATION~Retail Transmission Rate - Network Service Rate","UNMETERED SCATTERED LOAD SERVICE CLASSIFICATION~Retail Transmission Rate - Line and Transformation Connection Service Rate","SENTINEL LIGHTING SERVICE CLASSIFICATION~Retail Transmission Rate - Network Service Rate","SENTINEL LIGHTING SERVICE CLASSIFICATION~Retail Transmission Rate - Line and Transformation Connection Service Rate","STREET LIGHTING SERVICE CLASSIFICATION~Retail Transmission Rate - Network Service Rate","STREET LIGHTING SERVICE CLASSIFICATION~Retail Transmission Rate - Line and Transformation Connection Service Rate"]
["Entegrus Powerlines Inc.","RESIDENTIAL SERVICE CLASSIFICATION~Retail Transmission Rate - Network Service Rate","RESIDENTIAL SERVICE CLASSIFICATION~Retail Transmission Rate - Line and Transformation Connection Service Rate","GENERAL SERVICE LESS THAN 50 KW SERVICE CLASSIFICATION~Retail Transmission Rate - Network Service Rate","GENERAL SERVICE LESS THAN 50 KW SERVICE CLASSIFICATION~Retail Transmission Rate - Line and Transformation Connection Service Rate","GENERAL SERVICE 50 to 4,999 kW SERVICE CLASSIFICATION~Retail Transmission Rate - Network Service Rate","GENERAL SERVICE 50 to 4,999 kW SERVICE CLASSIFICATION~Retail Transmission Rate - Line and Transformation Connection Service Rate (see Note 1)","LARGE USE SERVICE CLASSIFICATION~Retail Transmission Rate - Network Service Rate","LARGE USE SERVICE CLASSIFICATION~Retail Transmission Rate - Line and Transformation Connection Service Rate (see Note 1)","UNMETERED SCATTERED LOAD SERVICE CLASSIFICATION~Retail Transmission Rate - Network Service Rate","UNMETERED SCATTERED LOAD SERVICE CLASSIFICATION~Retail Transmission Rate - Line and Transformation Connection Service Rate","SENTINEL LIGHTING SERVICE CLASSIFICATION~Retail Transmission Rate - Network Service Rate","SENTINEL LIGHTING SERVICE CLASSIFICATION~Retail Transmission Rate - Line and Transformation Connection Service Rate","STREET LIGHTING SERVICE CLASSIFICATION~Retail Transmission Rate - Network Service Rate","STREET LIGHTING SERVICE CLASSIFICATION~Retail Transmission Rate - Line and Transformation Connection Service Rate","EMBEDDED DISTRIBUTOR SERVICE CLASSIFICATION~Retail Transmission Rate - Network Service Rate","EMBEDDED DISTRIBUTOR SERVICE CLASSIFICATION~Retail Transmission Rate - Line and Transformation Connection Service Rate"]
["Entegrus Powerlines Inc.-For Former St. Thomas Energy Rate Zone","RESIDENTIAL SERVICE CLASSIFICATION~Retail Transmission Rate - Network Service Rate","RESIDENTIAL SERVICE CLASSIFICATION~Retail Transmission Rate - Line and Transformation Connection Service Rate","GENERAL SERVICE LESS THAN 50 KW SERVICE CLASSIFICATION~Retail Transmission Rate - Network Service Rate","GENERAL SERVICE LESS THAN 50 KW SERVICE CLASSIFICATION~Retail Transmission Rate - Line and Transformation Connection Service Rate","GENERAL SERVICE 50 to 4,999 kW SERVICE CLASSIFICATION~Retail Transmission Rate - Network Service Rate","GENERAL SERVICE 50 to 4,999 kW SERVICE CLASSIFICATION~Retail Transmission Rate - Line and Transformation Connection Service Rate","SENTINEL LIGHTING SERVICE CLASSIFICATION~Retail Transmission Rate - Network Service Rate","SENTINEL LIGHTING SERVICE CLASSIFICATION~Retail Transmission Rate - Line and Transformation Connection Service Rate","STREET LIGHTING SERVICE CLASSIFICATION~Retail Transmission Rate - Network Service Rate","STREET LIGHTING SERVICE CLASSIFICATION~Retail Transmission Rate - Line and Transformation Connection Service Rate"]
["Festival Hydro Inc.","RESIDENTIAL SERVICE CLASSIFICATION~Retail Transmission Rate - Network Service Rate","RESIDENTIAL SERVICE CLASSIFICATION~Retail Transmission Rate - Line and Transformation Connection Service Rate","GENERAL SERVICE LESS THAN 50 KW SERVICE CLASSIFICATION~Retail Transmission Rate - Network Service Rate","GENERAL SERVICE LESS THAN 50 KW SERVICE CLASSIFICATION~Retail Transmission Rate - Line and Transformation Connection Service Rate","GENERAL SERVICE 50 to 4,999 kW SERVICE CLASSIFICATION~Retail Transmission Rate - Network Service Rate","GENERAL SERVICE 50 to 4,999 kW SERVICE CLASSIFICATION~Retail Transmission Rate - Line and Transformation Connection Service Rate","GENERAL SERVICE 50 to 4,999 kW SERVICE CLASSIFICATION~Retail Transmission Rate - Network Service Rate - Interval Metered","GENERAL SERVICE 50 to 4,999 kW SERVICE CLASSIFICATION~Retail Transmission Rate - Line and Transformation Connection Service Rate - Interval Metered","LARGE USE SERVICE CLASSIFICATION~Retail Transmission Rate - Network Service Rate - Interval Metered","LARGE USE SERVICE CLASSIFICATION~Retail Transmission Rate - Line and Transformation Connection Service Rate - Interval Metered","UNMETERED SCATTERED LOAD SERVICE CLASSIFICATION~Retail Transmission Rate - Network Service Rate","UNMETERED SCATTERED LOAD SERVICE CLASSIFICATION~Retail Transmission Rate - Line and Transformation Connection Service Rate","SENTINEL LIGHTING SERVICE CLASSIFICATION~Retail Transmission Rate - Network Service Rate","SENTINEL LIGHTING SERVICE CLASSIFICATION~Retail Transmission Rate - Line and Transformation Connection Service Rate","STREET LIGHTING SERVICE CLASSIFICATION~Retail Transmission Rate - Network Service Rate","STREET LIGHTING SERVICE CLASSIFICATION~Retail Transmission Rate - Line and Transformation Connection Service Rate"]
["Grimsby Power Incorporated","RESIDENTIAL SERVICE CLASSIFICATION~Retail Transmission Rate - Network Service Rate","RESIDENTIAL SERVICE CLASSIFICATION~Retail Transmission Rate - Line and Transformation Connection Service Rate","GENERAL SERVICE LESS THAN 50 KW SERVICE CLASSIFICATION~Retail Transmission Rate - Network Service Rate","GENERAL SERVICE LESS THAN 50 KW SERVICE CLASSIFICATION~Retail Transmission Rate - Line and Transformation Connection Service Rate","GENERAL SERVICE 50 to 4,999 kW SERVICE CLASSIFICATION~Retail Transmission Rate - Network Service Rate","GENERAL SERVICE 50 to 4,999 kW SERVICE CLASSIFICATION~Retail Transmission Rate - Line and Transformation Connection Service Rate","GENERAL SERVICE 50 to 4,999 kW SERVICE CLASSIFICATION~Retail Transmission Rate - Network Service Rate - Interval Metered","GENERAL SERVICE 50 to 4,999 kW SERVICE CLASSIFICATION~Retail Transmission Rate - Line and Transformation Connection Service Rate - Interval Metered","UNMETERED SCATTERED LOAD SERVICE CLASSIFICATION~Retail Transmission Rate - Network Service Rate","UNMETERED SCATTERED LOAD SERVICE CLASSIFICATION~Retail Transmission Rate - Line and Transformation Connection Service Rate","STREET LIGHTING SERVICE CLASSIFICATION~Retail Transmission Rate - Network Service Rate","STREET LIGHTING SERVICE CLASSIFICATION~Retail Transmission Rate - Line and Transformation Connection Service Rate","EMBEDDED DISTRIBUTOR SERVICE CLASSIFICATION~Retail Transmission Rate - Network Service Rate","EMBEDDED DISTRIBUTOR SERVICE CLASSIFICATION~Retail Transmission Rate - Line and Transformation Connection Service Rate"]
["Alectra Utilities Corporation-Guelph Rate Zone","RESIDENTIAL SERVICE CLASSIFICATION~Retail Transmission Rate - Network Service Rate","RESIDENTIAL SERVICE CLASSIFICATION~Retail Transmission Rate - Line and Transformation Connection Service Rate","GENERAL SERVICE LESS THAN 50 KW SERVICE CLASSIFICATION~Retail Transmission Rate - Network Service Rate","GENERAL SERVICE LESS THAN 50 KW SERVICE CLASSIFICATION~Retail Transmission Rate - Line and Transformation Connection Service Rate","GENERAL SERVICE 50 TO 999 KW SERVICE CLASSIFICATION~Retail Transmission Rate - Network Service Rate","GENERAL SERVICE 50 TO 999 KW SERVICE CLASSIFICATION~Retail Transmission Rate - Network Service Rate - Interval Metered","GENERAL SERVICE 50 TO 999 KW SERVICE CLASSIFICATION~Retail Transmission Rate - Line and Transformation Connection Service Rate","GENERAL SERVICE 50 TO 999 KW SERVICE CLASSIFICATION~Retail Transmission Rate - Line and Transformation Connection Service Rate - Interval Metered","GENERAL SERVICE 1,000 TO 4,999 KW SERVICE CLASSIFICATION~Retail Transmission Rate - Network Service Rate - Interval Metered","GENERAL SERVICE 1,000 TO 4,999 KW SERVICE CLASSIFICATION~Retail Transmission Rate - Line and Transformation Connection Service Rate - Interval Metered","LARGE USE SERVICE CLASSIFICATION~Retail Transmission Rate - Network Service Rate - Interval Metered","LARGE USE SERVICE CLASSIFICATION~Retail Transmission Rate - Line and Transformation Connection Service Rate - Interval Metered","UNMETERED SCATTERED LOAD SERVICE CLASSIFICATION~Retail Transmission Rate - Network Service Rate","UNMETERED SCATTERED LOAD SERVICE CLASSIFICATION~Retail Transmission Rate - Line and Transformation Connection Service Rate","SENTINEL LIGHTING SERVICE CLASSIFICATION~Retail Transmission Rate - Network Service Rate","SENTINEL LIGHTING SERVICE CLASSIFICATION~Retail Transmission Rate - Line and Transformation Connection Service Rate","STREET LIGHTING SERVICE CLASSIFICATION~Retail Transmission Rate - Network Service Rate","STREET LIGHTING SERVICE CLASSIFICATION~Retail Transmission Rate - Line and Transformation Connection Service Rate"]
["Hydro Hawkesbury Inc.","RESIDENTIAL SERVICE CLASSIFICATION~Retail Transmission Rate - Network Service Rate","RESIDENTIAL SERVICE CLASSIFICATION~Retail Transmission Rate - Line and Transformation Connection Service Rate","GENERAL SERVICE LESS THAN 50 KW SERVICE CLASSIFICATION~Retail Transmission Rate - Network Service Rate","GENERAL SERVICE LESS THAN 50 KW SERVICE CLASSIFICATION~Retail Transmission Rate - Line and Transformation Connection Service Rate","GENERAL SERVICE 50 to 4,999 kW SERVICE CLASSIFICATION~Retail Transmission Rate - Network Service Rate","GENERAL SERVICE 50 to 4,999 kW SERVICE CLASSIFICATION~Retail Transmission Rate - Line and Transformation Connection Service Rate","UNMETERED SCATTERED LOAD SERVICE CLASSIFICATION~Retail Transmission Rate - Network Service Rate","UNMETERED SCATTERED LOAD SERVICE CLASSIFICATION~Retail Transmission Rate - Line and Transformation Connection Service Rate","SENTINEL LIGHTING SERVICE CLASSIFICATION~Retail Transmission Rate - Network Service Rate","SENTINEL LIGHTING SERVICE CLASSIFICATION~Retail Transmission Rate - Line and Transformation Connection Service Rate","STREET LIGHTING SERVICE CLASSIFICATION~Retail Transmission Rate - Network Service Rate","STREET LIGHTING SERVICE CLASSIFICATION~Retail Transmission Rate - Line and Transformation Connection Service Rate"]
["Hydro Ottawa Limited","RESIDENTIAL SERVICE CLASSIFICATION~Retail Transmission Rate - Network Service Rate","RESIDENTIAL SERVICE CLASSIFICATION~Retail Transmission Rate - Line and Transformation Connection Service Rate","GENERAL SERVICE LESS THAN 50 KW SERVICE CLASSIFICATION~Retail Transmission Rate - Network Service Rate","GENERAL SERVICE LESS THAN 50 KW SERVICE CLASSIFICATION~Retail Transmission Rate - Line and Transformation Connection Service Rate","GENERAL SERVICE 50 TO 1,499 KW SERVICE CLASSIFICATION~Retail Transmission Rate - Network Service Rate","GENERAL SERVICE 50 TO 1,499 KW SERVICE CLASSIFICATION~Retail Transmission Rate - Line and Transformation Connection Service Rate","GENERAL SERVICE 1,500 TO 4,999 KW SERVICE CLASSIFICATION~Retail Transmission Rate - Network Service Rate","GENERAL SERVICE 1,500 TO 4,999 KW SERVICE CLASSIFICATION~Retail Transmission Rate - Line and Transformation Connection Service Rate","LARGE USE SERVICE CLASSIFICATION~Retail Transmission Rate - Network Service Rate","LARGE USE SERVICE CLASSIFICATION~Retail Transmission Rate - Line and Transformation Connection Service Rate","UNMETERED SCATTERED LOAD SERVICE CLASSIFICATION~Retail Transmission Rate - Network Service Rate","UNMETERED SCATTERED LOAD SERVICE CLASSIFICATION~Retail Transmission Rate - Line and Transformation Connection Service Rate","SENTINEL LIGHTING SERVICE CLASSIFICATION~Retail Transmission Rate - Network Service Rate","SENTINEL LIGHTING SERVICE CLASSIFICATION~Retail Transmission Rate - Line and Transformation Connection Service Rate","STREET LIGHTING SERVICE CLASSIFICATION~Retail Transmission Rate - Network Service Rate","STREET LIGHTING SERVICE CLASSIFICATION~Retail Transmission Rate - Line and Transformation Connection Service Rate"]
["InnPower Corporation","RESIDENTIAL SERVICE CLASSIFICATION~Retail Transmission Rate - Network Service Rate","RESIDENTIAL SERVICE CLASSIFICATION~Retail Transmission Rate - Line and Transformation Connection Service Rate","GENERAL SERVICE LESS THAN 50 KW SERVICE CLASSIFICATION~Retail Transmission Rate - Network Service Rate","GENERAL SERVICE LESS THAN 50 KW SERVICE CLASSIFICATION~Retail Transmission Rate - Line and Transformation Connection Service Rate","GENERAL SERVICE 50 to 4,999 kW SERVICE CLASSIFICATION~Retail Transmission Rate - Network Service Rate","GENERAL SERVICE 50 to 4,999 kW SERVICE CLASSIFICATION~Retail Transmission Rate - Line and Transformation Connection Service Rate ","GENERAL SERVICE 50 to 4,999 kW SERVICE CLASSIFICATION~Retail Transmission Rate - Network Service Rate - Interval Metered","GENERAL SERVICE 50 to 4,999 kW SERVICE CLASSIFICATION~Retail Transmission Rate - Line and Transformation Connection Service Rate - Interval Metered ","UNMETERED SCATTERED LOAD SERVICE CLASSIFICATION~Retail Transmission Rate - Network Service Rate","UNMETERED SCATTERED LOAD SERVICE CLASSIFICATION~Retail Transmission Rate - Line and Transformation Connection Service Rate","SENTINEL LIGHTING SERVICE CLASSIFICATION~Retail Transmission Rate - Network Service Rate","SENTINEL LIGHTING SERVICE CLASSIFICATION~Retail Transmission Rate - Line and Transformation Connection Service Rate","STREET LIGHTING SERVICE CLASSIFICATION~Retail Transmission Rate - Network Service Rate","STREET LIGHTING SERVICE CLASSIFICATION~Retail Transmission Rate - Line and Transformation Connection Service Rate"]
["Kingston Hydro Corporation","RESIDENTIAL SERVICE CLASSIFICATION~Retail Transmission Rate - Network Service Rate","RESIDENTIAL SERVICE CLASSIFICATION~Retail Transmission Rate - Line and Transformation Connection Service Rate","GENERAL SERVICE LESS THAN 50 KW SERVICE CLASSIFICATION~Retail Transmission Rate - Network Service Rate","GENERAL SERVICE LESS THAN 50 KW SERVICE CLASSIFICATION~Retail Transmission Rate - Line and Transformation Connection Service Rate","GENERAL SERVICE 50 to 4,999 kW SERVICE CLASSIFICATION~Retail Transmission Rate - Network Service Rate","GENERAL SERVICE 50 to 4,999 kW SERVICE CLASSIFICATION~Retail Transmission Rate - Line and Transformation Connection Service Rate","LARGE USE SERVICE CLASSIFICATION~Retail Transmission Rate - Network Service Rate","LARGE USE SERVICE CLASSIFICATION~Retail Transmission Rate - Line and Transformation Connection Service Rate","UNMETERED SCATTERED LOAD SERVICE CLASSIFICATION~Retail Transmission Rate - Network Service Rate","UNMETERED SCATTERED LOAD SERVICE CLASSIFICATION~Retail Transmission Rate - Line and Transformation Connection Service Rate","STREET LIGHTING SERVICE CLASSIFICATION~Retail Transmission Rate - Network Service Rate","STREET LIGHTING SERVICE CLASSIFICATION~Retail Transmission Rate - Line and Transformation Connection Service Rate"]
["Renfrew Hydro Inc.","RESIDENTIAL SERVICE CLASSIFICATION~Retail Transmission Rate - Network Service Rate","RESIDENTIAL SERVICE CLASSIFICATION~Retail Transmission Rate - Line and Transformation Connection Service Rate","GENERAL SERVICE LESS THAN 50 KW SERVICE CLASSIFICATION~Retail Transmission Rate - Network Service Rate","GENERAL SERVICE LESS THAN 50 KW SERVICE CLASSIFICATION~Retail Transmission Rate - Line and Transformation Connection Service Rate","GENERAL SERVICE 50 to 4,999 kW SERVICE CLASSIFICATION~Retail Transmission Rate - Network Service Rate","GENERAL SERVICE 50 to 4,999 kW SERVICE CLASSIFICATION~Retail Transmission Rate - Line and Transformation Connection Service Rate","UNMETERED SCATTERED LOAD SERVICE CLASSIFICATION~Retail Transmission Rate - Network Service Rate","UNMETERED SCATTERED LOAD SERVICE CLASSIFICATION~Retail Transmission Rate - Line and Transformation Connection Service Rate","STREET LIGHTING SERVICE CLASSIFICATION~Retail Transmission Rate - Network Service Rate","STREET LIGHTING SERVICE CLASSIFICATION~Retail Transmission Rate - Line and Transformation Connection Service Rate"]
["Cooperative Hydro Embrun Inc.","RESIDENTIAL SERVICE CLASSIFICATION~Retail Transmission Rate - Network Service Rate","RESIDENTIAL SERVICE CLASSIFICATION~Retail Transmission Rate - Line and Transformation Connection Service Rate","GENERAL SERVICE LESS THAN 50 KW SERVICE CLASSIFICATION~Retail Transmission Rate - Network Service Rate","GENERAL SERVICE LESS THAN 50 KW SERVICE CLASSIFICATION~Retail Transmission Rate - Line and Transformation Connection Service Rate","GENERAL SERVICE 50 to 4,999 kW SERVICE CLASSIFICATION~Retail Transmission Rate - Network Service Rate","GENERAL SERVICE 50 to 4,999 kW SERVICE CLASSIFICATION~Retail Transmission Rate - Line and Transformation Connection Service Rate","UNMETERED SCATTERED LOAD SERVICE CLASSIFICATION~Retail Transmission Rate - Network Service Rate","UNMETERED SCATTERED LOAD SERVICE CLASSIFICATION~Retail Transmission Rate - Line and Transformation Connection Service Rate","STREET LIGHTING SERVICE CLASSIFICATION~Retail Transmission Rate - Network Service Rate","STREET LIGHTING SERVICE CLASSIFICATION~Retail Transmission Rate - Line and Transformation Connection Service Rate"]
["Lakefront Utilities Inc.","RESIDENTIAL SERVICE CLASSIFICATION~Retail Transmission Rate - Network Service Rate","RESIDENTIAL SERVICE CLASSIFICATION~Retail Transmission Rate - Line and Transformation Connection Service Rate","GENERAL SERVICE LESS THAN 50 KW SERVICE CLASSIFICATION~Retail Transmission Rate - Network Service Rate","GENERAL SERVICE LESS THAN 50 KW SERVICE CLASSIFICATION~Retail Transmission Rate - Line and Transformation Connection Service Rate","GENERAL SERVICE 50 TO 2,999 KW SERVICE CLASSIFICATION~Retail Transmission Rate - Network Service Rate","GENERAL SERVICE 50 TO 2,999 KW SERVICE CLASSIFICATION~Retail Transmission Rate - Line and Transformation Connection Service Rate","GENERAL SERVICE 3,000 TO 4,999 KW SERVICE CLASSIFICATION~Retail Transmission Rate - Network Service Rate","GENERAL SERVICE 3,000 TO 4,999 KW SERVICE CLASSIFICATION~Retail Transmission Rate - Line and Transformation Connection Service Rate","UNMETERED SCATTERED LOAD SERVICE CLASSIFICATION~Retail Transmission Rate - Network Service Rate","UNMETERED SCATTERED LOAD SERVICE CLASSIFICATION~Retail Transmission Rate - Line and Transformation Connection Service Rate","SENTINEL LIGHTING SERVICE CLASSIFICATION~Retail Transmission Rate - Network Service Rate","SENTINEL LIGHTING SERVICE CLASSIFICATION~Retail Transmission Rate - Line and Transformation Connection Service Rate","STREET LIGHTING SERVICE CLASSIFICATION~Retail Transmission Rate - Network Service Rate","STREET LIGHTING SERVICE CLASSIFICATION~Retail Transmission Rate - Line and Transformation Connection Service Rate"]
["Toronto Hydro-Electric System Limited","RESIDENTIAL SERVICE CLASSIFICATION~Retail Transmission Rate - Network Service Rate","RESIDENTIAL SERVICE CLASSIFICATION~Retail Transmission Rate - Line and Transformation Connection Service Rate","COMPETITIVE SECTOR MULTI-UNIT RESIDENTIAL SERVICE CLASSIFICATION~Retail Transmission Rate - Network Service Rate","COMPETITIVE SECTOR MULTI-UNIT RESIDENTIAL SERVICE CLASSIFICATION~Retail Transmission Rate - Line and Transformation Connection Service Rate","GENERAL SERVICE LESS THAN 50 KW SERVICE CLASSIFICATION~Retail Transmission Rate - Network Service Rate","GENERAL SERVICE LESS THAN 50 KW SERVICE CLASSIFICATION~Retail Transmission Rate - Line and Transformation Connection Service Rate","GENERAL SERVICE 50 TO 999 KW SERVICE CLASSIFICATION~Retail Transmission Rate - Network Service Rate","GENERAL SERVICE 50 TO 999 KW SERVICE CLASSIFICATION~Retail Transmission Rate - Line and Transformation Connection Service Rate","GENERAL SERVICE 1,000 TO 4,999 KW SERVICE CLASSIFICATION~Retail Transmission Rate - Network Service Rate","GENERAL SERVICE 1,000 TO 4,999 KW SERVICE CLASSIFICATION~Retail Transmission Rate - Line and Transformation Connection Service Rate","LARGE USE SERVICE CLASSIFICATION~Retail Transmission Rate - Network Service Rate","LARGE USE SERVICE CLASSIFICATION~Retail Transmission Rate - Line and Transformation Connection Service Rate","UNMETERED SCATTERED LOAD SERVICE CLASSIFICATION~Retail Transmission Rate - Network Service Rate","UNMETERED SCATTERED LOAD SERVICE CLASSIFICATION~Retail Transmission Rate - Line and Transformation Connection Service Rate","STREET LIGHTING SERVICE CLASSIFICATION~Retail Transmission Rate - Network Service Rate","STREET LIGHTING SERVICE CLASSIFICATION~Retail Transmission Rate - Line and Transformation Connection Service Rate"]
["Westario Power Inc.","RESIDENTIAL SERVICE CLASSIFICATION~Retail Transmission Rate - Network Service Rate","RESIDENTIAL SERVICE CLASSIFICATION~Retail Transmission Rate - Line and Transformation Connection Service Rate","GENERAL SERVICE LESS THAN 50 KW SERVICE CLASSIFICATION~Retail Transmission Rate - Network Service Rate","GENERAL SERVICE LESS THAN 50 KW SERVICE CLASSIFICATION~Retail Transmission Rate - Line and Transformation Connection Service Rate","GENERAL SERVICE 50 to 4,999 kW SERVICE CLASSIFICATION~Retail Transmission Rate - Network Service Rate","GENERAL SERVICE 50 to 4,999 kW SERVICE CLASSIFICATION~Retail Transmission Rate - Line and Transformation Connection Service Rate","UNMETERED SCATTERED LOAD SERVICE CLASSIFICATION~Retail Transmission Rate - Network Service Rate","UNMETERED SCATTERED LOAD SERVICE CLASSIFICATION~Retail Transmission Rate - Line and Transformation Connection Service Rate","SENTINEL LIGHTING SERVICE CLASSIFICATION~Retail Transmission Rate - Network Service Rate","SENTINEL LIGHTING SERVICE CLASSIFICATION~Retail Transmission Rate - Line and Transformation Connection Service Rate","STREET LIGHTING SERVICE CLASSIFICATION~Retail Transmission Rate - Network Service Rate","STREET LIGHTING SERVICE CLASSIFICATION~Retail Transmission Rate - Line and Transformation Connection Service Rate"]
["Elexicon Energy Inc.-Whitby Rate Zone","RESIDENTIAL SERVICE CLASSIFICATION~Retail Transmission Rate - Network Service Rate","RESIDENTIAL SERVICE CLASSIFICATION~Retail Transmission Rate - Line and Transformation Connection Service Rate","GENERAL SERVICE LESS THAN 50 KW SERVICE CLASSIFICATION~Retail Transmission Rate - Network Service Rate","GENERAL SERVICE LESS THAN 50 KW SERVICE CLASSIFICATION~Retail Transmission Rate - Line and Transformation Connection Service Rate","GENERAL SERVICE 50 to 4,999 kW SERVICE CLASSIFICATION~Retail Transmission Rate - Network Service Rate","GENERAL SERVICE 50 to 4,999 kW SERVICE CLASSIFICATION~Retail Transmission Rate - Line and Transformation Connection Service Rate","UNMETERED SCATTERED LOAD SERVICE CLASSIFICATION~Retail Transmission Rate - Network Service Rate","UNMETERED SCATTERED LOAD SERVICE CLASSIFICATION~Retail Transmission Rate - Line and Transformation Connection Service Rate","SENTINEL LIGHTING SERVICE CLASSIFICATION~Retail Transmission Rate - Network Service Rate","SENTINEL LIGHTING SERVICE CLASSIFICATION~Retail Transmission Rate - Line and Transformation Connection Service Rate","STREET LIGHTING SERVICE CLASSIFICATION~Retail Transmission Rate - Network Service Rate","STREET LIGHTING SERVICE CLASSIFICATION~Retail Transmission Rate - Line and Transformation Connection Service Rate"]
["Erie Thames Powerlines Corporation","RESIDENTIAL SERVICE CLASSIFICATION~Retail Transmission Rate - Network Service Rate","RESIDENTIAL SERVICE CLASSIFICATION~Retail Transmission Rate - Line and Transformation Connection Service Rate","GENERAL SERVICE LESS THAN 50 KW SERVICE CLASSIFICATION~Retail Transmission Rate - Network Service Rate","GENERAL SERVICE LESS THAN 50 KW SERVICE CLASSIFICATION~Retail Transmission Rate - Line and Transformation Connection Service Rate","GENERAL SERVICE 50 TO 999 KW SERVICE CLASSIFICATION~Retail Transmission Rate - Network Service Rate","GENERAL SERVICE 50 TO 999 KW SERVICE CLASSIFICATION~Retail Transmission Rate - Line and Transformation Connection Service Rate","GENERAL SERVICE 1,000 TO 4,999 KW SERVICE CLASSIFICATION~Retail Transmission Rate - Network Service Rate","GENERAL SERVICE 1,000 TO 4,999 KW SERVICE CLASSIFICATION~Retail Transmission Rate - Line and Transformation Connection Service Rate","LARGE USE SERVICE CLASSIFICATION~Retail Transmission Rate - Network Service Rate","LARGE USE SERVICE CLASSIFICATION~Retail Transmission Rate - Line and Transformation Connection Service Rate","UNMETERED SCATTERED LOAD SERVICE CLASSIFICATION~Retail Transmission Rate - Network Service Rate","UNMETERED SCATTERED LOAD SERVICE CLASSIFICATION~Retail Transmission Rate - Line and Transformation Connection Service Rate","SENTINEL LIGHTING SERVICE CLASSIFICATION~Retail Transmission Rate - Network Service Rate","SENTINEL LIGHTING SERVICE CLASSIFICATION~Retail Transmission Rate - Line and Transformation Connection Service Rate","STREET LIGHTING SERVICE CLASSIFICATION~Retail Transmission Rate - Network Service Rate","STREET LIGHTING SERVICE CLASSIFICATION~Retail Transmission Rate - Line and Transformation Connection Service Rate","EMBEDDED DISTRIBUTOR SERVICE CLASSIFICATION~Retail Transmission Rate - Network Service Rate","EMBEDDED DISTRIBUTOR SERVICE CLASSIFICATION~Retail Transmission Rate - Line and Transformation Connection Service Rate"]
["Entegrus Powerlines Inc.-For Entegrus-Main Rate Zone","RESIDENTIAL SERVICE CLASSIFICATION~Retail Transmission Rate - Network Service Rate","RESIDENTIAL SERVICE CLASSIFICATION~Retail Transmission Rate - Line and Transformation Connection Service Rate","GENERAL SERVICE LESS THAN 50 KW SERVICE CLASSIFICATION~Retail Transmission Rate - Network Service Rate","GENERAL SERVICE LESS THAN 50 KW SERVICE CLASSIFICATION~Retail Transmission Rate - Line and Transformation Connection Service Rate","GENERAL SERVICE 50 to 4,999 kW SERVICE CLASSIFICATION~Retail Transmission Rate - Network Service Rate","GENERAL SERVICE 50 to 4,999 kW SERVICE CLASSIFICATION~Retail Transmission Rate - Line and Transformation Connection Service Rate (see Note 1)","LARGE USE SERVICE CLASSIFICATION~Retail Transmission Rate - Network Service Rate","LARGE USE SERVICE CLASSIFICATION~Retail Transmission Rate - Line and Transformation Connection Service Rate (see Note 1)","UNMETERED SCATTERED LOAD SERVICE CLASSIFICATION~Retail Transmission Rate - Network Service Rate","UNMETERED SCATTERED LOAD SERVICE CLASSIFICATION~Retail Transmission Rate - Line and Transformation Connection Service Rate","SENTINEL LIGHTING SERVICE CLASSIFICATION~Retail Transmission Rate - Network Service Rate","SENTINEL LIGHTING SERVICE CLASSIFICATION~Retail Transmission Rate - Line and Transformation Connection Service Rate","STREET LIGHTING SERVICE CLASSIFICATION~Retail Transmission Rate - Network Service Rate","STREET LIGHTING SERVICE CLASSIFICATION~Retail Transmission Rate - Line and Transformation Connection Service Rate","EMBEDDED DISTRIBUTOR SERVICE CLASSIFICATION~Retail Transmission Rate - Network Service Rate","EMBEDDED DISTRIBUTOR SERVICE CLASSIFICATION~Retail Transmission Rate - Line and Transformation Connection Service Rate"]
["Lakeland Power Distribution Ltd.","RESIDENTIAL SERVICE CLASSIFICATION~Retail Transmission Rate - Network Service Rate","RESIDENTIAL SERVICE CLASSIFICATION~Retail Transmission Rate - Line and Transformation Connection Service Rate","GENERAL SERVICE LESS THAN 50 KW SERVICE CLASSIFICATION~Retail Transmission Rate - Network Service Rate","GENERAL SERVICE LESS THAN 50 KW SERVICE CLASSIFICATION~Retail Transmission Rate - Line and Transformation Connection Service Rate","GENERAL SERVICE 50 to 4,999 kW SERVICE CLASSIFICATION~Retail Transmission Rate - Network Service Rate","GENERAL SERVICE 50 to 4,999 kW SERVICE CLASSIFICATION~Retail Transmission Rate - Line and Transformation Connection Service Rate","UNMETERED SCATTERED LOAD SERVICE CLASSIFICATION~Retail Transmission Rate - Network Service Rate","UNMETERED SCATTERED LOAD SERVICE CLASSIFICATION~Retail Transmission Rate - Line and Transformation Connection Service Rate","SENTINEL LIGHTING SERVICE CLASSIFICATION~Retail Transmission Rate - Network Service Rate","SENTINEL LIGHTING SERVICE CLASSIFICATION~Retail Transmission Rate - Line and Transformation Connection Service Rate","STREET LIGHTING SERVICE CLASSIFICATION~Retail Transmission Rate - Network Service Rate","STREET LIGHTING SERVICE CLASSIFICATION~Retail Transmission Rate - Line and Transformation Connection Service Rate"]
["Newmarket-Tay Power Distribution Ltd.-For Former Midland Power Utility Rate Zone","RESIDENTIAL SERVICE CLASSIFICATION~Retail Transmission Rate - Network Service Rate","RESIDENTIAL SERVICE CLASSIFICATION~Retail Transmission Rate - Line and Transformation Connection Service Rate","GENERAL SERVICE LESS THAN 50 KW SERVICE CLASSIFICATION~Retail Transmission Rate - Network Service Rate","GENERAL SERVICE LESS THAN 50 KW SERVICE CLASSIFICATION~Retail Transmission Rate - Line and Transformation Connection Service Rate","GENERAL SERVICE 50 to 4,999 kW SERVICE CLASSIFICATION~Retail Transmission Rate - Network Service Rate","GENERAL SERVICE 50 to 4,999 kW SERVICE CLASSIFICATION~Retail Transmission Rate - Line and Transformation Connection Service Rate ","UNMETERED SCATTERED LOAD SERVICE CLASSIFICATION~Retail Transmission Rate - Network Service Rate","UNMETERED SCATTERED LOAD SERVICE CLASSIFICATION~Retail Transmission Rate - Line and Transformation Connection Service Rate","STREET LIGHTING SERVICE CLASSIFICATION~Retail Transmission Rate - Network Service Rate","STREET LIGHTING SERVICE CLASSIFICATION~Retail Transmission Rate - Line and Transformation Connection Service Rate"]
["Newmarket-Tay Power Distribution Ltd.-For Newmarket-Tay Power Main Rate Zone","RESIDENTIAL SERVICE CLASSIFICATION~Retail Transmission Rate - Network Service Rate","RESIDENTIAL SERVICE CLASSIFICATION~Retail Transmission Rate - Line and Transformation Connection Service Rate","GENERAL SERVICE LESS THAN 50 KW SERVICE CLASSIFICATION~Retail Transmission Rate - Network Service Rate","GENERAL SERVICE LESS THAN 50 KW SERVICE CLASSIFICATION~Retail Transmission Rate - Line and Transformation Connection Service Rate","GENERAL SERVICE 50 to 4,999 kW SERVICE CLASSIFICATION~Retail Transmission Rate - Network Service Rate","GENERAL SERVICE 50 to 4,999 kW SERVICE CLASSIFICATION~Retail Transmission Rate - Line and Transformation Connection Service Rate","UNMETERED SCATTERED LOAD SERVICE CLASSIFICATION~Retail Transmission Rate - Network Service Rate","UNMETERED SCATTERED LOAD SERVICE CLASSIFICATION~Retail Transmission Rate - Line and Transformation Connection Service Rate","SENTINEL LIGHTING SERVICE CLASSIFICATION~Retail Transmission Rate - Network Service Rate","SENTINEL LIGHTING SERVICE CLASSIFICATION~Retail Transmission Rate - Line and Transformation Connection Service Rate","STREET LIGHTING SERVICE CLASSIFICATION~Retail Transmission Rate - Network Service Rate","STREET LIGHTING SERVICE CLASSIFICATION~Retail Transmission Rate - Line and Transformation Connection Service Rate"]
["Bluewater Power Distribution Corporation","RESIDENTIAL SERVICE CLASSIFICATION~Retail Transmission Rate - Network Service Rate","RESIDENTIAL SERVICE CLASSIFICATION~Retail Transmission Rate - Line and Transformation Connection Service Rate","GENERAL SERVICE LESS THAN 50 KW SERVICE CLASSIFICATION~Retail Transmission Rate - Network Service Rate","GENERAL SERVICE LESS THAN 50 KW SERVICE CLASSIFICATION~Retail Transmission Rate - Line and Transformation Connection Service Rate","GENERAL SERVICE 50 TO 999 KW SERVICE CLASSIFICATION~Retail Transmission Rate - Network Service Rate","GENERAL SERVICE 50 TO 999 KW SERVICE CLASSIFICATION~Retail Transmission Rate - Line and Transformation Connection Service Rate","GENERAL SERVICE 1,000 TO 4,999 KW SERVICE CLASSIFICATION~Retail Transmission Rate - Network Service Rate","GENERAL SERVICE 1,000 TO 4,999 KW SERVICE CLASSIFICATION~Retail Transmission Rate - Line and Transformation Connection Service Rate","LARGE USE SERVICE CLASSIFICATION~Retail Transmission Rate - Network Service Rate - Interval Metered","LARGE USE SERVICE CLASSIFICATION~Retail Transmission Rate - Line and Transformation Connection Service Rate - Interval Metered","UNMETERED SCATTERED LOAD SERVICE CLASSIFICATION~Retail Transmission Rate - Network Service Rate","UNMETERED SCATTERED LOAD SERVICE CLASSIFICATION~Retail Transmission Rate - Line and Transformation Connection Service Rate","SENTINEL LIGHTING SERVICE CLASSIFICATION~Retail Transmission Rate - Network Service Rate","SENTINEL LIGHTING SERVICE CLASSIFICATION~Retail Transmission Rate - Line and Transformation Connection Service Rate","STREET LIGHTING SERVICE CLASSIFICATION~Retail Transmission Rate - Network Service Rate","STREET LIGHTING SERVICE CLASSIFICATION~Retail Transmission Rate - Line and Transformation Connection Service Rate"]
["Atikokan Hydro Inc.","RESIDENTIAL SERVICE CLASSIFICATION~Retail Transmission Rate - Network Service Rate","RESIDENTIAL SERVICE CLASSIFICATION~Retail Transmission Rate - Transformation Connection Service Rate","GENERAL SERVICE LESS THAN 50 KW SERVICE CLASSIFICATION~Retail Transmission Rate - Network Service Rate","GENERAL SERVICE LESS THAN 50 KW SERVICE CLASSIFICATION~Retail Transmission Rate - Transformation Connection Service Rate","GENERAL SERVICE 50 to 4,999 kW SERVICE CLASSIFICATION~Retail Transmission Rate - Network Service Rate","GENERAL SERVICE 50 to 4,999 kW SERVICE CLASSIFICATION~Retail Transmission Rate - Line and Transformation Connection Service Rate","GENERAL SERVICE 50 to 4,999 kW SERVICE CLASSIFICATION~Retail Transmission Rate - Network Service Rate - Interval Metered","GENERAL SERVICE 50 to 4,999 kW SERVICE CLASSIFICATION~Retail Transmission Rate - Line and Transformation Connection Service Rate - Interval Metered","STREET LIGHTING SERVICE CLASSIFICATION~Retail Transmission Rate - Network Service Rate","STREET LIGHTING SERVICE CLASSIFICATION~Retail Transmission Rate - Line and Transformation Connection Service Rate"]
["Burlington Hydro Inc.","RESIDENTIAL SERVICE CLASSIFICATION~Retail Transmission Rate - Network Service Rate","RESIDENTIAL SERVICE CLASSIFICATION~Retail Transmission Rate - Line and Transformation Connection Service Rate","GENERAL SERVICE LESS THAN 50 KW SERVICE CLASSIFICATION~Retail Transmission Rate - Network Service Rate","GENERAL SERVICE LESS THAN 50 KW SERVICE CLASSIFICATION~Retail Transmission Rate - Line and Transformation Connection Service Rate","GENERAL SERVICE 50 to 4,999 kW SERVICE CLASSIFICATION~Retail Transmission Rate - Network Service Rate - Interval Metered","GENERAL SERVICE 50 to 4,999 kW SERVICE CLASSIFICATION~Retail Transmission Rate - Line and Transformation Connection Service Rate - Interval Metered ","UNMETERED SCATTERED LOAD SERVICE CLASSIFICATION~Retail Transmission Rate - Network Service Rate","UNMETERED SCATTERED LOAD SERVICE CLASSIFICATION~Retail Transmission Rate - Line and Transformation Connection Service Rate","STREET LIGHTING SERVICE CLASSIFICATION~Retail Transmission Rate - Network Service Rate","STREET LIGHTING SERVICE CLASSIFICATION~Retail Transmission Rate - Line Connection Service Rate"]
["E.L.K. Energy Inc.","RESIDENTIAL SERVICE CLASSIFICATION~Retail Transmission Rate - Network Service Rate","RESIDENTIAL SERVICE CLASSIFICATION~Retail Transmission Rate - Line and Transformation Connection Service Rate","GENERAL SERVICE LESS THAN 50 KW SERVICE CLASSIFICATION~Retail Transmission Rate - Network Service Rate","GENERAL SERVICE LESS THAN 50 KW SERVICE CLASSIFICATION~Retail Transmission Rate - Line and Transformation Connection Service Rate","GENERAL SERVICE 50 to 4,999 kW SERVICE CLASSIFICATION~Retail Transmission Rate - Network Service Rate","GENERAL SERVICE 50 to 4,999 kW SERVICE CLASSIFICATION~Retail Transmission Rate - Line and Transformation Connection Service Rate ","UNMETERED SCATTERED LOAD SERVICE CLASSIFICATION~Retail Transmission Rate - Network Service Rate","UNMETERED SCATTERED LOAD SERVICE CLASSIFICATION~Retail Transmission Rate - Line and Transformation Connection Service Rate","SENTINEL LIGHTING SERVICE CLASSIFICATION~Retail Transmission Rate - Network Service Rate","SENTINEL LIGHTING SERVICE CLASSIFICATION~Retail Transmission Rate - Line and Transformation Connection Service Rate","STREET LIGHTING SERVICE CLASSIFICATION~Retail Transmission Rate - Network Service Rate","STREET LIGHTING SERVICE CLASSIFICATION~Retail Transmission Rate - Line and Transformation Connection Service Rate","EMBEDDED DISTRIBUTOR SERVICE CLASSIFICATION~Retail Transmission Rate - Network Service Rate","EMBEDDED DISTRIBUTOR SERVICE CLASSIFICATION~Retail Transmission Rate - Line and Transformation Connection Service Rate"]
["EPCOR Electricity Distribution Ontario Inc.","RESIDENTIAL SERVICE CLASSIFICATION~Retail Transmission Rate - Network Service Rate","RESIDENTIAL SERVICE CLASSIFICATION~Retail Transmission Rate - Line and Transformation Connection Service Rate","GENERAL SERVICE LESS THAN 50 KW SERVICE CLASSIFICATION~Retail Transmission Rate - Network Service Rate","GENERAL SERVICE LESS THAN 50 KW SERVICE CLASSIFICATION~Retail Transmission Rate - Line and Transformation Connection Service Rate","GENERAL SERVICE 50 to 4,999 kW SERVICE CLASSIFICATION~Retail Transmission Rate - Network Service Rate","GENERAL SERVICE 50 to 4,999 kW SERVICE CLASSIFICATION~Retail Transmission Rate - Line and Transformation Connection Service Rate ","UNMETERED SCATTERED LOAD SERVICE CLASSIFICATION~Retail Transmission Rate - Network Service Rate","UNMETERED SCATTERED LOAD SERVICE CLASSIFICATION~Retail Transmission Rate - Line and Transformation Connection Service Rate","STREET LIGHTING SERVICE CLASSIFICATION~Retail Transmission Rate - Network Service Rate","STREET LIGHTING SERVICE CLASSIFICATION~Retail Transmission Rate - Line and Transformation Connection Service Rate"]
["Essex Powerlines Corporation","RESIDENTIAL SERVICE CLASSIFICATION~Retail Transmission Rate - Network Service Rate","RESIDENTIAL SERVICE CLASSIFICATION~Retail Transmission Rate - Line and Transformation Connection Service Rate","GENERAL SERVICE LESS THAN 50 KW SERVICE CLASSIFICATION~Retail Transmission Rate - Network Service Rate","GENERAL SERVICE LESS THAN 50 KW SERVICE CLASSIFICATION~Retail Transmission Rate - Line and Transformation Connection Service Rate","GENERAL SERVICE 50 to 4,999 kW SERVICE CLASSIFICATION~Retail Transmission Rate - Network Service Rate","GENERAL SERVICE 50 to 4,999 kW SERVICE CLASSIFICATION~Retail Transmission Rate - Line and Transformation Connection Service Rate","GENERAL SERVICE 50 to 4,999 kW SERVICE CLASSIFICATION~Retail Transmission Rate - Network Service Rate - Interval Metered","GENERAL SERVICE 50 to 4,999 kW SERVICE CLASSIFICATION~Retail Transmission Rate - Line and Transformation Connection Service Rate - Interval Metered","UNMETERED SCATTERED LOAD SERVICE CLASSIFICATION~Retail Transmission Rate - Network Service Rate","UNMETERED SCATTERED LOAD SERVICE CLASSIFICATION~Retail Transmission Rate - Line and Transformation Connection Service Rate","SENTINEL LIGHTING SERVICE CLASSIFICATION~Retail Transmission Rate - Network Service Rate","SENTINEL LIGHTING SERVICE CLASSIFICATION~Retail Transmission Rate - Line and Transformation Connection Service Rate","STREET LIGHTING SERVICE CLASSIFICATION~Retail Transmission Rate - Network Service Rate","STREET LIGHTING SERVICE CLASSIFICATION~Retail Transmission Rate - Line and Transformation Connection Service Rate"]
["Fort Frances Power Corporation","RESIDENTIAL SERVICE CLASSIFICATION~Retail Transmission Rate - Network Service Rate","RESIDENTIAL SERVICE CLASSIFICATION~Retail Transmission Rate - Line and Transformation Connection Service Rate","GENERAL SERVICE LESS THAN 50 KW SERVICE CLASSIFICATION~Retail Transmission Rate - Network Service Rate","GENERAL SERVICE LESS THAN 50 KW SERVICE CLASSIFICATION~Retail Transmission Rate - Line and Transformation Connection Service Rate","GENERAL SERVICE 50 to 4,999 kW SERVICE CLASSIFICATION~Retail Transmission Rate - Network Service Rate","GENERAL SERVICE 50 to 4,999 kW SERVICE CLASSIFICATION~Retail Transmission Rate - Line and Transformation Connection Service Rate","UNMETERED SCATTERED LOAD SERVICE CLASSIFICATION~Retail Transmission Rate - Network Service Rate","UNMETERED SCATTERED LOAD SERVICE CLASSIFICATION~Retail Transmission Rate - Line and Transformation Connection Service Rate","STREET LIGHTING SERVICE CLASSIFICATION~Retail Transmission Rate - Network Service Rate","STREET LIGHTING SERVICE CLASSIFICATION~Retail Transmission Rate - Line and Transformation Connection Service Rate"]
["Greater Sudbury Hydro Inc.","RESIDENTIAL SERVICE CLASSIFICATION~Retail Transmission Rate - Network Service Rate","RESIDENTIAL SERVICE CLASSIFICATION~Retail Transmission Rate - Line and Transformation Connection Service Rate","GENERAL SERVICE LESS THAN 50 KW SERVICE CLASSIFICATION~Retail Transmission Rate - Network Service Rate","GENERAL SERVICE LESS THAN 50 KW SERVICE CLASSIFICATION~Retail Transmission Rate - Line and Transformation Connection Service Rate","GENERAL SERVICE 50 to 4,999 kW SERVICE CLASSIFICATION~Retail Transmission Rate - Network Service Rate","GENERAL SERVICE 50 to 4,999 kW SERVICE CLASSIFICATION~Retail Transmission Rate - Line and Transformation Connection Service Rate","UNMETERED SCATTERED LOAD SERVICE CLASSIFICATION~Retail Transmission Rate - Network Service Rate","UNMETERED SCATTERED LOAD SERVICE CLASSIFICATION~Retail Transmission Rate - Line and Transformation Connection Service Rate","SENTINEL LIGHTING SERVICE CLASSIFICATION~Retail Transmission Rate - Network Service Rate","SENTINEL LIGHTING SERVICE CLASSIFICATION~Retail Transmission Rate - Line and Transformation Connection Service Rate","STREET LIGHTING SERVICE CLASSIFICATION~Retail Transmission Rate - Network Service Rate","STREET LIGHTING SERVICE CLASSIFICATION~Retail Transmission Rate - Line and Transformation Connection Service Rate"]
["Halton Hills Hydro Inc.","RESIDENTIAL SERVICE CLASSIFICATION~Retail Transmission Rate - Network Service Rate","RESIDENTIAL SERVICE CLASSIFICATION~Retail Transmission Rate - Line and Transformation Connection Service Rate","GENERAL SERVICE LESS THAN 50 KW SERVICE CLASSIFICATION~Retail Transmission Rate - Network Service Rate","GENERAL SERVICE LESS THAN 50 KW SERVICE CLASSIFICATION~Retail Transmission Rate - Line and Transformation Connection Service Rate","GENERAL SERVICE 50 TO 999 KW SERVICE CLASSIFICATION~Retail Transmission Rate - Network Service Rate","GENERAL SERVICE 50 TO 999 KW SERVICE CLASSIFICATION~Retail Transmission Rate - Line and Transformation Connection Service Rate","GENERAL SERVICE 1,000 TO 4,999 KW SERVICE CLASSIFICATION~Retail Transmission Rate - Network Service Rate","GENERAL SERVICE 1,000 TO 4,999 KW SERVICE CLASSIFICATION~Retail Transmission Rate - Line and Transformation Connection Service Rate","UNMETERED SCATTERED LOAD SERVICE CLASSIFICATION~Retail Transmission Rate - Network Service Rate","UNMETERED SCATTERED LOAD SERVICE CLASSIFICATION~Retail Transmission Rate - Line and Transformation Connection Service Rate","SENTINEL LIGHTING SERVICE CLASSIFICATION~Retail Transmission Rate - Network Service Rate","SENTINEL LIGHTING SERVICE CLASSIFICATION~Retail Transmission Rate - Line and Transformation Connection Service Rate","STREET LIGHTING SERVICE CLASSIFICATION~Retail Transmission Rate - Network Service Rate","STREET LIGHTING SERVICE CLASSIFICATION~Retail Transmission Rate - Line and Transformation Connection Service Rate"]
["Hydro One Networks Inc.-Former Haldimand County Hydro Inc. Service Area","RESIDENTIAL SERVICE CLASSIFICATION~Retail Transmission Rate - Network Service Rate","RESIDENTIAL SERVICE CLASSIFICATION~Retail Transmission Rate - Line and Transformation Connection Service Rate","GENERAL SERVICE LESS THAN 50 KW SERVICE CLASSIFICATION~Retail Transmission Rate - Network Service Rate","GENERAL SERVICE LESS THAN 50 KW SERVICE CLASSIFICATION~Retail Transmission Rate - Line and Transformation Connection Service Rate","GENERAL SERVICE 50 to 4,999 kW SERVICE CLASSIFICATION~Retail Transmission Rate - Network Service Rate","GENERAL SERVICE 50 to 4,999 kW SERVICE CLASSIFICATION~Retail Transmission Rate - Line and Transformation Connection Service Rate","UNMETERED SCATTERED LOAD SERVICE CLASSIFICATION~Retail Transmission Rate - Network Service Rate","UNMETERED SCATTERED LOAD SERVICE CLASSIFICATION~Retail Transmission Rate - Line and Transformation Connection Service Rate","SENTINEL LIGHTING SERVICE CLASSIFICATION~Retail Transmission Rate - Network Service Rate","SENTINEL LIGHTING SERVICE CLASSIFICATION~Retail Transmission Rate - Line and Transformation Connection Service Rate","STREET LIGHTING SERVICE CLASSIFICATION~Retail Transmission Rate - Network Service Rate","STREET LIGHTING SERVICE CLASSIFICATION~Retail Transmission Rate - Line and Transformation Connection Service Rate","EMBEDDED DISTRIBUTOR SERVICE CLASSIFICATION FOR HYDRO ONE NETWORKS INC.~Retail Transmission Rate - Network Service Rate","EMBEDDED DISTRIBUTOR SERVICE CLASSIFICATION FOR HYDRO ONE NETWORKS INC.~Retail Transmission Rate - Line and Transformation Connection Service Rate"]
["Hydro One Networks Inc.-Former Norfolk Power Distribution Inc. Service Area","RESIDENTIAL SERVICE CLASSIFICATION~Retail Transmission Rate - Network Service Rate","RESIDENTIAL SERVICE CLASSIFICATION~Retail Transmission Rate - Line and Transformation Connection Service Rate","GENERAL SERVICE LESS THAN 50 KW SERVICE CLASSIFICATION~Retail Transmission Rate - Network Service Rate","GENERAL SERVICE LESS THAN 50 KW SERVICE CLASSIFICATION~Retail Transmission Rate - Line and Transformation Connection Service Rate","GENERAL SERVICE 50 to 4,999 kW SERVICE CLASSIFICATION~Retail Transmission Rate - Network Service Rate","GENERAL SERVICE 50 to 4,999 kW SERVICE CLASSIFICATION~Retail Transmission Rate - Line and Transformation Connection Service Rate","UNMETERED SCATTERED LOAD SERVICE CLASSIFICATION~Retail Transmission Rate - Network Service Rate","UNMETERED SCATTERED LOAD SERVICE CLASSIFICATION~Retail Transmission Rate - Line and Transformation Connection Service Rate","SENTINEL LIGHTING SERVICE CLASSIFICATION~Retail Transmission Rate - Network Service Rate","SENTINEL LIGHTING SERVICE CLASSIFICATION~Retail Transmission Rate - Line and Transformation Connection Service Rate","STREET LIGHTING SERVICE CLASSIFICATION~Retail Transmission Rate - Network Service Rate","STREET LIGHTING SERVICE CLASSIFICATION~Retail Transmission Rate - Line and Transformation Connection Service Rate"]
["Hydro One Networks Inc.-Former Woodstock Hydro Services Inc. Service Area","RESIDENTIAL SERVICE CLASSIFICATION~Retail Transmission Rate - Network Service Rate","RESIDENTIAL SERVICE CLASSIFICATION~Retail Transmission Rate - Line and Transformation Connection Service Rate","GENERAL SERVICE LESS THAN 50 KW SERVICE CLASSIFICATION~Retail Transmission Rate - Network Service Rate","GENERAL SERVICE LESS THAN 50 KW SERVICE CLASSIFICATION~Retail Transmission Rate - Line and Transformation Connection Service Rate","GENERAL SERVICE 50 TO 999 KW SERVICE CLASSIFICATION~Retail Transmission Rate - Network Service Rate","GENERAL SERVICE 50 TO 999 KW SERVICE CLASSIFICATION~Retail Transmission Rate - Line and Transformation Connection Service Rate","GENERAL SERVICE GREATER THAN 1,000 KW SERVICE CLASSIFICATION~Retail Transmission Rate - Network Service Rate","GENERAL SERVICE GREATER THAN 1,000 KW SERVICE CLASSIFICATION~Retail Transmission Rate - Line and Transformation Connection Service Rate","UNMETERED SCATTERED LOAD SERVICE CLASSIFICATION~Retail Transmission Rate - Network Service Rate","UNMETERED SCATTERED LOAD SERVICE CLASSIFICATION~Retail Transmission Rate - Line and Transformation Connection Service Rate","STREET LIGHTING SERVICE CLASSIFICATION~Retail Transmission Rate - Network Service Rate","STREET LIGHTING SERVICE CLASSIFICATION~Retail Transmission Rate - Line and Transformation Connection Service Rate"]
["Synergy North Corporation-Kenora Rate Zone","RESIDENTIAL SERVICE CLASSIFICATION~Retail Transmission Rate - Network Service Rate","RESIDENTIAL SERVICE CLASSIFICATION~Retail Transmission Rate - Line and Transformation Connection Service Rate","GENERAL SERVICE LESS THAN 50 KW SERVICE CLASSIFICATION~Retail Transmission Rate - Network Service Rate","GENERAL SERVICE LESS THAN 50 KW SERVICE CLASSIFICATION~Retail Transmission Rate - Line and Transformation Connection Service Rate","GENERAL SERVICE 50 to 4,999 kW SERVICE CLASSIFICATION~Retail Transmission Rate - Network Service Rate","GENERAL SERVICE 50 to 4,999 kW SERVICE CLASSIFICATION~Retail Transmission Rate - Line and Transformation Connection Service Rate","UNMETERED SCATTERED LOAD SERVICE CLASSIFICATION~Retail Transmission Rate - Network Service Rate","UNMETERED SCATTERED LOAD SERVICE CLASSIFICATION~Retail Transmission Rate - Line and Transformation Connection Service Rate","STREET LIGHTING SERVICE CLASSIFICATION~Retail Transmission Rate - Network Service Rate","STREET LIGHTING SERVICE CLASSIFICATION~Retail Transmission Rate - Line and Transformation Connection Service Rate"]
["London Hydro Inc.","RESIDENTIAL SERVICE CLASSIFICATION~Retail Transmission Rate - Network Service Rate","RESIDENTIAL SERVICE CLASSIFICATION~Retail Transmission Rate - Line and Transformation Connection Service Rate","GENERAL SERVICE LESS THAN 50 KW SERVICE CLASSIFICATION~Retail Transmission Rate - Network Service Rate","GENERAL SERVICE LESS THAN 50 KW SERVICE CLASSIFICATION~Retail Transmission Rate - Line and Transformation Connection Service Rate ","GENERAL SERVICE 50 to 4,999 kW SERVICE CLASSIFICATION~Retail Transmission Rate - Network Service Rate","GENERAL SERVICE 50 to 4,999 kW SERVICE CLASSIFICATION~Retail Transmission Rate - Line and Transformation Connection Service Rate ","GENERAL SERVICE 50 to 4,999 kW SERVICE CLASSIFICATION~Retail Transmission Rate - Network Service Rate - Interval Metered","GENERAL SERVICE 50 to 4,999 kW SERVICE CLASSIFICATION~Retail Transmission Rate - Line and Transformation Connection Service Rate - Interval Metered ","GENERAL SERVICE 1,000 TO 4,999 KW (CO-GENERATION) SERVICE CLASSIFICATION~Retail Transmission Rate - Network Service Rate","GENERAL SERVICE 1,000 TO 4,999 KW (CO-GENERATION) SERVICE CLASSIFICATION~Retail Transmission Rate - Line and Transformation Connection Service Rate ","LARGE USE SERVICE CLASSIFICATION~Retail Transmission Rate - Network Service Rate - Interval Metered","LARGE USE SERVICE CLASSIFICATION~Retail Transmission Rate - Line and Transformation Connection Service Rate - Interval Metered ","STREET LIGHTING SERVICE CLASSIFICATION~Retail Transmission Rate - Network Service Rate","STREET LIGHTING SERVICE CLASSIFICATION~Retail Transmission Rate - Line and Transformation Connection Service Rate ","SENTINEL LIGHTING SERVICE CLASSIFICATION~Retail Transmission Rate - Network Service Rate","SENTINEL LIGHTING SERVICE CLASSIFICATION~Retail Transmission Rate - Line and Transformation Connection Service Rate","UNMETERED SCATTERED LOAD SERVICE CLASSIFICATION~Retail Transmission Rate - Network Service Rate","UNMETERED SCATTERED LOAD SERVICE CLASSIFICATION~Retail Transmission Rate - Line and Transformation Connection Service Rate"]
["Milton Hydro Distribution Inc.","RESIDENTIAL SERVICE CLASSIFICATION~Retail Transmission Rate - Network Service Rate","RESIDENTIAL SERVICE CLASSIFICATION~Retail Transmission Rate - Line and Transformation Connection Service Rate","GENERAL SERVICE LESS THAN 50 KW SERVICE CLASSIFICATION~Retail Transmission Rate - Network Service Rate","GENERAL SERVICE LESS THAN 50 KW SERVICE CLASSIFICATION~Retail Transmission Rate - Line and Transformation Connection Service Rate","GENERAL SERVICE 50 TO 999 KW SERVICE CLASSIFICATION~Retail Transmission Rate - Network Service Rate","GENERAL SERVICE 50 TO 999 KW SERVICE CLASSIFICATION~Retail Transmission Rate - Line and Transformation Connection Service Rate","GENERAL SERVICE 1,000 TO 4,999 KW SERVICE CLASSIFICATION~Retail Transmission Rate - Network Service Rate","GENERAL SERVICE 1,000 TO 4,999 KW SERVICE CLASSIFICATION~Retail Transmission Rate - Line and Transformation Connection Service Rate","LARGE USE SERVICE CLASSIFICATION~Retail Transmission Rate - Network Service Rate - Interval Metered","LARGE USE SERVICE CLASSIFICATION~Retail Transmission Rate - Line and Transformation Connection Service Rate - Interval Metered","UNMETERED SCATTERED LOAD SERVICE CLASSIFICATION~Retail Transmission Rate - Network Service Rate","UNMETERED SCATTERED LOAD SERVICE CLASSIFICATION~Retail Transmission Rate - Line and Transformation Connection Service Rate","SENTINEL LIGHTING SERVICE CLASSIFICATION~Retail Transmission Rate - Network Service Rate","SENTINEL LIGHTING SERVICE CLASSIFICATION~Retail Transmission Rate - Line and Transformation Connection Service Rate","STREET LIGHTING SERVICE CLASSIFICATION~Retail Transmission Rate - Network Service Rate","STREET LIGHTING SERVICE CLASSIFICATION~Retail Transmission Rate - Line and Transformation Connection Service Rate"]
["North Bay Hydro Distribution Limited","RESIDENTIAL SERVICE CLASSIFICATION~Retail Transmission Rate - Network Service Rate","RESIDENTIAL SERVICE CLASSIFICATION~Retail Transmission Rate - Line and Transformation Connection Service Rate","GENERAL SERVICE LESS THAN 50 KW SERVICE CLASSIFICATION~Retail Transmission Rate - Network Service Rate","GENERAL SERVICE LESS THAN 50 KW SERVICE CLASSIFICATION~Retail Transmission Rate - Line and Transformation Connection Service Rate","GENERAL SERVICE 50 TO 2,999 KW SERVICE CLASSIFICATION~Retail Transmission Rate - Network Service Rate","GENERAL SERVICE 50 TO 2,999 KW SERVICE CLASSIFICATION~Retail Transmission Rate - Line and Transformation Connection Service Rate","GENERAL SERVICE 3,000 TO 4,999 KW SERVICE CLASSIFICATION~Retail Transmission Rate - Network Service Rate - Interval Metered","GENERAL SERVICE 3,000 TO 4,999 KW SERVICE CLASSIFICATION~Retail Transmission Rate - Line and Transformation Connection Service Rate - Interval Metered","UNMETERED SCATTERED LOAD SERVICE CLASSIFICATION~Retail Transmission Rate - Network Service Rate","UNMETERED SCATTERED LOAD SERVICE CLASSIFICATION~Retail Transmission Rate - Line and Transformation Connection Service Rate","SENTINEL LIGHTING SERVICE CLASSIFICATION~Retail Transmission Rate - Network Service Rate","SENTINEL LIGHTING SERVICE CLASSIFICATION~Retail Transmission Rate - Line and Transformation Connection Service Rate","STREET LIGHTING SERVICE CLASSIFICATION~Retail Transmission Rate - Network Service Rate","STREET LIGHTING SERVICE CLASSIFICATION~Retail Transmission Rate - Line and Transformation Connection Service Rate"]
["Northern Ontario Wires Inc.","RESIDENTIAL SERVICE CLASSIFICATION~Retail Transmission Rate - Network Service Rate","RESIDENTIAL SERVICE CLASSIFICATION~Retail Transmission Rate - Line and Transformation Connection Service Rate","GENERAL SERVICE LESS THAN 50 KW SERVICE CLASSIFICATION~Retail Transmission Rate - Network Service Rate","GENERAL SERVICE LESS THAN 50 KW SERVICE CLASSIFICATION~Retail Transmission Rate - Line and Transformation Connection Service Rate","GENERAL SERVICE 50 to 4,999 kW SERVICE CLASSIFICATION~Retail Transmission Rate - Network Service Rate","GENERAL SERVICE 50 to 4,999 kW SERVICE CLASSIFICATION~Retail Transmission Rate - Line and Transformation Connection Service Rate ","UNMETERED SCATTERED LOAD SERVICE CLASSIFICATION~Retail Transmission Rate - Network Service Rate","UNMETERED SCATTERED LOAD SERVICE CLASSIFICATION~Retail Transmission Rate - Line and Transformation Connection Service Rate","STREET LIGHTING SERVICE CLASSIFICATION~Retail Transmission Rate - Network Service Rate","STREET LIGHTING SERVICE CLASSIFICATION~Retail Transmission Rate - Line and Transformation Connection Service Rate"]
["Niagara Peninsula Energy Inc.","RESIDENTIAL SERVICE CLASSIFICATION~Retail Transmission Rate - Network Service Rate","RESIDENTIAL SERVICE CLASSIFICATION~Retail Transmission Rate - Line and Transformation Connection Service Rate","GENERAL SERVICE LESS THAN 50 KW SERVICE CLASSIFICATION~Retail Transmission Rate - Network Service Rate","GENERAL SERVICE LESS THAN 50 KW SERVICE CLASSIFICATION~Retail Transmission Rate - Line and Transformation Connection Service Rate","GENERAL SERVICE 50 to 4,999 kW SERVICE CLASSIFICATION~Retail Transmission Rate - Network Service Rate","GENERAL SERVICE 50 to 4,999 kW SERVICE CLASSIFICATION~Retail Transmission Rate - Line and Transformation Connection Service Rate ","UNMETERED SCATTERED LOAD SERVICE CLASSIFICATION~Retail Transmission Rate - Network Service Rate","UNMETERED SCATTERED LOAD SERVICE CLASSIFICATION~Retail Transmission Rate - Line and Transformation Connection Service Rate","SENTINEL LIGHTING SERVICE CLASSIFICATION~Retail Transmission Rate - Network Service Rate","SENTINEL LIGHTING SERVICE CLASSIFICATION~Retail Transmission Rate - Line and Transformation Connection Service Rate","STREET LIGHTING SERVICE CLASSIFICATION~Retail Transmission Rate - Network Service Rate","STREET LIGHTING SERVICE CLASSIFICATION~Retail Transmission Rate - Line and Transformation Connection Service Rate"]
["Orangeville Hydro Limited","RESIDENTIAL SERVICE CLASSIFICATION~Retail Transmission Rate - Network Service Rate","RESIDENTIAL SERVICE CLASSIFICATION~Retail Transmission Rate - Line and Transformation Connection Service Rate","GENERAL SERVICE LESS THAN 50 KW SERVICE CLASSIFICATION~Retail Transmission Rate - Network Service Rate","GENERAL SERVICE LESS THAN 50 KW SERVICE CLASSIFICATION~Retail Transmission Rate - Line and Transformation Connection Service Rate","GENERAL SERVICE 50 to 4,999 kW SERVICE CLASSIFICATION~Retail Transmission Rate - Network Service Rate","GENERAL SERVICE 50 to 4,999 kW SERVICE CLASSIFICATION~Retail Transmission Rate - Line and Transformation Connection Service Rate","SENTINEL LIGHTING SERVICE CLASSIFICATION~Retail Transmission Rate - Network Service Rate","SENTINEL LIGHTING SERVICE CLASSIFICATION~Retail Transmission Rate - Line and Transformation Connection Service Rate","STREET LIGHTING SERVICE CLASSIFICATION~Retail Transmission Rate - Network Service Rate","STREET LIGHTING SERVICE CLASSIFICATION~Retail Transmission Rate - Line and Transformation Connection Service Rate","UNMETERED SCATTERED LOAD SERVICE CLASSIFICATION~Retail Transmission Rate - Network Service Rate","UNMETERED SCATTERED LOAD SERVICE CLASSIFICATION~Retail Transmission Rate - Line and Transformation Connection Service Rate"]
["Ottawa River Power Corporation","RESIDENTIAL SERVICE CLASSIFICATION~Retail Transmission Rate - Network Service Rate","RESIDENTIAL SERVICE CLASSIFICATION~Retail Transmission Rate - Line and Transformation Connection Service Rate","GENERAL SERVICE LESS THAN 50 KW SERVICE CLASSIFICATION~Retail Transmission Rate - Network Service Rate","GENERAL SERVICE LESS THAN 50 KW SERVICE CLASSIFICATION~Retail Transmission Rate - Line and Transformation Connection Service Rate","GENERAL SERVICE 50 to 4,999 kW SERVICE CLASSIFICATION~Retail Transmission Rate - Network Service Rate","GENERAL SERVICE 50 to 4,999 kW SERVICE CLASSIFICATION~Retail Transmission Rate - Line and Transformation Connection Service Rate","SENTINEL LIGHTING SERVICE CLASSIFICATION~Retail Transmission Rate - Network Service Rate","SENTINEL LIGHTING SERVICE CLASSIFICATION~Retail Transmission Rate - Line and Transformation Connection Service Rate","STREET LIGHTING SERVICE CLASSIFICATION~Retail Transmission Rate - Network Service Rate","STREET LIGHTING SERVICE CLASSIFICATION~Retail Transmission Rate - Line and Transformation Connection Service Rate","UNMETERED SCATTERED LOAD SERVICE CLASSIFICATION~Retail Transmission Rate - Network Service Rate","UNMETERED SCATTERED LOAD SERVICE CLASSIFICATION~Retail Transmission Rate - Line and Transformation Connection Service Rate"]
["Rideau St. Lawrence Distribution Inc.","RESIDENTIAL SERVICE CLASSIFICATION~Retail Transmission Rate - Network Service Rate ","RESIDENTIAL SERVICE CLASSIFICATION~Retail Transmission Rate - Line and Transformation Connection Service Rate ","GENERAL SERVICE LESS THAN 50 KW SERVICE CLASSIFICATION~Retail Transmission Rate - Network Service Rate ","GENERAL SERVICE LESS THAN 50 KW SERVICE CLASSIFICATION~Retail Transmission Rate - Line and Transformation Connection Service Rate ","GENERAL SERVICE 50 to 4,999 kW SERVICE CLASSIFICATION~Retail Transmission Rate - Network Service Rate ","GENERAL SERVICE 50 to 4,999 kW SERVICE CLASSIFICATION~Retail Transmission Rate - Line and Transformation Connection Service Rate","GENERAL SERVICE 50 to 4,999 kW SERVICE CLASSIFICATION~Retail Transmission Rate - Network Service Rate - Interval Metered ","GENERAL SERVICE 50 to 4,999 kW SERVICE CLASSIFICATION~Retail Transmission Rate - Line and Transformation Connection Service Rate - Interval Metered","UNMETERED SCATTERED LOAD SERVICE CLASSIFICATION~Retail Transmission Rate - Network Service Rate ","UNMETERED SCATTERED LOAD SERVICE CLASSIFICATION~Retail Transmission Rate - Line and Transformation Connection Service Rate ","SENTINEL LIGHTING SERVICE CLASSIFICATION~Retail Transmission Rate - Network Service Rate","SENTINEL LIGHTING SERVICE CLASSIFICATION~Retail Transmission Rate - Line and Transformation Connection Service Rate ","STREET LIGHTING SERVICE CLASSIFICATION~Retail Transmission Rate - Network Service Rate ","STREET LIGHTING SERVICE CLASSIFICATION~Retail Transmission Rate - Line and Transformation Connection Service Rate "]
["Sioux Lookout Hydro Inc.","RESIDENTIAL SERVICE CLASSIFICATION~Retail Transmission Rate - Network Service Rate","RESIDENTIAL SERVICE CLASSIFICATION~Retail Transmission Rate - Line and Transformation Connection Service Rate","GENERAL SERVICE LESS THAN 50 KW SERVICE CLASSIFICATION~Retail Transmission Rate - Network Service Rate","GENERAL SERVICE LESS THAN 50 KW SERVICE CLASSIFICATION~Retail Transmission Rate - Line and Transformation Connection Service Rate","GENERAL SERVICE 50 to 4,999 kW SERVICE CLASSIFICATION~Retail Transmission Rate - Network Service Rate","GENERAL SERVICE 50 to 4,999 kW SERVICE CLASSIFICATION~Retail Transmission Rate - Line and Transformation Connection Service Rate","GENERAL SERVICE 50 to 4,999 kW SERVICE CLASSIFICATION~Retail Transmission Rate - Network Service Rate - Interval Metered > 1,000 kW","GENERAL SERVICE 50 to 4,999 kW SERVICE CLASSIFICATION~Retail Transmission Rate - Line and Transformation Connection Service Rate - Interval Metered > 1,000 kW","STREET LIGHTING SERVICE CLASSIFICATION~Retail Transmission Rate - Network Service Rate","STREET LIGHTING SERVICE CLASSIFICATION~Retail Transmission Rate - Line and Transformation Connection Service Rate"]
["Synergy North Corporation-Thunder Bay Rate Zone","RESIDENTIAL SERVICE CLASSIFICATION~Retail Transmission Rate - Network Service Rate","RESIDENTIAL SERVICE CLASSIFICATION~Retail Transmission Rate - Line and Transformation Connection Service Rate","GENERAL SERVICE LESS THAN 50 KW SERVICE CLASSIFICATION~Retail Transmission Rate - Network Service Rate","GENERAL SERVICE LESS THAN 50 KW SERVICE CLASSIFICATION~Retail Transmission Rate - Line and Transformation Connection Service Rate","GENERAL SERVICE 50 TO 999 KW SERVICE CLASSIFICATION~Retail Transmission Rate - Network Service Rate","GENERAL SERVICE 50 TO 999 KW SERVICE CLASSIFICATION~Retail Transmission Rate - Line and Transformation Connection Service Rate ","GENERAL SERVICE 50 TO 999 KW SERVICE CLASSIFICATION~Retail Transmission Rate - Network Service Rate - Interval Metered","GENERAL SERVICE 50 TO 999 KW SERVICE CLASSIFICATION~Retail Transmission Rate - Line and Transformation Connection Service Rate - Interval Metered ","GENERAL SERVICE 1,000 KW OR GREATER SERVICE CLASSIFICATION~Retail Transmission Rate - Network Service Rate","GENERAL SERVICE 1,000 KW OR GREATER SERVICE CLASSIFICATION~Retail Transmission Rate - Line and Transformation Connection Service Rate ","UNMETERED SCATTERED LOAD SERVICE CLASSIFICATION~Retail Transmission Rate - Network Service Rate","UNMETERED SCATTERED LOAD SERVICE CLASSIFICATION~Retail Transmission Rate - Line and Transformation Connection Service Rate ","SENTINEL LIGHTING SERVICE CLASSIFICATION~Retail Transmission Rate - Network Service Rate","SENTINEL LIGHTING SERVICE CLASSIFICATION~Retail Transmission Rate - Line and Transformation Connection Service Rate ","STREET LIGHTING SERVICE CLASSIFICATION~Retail Transmission Rate - Network Service Rate","STREET LIGHTING SERVICE CLASSIFICATION~Retail Transmission Rate - Line and Transformation Connection Service Rate"]
["ENWIN Utilities Ltd.","RESIDENTIAL SERVICE CLASSIFICATION~Retail Transmission Rate - Network Service Rate","RESIDENTIAL SERVICE CLASSIFICATION~Retail Transmission Rate - Line and Transformation Connection Service Rate","GENERAL SERVICE LESS THAN 50 KW SERVICE CLASSIFICATION~Retail Transmission Rate - Network Service Rate","GENERAL SERVICE LESS THAN 50 KW SERVICE CLASSIFICATION~Retail Transmission Rate - Line and Transformation Connection Service Rate","GENERAL SERVICE 50 to 4,999 kW SERVICE CLASSIFICATION~Retail Transmission Rate - Network Service Rate","GENERAL SERVICE 50 to 4,999 kW SERVICE CLASSIFICATION~Retail Transmission Rate - Line and Transformation Connection Service Rate","GENERAL SERVICE 3,000 TO 4,999 KW - INTERMEDIATE USE SERVICE CLASSIFICATION~Retail Transmission Rate - Network Service Rate","GENERAL SERVICE 3,000 TO 4,999 KW - INTERMEDIATE USE SERVICE CLASSIFICATION~Retail Transmission Rate - Line and Transformation Connection Service Rate","LARGE USE - REGULAR SERVICE CLASSIFICATION~Retail Transmission Rate - Network Service Rate","LARGE USE - REGULAR SERVICE CLASSIFICATION~Retail Transmission Rate - Line Connection Service Rate","LARGE USE - REGULAR SERVICE CLASSIFICATION~Retail Transmission Rate - Transformation Connection Service Rate","LARGE USE - 3TS SERVICE CLASSIFICATION~Retail Transmission Rate - Network Service Rate","LARGE USE - 3TS SERVICE CLASSIFICATION~Retail Transmission Rate - Line Connection Service Rate","LARGE USE - FORD ANNEX SERVICE CLASSIFICATION~Retail Transmission Rate - Network Service Rate","LARGE USE - FORD ANNEX SERVICE CLASSIFICATION~Retail Transmission Rate - Line Connection Service Rate ","UNMETERED SCATTERED LOAD SERVICE CLASSIFICATION~Retail Transmission Rate - Network Service Rate","UNMETERED SCATTERED LOAD SERVICE CLASSIFICATION~Retail Transmission Rate - Line and Transformation Connection Service Rate","SENTINEL LIGHTING SERVICE CLASSIFICATION~Retail Transmission Rate - Network Service Rate","SENTINEL LIGHTING SERVICE CLASSIFICATION~Retail Transmission Rate - Line and Transformation Connection Service Rate","STREET LIGHTING SERVICE CLASSIFICATION~Retail Transmission Rate - Network Service Rate","STREET LIGHTING SERVICE CLASSIFICATION~Retail Transmission Rate - Line and Transformation Connection Service Rate"]
["Hearst Power Distribution Co. Ltd.","RESIDENTIAL SERVICE CLASSIFICATION~Retail Transmission Rate - Network Service Rate","RESIDENTIAL SERVICE CLASSIFICATION~Retail Transmission Rate - Line and Transformation Connection Service Rate","GENERAL SERVICE LESS THAN 50 KW SERVICE CLASSIFICATION~Retail Transmission Rate - Network Service Rate","GENERAL SERVICE LESS THAN 50 KW SERVICE CLASSIFICATION~Retail Transmission Rate - Line and Transformation Connection Service Rate","GENERAL SERVICE 50 TO 1,499 KW SERVICE CLASSIFICATION~Retail Transmission Rate - Network Service Rate","GENERAL SERVICE 50 TO 1,499 KW SERVICE CLASSIFICATION~Retail Transmission Rate - Line and Transformation Connection Service Rate ","INTERMEDIATE USER SERVICE CLASSIFICATION~Retail Transmission Rate - Network Service Rate","INTERMEDIATE USER SERVICE CLASSIFICATION~Retail Transmission Rate - Line and Transformation Connection Service Rate","SENTINEL LIGHTING SERVICE CLASSIFICATION~Retail Transmission Rate - Network Service Rate","SENTINEL LIGHTING SERVICE CLASSIFICATION~Retail Transmission Rate - Line and Transformation Connection Service Rate","STREET LIGHTING SERVICE CLASSIFICATION~Retail Transmission Rate - Network Service Rate","STREET LIGHTING SERVICE CLASSIFICATION~Retail Transmission Rate - Line and Transformation Connection Service Rate"]
["ERTH Power Corporation-ERTH Power Main Rate Zone","RESIDENTIAL SERVICE CLASSIFICATION~Retail Transmission Rate - Network Service Rate","RESIDENTIAL SERVICE CLASSIFICATION~Retail Transmission Rate - Line and Transformation Connection Service Rate","GENERAL SERVICE LESS THAN 50 KW SERVICE CLASSIFICATION~Retail Transmission Rate - Network Service Rate","GENERAL SERVICE LESS THAN 50 KW SERVICE CLASSIFICATION~Retail Transmission Rate - Line and Transformation Connection Service Rate","GENERAL SERVICE 50 TO 999 KW SERVICE CLASSIFICATION~Retail Transmission Rate - Network Service Rate","GENERAL SERVICE 50 TO 999 KW SERVICE CLASSIFICATION~Retail Transmission Rate - Line and Transformation Connection Service Rate","GENERAL SERVICE 1,000 TO 4,999 KW SERVICE CLASSIFICATION~Retail Transmission Rate - Network Service Rate","GENERAL SERVICE 1,000 TO 4,999 KW SERVICE CLASSIFICATION~Retail Transmission Rate - Line and Transformation Connection Service Rate","LARGE USE SERVICE CLASSIFICATION~Retail Transmission Rate - Network Service Rate","LARGE USE SERVICE CLASSIFICATION~Retail Transmission Rate - Line and Transformation Connection Service Rate","UNMETERED SCATTERED LOAD SERVICE CLASSIFICATION~Retail Transmission Rate - Network Service Rate","UNMETERED SCATTERED LOAD SERVICE CLASSIFICATION~Retail Transmission Rate - Line and Transformation Connection Service Rate","SENTINEL LIGHTING SERVICE CLASSIFICATION~Retail Transmission Rate - Network Service Rate","SENTINEL LIGHTING SERVICE CLASSIFICATION~Retail Transmission Rate - Line and Transformation Connection Service Rate","STREET LIGHTING SERVICE CLASSIFICATION~Retail Transmission Rate - Network Service Rate","STREET LIGHTING SERVICE CLASSIFICATION~Retail Transmission Rate - Line and Transformation Connection Service Rate","EMBEDDED DISTRIBUTOR SERVICE CLASSIFICATION~Retail Transmission Rate - Network Service Rate","EMBEDDED DISTRIBUTOR SERVICE CLASSIFICATION~Retail Transmission Rate - Line and Transformation Connection Service Rate"]
["Welland Hydro-Electric System Corp.","RESIDENTIAL SERVICE CLASSIFICATION~Retail Transmission Rate - Network Service Rate","RESIDENTIAL SERVICE CLASSIFICATION~Retail Transmission Rate - Line and Transformation Connection Service Rate","GENERAL SERVICE LESS THAN 50 KW SERVICE CLASSIFICATION~Retail Transmission Rate - Network Service Rate","GENERAL SERVICE LESS THAN 50 KW SERVICE CLASSIFICATION~Retail Transmission Rate - Line and Transformation Connection Service Rate","GENERAL SERVICE 50 to 4,999 kW SERVICE CLASSIFICATION~Retail Transmission Rate - Network Service Rate","GENERAL SERVICE 50 to 4,999 kW SERVICE CLASSIFICATION~Retail Transmission Rate - Line and Transformation Connection Service Rate ","UNMETERED SCATTERED LOAD SERVICE CLASSIFICATION~Retail Transmission Rate - Network Service Rate","UNMETERED SCATTERED LOAD SERVICE CLASSIFICATION~Retail Transmission Rate - Line and Transformation Connection Service Rate","SENTINEL LIGHTING SERVICE CLASSIFICATION~Retail Transmission Rate - Network Service Rate","SENTINEL LIGHTING SERVICE CLASSIFICATION~Retail Transmission Rate - Line and Transformation Connection Service Rate","STREET LIGHTING SERVICE CLASSIFICATION~Retail Transmission Rate - Network Service Rate","STREET LIGHTING SERVICE CLASSIFICATION~Retail Transmission Rate - Line and Transformation Connection Service Rate"]
["Wellington North Power Inc.","RESIDENTIAL SERVICE CLASSIFICATION~Retail Transmission Rate - Network Service Rate","RESIDENTIAL SERVICE CLASSIFICATION~Retail Transmission Rate - Line and Transformation Connection Service Rate","GENERAL SERVICE LESS THAN 50 KW SERVICE CLASSIFICATION~Retail Transmission Rate - Network Service Rate","GENERAL SERVICE LESS THAN 50 KW SERVICE CLASSIFICATION~Retail Transmission Rate - Line and Transformation Connection Service Rate","GENERAL SERVICE 50 TO 999 KW SERVICE CLASSIFICATION~Retail Transmission Rate - Network Service Rate","GENERAL SERVICE 50 TO 999 KW SERVICE CLASSIFICATION~Retail Transmission Rate - Line and Transformation Connection Service Rate","GENERAL SERVICE 1,000 TO 4,999 KW SERVICE CLASSIFICATION~Retail Transmission Rate - Network Service Rate","GENERAL SERVICE 1,000 TO 4,999 KW SERVICE CLASSIFICATION~Retail Transmission Rate - Line and Transformation Connection Service Rate","UNMETERED SCATTERED LOAD SERVICE CLASSIFICATION~Retail Transmission Rate - Network Service Rate","UNMETERED SCATTERED LOAD SERVICE CLASSIFICATION~Retail Transmission Rate - Line and Transformation Connection Service Rate","SENTINEL LIGHTING SERVICE CLASSIFICATION~Retail Transmission Rate - Network Service Rate","SENTINEL LIGHTING SERVICE CLASSIFICATION~Retail Transmission Rate - Line and Transformation Connection Service Rate","STREET LIGHTING SERVICE CLASSIFICATION~Retail Transmission Rate - Network Service Rate","STREET LIGHTING SERVICE CLASSIFICATION~Retail Transmission Rate - Line and Transformation Connection Service Rate"]
["Tillsonburg Hydro Inc.","RESIDENTIAL SERVICE CLASSIFICATION~Retail Transmission Rate - Network Service Rate","RESIDENTIAL SERVICE CLASSIFICATION~Retail Transmission Rate - Line and Transformation Connection Service Rate","GENERAL SERVICE LESS THAN 50 KW SERVICE CLASSIFICATION~Retail Transmission Rate - Network Service Rate","GENERAL SERVICE LESS THAN 50 KW SERVICE CLASSIFICATION~Retail Transmission Rate - Line and Transformation Connection Service Rate","GENERAL SERVICE 50 TO 499 KW SERVICE CLASSIFICATION~Retail Transmission Rate - Network Service Rate","GENERAL SERVICE 50 TO 499 KW SERVICE CLASSIFICATION~Retail Transmission Rate - Line and Transformation Connection Service Rate","GENERAL SERVICE 500 TO 1,499 KW SERVICE CLASSIFICATION~Retail Transmission Rate - Network Service Rate - Interval Metered","GENERAL SERVICE 500 TO 1,499 KW SERVICE CLASSIFICATION~Retail Transmission Rate - Line and Transformation Connection Service Rate - Interval Metered","GENERAL SERVICE EQUAL TO OR GREATER THAN 1,500 KW SERVICE CLASSIFICATION~Retail Transmission Rate - Network Service Rate - Interval Metered","GENERAL SERVICE EQUAL TO OR GREATER THAN 1,500 KW SERVICE CLASSIFICATION~Retail Transmission Rate - Line and Transformation Connection Service Rate - Interval Metered","UNMETERED SCATTERED LOAD SERVICE CLASSIFICATION~Retail Transmission Rate - Network Service Rate","UNMETERED SCATTERED LOAD SERVICE CLASSIFICATION~Retail Transmission Rate - Line and Transformation Connection Service Rate","SENTINEL LIGHTING SERVICE CLASSIFICATION~Retail Transmission Rate - Network Service Rate","SENTINEL LIGHTING SERVICE CLASSIFICATION~Retail Transmission Rate - Line and Transformation Connection Service Rate","STREET LIGHTING SERVICE CLASSIFICATION~Retail Transmission Rate - Network Service Rate","STREET LIGHTING SERVICE CLASSIFICATION~Retail Transmission Rate - Line and Transformation Connection Service Rate"]
["Elexicon Energy Inc.-Veridian Rate Zone","RESIDENTIAL SERVICE CLASSIFICATION~Retail Transmission Rate - Network Service Rate","RESIDENTIAL SERVICE CLASSIFICATION~Retail Transmission Rate - Line and Transformation Connection Service Rate","SEASONAL RESIDENTIAL SERVICE CLASSIFICATION~Retail Transmission Rate - Network Service Rate","SEASONAL RESIDENTIAL SERVICE CLASSIFICATION~Retail Transmission Rate - Line and Transformation Connection Service Rate","GENERAL SERVICE LESS THAN 50 KW SERVICE CLASSIFICATION~Retail Transmission Rate - Network Service Rate","GENERAL SERVICE LESS THAN 50 KW SERVICE CLASSIFICATION~Retail Transmission Rate - Line and Transformation Connection Service Rate","GENERAL SERVICE 50 TO 2,999 KW SERVICE CLASSIFICATION~Retail Transmission Rate - Network Service Rate","GENERAL SERVICE 50 TO 2,999 KW SERVICE CLASSIFICATION~Retail Transmission Rate - Line and Transformation Connection Service Rate","GENERAL SERVICE 3,000 TO 4,999 KW SERVICE CLASSIFICATION~Retail Transmission Rate - Network Service Rate","GENERAL SERVICE 3,000 TO 4,999 KW SERVICE CLASSIFICATION~Retail Transmission Rate - Line and Transformation Connection Service Rate ","LARGE USE SERVICE CLASSIFICATION~Retail Transmission Rate - Network Service Rate","LARGE USE SERVICE CLASSIFICATION~Retail Transmission Rate - Line and Transformation Connection Service Rate ","UNMETERED SCATTERED LOAD SERVICE CLASSIFICATION~Retail Transmission Rate - Network Service Rate","UNMETERED SCATTERED LOAD SERVICE CLASSIFICATION~Retail Transmission Rate - Line and Transformation Connection Service Rate","SENTINEL LIGHTING SERVICE CLASSIFICATION~Retail Transmission Rate - Network Service Rate","SENTINEL LIGHTING SERVICE CLASSIFICATION~Retail Transmission Rate - Line and Transformation Connection Service Rate","STREET LIGHTING SERVICE CLASSIFICATION~Retail Transmission Rate - Network Service Rate","STREET LIGHTING SERVICE CLASSIFICATION~Retail Transmission Rate - Line and Transformation Connection Service Rate"]
["Wasaga Distribution Inc.","RESIDENTIAL SERVICE CLASSIFICATION~Retail Transmission Rate - Network Service Rate","RESIDENTIAL SERVICE CLASSIFICATION~Retail Transmission Rate - Line and Transformation Connection Service Rate","GENERAL SERVICE LESS THAN 50 KW SERVICE CLASSIFICATION~Retail Transmission Rate - Network Service Rate","GENERAL SERVICE LESS THAN 50 KW SERVICE CLASSIFICATION~Retail Transmission Rate - Line and Transformation Connection Service Rate","GENERAL SERVICE 50 to 4,999 kW SERVICE CLASSIFICATION~Retail Transmission Rate - Network Service Rate","GENERAL SERVICE 50 to 4,999 kW SERVICE CLASSIFICATION~Retail Transmission Rate - Line and Transformation Connection Service Rate","UNMETERED SCATTERED LOAD SERVICE CLASSIFICATION~Retail Transmission Rate - Network Service Rate","UNMETERED SCATTERED LOAD SERVICE CLASSIFICATION~Retail Transmission Rate - Line and Transformation Connection Service Rate","STREET LIGHTING SERVICE CLASSIFICATION~Retail Transmission Rate - Network Service Rate","STREET LIGHTING SERVICE CLASSIFICATION~Retail Transmission Rate - Line and Transformation Connection Service Rate"]
["ERTH Power Corporation – Goderich Rate Zone","RESIDENTIAL SERVICE CLASSIFICATION~Retail Transmission Rate - Network Service Rate","RESIDENTIAL SERVICE CLASSIFICATION~Retail Transmission Rate - Line and Transformation Connection Service Rate","GENERAL SERVICE LESS THAN 50 KW SERVICE CLASSIFICATION~Retail Transmission Rate - Network Service Rate","GENERAL SERVICE LESS THAN 50 KW SERVICE CLASSIFICATION~Retail Transmission Rate - Line and Transformation Connection Service Rate","GENERAL SERVICE 50 TO 499 KW SERVICE CLASSIFICATION~Retail Transmission Rate - Network Service Rate","GENERAL SERVICE 50 TO 499 KW SERVICE CLASSIFICATION~Retail Transmission Rate - Line and Transformation Connection Service Rate","GENERAL SERVICE 500 TO 4,999 KW SERVICE CLASSIFICATION~Retail Transmission Rate - Network Service Rate","GENERAL SERVICE 500 TO 4,999 KW SERVICE CLASSIFICATION~Retail Transmission Rate - Line and Transformation Connection Service Rate","LARGE USE SERVICE CLASSIFICATION~Retail Transmission Rate - Network Service Rate","LARGE USE SERVICE CLASSIFICATION~Retail Transmission Rate - Line and Transformation Connection Service Rate","UNMETERED SCATTERED LOAD SERVICE CLASSIFICATION~Retail Transmission Rate - Network Service Rate","UNMETERED SCATTERED LOAD SERVICE CLASSIFICATION~Retail Transmission Rate - Line and Transformation Connection Service Rate","SENTINEL LIGHTING SERVICE CLASSIFICATION~Retail Transmission Rate - Network Service Rate","SENTINEL LIGHTING SERVICE CLASSIFICATION~Retail Transmission Rate - Line and Transformation Connection Service Rate","STREET LIGHTING SERVICE CLASSIFICATION~Retail Transmission Rate - Network Service Rate","STREET LIGHTING SERVICE CLASSIFICATION~Retail Transmission Rate - Line and Transformation Connection Service Rate"]
["Oshawa PUC Networks Inc.","RESIDENTIAL SERVICE CLASSIFICATION~Retail Transmission Rate - Network Service Rate","RESIDENTIAL SERVICE CLASSIFICATION~Retail Transmission Rate - Line and Transformation Connection Service Rate","GENERAL SERVICE LESS THAN 50 KW SERVICE CLASSIFICATION~Retail Transmission Rate - Network Service Rate","GENERAL SERVICE LESS THAN 50 KW SERVICE CLASSIFICATION~Retail Transmission Rate - Line and Transformation Connection Service Rate","GENERAL SERVICE 50 TO 999 KW SERVICE CLASSIFICATION~Retail Transmission Rate - Network Service Rate","GENERAL SERVICE 50 TO 999 KW SERVICE CLASSIFICATION~Retail Transmission Rate - Line and Transformation Connection Service Rate","GENERAL SERVICE 50 TO 999 KW SERVICE CLASSIFICATION~Retail Transmission Rate - Network Service Rate - Interval Metered","GENERAL SERVICE 50 TO 999 KW SERVICE CLASSIFICATION~Retail Transmission Rate - Line and Transformation Connection Service Rate - Interval Metered","GENERAL SERVICE 1,000 TO 4,999 KW SERVICE CLASSIFICATION~Retail Transmission Rate - Network Service Rate - Interval Metered","GENERAL SERVICE 1,000 TO 4,999 KW SERVICE CLASSIFICATION~Retail Transmission Rate - Line and Transformation Connection Service Rate - Interval Metered","LARGE USE SERVICE CLASSIFICATION~Retail Transmission Rate - Network Service Rate - Interval Metered","LARGE USE SERVICE CLASSIFICATION~Retail Transmission Rate - Line and Transformation Connection Service Rate - Interval Metered","UNMETERED SCATTERED LOAD SERVICE CLASSIFICATION~Retail Transmission Rate - Network Service Rate","UNMETERED SCATTERED LOAD SERVICE CLASSIFICATION~Retail Transmission Rate - Line and Transformation Connection Service Rate","SENTINEL LIGHTING SERVICE CLASSIFICATION~Retail Transmission Rate - Network Service Rate","SENTINEL LIGHTING SERVICE CLASSIFICATION~Retail Transmission Rate - Line and Transformation Connection Service Rate","STREET LIGHTING SERVICE CLASSIFICATION~Retail Transmission Rate - Network Service Rate","STREET LIGHTING SERVICE CLASSIFICATION~Retail Transmission Rate - Line and Transformation Connection Service Rate"]
["Brantford Power Inc.","RESIDENTIAL SERVICE CLASSIFICATION~Retail Transmission Rate - Network Service Rate","RESIDENTIAL SERVICE CLASSIFICATION~Retail Transmission Rate - Line and Transformation Connection Service Rate","GENERAL SERVICE LESS THAN 50 KW SERVICE CLASSIFICATION~Retail Transmission Rate - Network Service Rate","GENERAL SERVICE LESS THAN 50 KW SERVICE CLASSIFICATION~Retail Transmission Rate - Line and Transformation Connection Service Rate","GENERAL SERVICE 50 to 4,999 kW SERVICE CLASSIFICATION~Retail Transmission Rate - Network Service Rate","GENERAL SERVICE 50 to 4,999 kW SERVICE CLASSIFICATION~Retail Transmission Rate - Line and Transformation Connection Service Rate","EMBEDDED DISTRIBUTOR SERVICE CLASSIFICATION~Retail Transmission Rate - Network Service Rate","EMBEDDED DISTRIBUTOR SERVICE CLASSIFICATION~Retail Transmission Rate - Line and Transformation Connection Service Rate","SENTINEL LIGHTING SERVICE CLASSIFICATION~Retail Transmission Rate - Network Service Rate","SENTINEL LIGHTING SERVICE CLASSIFICATION~Retail Transmission Rate - Line and Transformation Connection Service Rate","STREET LIGHTING SERVICE CLASSIFICATION~Retail Transmission Rate - Network Service Rate","STREET LIGHTING SERVICE CLASSIFICATION~Retail Transmission Rate - Line and Transformation Connection Service Rate","UNMETERED SCATTERED LOAD SERVICE CLASSIFICATION~Retail Transmission Rate - Network Service Rate","UNMETERED SCATTERED LOAD SERVICE CLASSIFICATION~Retail Transmission Rate - Line and Transformation Connection Service Rate"]
["Oakville Hydro Electricity Distribution Inc.","RESIDENTIAL SERVICE CLASSIFICATION~Retail Transmission Rate - Network Service Rate","RESIDENTIAL SERVICE CLASSIFICATION~Retail Transmission Rate - Line and Transformation Connection Service Rate","GENERAL SERVICE LESS THAN 50 KW SERVICE CLASSIFICATION~Retail Transmission Rate - Network Service Rate","GENERAL SERVICE LESS THAN 50 KW SERVICE CLASSIFICATION~Retail Transmission Rate - Line and Transformation Connection Service Rate","GENERAL SERVICE 50 TO 999 KW SERVICE CLASSIFICATION~Retail Transmission Rate - Network Service Rate","GENERAL SERVICE 50 TO 999 KW SERVICE CLASSIFICATION~Retail Transmission Rate - Network Service Rate - Interval Metered","GENERAL SERVICE 50 TO 999 KW SERVICE CLASSIFICATION~Retail Transmission Rate - Line and Transformation Connection Service Rate","GENERAL SERVICE 50 TO 999 KW SERVICE CLASSIFICATION~Retail Transmission Rate - Line and Transformation Connection Service Rate - Interval Metered","GENERAL SERVICE 1,000 KW AND GREATER SERVICE CLASSIFICATION~Retail Transmission Rate - Network Service Rate - Interval Metered","GENERAL SERVICE 1,000 KW AND GREATER SERVICE CLASSIFICATION~Retail Transmission Rate - Line and Transformation Connection Service Rate - Interval Metered","UNMETERED SCATTERED LOAD SERVICE CLASSIFICATION~Retail Transmission Rate - Network Service Rate","UNMETERED SCATTERED LOAD SERVICE CLASSIFICATION~Retail Transmission Rate - Line and Transformation Connection Service Rate","SENTINEL LIGHTING SERVICE CLASSIFICATION~Retail Transmission Rate - Network Service Rate","SENTINEL LIGHTING SERVICE CLASSIFICATION~Retail Transmission Rate - Line and Transformation Connection Service Rate","STREET LIGHTING SERVICE CLASSIFICATION~Retail Transmission Rate - Network Service Rate","STREET LIGHTING SERVICE CLASSIFICATION~Retail Transmission Rate - Line and Transformation Connection Service Rate","EMBEDDED DISTRIBUTOR SERVICE CLASSIFICATION~Retail Transmission Rate - Network Service Rate","EMBEDDED DISTRIBUTOR SERVICE CLASSIFICATION~Retail Transmission Rate - Line and Transformation Connection Service Rate"]
["Chapleau Public Utilities Corporation","RESIDENTIAL SERVICE CLASSIFICATION~Retail Transmission Rate - Network Service Rate","RESIDENTIAL SERVICE CLASSIFICATION~Retail Transmission Rate - Line and Transformation Connection Service Rate","GENERAL SERVICE LESS THAN 50 kW SERVICE CLASSIFICATION~Retail Transmission Rate - Network Service Rate","GENERAL SERVICE LESS THAN 50 kW SERVICE CLASSIFICATION~Retail Transmission Rate - Line and Transformation Connection Service Rate","GENERAL SERVICE 50 TO 4,999 KW SERVICE CLASSIFICATION~Retail Transmission Rate - Network Service Rate","GENERAL SERVICE 50 TO 4,999 KW SERVICE CLASSIFICATION~Retail Transmission Rate - Line and Transformation Connection Service Rate","UNMETERED SCATTERED LOAD SERVICE CLASSIFICATION~Retail Transmission Rate - Network Service Rate","UNMETERED SCATTERED LOAD SERVICE CLASSIFICATION~Retail Transmission Rate - Line and Transformation Connection Service Rate","SENTINEL LIGHTING SERVICE CLASSIFICATION~Retail Transmission Rate - Network Service Rate","SENTINEL LIGHTING SERVICE CLASSIFICATION~Retail Transmission Rate - Line and Transformation Connection Service Rate","STREET LIGHTING SERVICE CLASSIFICATION~Retail Transmission Rate - Network Service Rate","STREET LIGHTING SERVICE CLASSIFICATION~Retail Transmission Rate - Line and Transformation Connection Service Rate"]
["Espanola Regional Hydro Distribution Corporation","RESIDENTIAL SERVICE CLASSIFICATION~Retail Transmission Rate - Network Service Rate","RESIDENTIAL SERVICE CLASSIFICATION~Retail Transmission Rate - Line and Transformation Connection Service Rate","GENERAL SERVICE LESS THAN 50 kW SERVICE CLASSIFICATION~Retail Transmission Rate - Network Service Rate","GENERAL SERVICE LESS THAN 50 kW SERVICE CLASSIFICATION~Retail Transmission Rate - Line and Transformation Connection Service Rate","GENERAL SERVICE 50 TO 4,999 KW SERVICE CLASSIFICATION~Retail Transmission Rate - Network Service Rate","GENERAL SERVICE 50 TO 4,999 KW SERVICE CLASSIFICATION~Retail Transmission Rate - Line and Transformation Connection Service Rate","GENERAL SERVICE 50 TO 4,999 KW SERVICE CLASSIFICATION~Retail Transmission Rate - Network Service Rate - Interval Metered","GENERAL SERVICE 50 TO 4,999 KW SERVICE CLASSIFICATION~Retail Transmission Rate - Line and Transformation Connection Service Rate - Interval Metered","UNMETERED SCATTERED LOAD SERVICE CLASSIFICATION~Retail Transmission Rate - Network Service Rate","UNMETERED SCATTERED LOAD SERVICE CLASSIFICATION~Retail Transmission Rate - Line and Transformation Connection Service Rate","SENTINEL LIGHTING SERVICE CLASSIFICATION~Retail Transmission Rate - Network Service Rate","SENTINEL LIGHTING SERVICE CLASSIFICATION~Retail Transmission Rate - Line and Transformation Connection Service Rate","STREET LIGHTING SERVICE CLASSIFICATION~Retail Transmission Rate - Network Service Rate","STREET LIGHTING SERVICE CLASSIFICATION~Retail Transmission Rate - Line and Transformation Connection Service Rate"]
["Hydro 2000 Inc.","RESIDENTIAL SERVICE CLASSIFICATION~Retail Transmission Rate - Network Service Rate","RESIDENTIAL SERVICE CLASSIFICATION~Retail Transmission Rate - Line and Transformation Connection Service Rate","GENERAL SERVICE LESS THAN 50 kW SERVICE CLASSIFICATION~Retail Transmission Rate - Network Service Rate","GENERAL SERVICE LESS THAN 50 kW SERVICE CLASSIFICATION~Retail Transmission Rate - Line and Transformation Connection Service Rate","GENERAL SERVICE 50 TO 4,999 KW SERVICE CLASSIFICATION~Retail Transmission Rate - Network Service Rate","GENERAL SERVICE 50 TO 4,999 KW SERVICE CLASSIFICATION~Retail Transmission Rate - Line and Transformation Connection Service Rate","STREET LIGHTING SERVICE CLASSIFICATION~Retail Transmission Rate - Network Service Rate","STREET LIGHTING SERVICE CLASSIFICATION~Retail Transmission Rate - Line and Transformation Connection Service Rate","UNMETERED SCATTERED LOAD SERVICE CLASSIFICATION~Retail Transmission Rate - Network Service Rate","UNMETERED SCATTERED LOAD SERVICE CLASSIFICATION~Retail Transmission Rate - Line and Transformation Connection Service Rate"]
["Niagara-on-the-Lake Hydro Inc.","RESIDENTIAL SERVICE CLASSIFICATION~Retail Transmission Rate - Network Service Rate","RESIDENTIAL SERVICE CLASSIFICATION~Retail Transmission Rate - Line and Transformation Connection Service Rate","GENERAL SERVICE LESS THAN 50 KW SERVICE CLASSIFICATION~Retail Transmission Rate - Network Service Rate","GENERAL SERVICE LESS THAN 50 KW SERVICE CLASSIFICATION~Retail Transmission Rate - Line and Transformation Connection Service Rate","GENERAL SERVICE 50 to 4,999 kW SERVICE CLASSIFICATION~Retail Transmission Rate - Network Service Rate","GENERAL SERVICE 50 to 4,999 kW SERVICE CLASSIFICATION~Retail Transmission Rate - Line and Transformation Connection Service Rate","LARGE USE SERVICE CLASSIFICATION~Retail Transmission Rate - Network Service Rate - Interval Metered","LARGE USE SERVICE CLASSIFICATION~Retail Transmission Rate - Line and Transformation Connection Service Rate - Interval Metered","UNMETERED SCATTERED LOAD SERVICE CLASSIFICATION~Retail Transmission Rate - Network Service Rate","UNMETERED SCATTERED LOAD SERVICE CLASSIFICATION~Retail Transmission Rate - Line and Transformation Connection Service Rate","STREET LIGHTING SERVICE CLASSIFICATION~Retail Transmission Rate - Network Service Rate","STREET LIGHTING SERVICE CLASSIFICATION~Retail Transmission Rate - Line and Transformation Connection Service Rate"]
["PUC Distribution Inc.","RESIDENTIAL SERVICE CLASSIFICATION~Retail Transmission Rate - Network Service Rate","GENERAL SERVICE LESS THAN 50 KW SERVICE CLASSIFICATION~Retail Transmission Rate - Network Service Rate","GENERAL SERVICE 50 to 4,999 kW SERVICE CLASSIFICATION~Retail Transmission Rate - Network Service Rate","GENERAL SERVICE 50 to 4,999 kW SERVICE CLASSIFICATION~Retail Transmission Rate - Network Service Rate - Interval Metered","UNMETERED SCATTERED LOAD SERVICE CLASSIFICATION~Retail Transmission Rate - Network Service Rate","SENTINEL LIGHTING SERVICE CLASSIFICATION~Retail Transmission Rate - Network Service Rate","STREET LIGHTING SERVICE CLASSIFICATION~Retail Transmission Rate - Network Service Rate"]
["Hydro One Networks Inc.","YEAR-ROUND URBAN DENSITY - UR SERVICE CLASSIFICATION~Retail Transmission Rate - Network Service Rate","YEAR-ROUND URBAN DENSITY - UR SERVICE CLASSIFICATION~Retail Transmission Rate - Line and Transformation Connection Service Rate","YEAR-ROUND MEDIUM DENSITY - R1 SERVICE CLASSIFICATION~Retail Transmission Rate - Network Service Rate","YEAR-ROUND MEDIUM DENSITY - R1 SERVICE CLASSIFICATION~Retail Transmission Rate - Line and Transformation Connection Service Rate","YEAR-ROUND LOW DENSITY - R2 SERVICE CLASSIFICATION~Retail Transmission Rate - Network Service Rate","YEAR-ROUND LOW DENSITY - R2 SERVICE CLASSIFICATION~Retail Transmission Rate - Line and Transformation Connection Service Rate","SEASONAL SERVICE CLASSIFICATION~Retail Transmission Rate - Network Service Rate","SEASONAL SERVICE CLASSIFICATION~Retail Transmission Rate - Line and Transformation Connection Service Rate","URBAN GENERAL SERVICE ENERGY BILLED - UGe SERVICE CLASSIFICATION~Retail Transmission Rate - Network Service Rate","URBAN GENERAL SERVICE ENERGY BILLED - UGe SERVICE CLASSIFICATION~Retail Transmission Rate - Line and Transformation Connection Service Rate","GENERAL SERVICE ENERGY BILLED - GSe SERVICE CLASSIFICATION~Retail Transmission Rate - Network Service Rate","GENERAL SERVICE ENERGY BILLED - GSe SERVICE CLASSIFICATION~Retail Transmission Rate - Line and Transformation Connection Service Rate","URBAN GENERAL SERVICE DEMAND BILLED - UGd SERVICE CLASSIFICATION~Retail Transmission Rate - Network Service Rate","URBAN GENERAL SERVICE DEMAND BILLED - UGd SERVICE CLASSIFICATION~Retail Transmission Rate - Line and Transformation Connection Service Rate","GENERAL SERVICE DEMAND BILLED - GSd SERVICE CLASSIFICATION~Retail Transmission Rate - Network Service Rate","GENERAL SERVICE DEMAND BILLED - GSd SERVICE CLASSIFICATION~Retail Transmission Rate - Line and Transformation Connection Service Rate","DISTRIBUTED GENERATION - DGen SERVICE CLASSIFICATION~Retail Transmission Rate - Network Service Rate","DISTRIBUTED GENERATION - DGen SERVICE CLASSIFICATION~Retail Transmission Rate - Line and Transformation Connection Service Rate","SUB TRANSMISSION - ST SERVICE CLASSIFICATION~Retail Transmission Rate - Network Service Rate","SUB TRANSMISSION - ST SERVICE CLASSIFICATION~Retail Transmission Rate - Line Connection Service Rate","SUB TRANSMISSION - ST SERVICE CLASSIFICATION~Retail Transmission Rate - Transformation Connection Service Rate","UNMETERED SCATTERED LOAD SERVICE CLASSIFICATION~Retail Transmission Rate - Network Service Rate","UNMETERED SCATTERED LOAD SERVICE CLASSIFICATION~Retail Transmission Rate - Line and Transformation Connection Service Rate","SENTINEL LIGHTING SERVICE CLASSIFICATION~Retail Transmission Rate - Network Service Rate","SENTINEL LIGHTING SERVICE CLASSIFICATION~Retail Transmission Rate - Line and Transformation Connection Service Rate","STREET LIGHTING SERVICE CLASSIFICATION~Retail Transmission Rate - Network Service Rate","STREET LIGHTING SERVICE CLASSIFICATION~Retail Transmission Rate - Line and Transformation Connection Service Rate"]
["Enova Power Corp.-Kitchener-Wilmot Hydro Rate Zone","RESIDENTIAL SERVICE CLASSIFICATION~Retail Transmission Rate - Network Service Rate","RESIDENTIAL SERVICE CLASSIFICATION~Retail Transmission Rate - Line and Transformation Connection Service Rate","GENERAL SERVICE LESS THAN 50 KW SERVICE CLASSIFICATION~Retail Transmission Rate - Network Service Rate","GENERAL SERVICE LESS THAN 50 KW SERVICE CLASSIFICATION~Retail Transmission Rate - Line and Transformation Connection Service Rate","GENERAL SERVICE 50 to 4,999 kW SERVICE CLASSIFICATION~Retail Transmission Rate - Network Service Rate","GENERAL SERVICE 50 to 4,999 kW SERVICE CLASSIFICATION~Retail Transmission Rate - Line and Transformation Connection Service Rate","LARGE USE SERVICE CLASSIFICATION~Retail Transmission Rate - Network Service Rate - Interval Metered","LARGE USE SERVICE CLASSIFICATION~Retail Transmission Rate - Line and Transformation Connection Service Rate - Interval Metered","UNMETERED SCATTERED LOAD SERVICE CLASSIFICATION~Retail Transmission Rate - Network Service Rate","UNMETERED SCATTERED LOAD SERVICE CLASSIFICATION~Retail Transmission Rate - Line and Transformation Connection Service Rate","STREET LIGHTING SERVICE CLASSIFICATION~Retail Transmission Rate - Network Service Rate","STREET LIGHTING SERVICE CLASSIFICATION~Retail Transmission Rate - Line and Transformation Connection Service Rate","EMBEDDED DISTRIBUTOR SERVICE CLASSIFICATION~Retail Transmission Rate - Network Service Rate","EMBEDDED DISTRIBUTOR SERVICE CLASSIFICATION~Retail Transmission Rate - Line and Transformation Connection Service Rate"]
["Enova Power Corp.-Waterloo North Rate Zone","RESIDENTIAL SERVICE CLASSIFICATION~Retail Transmission Rate - Network Service Rate","RESIDENTIAL SERVICE CLASSIFICATION~Retail Transmission Rate - Line and Transformation Connection Service Rate","GENERAL SERVICE LESS THAN 50 KW SERVICE CLASSIFICATION~Retail Transmission Rate - Network Service Rate","GENERAL SERVICE LESS THAN 50 KW SERVICE CLASSIFICATION~Retail Transmission Rate - Line and Transformation Connection Service Rate","GENERAL SERVICE 50 to 4,999 kW SERVICE CLASSIFICATION~Retail Transmission Rate - Network Service Rate","GENERAL SERVICE 50 to 4,999 kW SERVICE CLASSIFICATION~Retail Transmission Rate - Line and Transformation Connection Service Rate","LARGE USE SERVICE CLASSIFICATION~Retail Transmission Rate - Network Service Rate - Interval Metered","LARGE USE SERVICE CLASSIFICATION~Retail Transmission Rate - Line and Transformation Connection Service Rate - Interval Metered","UNMETERED SCATTERED LOAD SERVICE CLASSIFICATION~Retail Transmission Rate - Network Service Rate","UNMETERED SCATTERED LOAD SERVICE CLASSIFICATION~Retail Transmission Rate - Line and Transformation Connection Service Rate","STREET LIGHTING SERVICE CLASSIFICATION~Retail Transmission Rate - Network Service Rate","STREET LIGHTING SERVICE CLASSIFICATION~Retail Transmission Rate - Line and Transformation Connection Service Rate","EMBEDDED DISTRIBUTOR SERVICE CLASSIFICATION~Retail Transmission Rate - Network Service Rate","EMBEDDED DISTRIBUTOR SERVICE CLASSIFICATION~Retail Transmission Rate - Line and Transformation Connection Service Rate"]
["GrandBridge Energy Inc.-Brantford Power Rate Zone ","RESIDENTIAL SERVICE CLASSIFICATION~Retail Transmission Rate - Network Service Rate","RESIDENTIAL SERVICE CLASSIFICATION~Retail Transmission Rate - Line and Transformation Connection Service Rate","GENERAL SERVICE LESS THAN 50 KW SERVICE CLASSIFICATION~Retail Transmission Rate - Network Service Rate","GENERAL SERVICE LESS THAN 50 KW SERVICE CLASSIFICATION~Retail Transmission Rate - Line and Transformation Connection Service Rate","EMBEDDED DISTRIBUTOR SERVICE CLASSIFICATION~Retail Transmission Rate - Network Service Rate","EMBEDDED DISTRIBUTOR SERVICE CLASSIFICATION~Retail Transmission Rate - Line and Transformation Connection Service Rate","UNMETERED SCATTERED LOAD SERVICE CLASSIFICATION~Retail Transmission Rate - Network Service Rate","UNMETERED SCATTERED LOAD SERVICE CLASSIFICATION~Retail Transmission Rate - Line and Transformation Connection Service Rate","SENTINEL LIGHTING SERVICE CLASSIFICATION~Retail Transmission Rate - Network Service Rate","SENTINEL LIGHTING SERVICE CLASSIFICATION~Retail Transmission Rate - Line and Transformation Connection Service Rate","STREET LIGHTING SERVICE CLASSIFICATION~Retail Transmission Rate - Network Service Rate","STREET LIGHTING SERVICE CLASSIFICATION~Retail Transmission Rate - Line and Transformation Connection Service Rate"]
["GrandBridge Energy Inc.-Energy+ Rate Zone ","RESIDENTIAL SERVICE CLASSIFICATION~Retail Transmission Rate - Network Service Rate","RESIDENTIAL SERVICE CLASSIFICATION~Retail Transmission Rate - Line and Transformation Connection Service Rate","GENERAL SERVICE LESS THAN 50 KW SERVICE CLASSIFICATION~Retail Transmission Rate - Network Service Rate","GENERAL SERVICE LESS THAN 50 KW SERVICE CLASSIFICATION~Retail Transmission Rate - Line and Transformation Connection Service Rate","GENERAL SERVICE 50 to 999 kW SERVICE CLASSIFICATION~Retail Transmission Rate - Network Service Rate","GENERAL SERVICE 50 to 999 kW SERVICE CLASSIFICATION~Retail Transmission Rate - Line and Transformation Connection Service Rate","GENERAL SERVICE 1000 to 4,999 kW SERVICE CLASSIFICATION~Retail Transmission Rate - Network Service Rate","GENERAL SERVICE 1000 to 4,999 kW SERVICE CLASSIFICATION~Retail Transmission Rate - Line and Transformation Connection Service Rate","LARGE USE SERVICE CLASSIFICATION~Retail Transmission Rate - Network Service Rate - Interval Metered","LARGE USE SERVICE CLASSIFICATION~Retail Transmission Rate - Line and Transformation Connection Service Rate - Interval Metered","UNMETERED SCATTERED LOAD SERVICE CLASSIFICATION~Retail Transmission Rate - Network Service Rate","UNMETERED SCATTERED LOAD SERVICE CLASSIFICATION~Retail Transmission Rate - Line and Transformation Connection Service Rate","STREET LIGHTING SERVICE CLASSIFICATION~Retail Transmission Rate - Network Service Rate","STREET LIGHTING SERVICE CLASSIFICATION~Retail Transmission Rate - Line and Transformation Connection Service Rate","SENTINEL LIGHTING SERVICE CLASSIFICATION~Retail Transmission Rate - Network Service Rate","SENTINEL LIGHTING SERVICE CLASSIFICATION~Retail Transmission Rate - Line and Transformation Connection Service Rate"]
["Hydro One Networks Inc.-Former Orillia Power Distribution Corporation Service Area","RESIDENTIAL SERVICE CLASSIFICATION~Retail Transmission Rate - Network Service Rate","RESIDENTIAL SERVICE CLASSIFICATION~Retail Transmission Rate - Line and Transformation Connection Service Rate","GENERAL SERVICE LESS THAN 50 KW SERVICE CLASSIFICATION~Retail Transmission Rate - Network Service Rate","GENERAL SERVICE LESS THAN 50 KW SERVICE CLASSIFICATION~Retail Transmission Rate - Line and Transformation Connection Service Rate","GENERAL SERVICE 50 to 4,999 kW SERVICE CLASSIFICATION~Retail Transmission Rate - Network Service Rate","GENERAL SERVICE 50 to 4,999 kW SERVICE CLASSIFICATION~Retail Transmission Rate - Line and Transformation Connection Service Rate","UNMETERED SCATTERED LOAD SERVICE CLASSIFICATION~Retail Transmission Rate - Network Service Rate","UNMETERED SCATTERED LOAD SERVICE CLASSIFICATION~Retail Transmission Rate - Line and Transformation Connection Service Rate","SENTINEL LIGHTING SERVICE CLASSIFICATION~Retail Transmission Rate - Network Service Rate","SENTINEL LIGHTING SERVICE CLASSIFICATION~Retail Transmission Rate - Line and Transformation Connection Service Rate","STREET LIGHTING SERVICE CLASSIFICATION~Retail Transmission Rate - Network Service Rate","STREET LIGHTING SERVICE CLASSIFICATION~Retail Transmission Rate - Line and Transformation Connection Service Rate"]
["Hydro One Networks Inc.-Former Peterborough Distribution Inc. Service Area","RESIDENTIAL SERVICE CLASSIFICATION~Retail Transmission Rate - Network Service Rate","RESIDENTIAL SERVICE CLASSIFICATION~Retail Transmission Rate - Line and Transformation Connection Service Rate","GENERAL SERVICE LESS THAN 50 KW SERVICE CLASSIFICATION~Retail Transmission Rate - Network Service Rate","GENERAL SERVICE LESS THAN 50 KW SERVICE CLASSIFICATION~Retail Transmission Rate - Line and Transformation Connection Service Rate","GENERAL SERVICE 50 to 4,999 kW SERVICE CLASSIFICATION~Retail Transmission Rate - Network Service Rate","GENERAL SERVICE 50 to 4,999 kW SERVICE CLASSIFICATION~Retail Transmission Rate - Line and Transformation Connection Service Rate","LARGE USE SERVICE CLASSIFICATION~Retail Transmission Rate - Network Service Rate - Interval Metered","LARGE USE SERVICE CLASSIFICATION~Retail Transmission Rate - Line and Transformation Connection Service Rate - Interval Metered","UNMETERED SCATTERED LOAD SERVICE CLASSIFICATION~Retail Transmission Rate - Network Service Rate","UNMETERED SCATTERED LOAD SERVICE CLASSIFICATION~Retail Transmission Rate - Line and Transformation Connection Service Rate","SENTINEL LIGHTING SERVICE CLASSIFICATION~Retail Transmission Rate - Network Service Rate","SENTINEL LIGHTING SERVICE CLASSIFICATION~Retail Transmission Rate - Line and Transformation Connection Service Rate","STREET LIGHTING SERVICE CLASSIFICATION~Retail Transmission Rate - Network Service Rate","STREET LIGHTING SERVICE CLASSIFICATION~Retail Transmission Rate - Line and Transformation Connection Service Rate"]

{"sheet":"DELETE 3. Rate Classes","index":12,"n_rows":100,"n_cols":23,"rows_kept":100,"cut":false,"hidden":true,"merged":[[12,2,12,8]]}
[]
[]
[]
[]
[]
[]
[]
[]
[]
[]
[]
[]
[null,null,"1.  Select the appropriate rate classes that appear on your most recent OEB-Approved Tariff of Rates and Charges.\n2.  Enter the RTSR Network and Connection Rate as it appears on the Tariff of Rates and Charges"]
[]
[null,null,"Rate Class",null,"Unit",null,"RTSR-Network",null,"RTSR-Connection"]
[]
[null,null,null,null,null,null,null,null,null,null,null,{"$f":"IF(OR(ISBLANK(C17), ISERROR(FIND(\"Choose\", C17))=FALSE), 0, 1)","v":0},{"$f":"\"C\" & ROW(C17)","v":"C17"},{"$f":"IF(OR(C17=\"General Service Intermediate Rate Class 1,000 To 4,999 kW (formerly General Service > 50 kW Customers)\", C17=\"General Service Intermediate Rate Class 1,000 To 4,999 kW (formerly Large Use Customers)\"), \"x\", \"\")","v":""},null,null,null,null,null,null,null,null,"Choose Rate Class"]
[null,null,null,null,null,null,null,null,null,null,null,0,"C18",{"$f":"IF(OR(C18=\"General Service Intermediate Rate Class 1,000 To 4,999 kW (formerly General Service > 50 kW Customers)\", C18=\"General Service Intermediate Rate Class 1,000 To 4,999 kW (formerly Large Use Customers)\"), \"x\", \"\")","v":""},null,null,null,null,null,null,null,null,"Residential"]
[null,null,null,null,null,null,null,null,null,null,null,0,"C19","",null,null,null,null,null,null,null,null,"Residential Regular"]
[null,null,null,null,null,null,null,null,null,null,null,0,"C20","",null,null,null,null,null,null,null,null,"Residential Urban"]
[null,null,null,null,null,null,null,null,null,null,null,0,"C21","",null,null,null,null,null,null,null,null,"Residential Urban Year-Round"]
[null,null,null,null,null,null,null,null,null,null,null,{"$f":"IF(OR(ISBLANK(C22), ISERROR(FIND(\"Choose\", C22))=FALSE), 0, 1)","v":0},"C22","",null,null,null,null,null,null,null,null,"Residential Suburban"]
[null,null,null,null,null,null,null,null,null,null,null,0,"C23","",null,null,null,null,null,null,null,null,"Residential Suburban Seasonal"]
[null,null,null,null,null,null,null,null,null,null,null,0,"C24","",null,null,null,null,null,null,null,null,"Residential Suburban Year Round"]
[null,null,null,null,null,null,null,null,null,null,null,0,"C25","",null,null,null,null,null,null,null,null,"Residential - Time of Use"]
[null,null,null,null,null,null,null,null,null,null,null,0,"C26","",null,null,null,null,null,null,null,null,"Residential - Hensall"]
[null,null,null,null,null,null,null,null,null,null,null,0,"C27","",null,null,null,null,null,null,null,null,"Residential – High Density [R1]"]
[null,null,null,null,null,null,null,null,null,null,null,0,"C28","",null,null,null,null,null,null,null,null,"Residential – Normal Density [R2]"]
[null,null,null,null,null,null,null,null,null,null,null,0,"C29","",null,null,null,null,null,null,null,null,"Seasonal Residential – High Density [R3]"]
[null,null,null,null,null,null,null,null,null,null,null,0,"C30","",null,null,null,null,null,null,null,null,"Seasonal Residential – Normal Density [R4]"]
[null,null,null,null,null,null,null,null,null,null,null,0,"C31","",null,null,null,null,null,null,null,null,"Residential – Urban [UR]"]
[null,null,null,null,null,null,null,null,null,null,null,0,"C32","",null,null,null,null,null,null,null,null,"General Service Less Than 50 kW"]
[null,null,null,null,null,null,null,null,null,null,null,0,"C33","",null,null,null,null,null,null,null,null,"General Service Less Than 50 kW – Single Phase energy-billed [G1]"]
[null,null,null,null,null,null,null,null,null,null,null,0,"C34","",null,null,null,null,null,null,null,null,"General Service Less Than 50 kW – Three Phase energy-billed [G3]"]
[null,null,null,null,null,null,null,null,null,null,null,0,"C35","",null,null,null,null,null,null,null,null,"General Service Less Than 50 kW – Transmission Class energy-billed [T]"]
[null,null,null,null,null,null,null,null,null,null,null,0,"C36","",null,null,null,null,null,null,null,null,"General Service Less Than 50 kW – Urban energy-billed [UG]"]
[null,null,null,null,null,null,null,null,null,null,null,0,"C37","",null,null,null,null,null,null,null,null,"Westport Sewage Treatment Plant"]
[null,null,null,null,null,null,null,null,null,null,null,0,"C38","",null,null,null,null,null,null,null,null,"Small Commercial and USL - per meter"]
[null,null,null,null,null,null,null,null,null,null,null,null,null,{"$f":"COUNTIF(N17:N38, \"x\")","v":0},null,null,null,null,null,null,null,null,"Small Commercial and USL - per connection"]
[null,null,null,null,null,null,null,null,null,null,null,null,null,null,null,null,null,null,null,null,null,null,"Farms – Single Phase energy-billed [F1]"]
[null,null,null,null,null,null,null,null,null,null,null,null,null,null,null,null,null,null,null,null,null,null,"General Service 50 to 499 kW"]
[null,null,null,null,null,null,null,null,null,null,null,null,null,null,null,null,null,null,null,null,null,null,"General Service 50 to 699 kW"]
[null,null,null,null,null,null,null,null,null,null,null,null,null,null,null,null,null,null,null,null,null,null,"General Service 50 to 999 kW"]
[null,null,null,null,null,null,null,null,null,null,null,null,null,null,null,null,null,null,null,null,null,null,"General Service 50 to 999 kW - Interval Metered"]
[null,null,null,null,null,null,null,null,null,null,null,null,null,null,null,null,null,null,null,null,null,null,"General Service 50 to 1,000 kW"]
[null,null,null,null,null,null,null,null,null,null,null,null,null,null,null,null,null,null,null,null,null,null,"General Service 50 to 1,000 kW - Interval Meters"]
[null,null,null,null,null,null,null,null,null,null,null,null,null,null,null,null,null,null,null,null,null,null,"General Service 50 to 1,000 kW - Non Interval Meters"]
[null,null,null,null,null,null,null,null,null,null,null,null,null,null,null,null,null,null,null,null,null,null,"General Service 50 to 1,499 kW"]
[null,null,null,null,null,null,null,null,null,null,null,null,null,null,null,null,null,null,null,null,null,null,"General Service 50 to 1,499 kW - Interval Metered"]
[null,null,null,null,null,null,null,null,null,null,null,null,null,null,null,null,null,null,null,null,null,null,"General Service  50 to 2,499 kW"]
[null,null,null,null,null,null,null,null,null,null,null,null,null,null,null,null,null,null,null,null,null,null,"General Service 50 to 2,999 kW"]
[null,null,null,null,null,null,null,null,null,null,null,null,null,null,null,null,null,null,null,null,null,null,"General Service 50 to 2,999 kW - Time of Use"]
[null,null,null,null,null,null,null,null,null,null,null,null,null,null,null,null,null,null,null,null,null,null,"General Service 50 to 4,999 kW"]
[null,null,null,null,null,null,null,null,null,null,null,null,null,null,null,null,null,null,null,null,null,null,"General Service 50 to 4,999 kW – Interval Metered"]
[null,null,null,null,null,null,null,null,null,null,null,null,null,null,null,null,null,null,null,null,null,null,"General Service 50 to 4,999 kW - Time of Use"]
[null,null,null,null,null,null,null,null,null,null,null,null,null,null,null,null,null,null,null,null,null,null,"General Service 50 to 4,999 kW (CoGeneration)"]
[null,null,null,null,null,null,null,null,null,null,null,null,null,null,null,null,null,null,null,null,null,null,"General Service 50 to 4,999 kW (formerly Time of Use)"]
[null,null,null,null,null,null,null,null,null,null,null,null,null,null,null,null,null,null,null,null,null,null,"General Service 500 to 4,999 kW"]
[null,null,null,null,null,null,null,null,null,null,null,null,null,null,null,null,null,null,null,null,null,null,"General Service 700 to 4,999 kW"]
[null,null,null,null,null,null,null,null,null,null,null,null,null,null,null,null,null,null,null,null,null,null,"General Service 1,000 to 2,999 kW"]
[null,null,null,null,null,null,null,null,null,null,null,null,null,null,null,null,null,null,null,null,null,null,"General Service 1,000 to 4,999 kW"]
[null,null,null,null,null,null,null,null,null,null,null,null,null,null,null,null,null,null,null,null,null,null,"General Service 1,000 to 4,999 kW - Interval Meters"]
[null,null,null,null,null,null,null,null,null,null,null,null,null,null,null,null,null,null,null,null,null,null,"General Service 1,000 To 4,999 kW (co-generation)"]
[null,null,null,null,null,null,null,null,null,null,null,null,null,null,null,null,null,null,null,null,null,null,"General Service Greater Than 1,000 kW"]
[null,null,null,null,null,null,null,null,null,null,null,null,null,null,null,null,null,null,null,null,null,null,"General Service Intermediate Rate Class 1,000 To 4,999 kW (formerly Large Use Customers)"]
[null,null,null,null,null,null,null,null,null,null,null,null,null,null,null,null,null,null,null,null,null,null,"General Service Intermediate Rate Class 1,000 To 4,999 kW (formerly General Service > 50 kW Customers)"]
[null,null,null,null,null,null,null,null,null,null,null,null,null,null,null,null,null,null,null,null,null,null,"General Service 1,500 to 4,999 kW"]
[null,null,null,null,null,null,null,null,null,null,null,null,null,null,null,null,null,null,null,null,null,null,"General Service Equal To Or Greater Than 1,500 kW"]
[null,null,null,null,null,null,null,null,null,null,null,null,null,null,null,null,null,null,null,null,null,null,"General Service Equal To Or Greater Than 1,500 kW - Interval Metered"]
[null,null,null,null,null,null,null,null,null,null,null,null,null,null,null,null,null,null,null,null,null,null,"General Service Intermediate 1,000 To 4,999 kW"]
[null,null,null,null,null,null,null,null,null,null,null,null,null,null,null,null,null,null,null,null,null,null,"General Service 2,500 to 4,999 kW"]
[null,null,null,null,null,null,null,null,null,null,null,null,null,null,null,null,null,null,null,null,null,null,"General Service 3,000 to 4,999 kW"]
[null,null,null,null,null,null,null,null,null,null,null,null,null,null,null,null,null,null,null,null,null,null,"General Service 3,000 to 4,999 kW - Interval Metered"]
[null,null,null,null,null,null,null,null,null,null,null,null,null,null,null,null,null,null,null,null,null,null,"General Service 3,000 to 4,999 kW - Intermediate Use"]
[null,null,null,null,null,null,null,null,null,null,null,null,null,null,null,null,null,null,null,null,null,null,"General Service 3,000 to 4,999 kW - Time of Use"]
[null,null,null,null,null,null,null,null,null,null,null,null,null,null,null,null,null,null,null,null,null,null,"Intermediate With Self Generation"]
[null,null,null,null,null,null,null,null,null,null,null,null,null,null,null,null,null,null,null,null,null,null,"General Service - Commercial"]
[null,null,null,null,null,null,null,null,null,null,null,null,null,null,null,null,null,null,null,null,null,null,"General Service - Institutional"]
[null,null,null,null,null,null,null,null,null,null,null,null,null,null,null,null,null,null,null,null,null,null,"Farms – Three Phase energy-billed [F3]"]
[null,null,null,null,null,null,null,null,null,null,null,null,null,null,null,null,null,null,null,null,null,null,"Large Use"]
[null,null,null,null,null,null,null,null,null,null,null,null,null,null,null,null,null,null,null,null,null,null,"Large Use - Regular"]
[null,null,null,null,null,null,null,null,null,null,null,null,null,null,null,null,null,null,null,null,null,null,"Large Use > 5000 kW"]
[null,null,null,null,null,null,null,null,null,null,null,null,null,null,null,null,null,null,null,null,null,null,"Large Use - 3TS"]
[null,null,null,null,null,null,null,null,null,null,null,null,null,null,null,null,null,null,null,null,null,null,"Large Use - Ford Annex"]
[null,null,null,null,null,null,null,null,null,null,null,null,null,null,null,null,null,null,null,null,null,null,"Unmetered Scattered Load"]
[null,null,null,null,null,null,null,null,null,null,null,null,null,null,null,null,null,null,null,null,null,null,"Sentinel Lighting"]
[null,null,null,null,null,null,null,null,null,null,null,null,null,null,null,null,null,null,null,null,null,null,"Street Lighting"]
[null,null,null,null,null,null,null,null,null,null,null,null,null,null,null,null,null,null,null,null,null,null,"Embedded Distributor"]
[null,null,null,null,null,null,null,null,null,null,null,null,null,null,null,null,null,null,null,null,null,null,"Low Voltage Wheeling Charge Rate"]
[null,null,null,null,null,null,null,null,null,null,null,null,null,null,null,null,null,null,null,null,null,null,"Stand-By"]
[null,null,null,null,null,null,null,null,null,null,null,null,null,null,null,null,null,null,null,null,null,null,"Standby Power"]
[null,null,null,null,null,null,null,null,null,null,null,null,null,null,null,null,null,null,null,null,null,null,"Standby Power – INTERIM APPROVAL"]
[null,null,null,null,null,null,null,null,null,null,null,null,null,null,null,null,null,null,null,null,null,null,"Standby Power - APPROVED ON AN INTERIM BASIS"]
[null,null,null,null,null,null,null,null,null,null,null,null,null,null,null,null,null,null,null,null,null,null,"Standby - General Service 50 - 1,000 kW"]
[null,null,null,null,null,null,null,null,null,null,null,null,null,null,null,null,null,null,null,null,null,null,"Standby Power General Service 50 to 1,499 kW"]
[null,null,null,null,null,null,null,null,null,null,null,null,null,null,null,null,null,null,null,null,null,null,"Standby - General Service 1,000 - 5,000 kW"]
[null,null,null,null,null,null,null,null,null,null,null,null,null,null,null,null,null,null,null,null,null,null,"Standby Power General Service 1,500 to 4,999 kW"]
[null,null,null,null,null,null,null,null,null,null,null,null,null,null,null,null,null,null,null,null,null,null,"Standby - Large Use"]
[null,null,null,null,null,null,null,null,null,null,null,null,null,null,null,null,null,null,null,null,null,null,"Standby Power General Service Large Use"]
[null,null,null,null,null,null,null,null,null,null,null,null,null,null,null,null,null,null,null,null,null,null,"Standby Distribution Service"]

{"sheet":"2 1 5 TotalConsumptionData_Dist","index":13,"n_rows":497,"n_cols":19,"rows_kept":497,"cut":false,"hidden":true,"merged":[[0,0,0,3],[1,0,1,3]]}
["2.1.5 TotalConsumptionData_Dist_Ret_Total_Combined_2021_v2"]
[]
[""]
[]
["Filing Year","Company Name","Rate Class","Rate Class Detail","Company Detail Class","Ret_Metered_consumption_in_kWhs","Ret_Metered_consumption_in_kWs","RPPMeterCustkWh","Metered Consumption on RPP - Kw","Metered Consumption on Non-RPP - Kwh","Metered Consumption on Non-RPP - Kw","Billed by IESO For Commodity - Kwh","Billed by IESO For Commodity - Kw","Class_A_Consumption_kWhs","Class_A_Consumption_kWs","Total Consumption - Kwh","Total Consumption - Kw","Calculated_TOTAL_KWH","Calculated_TOTAL_KW"]
[2023,"Alectra Utilities Corporation","Embedded Distributor(s)","Embedded Distributor - Hydro One Brampton","Alectra Utilities Corporation_Hydro One Brampton_Embedded Distributor Service Classification",0,0,0,null,null,null,null,null,null,null,0,0,0,0]
[2023,"Alectra Utilities Corporation","General Service < 50 kW","Distributed Generation - Dgen - Hydro One Brampton","Alectra Utilities Corporation_- Hydro One Brampton_Distributed Generation Service Classification",0,0,0,null,288173,null,null,null,null,null,288173,0,288173,0]
[2023,"Alectra Utilities Corporation","General Service < 50 kW","General Service Less Than 50 kW - Enersource","Alectra Utilities Corporation_ Less Than 50 kW - Enersource_General Service Less Than 50 kW Service Classification",0,0,610013517,null,136451,null,null,null,null,null,610149968,0,610149968,0]
[2023,"Alectra Utilities Corporation","General Service < 50 kW","General Service Less Than 50 kW - Guelph Hydro","Alectra Utilities Corporation_ess Than 50 kW - Guelph Hydro_General Service Less Than 50 kW Service Classification",0,0,117373935,null,null,null,null,null,null,null,117373935,0,117373935,0]
[2023,"Alectra Utilities Corporation","General Service < 50 kW","General Service Less Than 50 kW - Horizon","Alectra Utilities Corporation_ice Less Than 50 kW - Horizon_General Service Less Than 50 kW Service Classification",0,0,488718110,null,1838651,null,null,null,null,null,490556761,0,490556761,0]
[2023,"Alectra Utilities Corporation","General Service < 50 kW","General Service Less Than 50 kW - Hydro One Brampton","Alectra Utilities Corporation_an 50 kW - Hydro One Brampton_General Service Less Than 50 kW Service Classification",0,0,283967363,null,null,null,null,null,null,null,283967363,0,283967363,0]
[2023,"Alectra Utilities Corporation","General Service < 50 kW","General Service Less Than 50 kW - PowerStream","Alectra Utilities Corporation_Less Than 50 kW - PowerStream_General Service Less Than 50 kW Service Classification",0,0,886509649,null,5709269,null,null,null,null,null,892218918,0,892218918,0]
[2023,"Alectra Utilities Corporation","General Service >= 50 kW","Energy From Waste - Hydro One Brampton","Alectra Utilities Corporation_ro One Brampton_Energy From Waste Service Classification",0,0,0,null,null,null,null,null,null,null,0,0,0,0]
[2023,"Alectra Utilities Corporation","General Service >= 50 kW","General Service 1,000 to 4,999 kW - Guelph Hydro","Alectra Utilities Corporation_,000 to 4,999 kW - Guelph Hydro_General Service 1,000 to 4,999 kW Service Classification",0,0,0,null,482656221,1052883,null,null,null,null,482656221,1052883,482656221,1052883]
[2023,"Alectra Utilities Corporation","General Service >= 50 kW","General Service 50 To 999 kW - Guelph Hydro","Alectra Utilities Corporation_0 To 999 kW - Guelph Hydro_General Service 50 To 999 kW Service Classification",0,0,59582356,164297,251729134,667435,5726944,11907,null,null,317038434,843639,317038434,843639]
[2023,"Alectra Utilities Corporation","General Service >= 50 kW","General Service 50 to 4,999 kW - Horizon","Alectra Utilities Corporation_ice 50 to 4,999 kW - Horizon_General Service 50 to 4,999 kW Service Classification",0,0,221128817,599813,1374133598,3727342,8953112,16780,null,null,1604215527,4343935,1604215527,4343935]
[2023,"Alectra Utilities Corporation","General Service >= 50 kW","General Service 50 to 4,999 kW - PowerStream","Alectra Utilities Corporation_50 to 4,999 kW - PowerStream_General Service 50 to 4,999 kW Service Classification",0,0,480548267,1248914,3707874153,9636524,27026834,67567,null,null,4215449254,10953005,4215449254,10953005]
[2023,"Alectra Utilities Corporation","General Service >= 50 kW","General Service 50 to 499 kW - Enersource","Alectra Utilities Corporation_ 50 to 499 kW - Enersource_General Service 50 to 499 kW Service Classification",0,0,346373345,987751,1240712005,3552293,null,null,null,null,1587085350,4540044,1587085350,4540044]
[2023,"Alectra Utilities Corporation","General Service >= 50 kW","General Service 50 to 699 kW - Hydro One Brampton","Alectra Utilities Corporation_99 kW - Hydro One Brampton_General Service 50 to 699 kW Service Classification",0,0,143069083,411795,789930507,2273650,3411951,18445,null,null,936411541,2703890,936411541,2703890]
[2023,"Alectra Utilities Corporation","General Service >= 50 kW","General Service 500 to 4,999 kW - Enersource","Alectra Utilities Corporation_ 500 to 4,999 kW - Enersource_General Service 500 to 4,999 kW Service Classification",0,0,137328568,330467,1320078703,3112513,24252203,49025,null,null,1481659474,3492005,1481659474,3492005]
[2023,"Alectra Utilities Corporation","General Service >= 50 kW","General Service 700 to 4,999 kW - Hydro One Brampton","Alectra Utilities Corporation_4,999 kW - Hydro One Brampton_General Service 700 to 4,999 kW Service Classification",0,0,583753,1332,674040640,1537464,69827529,114419,null,null,744451922,1653215,744451922,1653215]
[2023,"Alectra Utilities Corporation","Large User","Large Use - Enersource","Alectra Utilities Corporation_rsource_Large Use Service Classification",134371201,237188,0,null,857051180,1453338,null,null,null,null,857051180,1453338,991422381,1690526]
[2023,"Alectra Utilities Corporation","Large User","Large Use - Guelph Hydro","Alectra Utilities Corporation_h Hydro_Large Use Service Classification",134371201,237188,0,null,204125168,401558,null,null,null,null,204125168,401558,338496369,638746]
[2023,"Alectra Utilities Corporation","Large User","Large Use - Horizon","Alectra Utilities Corporation_Horizon_Large Use Service Classification",134371201,237188,0,null,157885376,364850,null,null,null,null,157885376,364850,292256577,602038]
[2023,"Alectra Utilities Corporation","Large User","Large Use - Hydro One Brampton","Alectra Utilities Corporation_rampton_Large Use Service Classification",134371201,237188,0,null,264616100,515067,null,null,null,null,264616100,515067,398987301,752255]
[2023,"Alectra Utilities Corporation","Large User","Large Use - PowerStream","Alectra Utilities Corporation_rStream_Large Use Service Classification",134371201,237188,0,null,121322389,191317,null,null,null,null,121322389,191317,255693590,428505]
[2023,"Alectra Utilities Corporation","Large User","Large Use with Dedicated Assets - Horizon","Alectra Utilities Corporation_th Dedicated Assets - Horizon_Large Use with Dedicated Assets Service Classification",134371201,237188,0,null,256876948,607375,730817919,1165390,null,null,987694867,1772765,1122066068,2009953]
[2023,"Alectra Utilities Corporation","Residential","Residential - Enersource","Alectra Utilities Corporation_nersource_Residential Service Classification",22314847,0,1576831528,null,null,null,null,null,null,null,1576831528,0,1599146375,0]
[2023,"Alectra Utilities Corporation","Residential","Residential - Guelph Hydro","Alectra Utilities Corporation_lph Hydro_Residential Service Classification",22314847,0,397140964,null,null,null,null,null,null,null,397140964,0,419455811,0]
[2023,"Alectra Utilities Corporation","Residential","Residential - Horizon","Alectra Utilities Corporation_- Horizon_Residential Service Classification",22314847,0,1696239740,null,-42,null,null,null,null,null,1696239698,0,1718554545,0]
[2023,"Alectra Utilities Corporation","Residential","Residential - Hydro One Brampton","Alectra Utilities Corporation_ Brampton_Residential Service Classification",22314847,0,1491809314,null,null,null,null,null,null,null,1491809314,0,1514124161,0]
[2023,"Alectra Utilities Corporation","Residential","Residential - PowerStream","Alectra Utilities Corporation_werStream_Residential Service Classification",22314847,0,2901002988,null,-9097,null,null,null,null,null,2900993891,0,2923308738,0]
[2023,"Alectra Utilities Corporation","Sentinel Lighting Connections","Sentinel Lighting - Guelph Hydro","Alectra Utilities Corporation_ - Guelph Hydro_Sentinel Lighting Service Classification",0,0,10392,29,null,null,null,null,null,null,10392,29,10392,29]
[2023,"Alectra Utilities Corporation","Sentinel Lighting Connections","Sentinel Lighting - Horizon","Alectra Utilities Corporation_hting - Horizon_Sentinel Lighting Service Classification",0,0,336189,846,61745,155,null,null,null,null,397934,1001,397934,1001]
[2023,"Alectra Utilities Corporation","Sentinel Lighting Connections","Sentinel Lighting - PowerStream","Alectra Utilities Corporation_g - PowerStream_Sentinel Lighting Service Classification",0,0,184175,496,58310,157,null,null,null,null,242485,653,242485,653]
[2023,"Alectra Utilities Corporation","Street Lighting Connections","Street Lighting - Enersource","Alectra Utilities Corporation_ - Enersource_Street Lighting Service Classification",0,0,0,null,13531876,36860,null,null,null,null,13531876,36860,13531876,36860]
[2023,"Alectra Utilities Corporation","Street Lighting Connections","Street Lighting - Guelph Hydro","Alectra Utilities Corporation_ Guelph Hydro_Street Lighting Service Classification",0,0,0,null,3484910,9625,null,null,null,null,3484910,9625,3484910,9625]
[2023,"Alectra Utilities Corporation","Street Lighting Connections","Street Lighting - Horizon","Alectra Utilities Corporation_ing - Horizon_Street Lighting Service Classification",0,0,225550,637,16586945,46848,null,null,null,null,16812495,47485,16812495,47485]
[2023,"Alectra Utilities Corporation","Street Lighting Connections","Street Lighting - Hydro One Brampton","Alectra Utilities Corporation_ One Brampton_Street Lighting Service Classification",0,0,0,null,22607635,63600,null,null,null,null,22607635,63600,22607635,63600]
[2023,"Alectra Utilities Corporation","Street Lighting Connections","Street Lighting - PowerStream","Alectra Utilities Corporation_- PowerStream_Street Lighting Service Classification",0,0,744131,2105,38015750,107563,null,null,null,null,38759881,109668,38759881,109668]
[2023,"Alectra Utilities Corporation","Unmetered Scattered Load Connections","Unmetered Scattered Load - Enersource","Alectra Utilities Corporation_ered Load - Enersource_Unmetered Scattered Load Service Classification",466574,0,10808606,null,null,null,null,null,null,null,10808606,0,11275180,0]
[2023,"Alectra Utilities Corporation","Unmetered Scattered Load Connections","Unmetered Scattered Load - Guelph Hydro","Alectra Utilities Corporation_ed Load - Guelph Hydro_Unmetered Scattered Load Service Classification",466574,0,1578203,null,null,null,null,null,null,null,1578203,0,2044777,0]
[2023,"Alectra Utilities Corporation","Unmetered Scattered Load Connections","Unmetered Scattered Load - Horizon","Alectra Utilities Corporation_attered Load - Horizon_Unmetered Scattered Load Service Classification",466574,0,10004410,null,null,null,null,null,null,null,10004410,0,10470984,0]
[2023,"Alectra Utilities Corporation","Unmetered Scattered Load Connections","Unmetered Scattered Load - Hydro One Brampton","Alectra Utilities Corporation_d - Hydro One Brampton_Unmetered Scattered Load Service Classification",466574,0,5646693,null,null,null,null,null,null,null,5646693,0,6113267,0]
[2023,"Alectra Utilities Corporation","Unmetered Scattered Load Connections","Unmetered Scattered Load - PowerStream","Alectra Utilities Corporation_red Load - PowerStream_Unmetered Scattered Load Service Classification",466574,0,14335579,null,-573,null,null,null,null,null,14335006,0,14801580,0]
[2023,"Algoma Power Inc.","General Service >= 50 kW","Residential – R2","Algoma Power Inc._Residential – R2 Service Classification",514683.27,1584.93,5421718.5700000003,15973.73,114358003.42,243267.44,null,null,null,null,119779721.98999999,259241.17,120294405.25999999,260826.1]
[2023,"Algoma Power Inc.","Residential","Residential – R1","Algoma Power Inc._Residential – R1 Service Classification",4448057.6399999997,0,124411344.81999999,null,null,null,null,null,null,null,124411344.81999999,0,128859402.45999999,0]
[2023,"Algoma Power Inc.","Residential","Residential – Seasonal","Algoma Power Inc._Residential – Seasonal Service Classification",4448057.6399999997,0,6530093.3899999997,null,null,null,null,null,null,null,6530093.3899999997,0,10978151.029999999,0]
[2023,"Algoma Power Inc.","Street Lighting Connections","Street Lighting","Algoma Power Inc._Street Lighting Service Classification",126429.8,0,0,null,466545.1,1705.9,null,null,null,null,466545.1,1705.9,592974.9,1705.9]
[2023,"Atikokan Hydro Inc.","General Service < 50 kW","General Service Less Than 50 kW","Atikokan Hydro Inc._General Service Less Than 50 kW Service Classification",44321.54,0,4594277.59,null,null,null,null,null,null,null,4594277.59,0,4638599.13,0]
[2023,"Atikokan Hydro Inc.","General Service >= 50 kW","General Service 50 to 4,999 kW","Atikokan Hydro Inc._General Service 50 to 4,999 kW Service Classification",1024353.15,2270.88,0,null,14554079.300000001,44317.77,null,null,null,null,14554079.300000001,44317.77,15578432.450000001,46588.649999999994]
[2023,"Atikokan Hydro Inc.","Residential","Residential","Atikokan Hydro Inc._Residential Service Classification",98456.5,0,9270926.5700000003,null,null,null,null,null,null,null,9270926.5700000003,0,9369383.0700000003,0]
[2023,"Atikokan Hydro Inc.","Street Lighting Connections","Street Lighting","Atikokan Hydro Inc._Street Lighting Service Classification",0,0,0,null,394776.41,1153.8,null,null,null,null,394776.41,1153.8,394776.41,1153.8]
[2023,"Bluewater Power Distribution Corporation","General Service < 50 kW","General Service Less Than 50 kW","Bluewater Power Distribution Corporation_General Service Less Than 50 kW Service Classification",17661993,0,86018006,null,57563,null,null,null,null,null,86075569,0,103737562,0]
[2023,"Bluewater Power Distribution Corporation","General Service >= 50 kW","General Service 1,000 to 4,999 kW","Bluewater Power Distribution Corporation_General Service 1,000 to 4,999 kW Service Classification",0,0,0,null,123485396,243520,null,null,null,null,123485396,243520,123485396,243520]
[2023,"Bluewater Power Distribution Corporation","General Service >= 50 kW","General Service 50 to 999 kW","Bluewater Power Distribution Corporation_General Service 50 to 999 kW Service Classification",0,0,35580316,107064,115004076,307599,4121266,8018,null,null,154705658,422681,154705658,422681]
[2023,"Bluewater Power Distribution Corporation","Large User","Large Use","Bluewater Power Distribution Corporation_Large Use Service Classification",0,0,0,null,156270531,272559,113434615,182231,null,null,269705146,454790,269705146,454790]
[2023,"Bluewater Power Distribution Corporation","Residential","Residential","Bluewater Power Distribution Corporation_Residential Service Classification",4989396,0,269173436,null,null,null,null,null,null,null,269173436,0,274162832,0]
[2023,"Bluewater Power Distribution Corporation","Sentinel Lighting Connections","Sentinel Lighting","Bluewater Power Distribution Corporation_Sentinel Lighting Service Classification",34244,94,394557,1081,null,null,null,null,null,null,394557,1081,428801,1175]
[2023,"Bluewater Power Distribution Corporation","Street Lighting Connections","Street Lighting","Bluewater Power Distribution Corporation_Street Lighting Service Classification",0,0,0,null,3056551,7854,null,null,null,null,3056551,7854,3056551,7854]
[2023,"Bluewater Power Distribution Corporation","Unmetered Scattered Load Connections","Unmetered Scattered Load","Bluewater Power Distribution Corporation_Unmetered Scattered Load Service Classification",330660,0,1837966,null,null,null,null,null,null,null,1837966,0,2168626,0]
[2023,"Burlington Hydro Inc.","General Service < 50 kW","General Service Less Than 50 kW","Burlington Hydro Inc._General Service Less Than 50 kW Service Classification",20729028,0,146839379,null,170609,null,null,null,null,null,147009988,0,167739016,0]
[2023,"Burlington Hydro Inc.","General Service >= 50 kW","General Service 50 to 4,999 kW","Burlington Hydro Inc._General Service 50 to 4,999 kW Service Classification",130582463,368831,119408209,356669,562208340,1454517,null,null,null,null,681616549,1811186,812199012,2180017]
[2023,"Burlington Hydro Inc.","Residential","Residential","Burlington Hydro Inc._Residential Service Classification",4646034,0,538417288,null,null,null,null,null,null,null,538417288,0,543063322,0]
[2023,"Burlington Hydro Inc.","Street Lighting Connections","Street Lighting","Burlington Hydro Inc._Street Lighting Service Classification",0,0,46998,131,5503158,15344,null,null,null,null,5550156,15475,5550156,15475]
[2023,"Burlington Hydro Inc.","Unmetered Scattered Load Connections","Unmetered Scattered Load","Burlington Hydro Inc._Unmetered Scattered Load Service Classification",0,0,3146744,null,null,null,null,null,null,null,3146744,0,3146744,0]
[2023,"Canadian Niagara Power Inc.","Embedded Distributor(s)","Embedded Distributor","Canadian Niagara Power Inc._Embedded Distributor Service Classification",0,0,0,null,5531274.6699999999,15056.95,null,null,null,null,5531274.6699999999,15056.95,5531274.6699999999,15056.95]
[2023,"Canadian Niagara Power Inc.","General Service < 50 kW","General Service Less Than 50 kW","Canadian Niagara Power Inc._General Service Less Than 50 kW Service Classification",9242587.1199999992,0,58725472.759999998,null,null,null,null,null,null,null,58725472.759999998,0,67968059.879999995,0]
[2023,"Canadian Niagara Power Inc.","General Service >= 50 kW","General Service 50 To 4,999 kW","Canadian Niagara Power Inc._General Service 50 To 4,999 kW Service Classification",10792116.09,40595.660000000003,17901181.890000001,56439.360000000001,151256434.99000001,473291.91,null,null,null,null,169157616.88,529731.27,179949732.97,570326.93000000005]
[2023,"Canadian Niagara Power Inc.","Residential","Residential","Canadian Niagara Power Inc._Residential Service Classification",3013861.72,0,223302592.08000001,null,null,null,null,null,null,null,223302592.08000001,0,226316453.80000001,0]
[2023,"Canadian Niagara Power Inc.","Sentinel Lighting Connections","Sentinel Lighting","Canadian Niagara Power Inc._Sentinel Lighting Service Classification",360.68,1.2,499384.31,1635.13,null,null,null,null,null,null,499384.31,1635.13,499744.99,1636.3300000000002]
[2023,"Canadian Niagara Power Inc.","Street Lighting Connections","Street Lighting","Canadian Niagara Power Inc._Street Lighting Service Classification",0,0,78588.92,259.22000000000003,1345127.16,4093.2,null,null,null,null,1423716.08,4352.42,1423716.08,4352.42]
[2023,"Canadian Niagara Power Inc.","Unmetered Scattered Load Connections","Unmetered Scattered Load","Canadian Niagara Power Inc._Unmetered Scattered Load Service Classification",883032,0,400968.59,null,null,null,null,null,null,null,400968.59,0,1284000.5900000001,0]
[2023,"Centre Wellington Hydro Ltd.","General Service < 50 kW","General Service Less Than 50 kW","Centre Wellington Hydro Ltd._General Service Less Than 50 kW Service Classification",4547485,0,20710592,null,null,null,null,null,null,null,20710592,0,25258077,0]
[2023,"Centre Wellington Hydro Ltd.","General Service >= 50 kW","General Service 3,000 to 4,999 kW","Centre Wellington Hydro Ltd._General Service 3,000 to 4,999 kW Service Classification",0,0,0,null,14802769.199999999,36197.43,null,null,null,null,14802769.199999999,36197.43,14802769.199999999,36197.43]
[2023,"Centre Wellington Hydro Ltd.","General Service >= 50 kW","General Service 50 to 2,999 kW","Centre Wellington Hydro Ltd._General Service 50 to 2,999 kW Service Classification",0,0,1938350,7415.4,37516561.200000003,109290.43,2632776.4300000002,4940.9399999999996,null,null,42087687.630000003,121646.77,42087687.630000003,121646.77]
[2023,"Centre Wellington Hydro Ltd.","Residential","Residential","Centre Wellington Hydro Ltd._Residential Service Classification",531746,0,49647360,null,null,null,null,null,null,null,49647360,0,50179106,0]
[2023,"Centre Wellington Hydro Ltd.","Sentinel Lighting Connections","Sentinel Lighting","Centre Wellington Hydro Ltd._Sentinel Lighting Service Classification",12921,35.89,22564,62.68,null,null,null,null,null,null,22564,62.68,35485,98.57]
[2023,"Centre Wellington Hydro Ltd.","Street Lighting Connections","Street Lighting","Centre Wellington Hydro Ltd._Street Lighting Service Classification",0,0,0,null,607654.53,1682.76,null,null,null,null,607654.53,1682.76,607654.53,1682.76]
[2023,"Centre Wellington Hydro Ltd.","Unmetered Scattered Load Connections","Unmetered Scattered Load","Centre Wellington Hydro Ltd._Unmetered Scattered Load Service Classification",121440,0,510037,null,null,null,null,null,null,null,510037,0,631477,0]
[2023,"Chapleau Public Utilities Corporation","General Service < 50 kW","General Service Less Than 50 kW","Chapleau Public Utilities Corporation_General Service Less Than 50 kW Service Classification",639296,0,3918152,null,null,null,null,null,null,null,3918152,0,4557448,0]
[2023,"Chapleau Public Utilities Corporation","General Service >= 50 kW","General Service 50 to 4,999 kW","Chapleau Public Utilities Corporation_General Service 50 to 4,999 kW Service Classification",658659,2467,0,null,3252804,11807,null,null,null,null,3252804,11807,3911463,14274]
[2023,"Chapleau Public Utilities Corporation","Residential","Residential","Chapleau Public Utilities Corporation_Residential Service Classification",51450,0,14629309,null,null,null,null,null,null,null,14629309,0,14680759,0]
[2023,"Chapleau Public Utilities Corporation","Sentinel Lighting Connections","Sentinel Lighting","Chapleau Public Utilities Corporation_Sentinel Lighting Service Classification",4027,5.5,15178,55,null,null,null,null,null,null,15178,55,19205,60.5]
[2023,"Chapleau Public Utilities Corporation","Street Lighting Connections","Street Lighting","Chapleau Public Utilities Corporation_Street Lighting Service Classification",0,0,162841,456,null,null,null,null,null,null,162841,456,162841,456]
[2023,"Chapleau Public Utilities Corporation","Unmetered Scattered Load Connections","Unmetered Scattered Load","Chapleau Public Utilities Corporation_Unmetered Scattered Load Service Classification",0,0,2892,null,null,null,null,null,null,null,2892,0,2892,0]
[2023,"Cooperative Hydro Embrun Inc.","General Service < 50 kW","General Service Less Than 50 kW","Cooperative Hydro Embrun Inc._General Service Less Than 50 kW Service Classification",1148943,0,3479724,0,0,0,0,0,null,null,3479724,0,4628667,0]
[2023,"Cooperative Hydro Embrun Inc.","General Service >= 50 kW","General Service 50 to 4,999 kW","Cooperative Hydro Embrun Inc._General Service 50 to 4,999 kW Service Classification",0,0,772198,0,2871748,10244,0,0,null,null,3643946,10244,3643946,10244]
[2023,"Cooperative Hydro Embrun Inc.","Residential","Residential","Cooperative Hydro Embrun Inc._Residential Service Classification",76288,0,22038097,0,0,0,0,0,null,null,22038097,0,22114385,0]
[2023,"Cooperative Hydro Embrun Inc.","Street Lighting Connections","Street Lighting","Cooperative Hydro Embrun Inc._Street Lighting Service Classification",0,0,0,0,215021,602,0,0,null,null,215021,602,215021,602]
[2023,"Cooperative Hydro Embrun Inc.","Unmetered Scattered Load Connections","Unmetered Scattered Load","Cooperative Hydro Embrun Inc._Unmetered Scattered Load Service Classification",0,0,93084,0,0,0,0,0,null,null,93084,0,93084,0]
[2023,"E.L.K. Energy Inc.","Embedded Distributor(s)","Embedded Distributor","E.L.K. Energy Inc._Embedded Distributor Service Classification",0,0,0,null,45020625,129568,null,null,null,null,45020625,129568,45020625,129568]
[2023,"E.L.K. Energy Inc.","General Service < 50 kW","General Service Less Than 50 kW","E.L.K. Energy Inc._General Service Less Than 50 kW Service Classification",5505797,0,20301709,null,3856294,null,null,null,null,null,24158003,0,29663800,0]
[2023,"E.L.K. Energy Inc.","General Service >= 50 kW","General Service 50 to 4,999 kW","E.L.K. Energy Inc._General Service 50 to 4,999 kW Service Classification",13107641,0,6105988,5859,33793282,140629,2671090.56,4636.07,null,null,42570360.560000002,151124.07,55678001.560000002,151124.07]
[2023,"E.L.K. Energy Inc.","Residential","Residential","E.L.K. Energy Inc._Residential Service Classification",1602165,0,102120501,null,2116789,null,null,null,null,null,104237290,0,105839455,0]
[2023,"E.L.K. Energy Inc.","Sentinel Lighting Connections","Sentinel Lighting","E.L.K. Energy Inc._Sentinel Lighting Service Classification",1924,0,0,null,136555,360,null,null,null,null,136555,360,138479,360]
[2023,"E.L.K. Energy Inc.","Street Lighting Connections","Street Lighting","E.L.K. Energy Inc._Street Lighting Service Classification",1271846,0,0,null,79990,3336,null,null,null,null,79990,3336,1351836,3336]
[2023,"E.L.K. Energy Inc.","Unmetered Scattered Load Connections","Unmetered Scattered Load","E.L.K. Energy Inc._Unmetered Scattered Load Service Classification",0,0,0,null,248448,null,null,null,null,null,248448,0,248448,0]
[2023,"ENWIN Utilities Ltd.","General Service < 50 kW","General Service Less Than 50 kW","ENWIN Utilities Ltd._General Service Less Than 50 kW Service Classification",32929080.379999999,0,217425258.19999999,null,null,null,null,null,null,null,217425258.19999999,0,250354338.57999998,0]
[2023,"ENWIN Utilities Ltd.","General Service >= 50 kW","General Service 3,000 to 4,999 kW - Intermediate Use","ENWIN Utilities Ltd._ to 4,999 kW - Intermediate Use_General Service 3,000 to 4,999 kW Service Classification",0,0,0,null,null,null,null,null,null,null,0,0,0,0]
[2023,"ENWIN Utilities Ltd.","General Service >= 50 kW","General Service 50 to 4,999 kW","ENWIN Utilities Ltd._General Service 50 to 4,999 kW Service Classification",0,0,136964406.05000001,335458.09000000003,611116041.07000005,1525735.62,10246507.880000001,19457.330000000002,null,null,758326955,1880651.04,758326955,1880651.04]
[2023,"ENWIN Utilities Ltd.","Large User","Dedicated TS","ENWIN Utilities Ltd._Dedicated TS Service Classification",0,0,0,null,105928150.5,262331.12,74886540.060000002,127788.48,null,null,180814690.56,390119.6,180814690.56,390119.6]
[2023,"ENWIN Utilities Ltd.","Large User","Large Use - Ford Annex","ENWIN Utilities Ltd._d Annex_Large Use Service Classification",0,0,0,null,null,null,null,null,null,null,0,0,0,0]
[2023,"ENWIN Utilities Ltd.","Large User","Large Use - Regular","ENWIN Utilities Ltd._Regular_Large Use Service Classification",0,0,0,null,81496800.239999995,224075.69,99959167.25,177248.31,null,null,181455967.49000001,401324,181455967.49000001,401324]
[2023,"ENWIN Utilities Ltd.","Residential","Residential","ENWIN Utilities Ltd._Residential Service Classification",9085939.7400000002,0,642418269.27999997,null,null,null,null,null,null,null,642418269.27999997,0,651504209.01999998,0]
[2023,"ENWIN Utilities Ltd.","Sentinel Lighting Connections","Sentinel Lighting","ENWIN Utilities Ltd._Sentinel Lighting Service Classification",45674.34,127.26,652010.6,1815.57,null,null,null,null,null,null,652010.6,1815.57,697684.94,1942.83]
[2023,"ENWIN Utilities Ltd.","Street Lighting Connections","Street Lighting","ENWIN Utilities Ltd._Street Lighting Service Classification",0,0,18381.53,53.04,6587600.4400000004,18991.54,null,null,null,null,6605981.9699999997,19044.580000000002,6605981.9699999997,19044.580000000002]
[2023,"ENWIN Utilities Ltd.","Unmetered Scattered Load Connections","Unmetered Scattered Load","ENWIN Utilities Ltd._Unmetered Scattered Load Service Classification",38880,0,100370.68,null,2172201.75,null,null,null,null,null,2272572.4300000002,0,2311452.4300000002,0]
[2023,"EPCOR Electricity Distribution Ontario Inc.","General Service < 50 kW","General Service Less Than 50 kW","EPCOR Electricity Distribution Ontario Inc._General Service Less Than 50 kW Service Classification",7043307.4299999997,0,39536433.380000003,null,203045,null,null,null,null,null,39739478.380000003,0,46782785.810000002,0]
[2023,"EPCOR Electricity Distribution Ontario Inc.","General Service >= 50 kW","General Service 50 to 4,999 kW","EPCOR Electricity Distribution Ontario Inc._General Service 50 to 4,999 kW Service Classification",19195476.850000001,42825.83,14881993.550000001,49573.87,90482648.400000006,215241.45,2302949.0699999998,4656.49,null,null,107667591.02,269471.81,126863067.87,312297.64]
[2023,"EPCOR Electricity Distribution Ontario Inc.","Residential","Residential","EPCOR Electricity Distribution Ontario Inc._Residential Service Classification",1855014.88,0,136902465.58000001,null,null,null,null,null,null,null,136902465.58000001,0,138757480.46000001,0]
[2023,"EPCOR Electricity Distribution Ontario Inc.","Street Lighting Connections","Street Lighting","EPCOR Electricity Distribution Ontario Inc._Street Lighting Service Classification",0,0,0,null,1223181.2,3435.44,null,null,null,null,1223181.2,3435.44,1223181.2,3435.44]
[2023,"EPCOR Electricity Distribution Ontario Inc.","Unmetered Scattered Load Connections","Unmetered Scattered Load","EPCOR Electricity Distribution Ontario Inc._Unmetered Scattered Load Service Classification",336.02,0,394813.47,null,null,null,null,null,null,null,394813.47,0,395149.49,0]
[2023,"ERTH Power Corporation","Embedded Distributor(s)","Embedded Distributor - Main","ERTH Power Corporation_Distributor - Main_Embedded Distributor Service Classification",0,0,0,null,17962949,39090,null,null,null,null,17962949,39090,17962949,39090]
[2023,"ERTH Power Corporation","General Service < 50 kW","General Service Less Than 50 kW - Goderich","ERTH Power Corporation_ce Less Than 50 kW - Goderich_General Service Less Than 50 kW Service Classification",2434703,0,11495494,null,null,null,null,null,null,null,11495494,0,13930197,0]
[2023,"ERTH Power Corporation","General Service < 50 kW","General Service Less Than 50 kW - Main","ERTH Power Corporation_ervice Less Than 50 kW - Main_General Service Less Than 50 kW Service Classification",2434703,0,42665734,0,0,0,0,0,null,null,42665734,0,45100437,0]
[2023,"ERTH Power Corporation","General Service >= 50 kW","General Service 1,000 to 4,999 kW - Main","ERTH Power Corporation_ervice 1,000 to 4,999 kW - Main_General Service 1,000 to 4,999 kW Service Classification",6081749,14763,0,null,74989453,163311,null,null,null,null,74989453,163311,81071202,178074]
[2023,"ERTH Power Corporation","General Service >= 50 kW","General Service 50 to 499 kW - Goderich","ERTH Power Corporation_ce 50 to 499 kW - Goderich_General Service 50 to 499 kW Service Classification",6081749,14763,1955204,5399,12154367,35353,119773,281,null,null,14229344,41033,20311093,55796]
[2023,"ERTH Power Corporation","General Service >= 50 kW","General Service 50 to 999 kW - Main","ERTH Power Corporation_ervice 50 to 999 kW - Main_General Service 50 to 999 kW Service Classification",6081749,14763,7436623,30449,43587080,125039,null,null,null,null,51023703,155488,57105452,170251]
[2023,"ERTH Power Corporation","General Service >= 50 kW","General Service 500 to 4,999 kW - Goderich","ERTH Power Corporation_ce 500 to 4,999 kW - Goderich_General Service 500 to 4,999 kW Service Classification",6081749,14763,0,null,12396267,32665,null,null,null,null,12396267,32665,18478016,47428]
[2023,"ERTH Power Corporation","Large User","Large Use - Goderich","ERTH Power Corporation_oderich_Large Use Service Classification",0,0,0,null,null,null,73319224,178904,null,null,73319224,178904,73319224,178904]
[2023,"ERTH Power Corporation","Large User","Large Use- Main","ERTH Power Corporation_- Main_Large Us Service Classification",0,0,0,null,93760171,167472,null,null,null,null,93760171,167472,93760171,167472]
[2023,"ERTH Power Corporation","Residential","Residential - Goderich","ERTH Power Corporation_ Goderich_Residential Service Classification",427385,0,26341038,null,null,null,null,null,null,null,26341038,0,26768423,0]
[2023,"ERTH Power Corporation","Residential","Residential - Main","ERTH Power Corporation_al - Main_Residential Service Classification",427385,0,153146768,0,33878,0,0,0,null,null,153180646,0,153608031,0]
[2023,"ERTH Power Corporation","Sentinel Lighting Connections","Sentinel Lighting - Goderich","ERTH Power Corporation_ting - Goderich_Sentinel Lighting Service Classification",0,0,1901,null,null,null,null,null,null,null,1901,0,1901,0]
[2023,"ERTH Power Corporation","Sentinel Lighting Connections","Sentinel Lighting - Main","ERTH Power Corporation_Lighting - Main_Sentinel Lighting Service Classification",0,0,189178,null,null,null,null,null,null,null,189178,0,189178,0]
[2023,"ERTH Power Corporation","Street Lighting Connections","Street Lighting - Goderich","ERTH Power Corporation_ng - Goderich_Street Lighting Service Classification",380209,976,71382,8,null,null,null,null,null,null,71382,8,451591,984]
[2023,"ERTH Power Corporation","Street Lighting Connections","Street Lighting - Main","ERTH Power Corporation_ghting - Main_Street Lighting Service Classification",380209,976,698702,1893,832953,2259,null,null,null,null,1531655,4152,1911864,5128]
[2023,"ERTH Power Corporation","Unmetered Scattered Load Connections","Unmetered Scattered Load - Goderich","ERTH Power Corporation_ttered Load - Goderich_Unmetered Scattered Load Service Classification",0,0,83100,null,null,null,null,null,null,null,83100,0,83100,0]
[2023,"ERTH Power Corporation","Unmetered Scattered Load Connections","Unmetered Scattered Load - Main","ERTH Power Corporation_ Scattered Load - Main_Unmetered Scattered Load Service Classification",0,0,351990,null,null,null,null,null,null,null,351990,0,351990,0]
[2023,"Elexicon Energy Inc.","General Service < 50 kW","General Service < 50 kW - Veridian","Elexicon Energy Inc._ce < 50 kW - Veridian_General Service < 50 kW Service Classification",46128505,0,247484698,null,299880,null,null,null,null,null,247784578,0,293913083,0]
[2023,"Elexicon Energy Inc.","General Service < 50 kW","General Service < 50 kW - Whitby","Elexicon Energy Inc._vice < 50 kW - Whitby_General Service < 50 kW Service Classification",46128505,0,78472237,null,null,null,null,null,null,null,78472237,0,124600742,0]
[2023,"Elexicon Energy Inc.","General Service >= 50 kW","General Service 3,000 to 4,999 kW - Veridian","Elexicon Energy Inc._ce 3,000 to 4,999 kW - Veridian_General Service 3,000 to 4,999 kW Service Classification",0,0,0,null,106165862,230323,null,null,null,null,106165862,230323,106165862,230323]
[2023,"Elexicon Energy Inc.","General Service >= 50 kW","General Service 50 to 2,999 kW - Veridian","Elexicon Energy Inc._ce 50 to 2,999 kW - Veridian_General Service 50 to 2,999 kW Service Classification",0,0,95619460,240793,707599784,1646930,33951099,60065,null,null,837170343,1947788,837170343,1947788]
[2023,"Elexicon Energy Inc.","General Service >= 50 kW","General Service 50 to 4,999 kW - Whitby","Elexicon Energy Inc._vice 50 to 4,999 kW - Whitby_General Service 50 to 4,999 kW Service Classification",0,0,41495299,121169,265582934,619875,3993260,7529,null,null,311071493,748573,311071493,748573]
[2023,"Elexicon Energy Inc.","Large User","Large Use - Veridian","Elexicon Energy Inc._eridian_Large Use Service Classification",0,0,0,null,296296133,490452,null,null,null,null,296296133,490452,296296133,490452]
[2023,"Elexicon Energy Inc.","Residential","Residential - Veridian","Elexicon Energy Inc._ Veridian_Residential Service Classification",19146462,0,993379175,null,null,null,null,null,null,null,993379175,0,1012525637,0]
[2023,"Elexicon Energy Inc.","Residential","Residential - Whitby","Elexicon Energy Inc._ - Whitby_Residential Service Classification",19146462,0,392222781,null,null,null,null,null,null,null,392222781,0,411369243,0]
[2023,"Elexicon Energy Inc.","Residential","Residential Seasonal - Veridian","Elexicon Energy Inc._easonal - Veridian_Residential Seasonal Service Classification",19146462,0,12452168,null,null,null,null,null,null,null,12452168,0,31598630,0]
[2023,"Elexicon Energy Inc.","Sentinel Lighting Connections","Sentinel Lighting - Veridian","Elexicon Energy Inc._ting - Veridian_Sentinel Lighting Service Classification",65481,182,150964,419,null,null,null,null,null,null,150964,419,216445,601]
[2023,"Elexicon Energy Inc.","Sentinel Lighting Connections","Sentinel Lighting - Whitby","Elexicon Energy Inc._ghting - Whitby_Sentinel Lighting Service Classification",65481,182,33915,95,null,null,null,null,null,null,33915,95,99396,277]
[2023,"Elexicon Energy Inc.","Street Lighting Connections","Street Lighting - Veridian","Elexicon Energy Inc._ng - Veridian_Street Lighting Service Classification",2647480,7397,0,null,8458161,23613,null,null,null,null,8458161,23613,11105641,31010]
[2023,"Elexicon Energy Inc.","Street Lighting Connections","Street Lighting - Whitby","Elexicon Energy Inc._ting - Whitby_Street Lighting Service Classification",2647480,7397,0,null,3451734,9581,null,null,null,null,3451734,9581,6099214,16978]
[2023,"Elexicon Energy Inc.","Unmetered Scattered Load Connections","Unmetered Scattered Load - Veridian","Elexicon Energy Inc._ttered Load - Veridian_Unmetered Scattered Load Service Classification",220200,0,4342427,894,null,null,null,null,null,null,4342427,894,4562627,894]
[2023,"Elexicon Energy Inc.","Unmetered Scattered Load Connections","Unmetered Scattered Load - Whitby","Elexicon Energy Inc._cattered Load - Whitby_Unmetered Scattered Load Service Classification",220200,0,1752566,null,null,null,null,null,null,null,1752566,0,1972766,0]
[2023,"Enova Power Corp.","Embedded Distributor(s)","Embedded Distributor-Kitchener-Wilmot","Enova Power Corp._-Kitchener-Wilmot_Embedded Distributo Service Classification",0,0,0,null,null,null,21251984.989999998,50207.73,null,null,21251984.989999998,50207.73,21251984.989999998,50207.73]
[2023,"Enova Power Corp.","Embedded Distributor(s)","Embedded Distributor-Waterloo North","Enova Power Corp._or-Waterloo North_Embedded Distributo Service Classification",0,0,0,null,43405374,93864,null,null,null,null,43405374,93864,43405374,93864]
[2023,"Enova Power Corp.","General Service < 50 kW","General Service Less Than 50 kW-Kitchener-Wilmot","Enova Power Corp._ Than 50 kW-Kitchener-Wilmot_General Service Less Than 50 k Service Classification",26006175.27,0,203013857.03999999,null,null,null,null,null,null,null,203013857.03999999,0,229020032.31,0]
[2023,"Enova Power Corp.","General Service < 50 kW","General Service Less Than 50 kW-Waterloo North","Enova Power Corp._ss Than 50 kW-Waterloo North_General Service Less Than 50 k Service Classification",26006175.27,0,177964637,null,739634.16,null,null,null,null,null,178704271.16,0,204710446.43000001,0]
[2023,"Enova Power Corp.","General Service >= 50 kW","General Service 50 to 4,999 kW-Kitchener-Wilmot","Enova Power Corp._o 4,999 kW-Kitchener-Wilmot_General Service 50 to 4,999 k Service Classification",118029215.29000001,321277.18,146399325.00999999,null,553877861.15999997,1803398.92,13677771.619999999,27001.97,null,null,713954957.78999996,1830400.89,831984173.07999992,2151678.0699999998]
[2023,"Enova Power Corp.","General Service >= 50 kW","General Service 50 to 4,999 kW-Waterloo North","Enova Power Corp._ to 4,999 kW-Waterloo North_General Service 50 to 4,999 k Service Classification",118029215.29000001,321277.18,90201878,234300.61,487984782.06999999,1232352.0900000001,7707047,16568.11,null,null,585893707.07000005,1483220.81,703922922.36000001,1804497.99]
[2023,"Enova Power Corp.","Large User","Large Use-Kitchener-Wilmot","Enova Power Corp._Wilmot_Large Us Service Classification",0,0,0,null,24869019.280000001,53382.78,null,null,null,null,24869019.280000001,53382.78,24869019.280000001,53382.78]
[2023,"Enova Power Corp.","Large User","Large Use-Waterloo North","Enova Power Corp._ North_Large Us Service Classification",0,0,0,null,92951206,162547,null,null,null,null,92951206,162547,92951206,162547]
[2023,"Enova Power Corp.","Residential","Residential-Kitchener-Wilmot","Enova Power Corp._r-Wilmot_Residentia Service Classification",6418694.7599999998,0,710643836.58000004,null,null,null,null,null,null,null,710643836.58000004,0,717062531.34000003,0]
[2023,"Enova Power Corp.","Residential","Residential-Waterloo North","Enova Power Corp._oo North_Residentia Service Classification",6418694.7599999998,0,432433970,null,null,null,null,null,null,null,432433970,0,438852664.75999999,0]
[2023,"Enova Power Corp.","Street Lighting Connections","Street Lighting-Kitchener-Wilmot","Enova Power Corp._hener-Wilmot_Street Lightin Service Classification",0,0,485999.5,null,6629008.2699999996,19791.060000000001,null,null,null,null,7115007.7699999996,19791.060000000001,7115007.7699999996,19791.060000000001]
[2023,"Enova Power Corp.","Street Lighting Connections","Street Lighting-Waterloo North","Enova Power Corp._terloo North_Street Lightin Service Classification",0,0,0,null,3578606,9989,null,null,null,null,3578606,9989,3578606,9989]
[2023,"Enova Power Corp.","Unmetered Scattered Load Connections","Unmetered Scattered Load-Kitchener-Wilmot","Enova Power Corp._Load-Kitchener-Wilmot_Unmetered Scattered Loa Service Classification",0,0,3957293.93,null,null,null,null,null,null,null,3957293.93,0,3957293.93,0]
[2023,"Enova Power Corp.","Unmetered Scattered Load Connections","Unmetered Scattered Load-Waterloo North","Enova Power Corp._d Load-Waterloo North_Unmetered Scattered Loa Service Classification",0,0,3333217,null,null,null,null,null,null,null,3333217,0,3333217,0]
[2023,"Entegrus Powerlines Inc.","Embedded Distributor(s)","Embedded Distributor - Main","Entegrus Powerlines Inc._Distributor - Main_Embedded Distributor Service Classification",0,0,0,0,0.01,0.01,0,0,null,null,0.01,0.01,0.01,0.01]
[2023,"Entegrus Powerlines Inc.","General Service < 50 kW","General Service Less Than 50 kW - Main","Entegrus Powerlines Inc._ervice Less Than 50 kW - Main_General Service Less Than 50 kW Service Classification",19171539,0,95978517,0,0,0,0,0,null,null,95978517,0,115150056,0]
[2023,"Entegrus Powerlines Inc.","General Service < 50 kW","General Service Less Than 50 kW - St. Thomas Energy","Entegrus Powerlines Inc._han 50 kW - St. Thomas Energy_General Service Less Than 50 kW Service Classification",19171539,0,37821678,0,0,0,0,0,null,null,37821678,0,56993217,0]
[2023,"Entegrus Powerlines Inc.","General Service >= 50 kW","General Service 50 to 4,999 kW - Main","Entegrus Powerlines Inc._ervice 50 to 4,999 kW - Main_General Service 50 to 4,999 kW Service Classification",94697354,251431,27381995,133258,315669025,777009,3377521,6608,null,null,346428541,916875,441125895,1168306]
[2023,"Entegrus Powerlines Inc.","General Service >= 50 kW","General Service 50 to 4,999 kW - St. Thomas Energy","Entegrus Powerlines Inc._4,999 kW - St. Thomas Energy_General Service 50 to 4,999 kW Service Classification",94697354,251431,9240225,31032,82933868,229377,3195289,6228,null,null,95369382,266637,190066736,518068]
[2023,"Entegrus Powerlines Inc.","Large User","Large Use - Main","Entegrus Powerlines Inc._ - Main_Large Use Service Classification",12490952,41752,0,0,68223485,137372,0,0,null,null,68223485,137372,80714437,179124]
[2023,"Entegrus Powerlines Inc.","Residential","Residential - Main","Entegrus Powerlines Inc._al - Main_Residential Service Classification",5929601,0,306666331,0,0,0,0,0,null,null,306666331,0,312595932,0]
[2023,"Entegrus Powerlines Inc.","Residential","Residential - St. Thomas Energy","Entegrus Powerlines Inc._as Energy_Residential Service Classification",5929601,0,129680705,0,0,0,0,0,null,null,129680705,0,135610306,0]
[2023,"Entegrus Powerlines Inc.","Sentinel Lighting Connections","Sentinel Lighting - Main","Entegrus Powerlines Inc._Lighting - Main_Sentinel Lighting Service Classification",36503,105,225740,627,63103,175,0,0,null,null,288843,802,325346,907]
[2023,"Entegrus Powerlines Inc.","Sentinel Lighting Connections","Sentinel Lighting - St. Thomas Energy","Entegrus Powerlines Inc._. Thomas Energy_Sentinel Lighting Service Classification",36503,105,51065,0,0,0,0,0,null,null,51065,0,87568,105]
[2023,"Entegrus Powerlines Inc.","Street Lighting Connections","Street Lighting - Main","Entegrus Powerlines Inc._ghting - Main_Street Lighting Service Classification",0,0,0,0,3566675,10551,0,0,null,null,3566675,10551,3566675,10551]
[2023,"Entegrus Powerlines Inc.","Street Lighting Connections","Street Lighting - St. Thomas Energy","Entegrus Powerlines Inc._Thomas Energy_Street Lighting Service Classification",0,0,0,0,1818382,5070,0,0,null,null,1818382,5070,1818382,5070]
[2023,"Entegrus Powerlines Inc.","Unmetered Scattered Load Connections","Unmetered Scattered Load - Main","Entegrus Powerlines Inc._ Scattered Load - Main_Unmetered Scattered Load Service Classification",717852,0,529825,0,0,0,0,0,null,null,529825,0,1247677,0]
[2023,"Essex Powerlines Corporation","Embedded Distributor(s)","Embedded Distributor","Essex Powerlines Corporation_Embedded Distributor Service Classification",0,0,0,null,27551639.09,82760.36,null,null,null,null,27551639.09,82760.36,27551639.09,82760.36]
[2023,"Essex Powerlines Corporation","General Service < 50 kW","General Service Less Than 50 kW","Essex Powerlines Corporation_General Service Less Than 50 kW Service Classification",11920950.77,41408.339999999997,55552694.759999998,null,216696.82,null,null,null,null,null,55769391.579999998,0,67690342.349999994,41408.339999999997]
[2023,"Essex Powerlines Corporation","General Service >= 50 kW","General Service 50 to 4,999 kW","Essex Powerlines Corporation_General Service 50 to 4,999 kW Service Classification",43158433.920000002,110421.05,25479777.559999999,77354.12,105767129.78,299246.65999999997,9394709.1199999992,17894.02,null,null,140641616.46000001,394494.8,183800050.38,504915.85]
[2023,"Essex Powerlines Corporation","Residential","Residential","Essex Powerlines Corporation_Residential Service Classification",3590168.94,0,268998080.20999998,null,87998.25,null,null,null,null,null,269086078.45999998,0,272676247.39999998,0]
[2023,"Essex Powerlines Corporation","Sentinel Lighting Connections","Sentinel Lighting","Essex Powerlines Corporation_Sentinel Lighting Service Classification",24185.919999999998,0,247482.05,742.1,null,null,null,null,null,null,247482.05,742.1,271667.96999999997,742.1]
[2023,"Essex Powerlines Corporation","Street Lighting Connections","Street Lighting","Essex Powerlines Corporation_Street Lighting Service Classification",1527827.6,4617.95,0,null,878164.71,2668.49,null,null,null,null,878164.71,2668.49,2405992.31,7286.44]
[2023,"Essex Powerlines Corporation","Unmetered Scattered Load Connections","Unmetered Scattered Load","Essex Powerlines Corporation_Unmetered Scattered Load Service Classification",758940.38,0,649764.36,null,null,null,null,null,null,null,649764.36,0,1408704.74,0]
[2023,"Festival Hydro Inc.","General Service < 50 kW","General Service Less Than 50 kW","Festival Hydro Inc._General Service Less Than 50 kW Service Classification",14216724.41,84.23,46915642.369999997,null,null,null,null,null,null,null,46915642.369999997,0,61132366.780000001,84.23]
[2023,"Festival Hydro Inc.","General Service >= 50 kW","General Service 50 to 4,999 kW","Festival Hydro Inc._General Service 50 to 4,999 kW Service Classification",64950616.07,193650.21,20886720.850000001,51190.82,277926128.86000001,636208.37,2663143.46,5133.87,null,null,301475993.17000002,692533.06,366426609.24000001,886183.27]
[2023,"Festival Hydro Inc.","Large User","Large Use","Festival Hydro Inc._Large Use Service Classification",0,0,0,null,29487368.699999999,44237.86,600788.56000000006,5040.93,null,null,30088157.260000002,49278.79,30088157.260000002,49278.79]
[2023,"Festival Hydro Inc.","Residential","Residential","Festival Hydro Inc._Residential Service Classification",3144496.09,0,150814751.63,null,null,null,null,null,null,null,150814751.63,0,153959247.72,0]
[2023,"Festival Hydro Inc.","Sentinel Lighting Connections","Sentinel Lighting","Festival Hydro Inc._Sentinel Lighting Service Classification",749.98,0,98744.5,276.37,null,null,null,null,null,null,98744.5,276.37,99494.48,276.37]
[2023,"Festival Hydro Inc.","Street Lighting Connections","Street Lighting","Festival Hydro Inc._Street Lighting Service Classification",2226991.04,6021.18,319060.45,223.53,null,null,null,null,null,null,319060.45,223.53,2546051.4900000002,6244.71]
[2023,"Festival Hydro Inc.","Unmetered Scattered Load Connections","Unmetered Scattered Load","Festival Hydro Inc._Unmetered Scattered Load Service Classification",63228.02,0,276643.92,null,362516.1,null,null,null,null,null,639160.02,0,702388.04,0]
[2023,"Fort Frances Power Corporation","General Service < 50 kW","General Service Less Than 50 kW","Fort Frances Power Corporation_General Service Less Than 50 kW Service Classification",192880.2,0,14273246,null,null,null,null,null,null,null,14273246,0,14466126.199999999,0]
[2023,"Fort Frances Power Corporation","General Service >= 50 kW","General Service 50 to 4,999 kW","Fort Frances Power Corporation_General Service 50 to 4,999 kW Service Classification",0,0,4075840,null,16252936,48376,null,null,null,null,20328776,48376,20328776,48376]
[2023,"Fort Frances Power Corporation","Residential","Residential","Fort Frances Power Corporation_Residential Service Classification",60833.62,0,37769265,null,null,null,null,null,null,null,37769265,0,37830098.619999997,0]
[2023,"Fort Frances Power Corporation","Street Lighting Connections","Street Lighting","Fort Frances Power Corporation_Street Lighting Service Classification",0,0,0,null,432172,1159,null,null,null,null,432172,1159,432172,1159]
[2023,"Fort Frances Power Corporation","Unmetered Scattered Load Connections","Unmetered Scattered Load","Fort Frances Power Corporation_Unmetered Scattered Load Service Classification",0,0,62628,null,null,null,null,null,null,null,62628,0,62628,0]
[2023,"GrandBridge Energy Inc.","Embedded Distributor(s)","Embedded Distributor - Brantford-Energy+","GrandBridge Energy Inc._ Brantford-Energy+_Embedded Distributor Service Classification",0,0,0,0,403148.85,1321.85,0,0,null,null,403148.85,1321.85,403148.85,1321.85]
[2023,"GrandBridge Energy Inc.","Embedded Distributor(s)","Embedded Distributor - Hydro One #1-Energy+","GrandBridge Energy Inc._dro One #1-Energy+_Embedded Distributor Service Classification",0,0,0,0,10415104.140000001,21598.880000000001,0,0,null,null,10415104.140000001,21598.880000000001,10415104.140000001,21598.880000000001]
[2023,"GrandBridge Energy Inc.","Embedded Distributor(s)","Embedded Distributor - Hydro One #2-Energy+","GrandBridge Energy Inc._dro One #2-Energy+_Embedded Distributor Service Classification",0,0,0,0,64737314.649999999,159678.22,0,0,null,null,64737314.649999999,159678.22,64737314.649999999,159678.22]
[2023,"GrandBridge Energy Inc.","Embedded Distributor(s)","Embedded Distributor - Hydro One CND-Energy+","GrandBridge Energy Inc._ro One CND-Energy+_Embedded Distributor Service Classification",0,0,0,0,13682586.539999999,28945.79,0,0,null,null,13682586.539999999,28945.79,13682586.539999999,28945.79]
[2023,"GrandBridge Energy Inc.","Embedded Distributor(s)","Embedded Distributor - Waterloo North Hydro-Energy+","GrandBridge Energy Inc._orth Hydro-Energy+_Embedded Distributor Service Classification",0,0,0,0,0,0,73009014.420000002,138260.13,null,null,73009014.420000002,138260.13,73009014.420000002,138260.13]
[2023,"GrandBridge Energy Inc.","Embedded Distributor(s)","Embedded Distributor-Brantford","GrandBridge Energy Inc._ributor-Brantford_Embedded Distributo Service Classification",0,0,0,0,0,0,25511349.18,61775.4,null,null,25511349.18,61775.4,25511349.18,61775.4]
[2023,"GrandBridge Energy Inc.","General Service < 50 kW","General Service Less Than 50 kW-Brantford","GrandBridge Energy Inc._ce Less Than 50 kW-Brantford_General Service Less Than 50 k Service Classification",14735485.380000001,0,82143173.319999993,0,378323.8,3938.4,0,0,null,null,82521497.120000005,3938.4,97256982.5,3938.4]
[2023,"GrandBridge Energy Inc.","General Service < 50 kW","General Service Less Than 50 kW-Energy+","GrandBridge Energy Inc._vice Less Than 50 kW-Energy+_General Service Less Than 50 k Service Classification",14735485.380000001,0,188125012.68000001,0,106414.44,3999.29,0,0,null,null,188231427.12,3999.29,202966912.5,3999.29]
[2023,"GrandBridge Energy Inc.","General Service >= 50 kW","General Service 1000 to 4,999 kW-Energy+","GrandBridge Energy Inc._vice 1000 to 4,999 kW-Energy+_General Service 1000 to 4,999 k Service Classification",76020691.379999995,163094.43,0,0,140576812.96000001,367046.34,25941123.460000001,44285.27,null,null,166517936.41999999,411331.61,242538627.79999998,574426.04]
[2023,"GrandBridge Energy Inc.","General Service >= 50 kW","General Service 50 to 4,999 kW-Brantford","GrandBridge Energy Inc._ce 50 to 4,999 kW-Brantford_General Service 50 to 4,999 k Service Classification",76020691.379999995,163094.43,22566196.649999999,54870.53,465419919.69999999,1202378.0900000001,5780814.4100000001,11416.89,null,null,493766930.75999999,1268665.51,569787622.13999999,1431759.94]
[2023,"GrandBridge Energy Inc.","General Service >= 50 kW","General Service 50 to 999 kW-Energy+","GrandBridge Energy Inc._vice 50 to 999 kW-Energy+_General Service 50 to 999 k Service Classification",76020691.379999995,163094.43,52062834.950000003,184657.45,325466693.88999999,985097.34,8651118.3599999994,17160.64,null,null,386180647.19999999,1186915.43,462201338.57999998,1350009.8599999999]
[2023,"GrandBridge Energy Inc.","Large User","Large Use-Energy+","GrandBridge Energy Inc._nergy+_Large Us Service Classification",0,0,0,0,152323702.44999999,342419.6,0,0,null,null,152323702.44999999,342419.6,152323702.44999999,342419.6]
[2023,"GrandBridge Energy Inc.","Residential","Residential-Brantford","GrandBridge Energy Inc._rantford_Residentia Service Classification",5188946.13,0,307980986.58999997,0,0,0,0,0,null,null,307980986.58999997,0,313169932.71999997,0]
[2023,"GrandBridge Energy Inc.","Residential","Residential-Energy+","GrandBridge Energy Inc._-Energy+_Residentia Service Classification",5188946.13,0,518601917.49000001,0,0,0,0,0,null,null,518601917.49000001,0,523790863.62,0]
[2023,"GrandBridge Energy Inc.","Sentinel Lighting Connections","Sentinel Lighting-Brantford","GrandBridge Energy Inc._ting-Brantford_Sentinel Lightin Service Classification",5726.16,17.28,177870.09,0,0,0,0,0,null,null,177870.09,0,183596.25,17.28]
[2023,"GrandBridge Energy Inc.","Sentinel Lighting Connections","Sentinel Lighting-Energy+","GrandBridge Energy Inc._ghting-Energy+_Sentinel Lightin Service Classification",5726.16,17.28,9657.36,227.86,0,0,0,0,null,null,9657.36,227.86,15383.52,245.14000000000001]
[2023,"GrandBridge Energy Inc.","Street Lighting Connections","Street Lighting-Energy+","GrandBridge Energy Inc._ting-Energy+_Street Lightin Service Classification",732501.76,2046.39,455993.42,1271.98,4740910.6399999997,13235.48,0,0,null,null,5196904.0599999996,14507.46,5929405.8199999994,16553.849999999999]
[2023,"GrandBridge Energy Inc.","Street Lighting Connections","Street Lighting-Kitchener-Brantford","GrandBridge Energy Inc._er-Brantford_Street Lightin Service Classification",732501.76,2046.39,0,0,4481112.41,13329.11,0,0,null,null,4481112.41,13329.11,5213614.17,15375.5]
[2023,"GrandBridge Energy Inc.","Unmetered Scattered Load Connections","Unmetered Scattered Load-Brantford","GrandBridge Energy Inc._ttered Load-Brantford_Unmetered Scattered Loa Service Classification",0,0,1539945.54,0,0,0,0,0,null,null,1539945.54,0,1539945.54,0]
[2023,"GrandBridge Energy Inc.","Unmetered Scattered Load Connections","Unmetered Scattered Load-Energy+","GrandBridge Energy Inc._cattered Load-Energy+_Unmetered Scattered Loa Service Classification",0,0,1961470.55,0,0,0,0,0,null,null,1961470.55,0,1961470.55,0]
[2023,"Greater Sudbury Hydro Inc.","General Service < 50 kW","General Service Less Than 50 kW","Greater Sudbury Hydro Inc._General Service Less Than 50 kW Service Classification",22430350.719999999,0,110295320.61,null,382412.53,null,null,null,null,null,110677733.14,0,133108083.86,0]
[2023,"Greater Sudbury Hydro Inc.","General Service >= 50 kW","General Service 50 to 4,999 kW","Greater Sudbury Hydro Inc._General Service 50 to 4,999 kW Service Classification",56093985.560000002,134666.04999999999,55763081.200000003,176108.44,216372494.88,472832.43,3328282.83,6061.51,null,null,275463858.91000003,655002.38,331557844.47000003,789668.42999999993]
[2023,"Greater Sudbury Hydro Inc.","Residential","Residential","Greater Sudbury Hydro Inc._Residential Service Classification",4298634.29,0,376470373.95999998,null,null,null,null,null,null,null,376470373.95999998,0,380769008.25,0]
[2023,"Greater Sudbury Hydro Inc.","Sentinel Lighting Connections","Sentinel Lighting","Greater Sudbury Hydro Inc._Sentinel Lighting Service Classification",24860.7,68.400000000000006,323863.08,892.51,null,null,null,null,null,null,323863.08,892.51,348723.78,960.91]
[2023,"Greater Sudbury Hydro Inc.","Street Lighting Connections","Street Lighting","Greater Sudbury Hydro Inc._Street Lighting Service Classification",0,0,0,null,3599100.4,10056.86,null,null,null,null,3599100.4,10056.86,3599100.4,10056.86]
[2023,"Greater Sudbury Hydro Inc.","Unmetered Scattered Load Connections","Unmetered Scattered Load","Greater Sudbury Hydro Inc._Unmetered Scattered Load Service Classification",3936,0,943568,null,null,null,null,null,null,null,943568,0,947504,0]
[2023,"Grimsby Power Incorporated","Embedded Distributor(s)","Embedded Distributor","Grimsby Power Incorporated_Embedded Distributor Service Classification",0,0,0,null,62515306.350000001,164476.1,null,null,null,null,62515306.350000001,164476.1,62515306.350000001,164476.1]
[2023,"Grimsby Power Incorporated","General Service < 50 kW","General Service Less Than 50 kW","Grimsby Power Incorporated_General Service Less Than 50 kW Service Classification",3375687.12,0,16359742.15,null,null,null,null,null,null,null,16359742.15,0,19735429.27,0]
[2023,"Grimsby Power Incorporated","General Service >= 50 kW","General Service 50 to 4,999 kW","Grimsby Power Incorporated_General Service 50 to 4,999 kW Service Classification",20111955.629999999,62629.25,4356130.74,14645.25,46722730.049999997,187095.76,3275831.51,6367.26,null,null,54354692.299999997,208108.27,74466647.929999992,270737.52]
[2023,"Grimsby Power Incorporated","Residential","Residential","Grimsby Power Incorporated_Residential Service Classification",1146086.19,0,99893668.760000005,null,null,null,null,null,null,null,99893668.760000005,0,101039754.95,0]
[2023,"Grimsby Power Incorporated","Street Lighting Connections","Street Lighting","Grimsby Power Incorporated_Street Lighting Service Classification",732358.4,2007.64,0,null,5349.6,16.02,null,null,null,null,5349.6,16.02,737708,2023.66]
[2023,"Grimsby Power Incorporated","Unmetered Scattered Load Connections","Unmetered Scattered Load","Grimsby Power Incorporated_Unmetered Scattered Load Service Classification",1156.33,0,324808.89,null,null,null,null,null,null,null,324808.89,0,325965.22000000003,0]
[2023,"Halton Hills Hydro Inc.","General Service < 50 kW","General Service Less Than 50 kW","Halton Hills Hydro Inc._General Service Less Than 50 kW Service Classification",6133056,0,43313792,null,null,null,null,null,null,null,43313792,0,49446848,0]
[2023,"Halton Hills Hydro Inc.","General Service >= 50 kW","General Service 1,000 to 4,999 kW","Halton Hills Hydro Inc._General Service 1,000 to 4,999 kW Service Classification",20753548,41207,0,null,68582628,177434,null,null,null,null,68582628,177434,89336176,218641]
[2023,"Halton Hills Hydro Inc.","General Service >= 50 kW","General Service 50 to 999 kW","Halton Hills Hydro Inc._General Service 50 to 999 kW Service Classification",20753548,41207,10691610,32656,113786924,319181,3500134,7395,null,null,127978668,359232,148732216,400439]
[2023,"Halton Hills Hydro Inc.","Residential","Residential","Halton Hills Hydro Inc._Residential Service Classification",2268129,0,213074231,null,null,null,null,null,null,null,213074231,0,215342360,0]
[2023,"Halton Hills Hydro Inc.","Sentinel Lighting Connections","Sentinel Lighting","Halton Hills Hydro Inc._Sentinel Lighting Service Classification",25598,71,219714,592,null,null,null,null,null,null,219714,592,245312,663]
[2023,"Halton Hills Hydro Inc.","Street Lighting Connections","Street Lighting","Halton Hills Hydro Inc._Street Lighting Service Classification",0,0,0,null,1163644,3245,null,null,null,null,1163644,3245,1163644,3245]
[2023,"Halton Hills Hydro Inc.","Unmetered Scattered Load Connections","Unmetered Scattered Load","Halton Hills Hydro Inc._Unmetered Scattered Load Service Classification",0,0,947309,null,null,null,null,null,null,null,947309,0,947309,0]
[2023,"Hearst Power Distribution Company Limited","General Service < 50 kW","General Service Less Than 50 kW","Hearst Power Distribution Company Limited_General Service Less Than 50 kW Service Classification",594939,0,9582064,null,142,null,null,null,null,null,9582206,0,10177145,0]
[2023,"Hearst Power Distribution Company Limited","General Service >= 50 kW","General Service 50 to 1,499 kW","Hearst Power Distribution Company Limited_General Service 50 to 1,499 kW Service Classification",1218920,3088,2868410,9736,19233537,54133,null,null,null,null,22101947,63869,23320867,66957]
[2023,"Hearst Power Distribution Company Limited","General Service >= 50 kW","Intermediate User","Hearst Power Distribution Company Limited_Intermediate User Service Classification",1218920,3088,0,null,19682891,62449,null,null,null,null,19682891,62449,20901811,65537]
[2023,"Hearst Power Distribution Company Limited","Residential","Residential","Hearst Power Distribution Company Limited_Residential Service Classification",0,0,22131009,null,null,null,null,null,null,null,22131009,0,22131009,0]
[2023,"Hearst Power Distribution Company Limited","Sentinel Lighting Connections","Sentinel Lighting","Hearst Power Distribution Company Limited_Sentinel Lighting Service Classification",0,0,9452,35,null,null,null,null,null,null,9452,35,9452,35]
[2023,"Hearst Power Distribution Company Limited","Street Lighting Connections","Street Lighting","Hearst Power Distribution Company Limited_Street Lighting Service Classification",434657,1339,0,null,14612,20,null,null,null,null,14612,20,449269,1359]
[2023,"Hydro 2000 Inc.","General Service < 50 kW","General Service Less Than 50 kW","Hydro 2000 Inc._General Service Less Than 50 kW Service Classification",432105,0,3433981,null,null,null,null,null,null,null,3433981,0,3866086,0]
[2023,"Hydro 2000 Inc.","General Service >= 50 kW","General Service 50 to 4,999 kW","Hydro 2000 Inc._General Service 50 to 4,999 kW Service Classification",502310,0,0,null,3026979,8754,null,null,null,null,3026979,8754,3529289,8754]
[2023,"Hydro 2000 Inc.","Residential","Residential","Hydro 2000 Inc._Residential Service Classification",47404,0,12539297,null,null,null,null,null,null,null,12539297,0,12586701,0]
[2023,"Hydro 2000 Inc.","Street Lighting Connections","Street Lighting","Hydro 2000 Inc._Street Lighting Service Classification",0,0,0,null,152161,424.8,null,null,null,null,152161,424.8,152161,424.8]
[2023,"Hydro 2000 Inc.","Unmetered Scattered Load Connections","Unmetered Scattered Load","Hydro 2000 Inc._Unmetered Scattered Load Service Classification",0,0,1634,null,null,null,null,null,null,null,1634,0,1634,0]
[2023,"Hydro One Networks Inc.","Embedded Distributor(s)","Embedded Distributor (Haldimand County) - Hydro One","Hydro One Networks Inc._ibutor (Haldimand County) - Hydro One_Embedded Distributor (Haldimand County) Service Classification",0,0,0,0,1360514442.72,5191997.43,8371946265.0799999,16747117.949999999,null,null,9732460707.7999992,21939115.379999999,9732460707.7999992,21939115.379999999]
[2023,"Hydro One Networks Inc.","Embedded Distributor(s)","Embedded Distributor – Norfolk Power","Hydro One Networks Inc._Embedded Distributor – Norfolk Power Service Classification",0,0,0,0,0,0,0,0,null,null,0,0,0,0]
[2023,"Hydro One Networks Inc.","Embedded Distributor(s)","Sub Transmission – Embedded Distributor - Hydro One Networks","Hydro One Networks Inc._dded Distributor - Hydro One Networks_Sub Transmission – Embedded Distributor Service Classification",0,0,0,0,0,0,0,0,null,null,0,0,0,0]
[2023,"Hydro One Networks Inc.","General Service < 50 kW","General Service Energy Billed (less than 50 kW) - GSe metered - Hydro One Networks","Hydro One Networks Inc._han 50 kW) - GSe metered - Hydro One Networks_General Service Energy Billed (less than 50 kW) Service Classification",463510647.61000001,0,1989481469.5,0,38222661.259999998,0,0,0,null,null,2027704130.76,0,2491214778.3699999,0]
[2023,"Hydro One Networks Inc.","General Service < 50 kW","General Service Less Than 50 kW - Haldimand County","Hydro One Networks Inc._Than 50 kW - Haldimand County_General Service Less Than 50 kW Service Classification",463510647.61000001,0,45796580.450000003,0,267442.46000000002,0,0,0,null,null,46064022.909999996,0,509574670.51999998,0]
[2023,"Hydro One Networks Inc.","General Service < 50 kW","General Service Less Than 50 kW - Norfolk Power","Hydro One Networks Inc._ss Than 50 kW - Norfolk Power_General Service Less Than 50 kW Service Classification",463510647.61000001,0,44495550.43,0,360109.91,0,0,0,null,null,44855660.340000004,0,508366307.95000005,0]
[2023,"Hydro One Networks Inc.","General Service < 50 kW","General Service Less Than 50 kW - Orillia","Hydro One Networks Inc._ice Less Than 50 kW - Orillia_General Service Less Than 50 kW Service Classification",463510647.61000001,0,36074888.93,0,214977.8,0,0,0,null,null,36289866.729999997,0,499800514.34000003,0]
[2023,"Hydro One Networks Inc.","General Service < 50 kW","General Service Less Than 50 kW - Peterborough","Hydro One Networks Inc._ess Than 50 kW - Peterborough_General Service Less Than 50 kW Service Classification",463510647.61000001,0,89627560.060000002,0,432736.13,0,0,0,null,null,90060296.189999998,0,553570943.79999995,0]
[2023,"Hydro One Networks Inc.","General Service < 50 kW","General Service Less Than 50 kW - Woodstock Hydro","Hydro One Networks Inc._ Than 50 kW - Woodstock Hydro_General Service Less Than 50 kW Service Classification",463510647.61000001,0,38195873.93,0,1672472.71,0,0,0,null,null,39868346.640000001,0,503378994.25,0]
[2023,"Hydro One Networks Inc.","General Service < 50 kW","Urban General Service Energy Billed (less than 50 kW) - UGe - Hydro One Networks","Hydro One Networks Inc._Billed (less than 50 kW) - UGe - Hydro One Networks_Urban General Service Energy Billed (less than 50 kW) Service Classification",463510647.61000001,0,497073490.25,0,11426863.57,0,0,0,null,null,508500353.81999999,0,972011001.43000007,0]
[2023,"Hydro One Networks Inc.","General Service >= 50 kW","Distributed Generation - DGen - Hydro One Networks","Hydro One Networks Inc._- Hydro One Networks_Distributed Generation Service Classification",284041.21999999997,2676.34,0,0,31656110.609999999,196715.2,117007.15,5337.66,null,null,31773117.760000002,202052.86,32057158.98,204729.19999999998]
[2023,"Hydro One Networks Inc.","General Service >= 50 kW","General Service 50 to 4,999 kW - Haldimand County","Hydro One Networks Inc._ 4,999 kW - Haldimand County_General Service 50 to 4,999 kW Service Classification",284041.21999999997,2676.34,6471240.79,21524.14,64612234.289999999,203922.84,2691044.47,5026.72,null,null,73774519.549999997,230473.7,74058560.769999996,233150.04]
[2023,"Hydro One Networks Inc.","General Service >= 50 kW","General Service 50 to 4,999 kW - Norfolk Power","Hydro One Networks Inc._ to 4,999 kW - Norfolk Power_General Service 50 to 4,999 kW Service Classification",284041.21999999997,2676.34,2461986,8949.8799999999992,66216301.509999998,170427.47,3324903.81,6438.8,null,null,72003191.319999993,185816.15,72287232.539999992,188492.49]
[2023,"Hydro One Networks Inc.","General Service >= 50 kW","General Service 50 to 4,999 kW - Orillia","Hydro One Networks Inc._ice 50 to 4,999 kW - Orillia_General Service 50 to 4,999 kW Service Classification",284041.21999999997,2676.34,14586945.439999999,39085.449999999997,113845025.87,261609.38,6000851.6799999997,5392.44,null,null,134432822.99000001,306087.27,134716864.21000001,308763.61000000004]
[2023,"Hydro One Networks Inc.","General Service >= 50 kW","General Service 50 to 4,999 kW - Peterborough","Hydro One Networks Inc._0 to 4,999 kW - Peterborough_General Service 50 to 4,999 kW Service Classification",284041.21999999997,2676.34,48924923.5,118573.44,213100369.02000001,507443.61,3244306.65,5542.61,null,null,265269599.16999999,631559.66,265553640.38999999,634236]
[2023,"Hydro One Networks Inc.","General Service >= 50 kW","General Service 50 to 999 kW - Woodstock Hydro","Hydro One Networks Inc._o 999 kW - Woodstock Hydro_General Service 50 to 999 kW Service Classification",284041.21999999997,2676.34,13830699.960000001,36936.44,94612365.569999993,249302.2,2947560.52,5399.3,null,null,111390626.05,291637.94,111674667.27,294314.28000000003]
[2023,"Hydro One Networks Inc.","General Service >= 50 kW","General Service Demand Billed (50 kW and above) - GSd - Hydro One Networks","Hydro One Networks Inc._ (50 kW and above) - GSd - Hydro One Networks_General Service Demand Billed (50 kW and above) Service Classification",284041.21999999997,2676.34,169963669.49000001,714305.49,1599998098.23,4582763.45,8032941,13911.93,null,null,1777994708.72,5310980.87,1778278749.9400001,5313657.21]
[2023,"Hydro One Networks Inc.","General Service >= 50 kW","General Service Greater than 1,000 kW - Woodstock Hydro","Hydro One Networks Inc._ter than 1,000 kW - Woodstock Hydro_General Service Greater than 1,000 kW Service Classification",284041.21999999997,2676.34,0,0,0,0,0,0,null,null,0,0,284041.21999999997,2676.34]
[2023,"Hydro One Networks Inc.","General Service >= 50 kW","Urban General Service Demand Billed (50 kW and above) - UGd - Hydro One Networks","Hydro One Networks Inc._Billed (50 kW and above) - UGd - Hydro One Networks_Urban General Service Demand Billed (50 kW and above) Service Classification",284041.21999999997,2676.34,107977524.62,289699.71000000002,651089766.12,1672378.22,2465314.7200000002,4531.3,null,null,761532605.46000004,1966609.23,761816646.68000007,1969285.57]
[2023,"Hydro One Networks Inc.","Large User","Large Use - Peterborough","Hydro One Networks Inc._borough_Large Use Service Classification",0,0,0,0,0,0,0,0,null,null,0,0,0,0]
[2023,"Hydro One Networks Inc.","Residential","Residential - Haldimand County","Hydro One Networks Inc._nd County_Residential Service Classification",6252749.6500000004,0,193850410.81,0,0,0,0,0,null,null,193850410.81,0,200103160.46000001,0]
[2023,"Hydro One Networks Inc.","Residential","Residential - Low Density (R2) - Hydro One Networks","Hydro One Networks Inc._ Networks_Residential Service Classification",6252749.6500000004,0,4950063273.9399996,0,1626453.37,0,0,0,null,null,4951689727.3100004,0,4957942476.96,0]
[2023,"Hydro One Networks Inc.","Residential","Residential - Medium Density (R1) - Hydro One Networks","Hydro One Networks Inc._ Networks_Residential Service Classification",6252749.6500000004,0,5346550850.1700001,0,641907.59,0,0,0,null,null,5347192757.7600002,0,5353445507.4099998,0]
[2023,"Hydro One Networks Inc.","Residential","Residential - Norfolk Power","Hydro One Networks Inc._olk Power_Residential Service Classification",6252749.6500000004,0,157474798.69999999,0,0,0,0,0,null,null,157474798.69999999,0,163727548.34999999,0]
[2023,"Hydro One Networks Inc.","Residential","Residential - Orillia","Hydro One Networks Inc._- Orillia_Residential Service Classification",6252749.6500000004,0,110305529.98999999,0,0,0,0,0,null,null,110305529.98999999,0,116558279.64,0]
[2023,"Hydro One Networks Inc.","Residential","Residential - Peterborough","Hydro One Networks Inc._erborough_Residential Service Classification",6252749.6500000004,0,289382786.80000001,0,0,0,0,0,null,null,289382786.80000001,0,295635536.44999999,0]
[2023,"Hydro One Networks Inc.","Residential","Residential - Seasonal - Hydro One Networks","Hydro One Networks Inc._ Networks_Residential Service Classification",6252749.6500000004,0,705336052.44000006,0,34263.800000000003,0,0,0,null,null,705370316.24000001,0,711623065.88999999,0]
[2023,"Hydro One Networks Inc.","Residential","Residential - Urban (UR) - Hydro One Networks","Hydro One Networks Inc._ Networks_Residential Service Classification",6252749.6500000004,0,2054013555.53,0,27074.42,0,0,0,null,null,2054040629.95,0,2060293379.6000001,0]
[2023,"Hydro One Networks Inc.","Residential","Residential - Woodstock Hydro","Hydro One Networks Inc._ock Hydro_Residential Service Classification",6252749.6500000004,0,120188369.59,0,0,0,0,0,null,null,120188369.59,0,126441119.24000001,0]
[2023,"Hydro One Networks Inc.","Sentinel Lighting Connections","Sentinel Lighting - Haldimand County","Hydro One Networks Inc._aldimand County_Sentinel Lighting Service Classification",27507.040000000001,77.62,129343.07,423.41,0,0,0,0,null,null,129343.07,423.41,156850.11000000002,501.03000000000003]
[2023,"Hydro One Networks Inc.","Sentinel Lighting Connections","Sentinel Lighting - Hydro One Networks","Hydro One Networks Inc._ro One Networks_Sentinel Lighting Service Classification",27507.040000000001,77.62,9946442.6199999992,0,256307.88,0,0,0,null,null,10202750.5,0,10230257.539999999,77.62]
[2023,"Hydro One Networks Inc.","Sentinel Lighting Connections","Sentinel Lighting - Norfolk Power","Hydro One Networks Inc._- Norfolk Power_Sentinel Lighting Service Classification",27507.040000000001,77.62,122512.24,1214.05,0,0,0,0,null,null,122512.24,1214.05,150019.28,1291.67]
[2023,"Hydro One Networks Inc.","Sentinel Lighting Connections","Sentinel Lighting - Orillia","Hydro One Networks Inc._hting - Orillia_Sentinel Lighting Service Classification",27507.040000000001,77.62,0,0,0,0,0,0,null,null,0,0,27507.040000000001,77.62]
[2023,"Hydro One Networks Inc.","Sentinel Lighting Connections","Sentinel Lighting - Peterborough","Hydro One Networks Inc._ - Peterborough_Sentinel Lighting Service Classification",27507.040000000001,77.62,301087.53999999998,950.2,0,0,0,0,null,null,301087.53999999998,950.2,328594.57999999996,1027.8200000000002]
[2023,"Hydro One Networks Inc.","Street Lighting Connections","Street Lighting - Haldimand County","Hydro One Networks Inc._dimand County_Street Lighting Service Classification",1475757.84,4043.18,3240.28,22.32,51600.89,246.53,0,0,null,null,54841.17,268.85000000000002,1530599.01,4312.03]
[2023,"Hydro One Networks Inc.","Street Lighting Connections","Street Lighting - Hydro One Networks","Hydro One Networks Inc._ One Networks_Street Lighting Service Classification",1475757.84,4043.18,39483217.079999998,0,12215044.300000001,0,0,0,null,null,51698261.380000003,0,53174019.220000006,4043.18]
[2023,"Hydro One Networks Inc.","Street Lighting Connections","Street Lighting - Norfolk Power","Hydro One Networks Inc._Norfolk Power_Street Lighting Service Classification",1475757.84,4043.18,31839.01,85.7,1761081.03,4899.12,0,0,null,null,1792920.04,4984.82,3268677.88,9028]
[2023,"Hydro One Networks Inc.","Street Lighting Connections","Street Lighting - Orillia","Hydro One Networks Inc._ing - Orillia_Street Lighting Service Classification",1475757.84,4043.18,4776.01,13.08,0,0,0,0,null,null,4776.01,13.08,1480533.85,4056.2599999999998]
[2023,"Hydro One Networks Inc.","Street Lighting Connections","Street Lighting - Peterborough","Hydro One Networks Inc._ Peterborough_Street Lighting Service Classification",1475757.84,4043.18,0,0,164160.01,492.95,0,0,null,null,164160.01,492.95,1639917.85,4536.13]
[2023,"Hydro One Networks Inc.","Street Lighting Connections","Street Lighting - Woodstock Hydro","Hydro One Networks Inc._odstock Hydro_Street Lighting Service Classification",1475757.84,4043.18,55137.43,138.83000000000001,2634085.33,7365.73,0,0,null,null,2689222.76,7504.56,4164980.5999999996,11547.74]
[2023,"Hydro One Networks Inc.","Sub Transmission Customers","Sub Transmission – End Use Customer - Hydro One Networks","Hydro One Networks Inc._Use Customer - Hydro One Networks_Sub Transmission – End Use Customer Service Classification",423276497.30000001,1092502.83,128768654.31999999,0,4330351656.3299999,11830296.93,869071760.74000001,2003708.83,null,null,5328192071.3900003,13834005.76,5751468568.6900005,14926508.59]
[2023,"Hydro One Networks Inc.","Unmetered Scattered Load Connections","General Service Energy Billed (less than 50 kW) - GSe unmetered - Hydro One Networks","Hydro One Networks Inc._n 50 kW) - GSe unmetered - Hydro One Networks_General Service Energy Billed (less than 50 kW) Service Classification",2221269.12,0,28911220.02,0,51062.68,0,0,0,null,null,28962282.699999999,0,31183551.82,0]
[2023,"Hydro One Networks Inc.","Unmetered Scattered Load Connections","Unmetered Scattered Load - Haldimand County","Hydro One Networks Inc._oad - Haldimand County_Unmetered Scattered Load Service Classification",2221269.12,0,246408.31,0,0,0,0,0,null,null,246408.31,0,2467677.4300000002,0]
[2023,"Hydro One Networks Inc.","Unmetered Scattered Load Connections","Unmetered Scattered Load - Norfolk Power","Hydro One Networks Inc._d Load - Norfolk Power_Unmetered Scattered Load Service Classification",2221269.12,0,355053.36,0,0,0,0,0,null,null,355053.36,0,2576322.48,0]
[2023,"Hydro One Networks Inc.","Unmetered Scattered Load Connections","Unmetered Scattered Load - Orillia","Hydro One Networks Inc._attered Load - Orillia_Unmetered Scattered Load Service Classification",2221269.12,0,614952.01,0,0,0,0,0,null,null,614952.01,0,2836221.13,0]
[2023,"Hydro One Networks Inc.","Unmetered Scattered Load Connections","Unmetered Scattered Load - Peterborough","Hydro One Networks Inc._ed Load - Peterborough_Unmetered Scattered Load Service Classification",2221269.12,0,91780.45,0,0,0,0,0,null,null,91780.45,0,2313049.5700000003,0]
[2023,"Hydro One Networks Inc.","Unmetered Scattered Load Connections","Unmetered Scattered Load - Woodstock Hydro","Hydro One Networks Inc._Load - Woodstock Hydro_Unmetered Scattered Load Service Classification",2221269.12,0,588965.77,0,0,0,0,0,null,null,588965.77,0,2810234.89,0]
[2023,"Hydro One Remote Communities Inc.","General Service < 50 kW","Non Standard A General Service Single Phase - G1","Hydro One Remote Communities Inc._ndard A General Service Single Phase - G1_Non Standard A General Service Single Phase Service Classification",0,0,0,null,null,null,null,null,null,null,0,0,0,0]
[2023,"Hydro One Remote Communities Inc.","General Service < 50 kW","Standard A General Service Air Access","Hydro One Remote Communities Inc._Standard A General Service Air Access Service Classification",0,0,0,null,null,null,null,null,null,null,0,0,0,0]
[2023,"Hydro One Remote Communities Inc.","General Service < 50 kW","Standard A General Service Road/Rail Access","Hydro One Remote Communities Inc._Standard A General Service Road/Rail Access Service Classification",0,0,0,null,null,null,null,null,null,null,0,0,0,0]
[2023,"Hydro One Remote Communities Inc.","General Service < 50 kW","Standard A Grid Connected","Hydro One Remote Communities Inc._Standard A Grid Connected Service Classification",0,0,0,null,null,null,null,null,null,null,0,0,0,0]
[2023,"Hydro One Remote Communities Inc.","General Service >= 50 kW","Non Standard A General Service Three Phase - G3","Hydro One Remote Communities Inc._ndard A General Service Three Phase - G3_Non Standard A General Service Three Phase Service Classification",0,0,0,null,null,null,null,null,null,null,0,0,0,0]
[2023,"Hydro One Remote Communities Inc.","Residential","Non Standard A Seasonal Residential - R4","Hydro One Remote Communities Inc._ndard A Seasonal Residential - R4_Non Standard A Seasonal Residential Service Classification",0,0,0,null,null,null,null,null,null,null,0,0,0,0]
[2023,"Hydro One Remote Communities Inc.","Residential","Non Standard A Year Round Residential - R2","Hydro One Remote Communities Inc._ndard A Year Round Residential - R2_Non Standard A Year Round Residential Service Classification",0,0,0,null,null,null,null,null,null,null,0,0,0,0]
[2023,"Hydro One Remote Communities Inc.","Residential","Standard A Residential Air Access","Hydro One Remote Communities Inc._Standard A Residential Air Access Service Classification",0,0,0,null,null,null,null,null,null,null,0,0,0,0]
[2023,"Hydro One Remote Communities Inc.","Residential","Standard A Residential Road/Rail Access","Hydro One Remote Communities Inc._Standard A Residential Road/Rail Access Service Classification",0,0,0,null,null,null,null,null,null,null,0,0,0,0]
[2023,"Hydro One Remote Communities Inc.","Street Lighting Connections","Street Lighting","Hydro One Remote Communities Inc._Street Lighting Service Classification",0,0,0,null,null,null,null,null,null,null,0,0,0,0]
[2023,"Hydro Ottawa Limited","General Service < 50 kW","General Service Less Than 50 kW","Hydro Ottawa Limited_General Service Less Than 50 kW Service Classification",107267930,0,621659211,null,null,null,null,null,null,null,621659211,0,728927141,0]
[2023,"Hydro Ottawa Limited","General Service >= 50 kW","General Service 1,500 to 4,999 kW","Hydro Ottawa Limited_General Service 1,500 to 4,999 kW Service Classification",32566146,63667,0,null,616753092,1313803,null,null,null,null,616753092,1313803,649319238,1377470]
[2023,"Hydro Ottawa Limited","General Service >= 50 kW","General Service 50 to 1,499 kW","Hydro Ottawa Limited_General Service 50 to 1,499 kW Service Classification",32566146,63667,320420551,735079,2232970435,5312963,30473699,58268,null,null,2583864685,6106310,2616430831,6169977]
[2023,"Hydro Ottawa Limited","Large User","Large Use","Hydro Ottawa Limited_Large Use Service Classification",64452945,103759,0,null,499058000,884448,null,null,null,null,499058000,884448,563510945,988207]
[2023,"Hydro Ottawa Limited","Residential","Residential","Hydro Ottawa Limited_Residential Service Classification",24287682,0,2413891352,null,null,null,null,null,null,null,2413891352,0,2438179034,0]
[2023,"Hydro Ottawa Limited","Sentinel Lighting Connections","Sentinel Lighting","Hydro Ottawa Limited_Sentinel Lighting Service Classification",0,0,44760,120,null,null,null,null,null,null,44760,120,44760,120]
[2023,"Hydro Ottawa Limited","Street Lighting Connections","Street Lighting","Hydro Ottawa Limited_Street Lighting Service Classification",53071,148,0,null,22006245,61560,null,null,null,null,22006245,61560,22059316,61708]
[2023,"Hydro Ottawa Limited","Unmetered Scattered Load Connections","Unmetered Scattered Load","Hydro Ottawa Limited_Unmetered Scattered Load Service Classification",0,0,13981077,null,null,null,null,null,null,null,13981077,0,13981077,0]
[2023,"InnPower Corporation","General Service < 50 kW","General Service Less Than 50 kW","InnPower Corporation_General Service Less Than 50 kW Service Classification",4844827.8899999997,0,39109031.289999999,null,null,null,null,null,null,null,39109031.289999999,0,43953859.18,0]
[2023,"InnPower Corporation","General Service >= 50 kW","General Service 50 to 4,999 kW","InnPower Corporation_General Service 50 to 4,999 kW Service Classification",3285251.17,15093.3,2649313,13165.92,50448992.640000001,129118.29,null,null,null,null,53098305.640000001,142284.21,56383556.810000002,157377.50999999998]
[2023,"InnPower Corporation","Residential","Residential","InnPower Corporation_Residential Service Classification",2252206.4500000002,0,179591456.36000001,null,null,null,null,null,null,null,179591456.36000001,0,181843662.81,0]
[2023,"InnPower Corporation","Sentinel Lighting Connections","Sentinel Lighting","InnPower Corporation_Sentinel Lighting Service Classification",8791.98,24.42,88795.26,246.65,null,null,null,null,null,null,88795.26,246.65,97587.239999999991,271.07]
[2023,"InnPower Corporation","Street Lighting Connections","Street Lighting","InnPower Corporation_Street Lighting Service Classification",3952.25,12,0,null,801829.38,2441.62,null,null,null,null,801829.38,2441.62,805781.63,2453.62]
[2023,"InnPower Corporation","Unmetered Scattered Load Connections","Unmetered Scattered Load","InnPower Corporation_Unmetered Scattered Load Service Classification",29808,0,418080,null,null,null,null,null,null,null,418080,0,447888,0]
[2023,"Kingston Hydro Corporation","General Service < 50 kW","General Service Less Than 50 kW","Kingston Hydro Corporation_General Service Less Than 50 kW Service Classification",13764034.18,0,70111180.709999993,null,2153994.11,null,null,null,null,null,72265174.819999993,0,86029209,0]
[2023,"Kingston Hydro Corporation","General Service >= 50 kW","General Service 50 to 4,999 kW","Kingston Hydro Corporation_General Service 50 to 4,999 kW Service Classification",39673310.649999999,91741.81,39316458.350000001,85979.14,165929982,432149.75,3540245.55,6347.58,null,null,208786685.90000001,524476.47,248459996.55000001,616218.28]
[2023,"Kingston Hydro Corporation","Large User","Large Use","Kingston Hydro Corporation_Large Use Service Classification",51514168.859999999,90359.71,0,null,106283983.61,199463.8,null,null,null,null,106283983.61,199463.8,157798152.47,289823.51]
[2023,"Kingston Hydro Corporation","Residential","Residential","Kingston Hydro Corporation_Residential Service Classification",1989074.78,0,187962728.18000001,null,null,null,null,null,null,null,187962728.18000001,0,189951802.96000001,0]
[2023,"Kingston Hydro Corporation","Street Lighting Connections","Street Lighting","Kingston Hydro Corporation_Street Lighting Service Classification",0,0,0,null,2006105.87,5616,null,null,null,null,2006105.87,5616,2006105.87,5616]
[2023,"Kingston Hydro Corporation","Unmetered Scattered Load Connections","Unmetered Scattered Load","Kingston Hydro Corporation_Unmetered Scattered Load Service Classification",13876.29,0,0,null,652942.84,null,null,null,null,null,652942.84,0,666819.13,0]
[2023,"Lakefront Utilities Inc.","General Service < 50 kW","General Service Less Than 50 kW","Lakefront Utilities Inc._General Service Less Than 50 kW Service Classification",5141378.16,0,29619284.73,null,null,null,null,null,null,null,29619284.73,0,34760662.890000001,0]
[2023,"Lakefront Utilities Inc.","General Service >= 50 kW","General Service 3,000 to 4,999 kW","Lakefront Utilities Inc._General Service 3,000 to 4,999 kW Service Classification",0,0,0,null,20808630.27,39174.11,null,null,null,null,20808630.27,39174.11,20808630.27,39174.11]
[2023,"Lakefront Utilities Inc.","General Service >= 50 kW","General Service 50 to 2,999 kW","Lakefront Utilities Inc._General Service 50 to 2,999 kW Service Classification",0,0,5480223.6200000001,14375.04,71568358.469999999,181829.35,null,null,null,null,77048582.090000004,196204.39,77048582.090000004,196204.39]
[2023,"Lakefront Utilities Inc.","Residential","Residential","Lakefront Utilities Inc._Residential Service Classification",1415927.78,0,77262530.670000002,null,null,null,null,null,null,null,77262530.670000002,0,78678458.450000003,0]
[2023,"Lakefront Utilities Inc.","Sentinel Lighting Connections","Sentinel Lighting","Lakefront Utilities Inc._Sentinel Lighting Service Classification",5352,14.87,38394.949999999997,106.65,null,null,null,null,null,null,38394.949999999997,106.65,43746.95,121.52000000000001]
[2023,"Lakefront Utilities Inc.","Street Lighting Connections","Street Lighting","Lakefront Utilities Inc._Street Lighting Service Classification",116048.83,314.76,0,null,965107.42,2617.6799999999998,null,null,null,null,965107.42,2617.6799999999998,1081156.25,2932.4399999999996]
[2023,"Lakefront Utilities Inc.","Unmetered Scattered Load Connections","Unmetered Scattered Load","Lakefront Utilities Inc._Unmetered Scattered Load Service Classification",38676,0,582383.84,null,null,null,null,null,null,null,582383.84,0,621059.83999999997,0]
[2023,"Lakeland Power Distribution Ltd.","General Service < 50 kW","General Service Less Than 50 kW","Lakeland Power Distribution Ltd._General Service Less Than 50 kW Service Classification",9007237.7200000007,0,50974279.310000002,null,null,null,null,null,null,null,50974279.310000002,0,59981517.030000001,0]
[2023,"Lakeland Power Distribution Ltd.","General Service < 50 kW","General Service Less Than 50 kW - Parry Sound","Lakeland Power Distribution Ltd._Less Than 50 kW - Parry Sound_General Service Less Than 50 kW Service Classification",9007237.7200000007,0,0,null,null,null,null,null,null,null,0,0,9007237.7200000007,0]
[2023,"Lakeland Power Distribution Ltd.","General Service >= 50 kW","General Service 50 to 4,999 kW","Lakeland Power Distribution Ltd._General Service 50 to 4,999 kW Service Classification",18052570.170000002,44304.92,6046488.5999999996,15677.01,101110441.59,248258.88,null,null,null,null,107156930.19,263935.89,125209500.36,308240.81]
[2023,"Lakeland Power Distribution Ltd.","General Service >= 50 kW","General Service 50 to 4,999 kW - Parry Sound","Lakeland Power Distribution Ltd._50 to 4,999 kW - Parry Sound_General Service 50 to 4,999 kW Service Classification",18052570.170000002,44304.92,0,null,null,null,null,null,null,null,0,0,18052570.170000002,44304.92]
[2023,"Lakeland Power Distribution Ltd.","Residential","Residential","Lakeland Power Distribution Ltd._Residential Service Classification",1162271.44,0,115459347.65000001,null,null,null,null,null,null,null,115459347.65000001,0,116621619.09,0]
[2023,"Lakeland Power Distribution Ltd.","Residential","Residential - Parry Sound","Lakeland Power Distribution Ltd._rry Sound_Residential Service Classification",1162271.44,0,0,null,null,null,null,null,null,null,0,0,1162271.44,0]
[2023,"Lakeland Power Distribution Ltd.","Sentinel Lighting Connections","Sentinel Lighting","Lakeland Power Distribution Ltd._Sentinel Lighting Service Classification",0,0,34937.980000000003,97.05,null,null,null,null,null,null,34937.980000000003,97.05,34937.980000000003,97.05]
[2023,"Lakeland Power Distribution Ltd.","Sentinel Lighting Connections","Sentinel Lighting - Parry Sound","Lakeland Power Distribution Ltd._g - Parry Sound_Sentinel Lighting Service Classification",0,0,0,null,null,null,null,null,null,null,0,0,0,0]
[2023,"Lakeland Power Distribution Ltd.","Street Lighting Connections","Street Lighting","Lakeland Power Distribution Ltd._Street Lighting Service Classification",137610,373.2,531748.4,1472.69,389566.88,1236.42,null,null,null,null,921315.28,2709.11,1058925.28,3082.31]
[2023,"Lakeland Power Distribution Ltd.","Street Lighting Connections","Street Lighting - Parry Sound","Lakeland Power Distribution Ltd._- Parry Sound_Street Lighting Service Classification",137610,373.2,0,null,null,null,null,null,null,null,0,0,137610,373.2]
[2023,"Lakeland Power Distribution Ltd.","Unmetered Scattered Load Connections","Unmetered Scattered Load","Lakeland Power Distribution Ltd._Unmetered Scattered Load Service Classification",600.05999999999995,0,171744.2,null,null,null,null,null,null,null,171744.2,0,172344.26,0]
[2023,"Lakeland Power Distribution Ltd.","Unmetered Scattered Load Connections","Unmetered Scattered Load - Parry Sound","Lakeland Power Distribution Ltd._red Load - Parry Sound_Unmetered Scattered Load Service Classification",600.05999999999995,0,0,null,null,null,null,null,null,null,0,0,600.05999999999995,0]
[2023,"London Hydro Inc.","General Service < 50 kW","General Service Less Than 50 kW","London Hydro Inc._General Service Less Than 50 kW Service Classification",59463108.43,0,344676335.95999998,null,7851180.0499999998,null,null,null,null,null,352527516.00999999,0,411990624.44,0]
[2023,"London Hydro Inc.","General Service >= 50 kW","General Service 50 to 4,999 kW","London Hydro Inc._General Service 50 to 4,999 kW Service Classification",152771000.47,391071.41,170482301.06999999,334699.65000000002,1087004154.8900001,2842147.86,13758091.890000001,26151.46,null,null,1271244547.8499999,3202998.97,1424015548.3199999,3594070.3800000004]
[2023,"London Hydro Inc.","General Service >= 50 kW","General Service 1,000 to 4,999 kW (co-generation)","London Hydro Inc._ 1,000 to 4,999 kW (co-generation)_General Service 1,000 to 4,999 kW (c Service Classification",152771000.47,391071.41,0,null,33446124.350000001,246402.3,1636833.13,31601.71,null,null,35082957.479999997,278004.01,187853957.94999999,669075.41999999993]
[2023,"London Hydro Inc.","Large User","Large Use","London Hydro Inc._Large Use Service Classification",0,0,0,null,116985730.81,213689.69,null,null,null,null,116985730.81,213689.69,116985730.81,213689.69]
[2023,"London Hydro Inc.","Residential","Residential","London Hydro Inc._Residential Service Classification",17767841.760000002,0,1164344442.71,null,115730.51,null,null,null,null,null,1164460173.22,0,1182228014.98,0]
[2023,"London Hydro Inc.","Sentinel Lighting Connections","Sentinel Lighting","London Hydro Inc._Sentinel Lighting Service Classification",4445.9399999999996,12.13,522712.44,1464.18,null,null,null,null,null,null,522712.44,1464.18,527158.38,1476.3100000000002]
[2023,"London Hydro Inc.","Street Lighting Connections","Street Lighting","London Hydro Inc._Street Lighting Service Classification",0,0,0,null,17000378.43,47683.41,null,null,null,null,17000378.43,47683.41,17000378.43,47683.41]
[2023,"London Hydro Inc.","Unmetered Scattered Load Connections","Unmetered Scattered Load","London Hydro Inc._Unmetered Scattered Load Service Classification",0,0,5441240.0700000003,null,null,null,null,null,null,null,5441240.0700000003,0,5441240.0700000003,0]
[2023,"Milton Hydro Distribution Inc.","General Service < 50 kW","General Service Less Than 50 kW","Milton Hydro Distribution Inc._General Service Less Than 50 kW Service Classification",13507733,0,78272733,null,257523,null,null,null,null,null,78530256,0,92037989,0]
[2023,"Milton Hydro Distribution Inc.","General Service >= 50 kW","General Service 1,000 to 4,999 kW","Milton Hydro Distribution Inc._General Service 1,000 to 4,999 kW Service Classification",7306832,0,0,null,123478485,248948,null,null,null,null,123478485,248948,130785317,248948]
[2023,"Milton Hydro Distribution Inc.","General Service >= 50 kW","General Service 50 to 999 kW","Milton Hydro Distribution Inc._General Service 50 to 999 kW Service Classification",7306832,0,32774337,47458,174479272,502589,4161956,8156,null,null,211415565,558203,218722397,558203]
[2023,"Milton Hydro Distribution Inc.","Large User","Large Use","Milton Hydro Distribution Inc._Large Use Service Classification",0,0,0,null,133076909,283485,null,null,null,null,133076909,283485,133076909,283485]
[2023,"Milton Hydro Distribution Inc.","Residential","Residential","Milton Hydro Distribution Inc._Residential Service Classification",3673023,0,358556751,null,14027,null,null,null,null,null,358570778,0,362243801,0]
[2023,"Milton Hydro Distribution Inc.","Sentinel Lighting Connections","Sentinel Lighting","Milton Hydro Distribution Inc._Sentinel Lighting Service Classification",0,0,143332,410,null,null,null,null,null,null,143332,410,143332,410]
[2023,"Milton Hydro Distribution Inc.","Street Lighting Connections","Street Lighting","Milton Hydro Distribution Inc._Street Lighting Service Classification",0,0,0,null,5078088,14167,null,null,null,null,5078088,14167,5078088,14167]
[2023,"Milton Hydro Distribution Inc.","Unmetered Scattered Load Connections","Unmetered Scattered Load","Milton Hydro Distribution Inc._Unmetered Scattered Load Service Classification",136249,0,869455,null,null,null,null,null,null,null,869455,0,1005704,0]
[2023,"Newmarket-Tay Power Distribution Ltd.","General Service < 50 kW","General Service Less Than 50 kW - Midland Power","Newmarket-Tay Power Distribution Ltd._ss Than 50 kW - Midland Power_General Service Less Than 50 kW Service Classification",5441715,5,18839645,9,null,null,null,null,null,null,18839645,9,24281360,14]
[2023,"Newmarket-Tay Power Distribution Ltd.","General Service < 50 kW","General Service Less Than 50 kW - Newmarket-Tay Power","Newmarket-Tay Power Distribution Ltd._n 50 kW - Newmarket-Tay Power_General Service Less Than 50 kW Service Classification",5441715,5,74605313,28933,117413,null,null,null,null,null,74722726,28933,80164441,28938]
[2023,"Newmarket-Tay Power Distribution Ltd.","General Service >= 50 kW","General Service 50 to 4,999 kW - Interval Meter - Newmarket-Tay Power","Newmarket-Tay Power Distribution Ltd._ Meter - Newmarket-Tay Power_General Service 50 to 4,999 kW Service Classification",18985035,51068,23213156,59458,224869610,555605,7764271,44967,null,null,255847037,660030,274832072,711098]
[2023,"Newmarket-Tay Power Distribution Ltd.","General Service >= 50 kW","General Service 50 to 4,999 kW - Midland Power","Newmarket-Tay Power Distribution Ltd._ to 4,999 kW - Midland Power_General Service 50 to 4,999 kW Service Classification",18985035,51068,7850845,19641,65418682,155368,3610939,6773,null,null,76880466,181782,95865501,232850]
[2023,"Newmarket-Tay Power Distribution Ltd.","General Service >= 50 kW","General Service 50 to 4,999 kW - Thermal Meter - Newmarket-Tay Power","Newmarket-Tay Power Distribution Ltd._ Meter - Newmarket-Tay Power_General Service 50 to 4,999 kW Service Classification",18985035,51068,0,null,null,null,null,null,null,null,0,0,18985035,51068]
[2023,"Newmarket-Tay Power Distribution Ltd.","Residential","Residential - Midland Power","Newmarket-Tay Power Distribution Ltd._and Power_Residential Service Classification",1529787,0,50932135,null,null,null,null,null,null,null,50932135,0,52461922,0]
[2023,"Newmarket-Tay Power Distribution Ltd.","Residential","Residential - Newmarket-Tay Power","Newmarket-Tay Power Distribution Ltd._Tay Power_Residential Service Classification",1529787,0,281671796,null,null,null,null,null,null,null,281671796,0,283201583,0]
[2023,"Newmarket-Tay Power Distribution Ltd.","Sentinel Lighting Connections","Sentinel Lighting - Newmarket-Tay Power","Newmarket-Tay Power Distribution Ltd._arket-Tay Power_Sentinel Lighting Service Classification",0,0,157151,null,null,null,null,null,null,null,157151,0,157151,0]
[2023,"Newmarket-Tay Power Distribution Ltd.","Street Lighting Connections","Street Lighting - Midland Power","Newmarket-Tay Power Distribution Ltd._Midland Power_Street Lighting Service Classification",481380,1325,0,null,33695,93,null,null,null,null,33695,93,515075,1418]
[2023,"Newmarket-Tay Power Distribution Ltd.","Street Lighting Connections","Street Lighting - Newmarket-Tay Power","Newmarket-Tay Power Distribution Ltd._ket-Tay Power_Street Lighting Service Classification",481380,1325,84305,234,2418264,6705,null,null,null,null,2502569,6939,2983949,8264]
[2023,"Newmarket-Tay Power Distribution Ltd.","Unmetered Scattered Load Connections","Unmetered Scattered Load - Newmarket-Tay Power","Newmarket-Tay Power Distribution Ltd._d - Newmarket-Tay Power_ Unmetered Scattered Load Service Classification",0,0,251971,null,null,null,null,null,null,null,251971,0,251971,0]
[2023,"Newmarket-Tay Power Distribution Ltd.","Unmetered Scattered Load Connections","Unmetered Scattered Load - Midland Power","Newmarket-Tay Power Distribution Ltd._d Load - Midland Power_Unmetered Scattered Load Service Classification",0,0,327896,null,null,null,null,null,null,null,327896,0,327896,0]
[2023,"Niagara Peninsula Energy Inc.","Embedded Distributor(s)","Embedded Distributor","Niagara Peninsula Energy Inc._Embedded Distributor Service Classification",0,0,0,null,6190824,7617.31,null,null,null,null,6190824,7617.31,6190824,7617.31]
[2023,"Niagara Peninsula Energy Inc.","General Service < 50 kW","General Service Less Than 50 kW","Niagara Peninsula Energy Inc._General Service Less Than 50 kW Service Classification",18290844,0,91791667,null,32938349,null,null,null,null,null,124730016,0,143020860,0]
[2023,"Niagara Peninsula Energy Inc.","General Service >= 50 kW","General Service 50 to 4,999 kW","Niagara Peninsula Energy Inc._General Service 50 to 4,999 kW Service Classification",55317340,146524.70000000001,0,null,550580445,1433856.93,2953784,5728.7,null,null,553534229,1439585.63,608851569,1586110.3299999998]
[2023,"Niagara Peninsula Energy Inc.","Residential","Residential","Niagara Peninsula Energy Inc._Residential Service Classification",8336224,0,468376420,null,13821,null,null,null,null,null,468390241,0,476726465,0]
[2023,"Niagara Peninsula Energy Inc.","Sentinel Lighting Connections","Sentinel Lighting","Niagara Peninsula Energy Inc._Sentinel Lighting Service Classification",10106,28.72,204702,581.65,null,null,null,null,null,null,204702,581.65,214808,610.37]
[2023,"Niagara Peninsula Energy Inc.","Street Lighting Connections","Street Lighting","Niagara Peninsula Energy Inc._Street Lighting Service Classification",0,0,0,null,4456669,12345.86,null,null,null,null,4456669,12345.86,4456669,12345.86]
[2023,"Niagara Peninsula Energy Inc.","Unmetered Scattered Load Connections","Unmetered Scattered Load","Niagara Peninsula Energy Inc._Unmetered Scattered Load Service Classification",0,0,1519469,null,null,null,null,null,null,null,1519469,0,1519469,0]
[2023,"Niagara-on-the-Lake Hydro Inc.","General Service < 50 kW","General Service Less Than 50 kW","Niagara_on_the_Lake Hydro Inc._General Service Less Than 50 kW Service Classification",4742854.1900000004,0,39665316.420000002,0,0,0,0,0,null,null,39665316.420000002,0,44408170.609999999,0]
[2023,"Niagara-on-the-Lake Hydro Inc.","General Service >= 50 kW","General Service 50 to 4,999 kW","Niagara_on_the_Lake Hydro Inc._General Service 50 to 4,999 kW Service Classification",12622676.630000001,34924.71,4174945.04,9987.7999999999993,69517259.540000007,189146.99,0,0,null,null,73692204.579999998,199134.79,86314881.209999993,234059.5]
[2023,"Niagara-on-the-Lake Hydro Inc.","Large User","Large Use","Niagara_on_the_Lake Hydro Inc._Large Use Service Classification",0,0,0,0,1250860.8,8525.4,0,0,null,null,1250860.8,8525.4,1250860.8,8525.4]
[2023,"Niagara-on-the-Lake Hydro Inc.","Residential","Residential","Niagara_on_the_Lake Hydro Inc._Residential Service Classification",812466.97,0,77245861.359999999,0,0,0,0,0,null,null,77245861.359999999,0,78058328.329999998,0]
[2023,"Niagara-on-the-Lake Hydro Inc.","Street Lighting Connections","Street Lighting","Niagara_on_the_Lake Hydro Inc._Street Lighting Service Classification",0,0,70913.02,198,492432.11,1374,0,0,null,null,563345.13,1572,563345.13,1572]
[2023,"Niagara-on-the-Lake Hydro Inc.","Unmetered Scattered Load Connections","Unmetered Scattered Load","Niagara_on_the_Lake Hydro Inc._Unmetered Scattered Load Service Classification",117792,0,197584.28,0,0,0,0,0,null,null,197584.28,0,315376.28000000003,0]
[2023,"North Bay Hydro Distribution Limited","General Service < 50 kW","General Service Less Than 50 kW-Espanola","North Bay Hydro Distribution Limited_ice Less Than 50 kW-Espanola_General Service Less Than 50 k Service Classification",1427758.97,0,8866199.1600000001,null,null,null,null,null,null,null,8866199.1600000001,0,10293958.130000001,0]
[2023,"North Bay Hydro Distribution Limited","General Service < 50 kW","General Service Less Than 50 kW-North Bay","North Bay Hydro Distribution Limited_ce Less Than 50 kW-North Bay_General Service Less Than 50 k Service Classification",1427758.97,0,65529227.020000003,null,289632.24,null,null,null,null,null,65818859.259999998,0,67246618.230000004,0]
[2023,"North Bay Hydro Distribution Limited","General Service >= 50 kW","General Service 3,000 to 4,999 kW-North Bay","North Bay Hydro Distribution Limited_ce 3,000 to 4,999 kW-North Bay_General Service 3,000 to 4,999 k Service Classification",0,0,0,null,15676227.890000001,30514.959999999999,null,null,null,null,15676227.890000001,30514.959999999999,15676227.890000001,30514.959999999999]
[2023,"North Bay Hydro Distribution Limited","General Service >= 50 kW","General Service 50 to 2,999 kW-North Bay","North Bay Hydro Distribution Limited_ce 50 to 2,999 kW-North Bay_General Service 50 to 2,999 k Service Classification",0,0,15501413.01,53810.43,143743857.69,370301.98,null,null,null,null,159245270.69999999,424112.41,159245270.69999999,424112.41]
[2023,"North Bay Hydro Distribution Limited","General Service >= 50 kW","General Service 50 to 4,999 kW-Espanola","North Bay Hydro Distribution Limited_ice 50 to 4,999 kW-Espanola_General Service 50 to 4,999 k Service Classification",0,0,1253646.5,3900.81,12454652.83,30341.040000000001,null,null,null,null,13708299.33,34241.85,13708299.33,34241.85]
[2023,"North Bay Hydro Distribution Limited","Residential","Residential-Espanola","North Bay Hydro Distribution Limited_Espanola_Residentia Service Classification",376265.37,0,31830678.489999998,null,null,null,null,null,null,null,31830678.489999998,0,32206943.859999999,0]
[2023,"North Bay Hydro Distribution Limited","Residential","Residential-North Bay","North Bay Hydro Distribution Limited_orth Bay_Residentia Service Classification",376265.37,0,200328530.52000001,null,null,null,null,null,null,null,200328530.52000001,0,200704795.89000002,0]
[2023,"North Bay Hydro Distribution Limited","Sentinel Lighting Connections","Sentinel Lighting-Espanola","North Bay Hydro Distribution Limited_hting-Espanola_Sentinel Lightin Service Classification",758.58,1.96,25209.65,68.5,null,null,null,null,null,null,25209.65,68.5,25968.230000000003,70.459999999999994]
[2023,"North Bay Hydro Distribution Limited","Sentinel Lighting Connections","Sentinel Lighting-North Bay","North Bay Hydro Distribution Limited_ting-North Bay_Sentinel Lightin Service Classification",758.58,1.96,113590.28,287.38,null,null,null,null,null,null,113590.28,287.38,114348.86,289.33999999999997]
[2023,"North Bay Hydro Distribution Limited","Street Lighting Connections","Street Lighting-Espanola","North Bay Hydro Distribution Limited_ing-Espanola_Street Lightin Service Classification",177957.7,553.55999999999995,56197.17,174.77,null,null,null,null,null,null,56197.17,174.77,234154.87,728.32999999999993]
[2023,"North Bay Hydro Distribution Limited","Street Lighting Connections","Street Lighting-North Bay","North Bay Hydro Distribution Limited_ng-North Bay_Street Lightin Service Classification",177957.7,553.55999999999995,0,null,2036368.72,5690.28,null,null,null,null,2036368.72,5690.28,2214326.42,6243.84]
[2023,"North Bay Hydro Distribution Limited","Unmetered Scattered Load Connections","Unmetered Scattered Load-Espanola","North Bay Hydro Distribution Limited_attered Load-Espanola_Unmetered Scattered Loa Service Classification",11306.33,0,118559.98,null,null,null,null,null,null,null,118559.98,0,129866.31,0]
[2023,"North Bay Hydro Distribution Limited","Unmetered Scattered Load Connections","Unmetered Scattered Load-North Bay","North Bay Hydro Distribution Limited_ttered Load-North Bay_Unmetered Scattered Loa Service Classification",11306.33,0,39477.82,null,null,null,null,null,null,null,39477.82,0,50784.15,0]
[2023,"Northern Ontario Wires Inc.","General Service < 50 kW","General Service Less Than 50 kW","Northern Ontario Wires Inc._General Service Less Than 50 kW Service Classification",3677579,0,14091895,null,null,null,null,null,null,null,14091895,0,17769474,0]
[2023,"Northern Ontario Wires Inc.","General Service >= 50 kW","General Service 50 to 4,999 kW","Northern Ontario Wires Inc._General Service 50 to 4,999 kW Service Classification",21550151,61612,0,null,35383704,94237,null,null,null,null,35383704,94237,56933855,155849]
[2023,"Northern Ontario Wires Inc.","Residential","Residential","Northern Ontario Wires Inc._Residential Service Classification",482331,0,39188932,null,null,null,null,null,null,null,39188932,0,39671263,0]
[2023,"Northern Ontario Wires Inc.","Street Lighting Connections","Street Lighting","Northern Ontario Wires Inc._Street Lighting Service Classification",491697,1513,0,null,1275,4,null,null,null,null,1275,4,492972,1517]
[2023,"Northern Ontario Wires Inc.","Unmetered Scattered Load Connections","Unmetered Scattered Load","Northern Ontario Wires Inc._Unmetered Scattered Load Service Classification",19637,0,144316,null,null,null,null,null,null,null,144316,0,163953,0]
[2023,"Oakville Hydro Electricity Distribution Inc.","Embedded Distributor(s)","Embedded Distributor","Oakville Hydro Electricity Distribution Inc._Embedded Distributor Service Classification",0,0,0,null,52464710.869999997,140691.74,null,null,null,null,52464710.869999997,140691.74,52464710.869999997,140691.74]
[2023,"Oakville Hydro Electricity Distribution Inc.","General Service < 50 kW","General Service Less Than 50 kW","Oakville Hydro Electricity Distribution Inc._General Service Less Than 50 kW Service Classification",23739421.859999999,0,161971794.69,null,null,null,null,null,null,null,161971794.69,0,185711216.55000001,0]
[2023,"Oakville Hydro Electricity Distribution Inc.","General Service >= 50 kW","General Service 1,000 kW and Greater","Oakville Hydro Electricity Distribution Inc._General Service 1,000 kW and Greater Service Classification",45277861.740000002,109511.25,0,null,144515137.63999999,314968.63,null,null,null,null,144515137.63999999,314968.63,189792999.38,424479.88]
[2023,"Oakville Hydro Electricity Distribution Inc.","General Service >= 50 kW","General Service 50 to 999 kW","Oakville Hydro Electricity Distribution Inc._General Service 50 to 999 kW Service Classification",45277861.740000002,109511.25,77356057.079999998,233366.97,383922786.66000003,1028596.04,4007714.78,7312.45,null,null,465286558.51999998,1269275.46,510564420.25999999,1378786.71]
[2023,"Oakville Hydro Electricity Distribution Inc.","Residential","Residential","Oakville Hydro Electricity Distribution Inc._Residential Service Classification",3728523.79,0,620180697.67999995,null,null,null,null,null,null,null,620180697.67999995,0,623909221.46999991,0]
[2023,"Oakville Hydro Electricity Distribution Inc.","Sentinel Lighting Connections","Sentinel Lighting","Oakville Hydro Electricity Distribution Inc._Sentinel Lighting Service Classification",0,0,0,null,95874.49,266.32,null,null,null,null,95874.49,266.32,95874.49,266.32]
[2023,"Oakville Hydro Electricity Distribution Inc.","Street Lighting Connections","Street Lighting","Oakville Hydro Electricity Distribution Inc._Street Lighting Service Classification",0,0,145124.69,405.12,5614061.29,15674.56,null,null,null,null,5759185.9800000004,16079.68,5759185.9800000004,16079.68]
[2023,"Oakville Hydro Electricity Distribution Inc.","Unmetered Scattered Load Connections","Unmetered Scattered Load","Oakville Hydro Electricity Distribution Inc._Unmetered Scattered Load Service Classification",0,0,5217732.5,null,null,null,null,null,null,null,5217732.5,0,5217732.5,0]
[2023,"Orangeville Hydro Limited","General Service < 50 kW","General Service Less Than 50 kW","Orangeville Hydro Limited_General Service Less Than 50 kW Service Classification",5151126.5999999996,0,30084736.870000001,null,null,null,null,null,null,null,30084736.870000001,0,35235863.469999999,0]
[2023,"Orangeville Hydro Limited","General Service >= 50 kW","General Service 50 to 4,999 kW","Orangeville Hydro Limited_General Service 50 to 4,999 kW Service Classification",22955303.460000001,58201.5,10829685.43,36991.82,99838204.900000006,216954.99,2536172.29,5533.15,null,null,113204062.62,259479.96,136159366.08000001,317681.45999999996]
[2023,"Orangeville Hydro Limited","Residential","Residential","Orangeville Hydro Limited_Residential Service Classification",1103863.4099999999,0,94267764.310000002,null,null,null,null,null,null,null,94267764.310000002,0,95371627.719999999,0]
[2023,"Orangeville Hydro Limited","Sentinel Lighting Connections","Sentinel Lighting","Orangeville Hydro Limited_Sentinel Lighting Service Classification",0,0,99742.97,278.2,null,null,null,null,null,null,99742.97,278.2,99742.97,278.2]
[2023,"Orangeville Hydro Limited","Street Lighting Connections","Street Lighting","Orangeville Hydro Limited_Street Lighting Service Classification",0,0,159687.48000000001,440.16,715318.8,1993.92,null,null,null,null,875006.28,2434.08,875006.28,2434.08]
[2023,"Orangeville Hydro Limited","Unmetered Scattered Load Connections","Unmetered Scattered Load","Orangeville Hydro Limited_Unmetered Scattered Load Service Classification",0,0,375339.19,null,null,null,null,null,null,null,375339.19,0,375339.19,0]
[2023,"Oshawa PUC Networks Inc.","General Service < 50 kW","General Service Less Than 50 kW","Oshawa PUC Networks Inc._General Service Less Than 50 kW Service Classification",17592275,0,108606467,0,0,0,0,0,null,null,108606467,0,126198742,0]
[2023,"Oshawa PUC Networks Inc.","General Service >= 50 kW","General Service 1,000 to 4,999 kW","Oshawa PUC Networks Inc._General Service 1,000 to 4,999 kW Service Classification",0,0,0,0,77653134,175106,0,0,null,null,77653134,175106,77653134,175106]
[2023,"Oshawa PUC Networks Inc.","General Service >= 50 kW","General Service 50 to 999 kW","Oshawa PUC Networks Inc._General Service 50 to 999 kW Service Classification",0,0,106956503,290826,181143711,454485,6436207,11967,null,null,294536421,757278,294536421,757278]
[2023,"Oshawa PUC Networks Inc.","Large User","Large Use","Oshawa PUC Networks Inc._Large Use Service Classification",0,0,0,0,33850160,76070,0,0,null,null,33850160,76070,33850160,76070]
[2023,"Oshawa PUC Networks Inc.","Residential","Residential","Oshawa PUC Networks Inc._Residential Service Classification",7145343,0,500489159,0,0,0,0,0,null,null,500489159,0,507634502,0]
[2023,"Oshawa PUC Networks Inc.","Sentinel Lighting Connections","Sentinel Lighting","Oshawa PUC Networks Inc._Sentinel Lighting Service Classification",0,0,23756,79,0,0,0,0,null,null,23756,79,23756,79]
[2023,"Oshawa PUC Networks Inc.","Street Lighting Connections","Street Lighting","Oshawa PUC Networks Inc._Street Lighting Service Classification",0,0,0,0,4432743,22781,0,0,null,null,4432743,22781,4432743,22781]
[2023,"Oshawa PUC Networks Inc.","Unmetered Scattered Load Connections","Unmetered Scattered Load","Oshawa PUC Networks Inc._Unmetered Scattered Load Service Classification",0,0,865774,0,0,0,0,0,null,null,865774,0,865774,0]
[2023,"Ottawa River Power Corporation","General Service < 50 kW","General Service Less Than 50 kW","Ottawa River Power Corporation_General Service Less Than 50 kW Service Classification",5229336,0,23556030,null,null,null,null,null,null,null,23556030,0,28785366,0]
[2023,"Ottawa River Power Corporation","General Service >= 50 kW","General Service 50 to 4,999 kW","Ottawa River Power Corporation_General Service 50 to 4,999 kW Service Classification",15995021,43003.95,7319408,20093.39,43385262,128033.26,null,null,null,null,50704670,148126.65,66699691,191130.59999999998]
[2023,"Ottawa River Power Corporation","Residential","Residential","Ottawa River Power Corporation_Residential Service Classification",911337,0,85200702,null,null,null,null,null,null,null,85200702,0,86112039,0]
[2023,"Ottawa River Power Corporation","Sentinel Lighting Connections","Sentinel Lighting","Ottawa River Power Corporation_Sentinel Lighting Service Classification",24468,0,148342,528.29999999999995,null,null,null,null,null,null,148342,528.29999999999995,172810,528.29999999999995]
[2023,"Ottawa River Power Corporation","Street Lighting Connections","Street Lighting","Ottawa River Power Corporation_Street Lighting Service Classification",198277,575.76,49089,147.28,954726,2099.16,null,null,null,null,1003815,2246.44,1202092,2822.2]
[2023,"Ottawa River Power Corporation","Unmetered Scattered Load Connections","Unmetered Scattered Load","Ottawa River Power Corporation_Unmetered Scattered Load Service Classification",378375,0,210407,null,null,null,null,null,null,null,210407,0,588782,0]
[2023,"PUC Distribution Inc.","General Service < 50 kW","General Service Less Than 50 kW","PUC Distribution Inc._General Service Less Than 50 kW Service Classification",14759988.25,0,81143569.819999993,null,8522.6299999999992,null,null,null,null,null,81152092.450000003,0,95912080.700000003,0]
[2023,"PUC Distribution Inc.","General Service >= 50 kW","General Service 50 to 4,999 kW","PUC Distribution Inc._General Service 50 to 4,999 kW Service Classification",38005240.079999998,79970.240000000005,42601895.030000001,120838.17,139902205.94999999,336803.46,null,null,null,null,182504100.97999999,457641.63,220509341.06,537611.87]
[2023,"PUC Distribution Inc.","Residential","Residential","PUC Distribution Inc._Residential Service Classification",3171761.71,0,291875669.17000002,null,9122.77,null,null,null,null,null,291884791.94,0,295056553.64999998,0]
[2023,"PUC Distribution Inc.","Sentinel Lighting Connections","Sentinel Lighting","PUC Distribution Inc._Sentinel Lighting Service Classification",0,0,204041.27,597.38,0,0,null,null,null,null,204041.27,597.38,204041.27,597.38]
[2023,"PUC Distribution Inc.","Street Lighting Connections","Street Lighting","PUC Distribution Inc._Street Lighting Service Classification",0,0,127421.53,373.07,2288348.7599999998,6699.24,null,null,null,null,2415770.29,7072.31,2415770.29,7072.31]
[2023,"PUC Distribution Inc.","Unmetered Scattered Load Connections","Unmetered Scattered Load","PUC Distribution Inc._Unmetered Scattered Load Service Classification",0,0,893512.34,null,null,null,null,null,null,null,893512.34,0,893512.34,0]
[2023,"Renfrew Hydro Inc.","General Service < 50 kW","General Service Less Than 50 kW","Renfrew Hydro Inc._General Service Less Than 50 kW Service Classification",2420337,0,9093281,0,0,0,0,0,null,null,9093281,0,11513618,0]
[2023,"Renfrew Hydro Inc.","General Service >= 50 kW","General Service 50 to 4,999 kW","Renfrew Hydro Inc._General Service 50 to 4,999 kW Service Classification",9707407,21578.89,3947934,0,29297502,80513,0,0,null,null,33245436,80513,42952843,102091.89]
[2023,"Renfrew Hydro Inc.","Residential","Residential","Renfrew Hydro Inc._Residential Service Classification",277192,0,30716728,0,3555,0,0,0,null,null,30720283,0,30997475,0]
[2023,"Renfrew Hydro Inc.","Street Lighting Connections","Street Lighting","Renfrew Hydro Inc._Street Lighting Service Classification",0,0,0,0,388077,1076,0,0,null,null,388077,1076,388077,1076]
[2023,"Renfrew Hydro Inc.","Unmetered Scattered Load Connections","Unmetered Scattered Load","Renfrew Hydro Inc._Unmetered Scattered Load Service Classification",0,0,0,0,264701,0,0,0,null,null,264701,0,264701,0]
[2023,"Rideau St. Lawrence Distribution Inc.","General Service < 50 kW","General Service Less Than 50 kW","Rideau St. Lawrence Distribution Inc._General Service Less Than 50 kW Service Classification",3201161,0,15271879,null,null,null,null,null,null,null,15271879,0,18473040,0]
[2023,"Rideau St. Lawrence Distribution Inc.","General Service >= 50 kW","General Service 50 to 4,999 kW","Rideau St. Lawrence Distribution Inc._General Service 50 to 4,999 kW Service Classification",3931422,15087.13,2604415,6368.97,33299294,95175.3,null,null,null,null,35903709,101544.27,39835131,116631.40000000001]
[2023,"Rideau St. Lawrence Distribution Inc.","Residential","Residential","Rideau St. Lawrence Distribution Inc._Residential Service Classification",335409,0,43259598,null,null,null,null,null,null,null,43259598,0,43595007,0]
[2023,"Rideau St. Lawrence Distribution Inc.","Sentinel Lighting Connections","Sentinel Lighting","Rideau St. Lawrence Distribution Inc._Sentinel Lighting Service Classification",4973,13.81,82735,229.82,null,null,null,null,null,null,82735,229.82,87708,243.63]
[2023,"Rideau St. Lawrence Distribution Inc.","Street Lighting Connections","Street Lighting","Rideau St. Lawrence Distribution Inc._Street Lighting Service Classification",70911,192.72,81502,221.48,489873,1331.41,null,null,null,null,571375,1552.89,642286,1745.6100000000001]
[2023,"Rideau St. Lawrence Distribution Inc.","Unmetered Scattered Load Connections","Unmetered Scattered Load","Rideau St. Lawrence Distribution Inc._Unmetered Scattered Load Service Classification",43010,0,493792,null,null,null,null,null,null,null,493792,0,536802,0]
[2023,"Sioux Lookout Hydro Inc.","General Service < 50 kW","General Service Less Than 50 kW","Sioux Lookout Hydro Inc._General Service Less Than 50 kW Service Classification",732012.99,0,14600665.52,null,null,null,null,null,null,null,14600665.52,0,15332678.51,0]
[2023,"Sioux Lookout Hydro Inc.","General Service >= 50 kW","General Service 50 to 4,999 kW","Sioux Lookout Hydro Inc._General Service 50 to 4,999 kW Service Classification",728146.81,2670.41,2427136.3199999998,7799.58,23586350.050000001,55293.08,null,null,null,null,26013486.370000001,63092.66,26741633.18,65763.070000000007]
[2023,"Sioux Lookout Hydro Inc.","Residential","Residential","Sioux Lookout Hydro Inc._Residential Service Classification",172265.48,0,41191868.759999998,null,null,null,null,null,null,null,41191868.759999998,0,41364134.239999995,0]
[2023,"Sioux Lookout Hydro Inc.","Street Lighting Connections","Street Lighting","Sioux Lookout Hydro Inc._Street Lighting Service Classification",0,0,9156.56,25.8,141895.25,397.39,null,null,null,null,151051.81,423.19,151051.81,423.19]
[2023,"Synergy North Corporation","General Service < 50 kW","General Service < 50 kW - Kenora","Synergy North Corporation_vice < 50 kW - Kenora_General Service < 50 kW Service Classification",5133038.5999999996,0,17867042,null,null,null,null,null,null,null,17867042,0,23000080.600000001,0]
[2023,"Synergy North Corporation","General Service < 50 kW","General Service Less Than 50 kW - Thunder Bay","Synergy North Corporation_Less Than 50 kW - Thunder Bay_General Service Less Than 50 kW Service Classification",5133038.5999999996,0,120026299,null,null,null,null,null,null,null,120026299,0,125159337.59999999,0]
[2023,"Synergy North Corporation","General Service >= 50 kW","General Service 1,000 or Greater - Thunder Bay","Synergy North Corporation_1,000 or Greater - Thunder Bay_General Service 1,000 or Greater Service Classification",13974583,35419.69,0,null,140411092,453811,null,null,null,null,140411092,453811,154385675,489230.69]
[2023,"Synergy North Corporation","General Service >= 50 kW","General Service 50 to 999 kW - Thunder Bay","Synergy North Corporation_50 to 999 kW - Thunder Bay_General Service 50 to 999 kW Service Classification",13974583,35419.69,31105054,77410,196887493,472262,null,null,null,null,227992547,549672,241967130,585091.68999999994]
[2023,"Synergy North Corporation","General Service >= 50 kW","General Service >= 50 kW - Kenora","Synergy North Corporation_vice >= 50 kW - Kenora_General Service >= 50 kW Service Classification",13974583,35419.69,4565610,11421,16361455,40372,null,null,null,null,20927065,51793,34901648,87212.69]
[2023,"Synergy North Corporation","Residential","Residential - Kenora","Synergy North Corporation_ - Kenora_Residential Service Classification",158343.43,0,38958953,null,null,null,null,null,null,null,38958953,0,39117296.43,0]
[2023,"Synergy North Corporation","Residential","Residential - Thunder Bay","Synergy North Corporation_under Bay_Residential Service Classification",158343.43,0,338366594,null,null,null,null,null,null,null,338366594,0,338524937.43000001,0]
[2023,"Synergy North Corporation","Sentinel Lighting Connections","Sentinel Lighting - Thunder Bay","Synergy North Corporation_g - Thunder Bay_Sentinel Lighting Service Classification",0,0,112347,335,null,null,null,null,null,null,112347,335,112347,335]
[2023,"Synergy North Corporation","Street Lighting Connections","Street Lighting - Thunder Bay","Synergy North Corporation_- Thunder Bay_Street Lighting Service Classification",0,0,68458,194,5142015,14565,null,null,null,null,5210473,14759,5210473,14759]
[2023,"Synergy North Corporation","Street Lighting Connections","Street Lighting Connections - Kenora","Synergy North Corporation_ting Connections - Kenora_Street Lighting Connections Service Classification",0,0,0,null,null,null,null,null,null,null,0,0,0,0]
[2023,"Synergy North Corporation","Unmetered Scattered Load Connections","Unmetered Scattered Load - Thunder Bay","Synergy North Corporation_red Load - Thunder Bay_Unmetered Scattered Load Service Classification",0,0,1951176,null,null,null,null,null,null,null,1951176,0,1951176,0]
[2023,"Synergy North Corporation","Unmetered Scattered Load Connections","Unmetered Scattered Load Connections - Kenora","Synergy North Corporation_cattered Load Connections - Kenora_Unmetered Scattered Load Connections Service Classification",0,0,147160,null,null,null,null,null,null,null,147160,0,147160,0]
[2023,"Tillsonburg Hydro Inc.","General Service < 50 kW","General Service Less Than 50 kW","Tillsonburg Hydro Inc._General Service Less Than 50 kW Service Classification",3580378.93,929.92,19830156.289999999,10145.34,0,0,0,0,null,null,19830156.289999999,10145.34,23410535.219999999,11075.26]
[2023,"Tillsonburg Hydro Inc.","General Service >= 50 kW","General Service 50 to 499 kW","Tillsonburg Hydro Inc._General Service 50 to 499 kW Service Classification",12452941.85,58199.68,6653456.6799999997,18415.939999999999,35446238.280000001,100198.38,0,0,null,null,42099694.960000001,118614.32,54552636.810000002,176814]
[2023,"Tillsonburg Hydro Inc.","General Service >= 50 kW","General Service 500 to 1,499 kW","Tillsonburg Hydro Inc._General Service 500 to 1,499 kW Service Classification",12452941.85,58199.68,0,0,19225067.27,44676.56,0,0,null,null,19225067.27,44676.56,31678009.119999997,102876.23999999999]
[2023,"Tillsonburg Hydro Inc.","General Service >= 50 kW","General Service Equal to or Greater Than 1,500 kW","Tillsonburg Hydro Inc._General Service Equal to or Greater Than 1,500 kW Service Classification",12452941.85,58199.68,0,0,18392898.350000001,47744,0,0,null,null,18392898.350000001,47744,30845840.200000003,105943.67999999999]
[2023,"Tillsonburg Hydro Inc.","Residential","Residential","Tillsonburg Hydro Inc._Residential Service Classification",826026.78,0,59927987.799999997,0,0,0,0,0,null,null,59927987.799999997,0,60754014.579999998,0]
[2023,"Tillsonburg Hydro Inc.","Sentinel Lighting Connections","Sentinel Lighting","Tillsonburg Hydro Inc._Sentinel Lighting Service Classification",0,0,22794.67,0,null,null,null,null,null,null,22794.67,0,22794.67,0]
[2023,"Tillsonburg Hydro Inc.","Street Lighting Connections","Street Lighting","Tillsonburg Hydro Inc._Street Lighting Service Classification",0,0,0,0,640256.06999999995,1667.52,0,0,null,null,640256.06999999995,1667.52,640256.06999999995,1667.52]
[2023,"Tillsonburg Hydro Inc.","Unmetered Scattered Load Connections","Unmetered Scattered Load","Tillsonburg Hydro Inc._Unmetered Scattered Load Service Classification",17928,0,331487.15000000002,0,0,0,0,0,null,null,331487.15000000002,0,349415.15,0]
[2023,"Toronto Hydro-Electric System Limited","General Service < 50 kW","General Service Less Than 50 kW","Toronto Hydro-Electric System Limited_General Service Less Than 50 kW Service Classification",326264006.86000001,0,2050972397.9000001,null,17736212.609999999,null,253.48,null,null,null,2068708863.99,0,2394972870.8499999,0]
[2023,"Toronto Hydro-Electric System Limited","General Service >= 50 kW","General Service 1,000 to 4,999 kW","Toronto Hydro-Electric System Limited_General Service 1,000 to 4,999 kW Service Classification",486873679.74000001,1000358.84,134755858.58000001,275231.78999999998,3638311803.2600002,8022979.9500000002,314817.96999999997,914.87,null,null,3773382479.8099999,8299126.6100000003,4260256159.5500002,9299485.4500000011]
[2023,"Toronto Hydro-Electric System Limited","General Service >= 50 kW","General Service 50 to 999 kW","Toronto Hydro-Electric System Limited_General Service 50 to 999 kW Service Classification",486873679.74000001,1000358.84,3055719184.6300001,7253318.3899999997,5653822054.1499996,14362785.65,49384639.5,99816.49,null,null,8758925878.2800007,21715920.530000001,9245799558.0200005,22716279.370000001]
[2023,"Toronto Hydro-Electric System Limited","Large User","Large Use","Toronto Hydro-Electric System Limited_Large Use Service Classification",259195202.90000001,534012.96,0,null,1451136462.5599999,3177231.24,236437086.66999999,451304.14,null,null,1687573549.23,3628535.38,1946768752.1300001,4162548.34]
[2023,"Toronto Hydro-Electric System Limited","Residential","Residential","Toronto Hydro-Electric System Limited_Residential Service Classification",55904409.039999999,0,4856974026.2299995,null,null,null,null,null,null,null,4856974026.2299995,0,4912878435.2699995,0]
[2023,"Toronto Hydro-Electric System Limited","Residential","Residential - Competitive Sector Multi-Unit","Toronto Hydro-Electric System Limited_ulti-Unit_Residential Service Classification",55904409.039999999,0,326287925.72000003,null,null,null,null,null,null,null,326287925.72000003,0,382192334.76000005,0]
[2023,"Toronto Hydro-Electric System Limited","Street Lighting Connections","Street Lighting","Toronto Hydro-Electric System Limited_Street Lighting Service Classification",0,0,0,null,118290955.11,340205.63,null,null,null,null,118290955.11,340205.63,118290955.11,340205.63]
[2023,"Toronto Hydro-Electric System Limited","Unmetered Scattered Load Connections","Unmetered Scattered Load","Toronto Hydro-Electric System Limited_Unmetered Scattered Load Service Classification",29377.1,0,41761625.259999998,null,null,null,null,null,null,null,41761625.259999998,0,41791002.359999999,0]
[2023,"Wasaga Distribution Inc.","General Service < 50 kW","General Service Less Than 50 kW","Wasaga Distribution Inc._General Service Less Than 50 kW Service Classification",1110696,0,17707869,null,null,null,null,null,null,null,17707869,0,18818565,0]
[2023,"Wasaga Distribution Inc.","General Service >= 50 kW","General Service 50 to 4,999 kW","Wasaga Distribution Inc._General Service 50 to 4,999 kW Service Classification",2340906,0,594489,1207,15102081,43813.9,2821873,5657.5,null,null,18518443,50678.400000000001,20859349,50678.400000000001]
[2023,"Wasaga Distribution Inc.","Residential","Residential","Wasaga Distribution Inc._Residential Service Classification",555065,0,104657620,null,null,null,null,null,null,null,104657620,0,105212685,0]
[2023,"Wasaga Distribution Inc.","Street Lighting Connections","Street Lighting","Wasaga Distribution Inc._Street Lighting Service Classification",0,0,0,null,802430,2371.1999999999998,null,null,null,null,802430,2371.1999999999998,802430,2371.1999999999998]
[2023,"Wasaga Distribution Inc.","Unmetered Scattered Load Connections","Unmetered Scattered Load","Wasaga Distribution Inc._Unmetered Scattered Load Service Classification",0,0,184559,null,null,null,null,null,null,null,184559,0,184559,0]
[2023,"Welland Hydro-Electric System Corp.","General Service < 50 kW","General Service Less Than 50 kW","Welland Hydro-Electric System Corp._General Service Less Than 50 kW Service Classification",10458390,0,45261052,null,null,null,null,null,null,null,45261052,0,55719442,0]
[2023,"Welland Hydro-Electric System Corp.","General Service >= 50 kW","General Service 50 to 4,999 kW","Welland Hydro-Electric System Corp._General Service 50 to 4,999 kW Service Classification",10806431,38183,593430,1243,121964412,313058,2665199,4730,null,null,125223041,319031,136029472,357214]
[2023,"Welland Hydro-Electric System Corp.","Residential","Residential","Welland Hydro-Electric System Corp._Residential Service Classification",1818384,0,180826513,null,null,null,null,null,null,null,180826513,0,182644897,0]
[2023,"Welland Hydro-Electric System Corp.","Sentinel Lighting Connections","Sentinel Lighting","Welland Hydro-Electric System Corp._Sentinel Lighting Service Classification",60323,165,362584,997,null,null,null,null,null,null,362584,997,422907,1162]
[2023,"Welland Hydro-Electric System Corp.","Street Lighting Connections","Street Lighting","Welland Hydro-Electric System Corp._Street Lighting Service Classification",0,0,0,null,1418460,3955,null,null,null,null,1418460,3955,1418460,3955]
[2023,"Welland Hydro-Electric System Corp.","Unmetered Scattered Load Connections","Unmetered Scattered Load","Welland Hydro-Electric System Corp._Unmetered Scattered Load Service Classification",5522,0,813766,null,76206,null,null,null,null,null,889972,0,895494,0]
[2023,"Wellington North Power Inc.","General Service < 50 kW","General Service Less Than 50 kW","Wellington North Power Inc._General Service Less Than 50 kW Service Classification",1592093.1,0,9170731.1799999997,0,0,0,0,0,null,null,9170731.1799999997,0,10762824.279999999,0]
[2023,"Wellington North Power Inc.","General Service >= 50 kW","General Service 1,000 to 4,999 kW","Wellington North Power Inc._General Service 1,000 to 4,999 kW Service Classification",28703464.199999999,59475.49,0,0,17897065.600000001,53605.61,0,0,null,null,17897065.600000001,53605.61,46600529.799999997,113081.1]
[2023,"Wellington North Power Inc.","General Service >= 50 kW","General Service 50 to 999 kW","Wellington North Power Inc._General Service 50 to 999 kW Service Classification",28703464.199999999,59475.49,0,0,16956395.640000001,52249.88,0,0,null,null,16956395.640000001,52249.88,45659859.840000004,111725.37]
[2023,"Wellington North Power Inc.","Residential","Residential","Wellington North Power Inc._Residential Service Classification",538807.13,0,27208828.039999999,0,0,0,0,0,null,null,27208828.039999999,0,27747635.169999998,0]
[2023,"Wellington North Power Inc.","Sentinel Lighting Connections","Sentinel Lighting","Wellington North Power Inc._Sentinel Lighting Service Classification",0,0,16673.91,46.32,0,0,0,0,null,null,16673.91,46.32,16673.91,46.32]
[2023,"Wellington North Power Inc.","Street Lighting Connections","Street Lighting","Wellington North Power Inc._Street Lighting Service Classification",11600.12,31.92,0,0,198680.07,545.48,0,0,null,null,198680.07,545.48,210280.19,577.4]
[2023,"Wellington North Power Inc.","Unmetered Scattered Load Connections","Unmetered Scattered Load","Wellington North Power Inc._Unmetered Scattered Load Service Classification",1067.99,0,6381.01,0,0,0,0,0,null,null,6381.01,0,7449,0]
[2023,"Westario Power Inc.","General Service < 50 kW","General Service Less Than 50 kW","Westario Power Inc._General Service Less Than 50 kW Service Classification",20910451,0,52709062,null,null,null,null,null,null,null,52709062,0,73619513,0]
[2023,"Westario Power Inc.","General Service >= 50 kW","General Service 50 to 4,999 kW","Westario Power Inc._General Service 50 to 4,999 kW Service Classification",53438829,126638,4812040,12536,111532626,287225,659219,2663,null,null,117003885,302424,170442714,429062]
[2023,"Westario Power Inc.","Residential","Residential","Westario Power Inc._Residential Service Classification",2931399,0,195573174,null,null,null,null,null,null,null,195573174,0,198504573,0]
[2023,"Westario Power Inc.","Sentinel Lighting Connections","Sentinel Lighting","Westario Power Inc._Sentinel Lighting Service Classification",0,0,7576,20,null,null,null,null,null,null,7576,20,7576,20]
[2023,"Westario Power Inc.","Street Lighting Connections","Street Lighting","Westario Power Inc._Street Lighting Service Classification",1724479,4641,0,null,590939,1591,null,null,null,null,590939,1591,2315418,6232]
[2023,"Westario Power Inc.","Unmetered Scattered Load Connections","Unmetered Scattered Load","Westario Power Inc._Unmetered Scattered Load Service Classification",34128,0,188091,null,null,null,null,null,null,null,188091,0,222219,0]

{"sheet":"hidden1","index":14,"n_rows":22,"n_cols":2,"rows_kept":22,"cut":false,"hidden":true,"merged":[]}
[{"$f":"IF('DELETE 3. Rate Classes'!L17=1, 'DELETE 3. Rate Classes'!#REF!, \"\")","v":""},1]
[{"$f":"IF('DELETE 3. Rate Classes'!L18=1, 'DELETE 3. Rate Classes'!#REF!, \"\")","v":""},2]
[{"$f":"IF('DELETE 3. Rate Classes'!L19=1, 'DELETE 3. Rate Classes'!#REF!, \"\")","v":""},3]
[{"$f":"IF('DELETE 3. Rate Classes'!L20=1, 'DELETE 3. Rate Classes'!#REF!, \"\")","v":""},4]
[{"$f":"IF('DELETE 3. Rate Classes'!L21=1, 'DELETE 3. Rate Classes'!#REF!, \"\")","v":""},5]
[{"$f":"IF('DELETE 3. Rate Classes'!L22=1, 'DELETE 3. Rate Classes'!#REF!, \"\")","v":""},6]
[{"$f":"IF('DELETE 3. Rate Classes'!L23=1, 'DELETE 3. Rate Classes'!#REF!, \"\")","v":""},7]
[{"$f":"IF('DELETE 3. Rate Classes'!L24=1, 'DELETE 3. Rate Classes'!#REF!, \"\")","v":""},8]
[{"$f":"IF('DELETE 3. Rate Classes'!L25=1, 'DELETE 3. Rate Classes'!#REF!, \"\")","v":""},9]
[{"$f":"IF('DELETE 3. Rate Classes'!L26=1, 'DELETE 3. Rate Classes'!#REF!, \"\")","v":""},10]
[{"$f":"IF('DELETE 3. Rate Classes'!L27=1, 'DELETE 3. Rate Classes'!#REF!, \"\")","v":""},11]
[{"$f":"IF('DELETE 3. Rate Classes'!L28=1, 'DELETE 3. Rate Classes'!#REF!, \"\")","v":""},12]
[{"$f":"IF('DELETE 3. Rate Classes'!L29=1, 'DELETE 3. Rate Classes'!#REF!, \"\")","v":""},13]
[{"$f":"IF('DELETE 3. Rate Classes'!L30=1, 'DELETE 3. Rate Classes'!#REF!, \"\")","v":""},14]
[{"$f":"IF('DELETE 3. Rate Classes'!L31=1, 'DELETE 3. Rate Classes'!#REF!, \"\")","v":""},15]
[{"$f":"IF('DELETE 3. Rate Classes'!L32=1, 'DELETE 3. Rate Classes'!#REF!, \"\")","v":""},16]
[{"$f":"IF('DELETE 3. Rate Classes'!L33=1, 'DELETE 3. Rate Classes'!#REF!, \"\")","v":""},17]
[{"$f":"IF('DELETE 3. Rate Classes'!L34=1, 'DELETE 3. Rate Classes'!#REF!, \"\")","v":""},18]
[{"$f":"IF('DELETE 3. Rate Classes'!L35=1, 'DELETE 3. Rate Classes'!#REF!, \"\")","v":""},19]
[{"$f":"IF('DELETE 3. Rate Classes'!L36=1, 'DELETE 3. Rate Classes'!#REF!, \"\")","v":""},20]
[{"$f":"IF('DELETE 3. Rate Classes'!L37=1, 'DELETE 3. Rate Classes'!#REF!, \"\")","v":""},21]
[{"$f":"IF('DELETE 3. Rate Classes'!L38=1, 'DELETE 3. Rate Classes'!#REF!, \"\")","v":""},22]